Workbook

Sheet INDEX
B1: NEWFOUNDLAND AND LABRADOR HYDRO
B2: Cost of Service Model - Index
B4: Worksheet | C4: Schedule | D4: Description
A6: A. | B6: Model Integrity:
B7: RunOptions | D7: Run options and model status
B8: Reconciliation | D8: Reconciles General Ledger amounts to Cost of Service amounts.
B9: Balance | D9: Internal model balancing checks
A11: B. | B11: Cost of Service Schedules:
B12: Revenue Requirement | C12: Sch 1.1, p.1 | D12: Revenue Requirement
B14: Rate Base | C14: Sch 1.1, p.2 | D14: Rate Base
B16: Rev to Cost | C16: Sch 1.2 | D16: Comparison of Revenue and Allocated Revenue Requirement
C17: Sch 1.2.1 | D17: Rural Deficit Allocation
B19: Unit Costs | C19: Sch 1.3 | D19: Unit Demand, Energy and Customer Amounts - all systems. (Calculation of $/kWh and $/bill rates
C20: Sch 1.3.1 | D20: Total Demand, Energy and Customer Amounts - all systems. (Calculation of total $ per rate class)
C21: Sch 1.3.2 | D21: Demands, Sales and Number of Bills - all systems. (Units used to calculate unit rates)
C22: Sch 1.4 | D22: Rate Calculations
C23: Sch 1.5 | D23: Value of Newfoundland Power Thermal Generation Credit
C24: Sch 1.6 | D24: Calculation of firming up charge
C25: Sch 1.7 | D25: Calculation of wheeling charge
B27: IslIntCOS | D27: Island Interconnected System Functionalization, Classification and Allocation schedules
D28: * (Documentation schedules are located to the right of the main schedule)
C29: Sch 2.1A * | D29: Functional Classification of Revenue Requirement
C30: Sch 2.2A * | D30: Functional Classification of Plant in Service for Allocation of O&M Expenses
C31: Sch 2.3A | D31: Functional Classification of Net Book Value
C32: Sch 2.4A * | D32: Functional Classification of Operating and Maintenance Expenses
C33: Sch 2.5A | D33: Functional Classification of Depreciation Expense
C34: Sch 2.6A * | D34: Functional Classification of Rate Base
C35: Sch 3.1A | D35: Basis of Allocation to Classes of Service
C36: Sch 3.2A | D36: Allocation of Functionalized Amounts to Classes of Service
C37: Sch 3.3A | D37: Allocation of Specifically Assigned Amounts to Classes of Service
B39: IslIsoCOS | D39: Island Isolated System Functionalization, Classification and Allocation schedules
D40: * (Documentation schedules are located to the right of the main schedule)
C41: Sch 2.1B * | D41: Functional Classification of Revenue Requirement
C42: Sch 2.2B * | D42: Functional Classification of Plant in Service for Allocation of O&M Expenses
C43: Sch 2.3B | D43: Functional Classification of Net Book Value
C44: Sch 2.4B * | D44: Functional Classification of Operating and Maintenance Expenses
C45: Sch 2.5B | D45: Functional Classification of Depreciation Expense
C46: Sch 2.6B * | D46: Functional Classification of Rate Base
C47: Sch 3.1B | D47: Basis of Allocation to Classes of Service
C48: Sch 3.2B | D48: Allocation of Functionalized Amounts to Classes of Service
B50: LabIsoCOS | D50: Labrador Isolated System Functionalization, Classification and Allocation schedules
D51: * (Documentation schedules are located to the right of the main schedule)
C52: Sch 2.1C * | D52: Functional Classification of Revenue Requirement
C53: Sch 2.2C * | D53: Functional Classification of Plant in Service for Allocation of O&M Expenses
C54: Sch 2.3C | D54: Functional Classification of Net Book Value
C55: Sch 2.4C * | D55: Functional Classification of Operating and Maintenance Expenses
C56: Sch 2.5C | D56: Functional Classification of Depreciation Expense
C57: Sch 2.6C * | D57: Functional Classification of Rate Base
C58: Sch 3.1C | D58: Basis of Allocation to Classes of Service
C59: Sch 3.2C | D59: Allocation of Functionalized Amounts to Classes of Service
B61: LALCOS | D61: L'Anse au Loup System Functionalization, Classification and Allocation schedules
D62: * (Documentation schedules are located to the right of the main schedule)
C63: Sch 2.1D * | D63: Functional Classification of Revenue Requirement
C64: Sch 2.2D * | D64: Functional Classification of Plant in Service for Allocation of O&M Expenses
C65: Sch 2.3D | D65: Functional Classification of Net Book Value
C66: Sch 2.4D * | D66: Functional Classification of Operating and Maintenance Expenses
C67: Sch 2.5D | D67: Functional Classification of Depreciation Expense
C68: Sch 2.6D * | D68: Functional Classification of Rate Base
C69: Sch 3.1D | D69: Basis of Allocation to Classes of Service
C70: Sch 3.2D | D70: Allocation of Functionalized Amounts to Classes of Service
B72: LabIntCOS | D72: Labrador Interconnected System Functionalization, Classification and Allocation schedules
D73: * (Documentation schedules are located to the right of the main schedule)
C74: Sch 2.1E * | D74: Functional Classification of Revenue Requirement
C75: Sch 2.2E * | D75: Functional Classification of Plant in Service for Allocation of O&M Expenses
C76: Sch 2.3E | D76: Functional Classification of Net Book Value
C77: Sch 2.4E * | D77: Functional Classification of Operating and Maintenance Expenses
C78: Sch 2.5E | D78: Functional Classification of Depreciation Expense
C79: Sch 2.6E * | D79: Functional Classification of Rate Base
C80: Sch 3.1E | D80: Basis of Allocation to Classes of Service
C81: Sch 3.2E | D81: Allocation of Functionalized Amounts to Classes of Service
B83: Schedule 4.1 | D83: Functionalization and Classification Ratios
B85: Schedules 4.2,4.3,4.4 | C85: Sch 4.2 | D85: System Load Factors
C86: Sch 4.3 | D86: Holyrood Capacity Factor
C87: Sch 4.4 | D87: Power Purchases - Total System
A89: C. | B89: Backup Schedules
B91: AED | D91: Generation and Transmission Average and Excess Demand Ratios
B92: AllocDep | D92: Reconciles Depreciation input with COS schedules.
B93: AllocMisc | D93: Performs O&M allocations, by function, across systems, based on miscellaneous factors.
B94: AllocNBV | D94: Reconciles NBV input with COS schedules; Performs allocations based on Net Book Value
B95: AllocPlt | D95: Reconciles Orig Cost Plt input with COS schedules; Performs allocations based on Orig Cost Plt
B96: Average Costs | D96: Average Cost per kWh - all systems
B97: Coverage | D97: Calculation of Gross Interest Coverage
B98: Customers | D98: Schedule of customers and weighted customers
B99: DistnDetails | D99: Factors used to split distribution assets
B100: O&M Summary | D100: Summarization of O&M by system
B101: SDEPDetails | D101: Supplemental depreciation details
B102: SNBVDetails | D102: Supplemental net book value details
B103: SpecAssFuel | D103: Schedule of specifically assigned fuel (used in exceptional circumstances).
B104: SPLTDetails | D104: Supplemental original cost plant details
B105: SystemizedPlant | D105: Performs Plant, NBV and depreciation allocations, across systems.
B106: Unit Costs | D106: Calculation of Thermal Demand Costs

Sheet Revisions
A1: DATE | B1: Adjustment | C1: Location | D1: Comments
A2: Starting Point: July 2006 Filing
A4: 2006-10-30 | B4: Corrected the formula in row 7 (Aur Resources), column 10 of Schedule 3.3A.
A5: 2006-10-31 | B5: Added "Demand Rate ($ per kW)" row to Other Inputs.xls file.
A6: 2006-10-31 | B6: Made the necessary adjustments to the formulas in the 'NPRateCalcs' sheet to reflect the $4.00 per kW Demand rate.
A7: 2006-10-31 | B7: Made the necessary adjustments to the formulas in the 'Wholesale' sheet of the rates.xls file to reflect the $4.00 per kW Demand rate.
A8: 2006-11-06 | B8: Load revised for: NP Gen Credit Proposal Revised Load Forecast; Natuashish removed from Labrador Isolated Load (A. Dunphy)
A9: 2006-11-06 | B9: COS revised for changed lookup reference for CP re system Load Factor, Schedule 4.2 (A. Dunphy)
A10: 2006-11-06 | B10: Revised Schedule 1.2.1 (Rural Deficit Allocation) by putting 0% in column 3 of row 14 and 100% in column 3 of row 16. This zeros out the RSP credit for Newfoundland Power in Schedule 1.2 and reduces the Revenue requirement from them by the amount of that credit. (P. Rossiter)
A11: 2006-11-06 | B11: Removed note from page 1 of Schedule 1.2 (Comparison of Revenue & Allocated Revenue Requirement) pertaining to NP's RSP activity credit. (P. Rossiter)
A12: 2006-11-06 | B12: Added new schedule 1.5 for Value of NP Thermal Generation Credit. Renamed existing 1.5 and 1.6 schedules to 1.6 and 1.7. Revised print ranges. (A. Dwyer) | C12: +NPRateCalcs!A38
A13: 2006-11-07 | B13: Updated Fuel, Power Purchases and O&M:
B14: Fuel: Net decrease of $7,216,361
B15: Power Purchases: Net increase of $15,208.
B16: O&M: Net decrease of $1,299,878. This net number includes an increase of $363,500 reflecting the O&M impact of two cancelled capital proposals.
A17: 2006-11-08 | B17: O&M: Net decrease of $1,488,623. This net number includes an increase of $174,755 reflecting the O&M impact of two cancelled capital proposals.
A18: 2011-10-13 | B18: 100% of CFB Goose Bay Revenue Credit applied to reduce total Rural Deficit
A19: 2011-10-13 | B19: Change Rural Isl Int Margin Switch to Rural Margin Switch to reflect return on all rate base.
A20: 2011-10-13 | B20: Updated Rate Base tab line 20 for return on equity component for Isl Iso, Lab Iso and LAL
A21: 2011-11-09 | B21: Included ARO in capital structure computation in Other Inputs file and COS Rate Base tab.
A22: 2011-11-28 | B22: Recalculate customer weighting factors.
A24: 2016-01-29 | B24: Conversion to Excel 2010. The COS file opens independently of any other file, without error. I used a workspace file, but you will have to re-create this for whatever directory you will be using. I ran into some issues with the OAM file with multiple range names and #REF for some of them. If Excel queries are launched from this file, this functionality should be tested.
A25: 2016-01-29 | B25: Export Transmission switch on RunOptions worksheet. This will report plant values as either Export Transmission (value of 1) or the existing Common Transmission (value of 0), and costs will be allocated accordingly.
A26: 2016-01-29 | B26: On the IslIntCOS worksheet, there is a new column for Export Transmission. The Island Interconnected Revenue Requirement schedule shows the total, but no unit cost schedule has been included yet.
A27: 2016-01-29 | B27: Plant data was arbitrarily modified to include the new function codes of 203 and 205, just to test the model functionality. One more function was added (208) to accommodate transmission assets which were previously functionalized to hydraulic generation. The previous function code column is now labeled FunctionOrig and the column labeled Function now includes the new function codes for a few assets. I also included the change to historical cost average for P02184, but this made very little difference. Prior to using this plant file to establish the correct function codes for export transmission, the Function column should be re-set using the FunctionOrig column.
A28: 2016-01-29 | B28: The small change in customer revenue requirement is due to switching some assets from hydraulic function to Export TX function.
A29: 2016-01-29 | B29: The plant data was not re-run, but I copied the data to the latest COSAssetSummary v2
A30: 2016-01-29 | B30: Added named variable "NoOne" and modified line counters use the coded value. | D30: Allows a check for cells containing numbers.
A31: 2016-02-04 | B31: Added IFERROR function to [AllocPlt]F16 and L16 to prevent no find error.
A32: 2016-02-04 | B32: Added IFERROR function to [AllocNBV]F16 and L16 to prevent no find error.
A33: 2016-02-04 | B33: Added IFERROR function to [AllocDep]F16 and L16 to prevent no find error.

Sheet RunOptions
A1: NEWFOUNDLAND AND LABRADOR HYDRO
A2: Cost of Service Model - Run Options
C4: Comments
A6: This File: | B6: =CELL("Filename") -> http://sjspwfeprd01/sites/ra/fp/2017GRA/_vti_history/1024/Shared Documents/CoS/2018/[COS.xlsm]SystemizedPlant | C6: Directory and file from which COS is produced.
A7: Linked Files: | B7: H:\Regulatory Affairs\Rates Internal\From Old Rates\COS Runs\COS2019TY\Iterations\NP163 Iteration 1\OAM.2019TY.xlsm | C7: List of linked files is updated before schedules are
B8: H:\Regulatory Affairs\Rates Internal\From Old Rates\COS Runs\COS2019TY\Iterations\NP163 Iteration 1\Other Inputs.xlsx | C8: printed with Ctrl+T. Current links may be viewed
B9: H:\Regulatory Affairs\Rates Internal\From Old Rates\COS Runs\COS2019TY\Iterations\NP163 Iteration 1\Load Loss Model.xlsx | C9: through Edit / Links.
B10: H:\Regulatory Affairs\Rates Internal\From Old Rates\COS Runs\COS2019TY\Iterations\NP163 Iteration 1\Rural Revenue and Load Summary Model.xlsx
B11: H:\Regulatory Affairs\Rates Internal\From Old Rates\COS Runs\COS2019TY\Iterations\NP163 Iteration 1\COSAssetSummary.xlsm
B12: H:\Regulatory Affairs\Rates Internal\From Old Rates\COS Runs\COS2019TY\Iterations\NP163 Iteration 1\PriorYrRevAlloc.xlsx
B13: H:\Regulatory Affairs\Rates Internal\From Old Rates\COS Runs\COS2019TY\Iterations\NP163 Iteration 1\Copy of Weighted MC shares.xlsx
B14: http://sjspwfeprd01/sites/ra/dc/Data Center/Rates Forecast Data.xlsx
A17: Test Year Switch: | B17: 1 | C17: 1 = Test Year; 0 = Fallout Year
A18: Rural Margin Switch | B18: 0 | C18: 1 = Partial ROE/Margin Allocation 0 = Full ROE/Margin Allocation
A19: Lab Int, Iso Systems CP/AED Switch | B19: 1 | C19: 1 = CP (Test Year Proposal - Production demand in Isolated Systems and Lab Interconnected changed from AED to CP); 0 = AED (Original Generic Methodology, other than Island Interconnected, which is board-approved at CP)
A20: ExportTX | B20: 0 | C20: 1 = Yes: Show Export Transmsn; 0 = No, include as Common TX
A21: Revenue Cr Applied to Deficit | B21: 1 | C21: Enter percentage of CFB Goose Bay Revenue Credit to be applied to reduce total Rural Deficit
A22: OAM Overhead Allocation | B22: Expenses | C22: Expenses; or Labour
A23: Run Name: | B23: 2019 Test Year Cost of Service Study | C23: Enter Cost of Service run description
A24: # of Hours in Run Year: | B24: =24*365 -> 8760
A25: Define named range for NoOne | B25: 1
A26: Marginal Cost Switch | B26: 0 | C26: (0=Existing method Cos, 1=Marginal Cost, 2=Equivalent Peaker)
A27: Thermal Capacity Factor | B27: 1 | C27: (1=2015 Cos, 2=100% demand, 3=marginal energy)
A28: Gas Turbines & Diesel | B28: 1 | C28: (1=2015 Cos, 2=100% demand, 3=marginal energy)
A29: Wind Capacity Factor | B29: 0 | C29: (0=use 100% energy, 1=use wind capacity factor as entered)
A30: Use Handy Whitman Plant | B30: 1 | C30: Use indexed plant balances to allocate specifically assigned operating and maintenance charges.
A31: Rounding | B31: 1000000
A32: Year | B32: 2019 | C32: Cost of Service Year
A33: NLSO True-up in play | B33: 0 | C33: Include a true-up calculation in the NLSO rate design.
A35: Model Status: | B35: =+Balance!B5 -> Out of Balance
A38: Run Date and Time: | B38: =+NOW() -> 2017-06-09T14:56:01.390
A39: Print Label (Leave blank if not req'd):

Sheet Reconciliation
A2: NEWFOUNDLAND AND LABRADOR HYDRO
A3: =RunName -> 2019 Test Year Cost of Service Study
A4: General Ledger to Cost of Service Reconciliations
B6: =MAX(A6)+NoOne -> 1 | C6: 2 | D6: 3 | E6: 4 | F6: 5 | G6: 6 | H6: 7 | I6: 8 | J6: 9 | K6: 10
A7: Line | C7: General | E7: Subtotal | G7: Other COS | I7: Cost of
A8: No. | B8: Description | C8: Ledger | D8: Adjustments (1) | E8: (Fin Rv Rq) | F8: Reclassification | G8: Adjustments (2) | H8: Total | I8: Service | J8: Difference | K8: Notes
C9: ($) | D9: ($) | E9: ($) | F9: ($) | G9: ($) | H9: ($) | I9: ($) | J9: ($)
A11: =MAX(A8:A10)+NoOne -> 1 | B11: Revenues: | C11: 694984734 | E11: =SUM(C11:D11) -> 694984734 | H11: =SUM(E11:G11) -> 694984734
A12: 2 | B12: Expense Credits | E12: 0 | F12: ='Revenue Requirement'!C32 -> -2134269 | H12: =SUM(E12:G12) -> -2134269
A13: 3 | B13: RSP Activity | E13: 0 | F13: 0 | H13: 0 | K13: Removed from Fuel Expense, included as revenue
A14: 4 | B14: Forecast RSP Activity - NP Revenues | D14: =+'Rev to Cost'!C47 -> 0 | H14: 0
A15: 5 | B15: Reverse out Hydro Quebec Revenue | D15: -1548560 | E15: -1548560 | H15: -1548560 | K15: Non-regulated
A16: 6 | B16: Reverse out RSP Rural Rate Alteration | E16: 0 | F16: 0 | H16: 0 | K16: Removed from Fuel Expense, included as revenue
A17: 7 | B17: Rural Rate Alteration adjustment | G17: 0 | H17: =SUM(E17:G17) -> 0
A18: 8 | B18: Reverse year end accrual | G18: 0
A19: 9 | B19: Reverse rebates should be accrued receivable | G19: 0 | K19: Removed from revenue, should be receivable/payable
A20: 10 | B20: Rural Rev Diff: Cash flows v. Rate Design | E20: 0 | G20: 0 | H20: 0
A21: 11 | B21: Labrador Industrial Revenues | E21: 0 | G21: 1391789.983 | H21: =SUM(E21:G21) -> 1391789.983 | K21: For Fin RvRq, all Labrador Industrial revenues already removed, no adj necessary; whereas the COS deems regulated costs allocated to Labrador Industrial as revenues. | P21: =113820+1304+219390+58674+51656+843 -> 445687
A22: 12 | B22: CIAC | D22: 0 | E22: 0 | H22: 0 | K22: Remove revenue from contribution in Aid of Construction
A23: 13 | B23: Total Revenues | C23: =SUM(C11:C21) -> 694984734 | D23: =SUM(D11:D22) -> -1548560 | E23: =SUM(C23:D23) -> 693436174 | F23: =SUM(F11:F22) -> -2134269 | G23: =SUM(G11:G22) -> 1391789.983 | H23: =SUM(E23:G23) -> 692693695 | I23: ='Rev to Cost'!C40 -> 692705625.1 | J23: =I23-H23 -> 11930.0805 | P23: =+P21-568093 -> -122406
B24: Expenses:
A25: =MAX(A22:A24)+NoOne -> 14 | B25: O & M: | C25: 145333000
A27: =MAX(A24:A26)+NoOne -> 15 | B27: Labrador Industrial Costs | C27: 0 | G27: =G21 -> 1391789.983 | J27: =C27+G27 -> 1391789.983 | K27: For Fin RvRq, Labrador Industrial allocated expenses are removed; whereas allocated expenses are determined and reported in the COS. Labrador Industrial is out of balance between GL and COS until iterations are complete.
A28: =MAX(A25:A27)+NoOne -> 16 | B28: Labrador Industrial Costs Diff between COS and GL | G28: =-J27 -> -1391789.983
A29: =MAX(A26:A28)+NoOne -> 17 | B29: Excluded | D29: 0 | K29: Non-regulated business units, including: Donations, Advertising, Mfalls, etc.
A30: =MAX(A27:A29)+NoOne -> 18 | B30: Total O&M | C30: =SUM(C25:C29) -> 145333000 | D30: =SUM(D25:D29) -> 0 | E30: =SUM(C30:D30) -> 145333000 | F30: =SUM(F25:F29) -> 0 | G30: =SUM(G25:G29) -> 0 | H30: =SUM(E30:G30) -> 145333000 | I30: ='Revenue Requirement'!C12 -> 145333861.5 | J30: =I30-H30 -> 861.5
A32: =MAX(A29:A31)+NoOne -> 19 | B32: Fuel | C32: 255157000
A33: 20 | B33: RSP GL Adjustment
A34: 21 | B34: RSP Lab Int WO (Test Year Only) | D34: 0 | G34: 0
A35: 22 | B35: NLP, IND and Unallocated Hydraulic Activity | F35: =F13 -> 0 | K35: Removed from Fuel Expense, included as revenue
A36: 23 | B36: Rural RSP | F36: =F16 -> 0 | K36: Removed from Fuel Expense, included as revenue
A37: 24 | B37: Unregulated Fuel | D37: 0
A38: 25 | B38: Total Fuel | C38: =SUM(C32:C37) -> 255157000 | D38: =SUM(D32:D37) -> 0 | E38: =SUM(C38:D38) -> 255157000 | F38: =SUM(F32:F37) -> 0 | G38: =SUM(G32:G36) -> 0 | H38: =SUM(E38:G38) -> 255157000 | I38: =SUM('Revenue Requirement'!C13:C16) -> 255162931.5 | J38: =I38-H38 -> 5931.5
A40: =MAX(A37:A39)+NoOne -> 26 | B40: Depreciation | C40: 93189000
A41: 27 | B41: CIAC Adjustment | D41: -1658000 | K41: Finance records CIAC dep'n in dep'n exp with offset in Other revenue, for net nil NI impact. COS excludes CIAC dep'n expense.
A42: 28 | B42: Accretion Adjustment | F42: 364000 | K42: Accretion expense recorded in COS as dep'n expense. Recorded as separate line item in Fin Rev Req't.
A43: 29 | B43: Excluded | G43: =AllocDep!D17 -> -1427219.926 | K43: Assets not in operation
A44: 30 | B44: Holyrood Impairment Inventory Allowance | F44: =AllocDep!D28 -> 2081000
A45: 31 | B45: Total Depreciation | C45: =SUM(C40:C43) -> 93189000 | D45: =SUM(D40:D43) -> -1658000 | E45: =SUM(C45:D45) -> 91531000 | F45: =SUM(F40:F44) -> 2445000 | G45: =SUM(G40:G43) -> -1427219.926 | H45: =SUM(E45:G45) -> 92548780.07 | I45: ='Revenue Requirement'!C22 -> 92529450.96 | J45: =I45-H45 -> -19329.11166
A47: =MAX(A43:A46)+NoOne -> 32 | B47: Accretion
A48: =MAX(A45:A47)+NoOne -> 33 | B48: Total Accretion Expense | C48: 364000 | E48: =SUM(C48:D48) -> 364000 | F48: =-F42 -> -364000 | H48: =SUM(E48:G48) -> 0 | I48: 0 | J48: =I48-H48 -> 0 | K48: Accretion expense recorded in COS as dep'n expense. Recorded as separate line item in Fin Rev Req't.
A50: =MAX(A47:A49)+NoOne -> 34 | B50: Expense Credits | E50: =SUM(C50:D50) -> 0 | F50: =+F12 -> -2134269
A51: =MAX(A48:A50)+NoOne -> 35 | B51: Total Expense Credits | C51: =SUM(C50:C50) -> 0 | D51: =SUM(D50:D50) -> 0 | E51: =SUM(C51:D51) -> 0 | F51: =SUM(F50:F50) -> -2134269 | G51: =SUM(G50:G50) -> 0 | H51: =SUM(E51:G51) -> -2134269 | I51: ='Revenue Requirement'!C32 -> -2134269 | J51: =I51-H51 -> 0
A53: =MAX(A50:A52)+NoOne -> 36 | B53: Disposal (Gain)/Loss | C53: 0 | E53: =SUM(C53:D53) -> 0 | H53: =SUM(E53:G53) -> 0 | I53: ='Revenue Requirement'!C35 -> 0 | J53: =I53-H53 -> 0 | K53: Gain/Loss on Disposal recorded as separate line item in Rev Req't and COS.
A55: =MAX(A52:A54)+NoOne -> 37 | B55: Purchased Power | C55: 111122796
A56: =MAX(A53:A55)+NoOne -> 38 | B56: Non-regulated | D56: -43695104 | K56: Non-regulated
A57: =MAX(A54:A56)+NoOne -> 39 | B57: Total Purchased Power | C57: =SUM(C55:C56) -> 111122796 | D57: =SUM(D55:D56) -> -43695104 | E57: =SUM(C57:D57) -> 67427692 | F57: =SUM(F55:F56) -> 0 | G57: =SUM(G55:G56) -> 0 | H57: =SUM(E57:G57) -> 67427692 | I57: =SUM('Revenue Requirement'!C17:C21) -> 67427692 | J57: =I57-H57 -> 0
A59: =MAX(A56:A58)+NoOne -> 40 | B59: SUBTOTAL EXPENSES BEFORE RETURN | C59: =SUM(C30,C38,C45,C48,C51:C53,C57) -> 605165796 | D59: =SUM(D30,D38,D45,D51:D53,D57) -> -45353104 | E59: =SUM(E30,E38,E45,E51:E53,E48,E57) -> 559812692 | F59: =SUM(F30,F38,F45,F51:F53,F57) -> 310731 | G59: =SUM(G30,G38,G45,G51:G53,G57) -> -1427219.926 | H59: =SUM(H30,H38,H45,H51:H53,H57) -> 558332203.1 | I59: =SUM(I30,I38,I45,I51:I53,I57) -> 558319667 | J59: =SUM(J30,J38,J45,J51:J53,J57) -> -12536.11166
A61: =MAX(A58:A60)+NoOne -> 41 | B61: Assets NIS (Depreciation) | D61: =+E61 -> 0 | E61: =-AllocDep!D31 -> 0 | F61: =+E61 -> 0
A63: =MAX(A60:A62)+NoOne -> 42 | B63: Total Return | C63: =+C23-C59 -> 89818938 | D63: =+D23-D59+D61 -> 43804544 | E63: =+E23-E59-E61 -> 133623482 | F63: =+F23-F59 -> -2445000 | G63: =+G23-G59 -> 2819009.909 | H63: =+H23-H59 -> 134361491.9 | I63: =+I23-I59 -> 134385958.1 | J63: =I63-H63 -> 24466.19216
A65: =MAX(A62:A64)+NoOne -> 43 | B65: Interest | C65: 97889000 | J65: =I65-H65 -> 0
A66: =MAX(A63:A65)+NoOne -> 44 | B66: Excluded Interest | D66: =-AllocNBV!L38 -> -287355.138 | K66: Interest on not in service assets
A67: =MAX(A64:A66)+NoOne -> 45 | B67: Recall Revenue & Excess Dividend Impact | D67: 0
A68: =MAX(A65:A67)+NoOne -> 46 | B68: Total Interest | C68: =SUM(C65:C67) -> 97889000 | D68: =SUM(D65:D67) -> -287355.138 | E68: =SUM(C68:D68) -> 97601644.86 | F68: =SUM(F65:F67) -> 0 | G68: =SUM(G65:G67) -> 0 | H68: =SUM(E68:G68) -> 97601644.86
A70: =MAX(A67:A69)+NoOne -> 47 | B70: TOTAL EXPENSES | C70: =SUM(C59,C68) -> 703054796 | D70: -45640459.14 | E70: 657414336.9 | F70: 310731 | G70: -1427219.926 | H70: 655933847.9
A72: =MAX(A69:A71)+NoOne -> 48 | B72: NET INCOME | C72: =C23-C70 -> -8070062 | D72: =D23-D70 -> 44091899.14 | E72: =SUM(C72:D72) -> 36021837.14 | F72: =F23-F70 -> -2445000 | G72: =G23-G70 -> 2819009.909 | H72: =H23-H70 -> 36759847.05
A73: Notes:
A74: (1) | B74: Adjustments available through GL accounts.
A75: (2) | B75: Adjustments determined by the COS.

Sheet Revenue Requirement
I1: Schedule 1.1
I2: Page 1 of 2
A3: NEWFOUNDLAND AND LABRADOR HYDRO
A4: =RunName -> 2019 Test Year Cost of Service Study
A5: Total System Revenue Requirement
B7: =MAX(A7)+NoOne -> 1 | C7: 2 | D7: 3 | E7: 4 | F7: 5 | G7: 6 | H7: 7 | I7: 8
A8: Line | C8: Total | D8: Island | E8: Island | F8: Labrador | G8: L'Anse au | H8: Labrador
A9: No. | B9: Description | C9: Amount | D9: Interconnected | E9: Isolated | F9: Isolated | G9: Loup | H9: Interconnected | I9: Basis of Proration
B10: Revenue Requirement | C10: ($) | D10: ($) | E10: ($) | F10: ($) | G10: ($) | H10: ($)
B11: Expenses
A12: =MAX(A10:A11)+NoOne -> 1 | B12: Operating, Maintenance and Admin. | C12: =SUM(D12:H12) -> 145333861.5 | D12: =IslIntCos!F287 -> 109154478.1 | E12: =IslIsoCos!F236 -> 7201895.545 | F12: =LabIsoCos!F236 -> 15961567.78 | G12: =LALCos!F236 -> 1552473.042 | H12: =LabIntCos!F242 -> 11463447.03 | I12: Detailed Analysis
A13: =MAX(A11:A12)+NoOne -> 2 | B13: Fuels - No. 6 Fuel | C13: 221114563 | D13: =IslIntCos!F288 -> 221114563 | E13: =IslIsoCos!F254 -> 0 | F13: =LabIsoCos!F254 -> 0 | G13: =LALCos!F254 -> 0 | H13: =LabIntCos!F260 -> 0 | I13: Detailed Analysis
A14: =MAX(A11:A13)+NoOne -> 3 | B14: Fuels - Diesel | C14: 21156020 | D14: =IslIntCos!F289 -> 138012 | E14: =IslIsoCos!F255 -> 2641700 | F14: =LabIsoCos!F255 -> 17625400 | G14: =LALCos!F255 -> 708500 | H14: =LabIntCos!F261 -> 42408 | I14: Detailed Analysis
A15: 4 | B15: Fuels - Gas Turbine | C15: 12892348.5 | D15: =IslIntCos!F290 -> 12632138 | E15: =IslIsoCos!F256 -> 0 | F15: =LabIsoCos!F256 -> 0 | G15: =LALCos!F256 -> 0 | H15: =LabIntCos!F262 -> 260210.5
A16: 5 | B16: Fuel Supply Deferral | C16: 0 | D16: =IslIntCos!F291 -> 0
A17: 6 | B17: Power Purchases -CF(L)Co | C17: 1428356 | D17: =IslIntCos!F292 -> 0 | E17: =IslIsoCos!F257 -> 0 | F17: =LabIsoCos!F257 -> 0 | G17: =LALCos!F257 -> 0 | H17: =LabIntCos!F263 -> 1428356 | I17: Detailed Analysis
A18: 7 | B18: Power Purchases - Other | C18: =SUM(D18:H18) -> 65999336 | D18: =IslIntCos!F293 -> 62054740 | E18: =IslIsoCos!F258 -> 227200 | F18: =LabIsoCos!F258 -> 0 | G18: =LALCos!F258 -> 3717396 | H18: =LabIntCos!F264 -> 0 | I18: Detailed Analysis
A19: 8 | B19: Power Purchases - MF | C19: =SUM(D19:H19) -> 0 | D19: =IslIntCos!F294 -> 0
A20: 9 | B20: Power Purchases - LTA | C20: =SUM(D20:H20) -> 0 | D20: =IslIntCos!F295 -> 0
A21: 10 | B21: Power Purchases - LIL | C21: =SUM(D21:H21) -> 0 | D21: =IslIntCos!F296 -> 0
A22: 11 | B22: Depreciation | C22: 92529450.96 | D22: =IslIntCos!F297 -> 79898089.12 | E22: =IslIsoCos!F259 -> 1023808.231 | F22: =LabIsoCos!F259 -> 4904110.26 | G22: =LALCos!F259 -> 925128.3308 | H22: =LabIntCos!F265 -> 5778315.019 | I22: Detailed Analysis
B23: Expense Credits:
A24: =MAX(A21:A23)+NoOne -> 12 | B24: Sundry | C24: =SUM(D24:H24) -> -456000 | D24: =IslIntCos!F300 -> -342483.4481 | E24: =IslIsoCos!F262 -> -22596.69106 | F24: =LabIsoCos!F262 -> -50081.06737 | G24: =LALCos!F262 -> -4871.044503 | H24: =LabIntCos!F268 -> -35967.74896 | I24: Total O&M Expenses
A25: 13 | B25: Building Rental Income | C25: -15600 | D25: =IslIntCos!F301 -> -15600 | E25: =IslIsoCos!F263 -> 0 | F25: =LabIsoCos!F263 -> 0 | G25: =LALCos!F263 -> 0 | H25: =LabIntCos!F269 -> 0 | I25: Detailed Analysis
A26: 14 | B26: Tax Refunds | C26: 0 | D26: =IslIntCos!F302 -> 0 | E26: =IslIsoCos!F264 -> 0 | F26: =LabIsoCos!F264 -> 0 | G26: =LALCos!F264 -> 0 | H26: =LabIntCos!F270 -> 0 | I26: Total O&M Expenses
A27: 15 | B27: Suppliers' Discounts | C27: -39600 | D27: =IslIntCos!F303 -> -29741.98365 | E27: =IslIsoCos!F265 -> -1962.344223 | F27: =LabIsoCos!F265 -> -4349.145324 | G27: =LALCos!F265 -> -423.0117595 | H27: =LabIntCos!F271 -> -3123.515041 | I27: Total O&M Expenses
A28: 16 | B28: Pole Attachments | C28: -1598389 | D28: =IslIntCos!F304 -> -1151878 | E28: =IslIsoCos!F266 -> -23750 | F28: =LabIsoCos!F266 -> -103327 | G28: =LALCos!F266 -> -68522 | H28: =LabIntCos!F272 -> -250912 | I28: Detailed Analysis
A29: =MAX(A27:A28)+NoOne -> 17 | B29: Wheeling Revenues | C29: =SUM(D29:H29) -> 0 | D29: =IslIntCos!F306 -> 0 | E29: =IslIsoCos!F268 -> 0 | F29: =LabIsoCos!F268 -> 0 | G29: =LALCos!F268 -> 0 | H29: =LabIntCos!F274 -> 0 | I29: Island Interconnected
A30: =MAX(A28:A29)+NoOne -> 18 | B30: Application Fees | C30: =SUM(D30:H30) -> -24680 | D30: =IslIntCos!F307 -> -12200 | E30: =IslIsoCos!F269 -> -300 | F30: =LabIsoCos!F269 -> -1654 | G30: =LALCos!F269 -> -406 | H30: =LabIntCos!F275 -> -10120 | I30: Detailed Analysis
A31: =MAX(A29:A30)+NoOne -> 19 | B31: Meter Test Revenues | C31: =SUM(D31:H31) -> 0 | D31: =IslIntCos!F308 -> 0 | E31: =IslIsoCos!F270 -> 0 | F31: =LabIsoCos!F270 -> 0 | G31: =LALCos!F270 -> 0 | H31: =LabIntCos!F276 -> 0 | I31: Weighted Customers
A32: =MAX(A29:A31)+NoOne -> 20 | B32: Total Expense Credits | C32: =SUM(D32:H32) -> -2134269 | D32: =SUM(D24:D31) -> -1551903.432 | E32: =SUM(E24:E31) -> -48609.03528 | F32: =SUM(F24:F31) -> -159411.2127 | G32: =SUM(G24:G31) -> -74222.05626 | H32: =SUM(H24:H31) -> -300123.264
A34: =MAX(A31:A33)+NoOne -> 21 | B34: Subtotal Expenses | C34: =SUM(C32,C12:C22) -> 558319667 | D34: =SUM(D12:D22,D32) -> 483440116.8 | E34: =SUM(E12:E22,E32) -> 11045994.74 | F34: =SUM(F12:F22,F32) -> 38331666.83 | G34: =SUM(G12:G22,G32) -> 6829275.316 | H34: =SUM(H12:H22,H32) -> 18672613.29
A35: =MAX(A34:A34)+NoOne -> 22 | B35: Disposal Gain/Loss | C35: =SUM(D35:H35) -> 0 | D35: =IslIntCos!F313 -> 0 | E35: =IslIsoCos!F275 -> 0 | F35: =LabIsoCos!F275 -> 0 | G35: =LALCos!F275 -> 0 | H35: =LabIntCos!F281 -> 0 | I35: Detailed Analysis
A36: =MAX(A35:A35)+NoOne -> 23 | B36: Subtotal Rev Reqt Excl Return | C36: =SUM(C34,C35) -> 558319667 | D36: 483440116.8 | E36: 11045994.74 | F36: 38331666.83 | G36: 6829275.316 | H36: 18672613.29
A38: =MAX(A36:A37)+NoOne -> 24 | B38: Return on Debt | C38: =SUM(D38:H38) -> 95594234.42 | D38: =IslIntCos!F316 -> 84767028.68 | E38: =IslIsoCos!F278 -> 746170.7239 | F38: =LabIsoCos!F278 -> 3856595.255 | G38: =LALCos!F278 -> 649543.8069 | H38: =LabIntCos!F284 -> 5574895.953 | I38: Rate Base
A39: =MAX(A36:A38)+NoOne -> 25 | B39: Return on Equity | C39: =SUM(D39:H39) -> 38825487.62 | D39: =IslIntCos!F317 -> 34428030.54 | E39: =IslIsoCos!F279 -> 303056.3755 | F39: =LabIsoCos!F279 -> 1566351.697 | G39: =LALCos!F279 -> 263811.465 | H39: =LabIntCos!F285 -> 2264237.536 | I39: Rate Base
A41: =MAX(A38:A40)+NoOne -> 26 | B41: Total Revenue Requirement | C41: =SUM(C34,C38,C35,C39) -> 692739389 | D41: 602635176 | E41: 12095221.84 | F41: 43754613.78 | G41: 7742630.588 | H41: 26511746.77

Sheet Balance
A1: NEWFOUNDLAND AND LABRADOR HYDRO
A2: =+RunName -> 2019 Test Year Cost of Service Study
A3: Cost of Service Balancing Checks
A5: Model is: | B5: =IF(ROUND(E150,0)=0,"Balanced","Out of Balance") -> Out of Balance
G8: Island | H8: Island | I8: Labrador | K8: Labrador
A9: No. | B9: Item | C9: Source | D9: Standard | E9: Difference | F9: Total | G9: Intercnctd | H9: Isolated | I9: Isolated | J9: LAL | K9: Intercnctd
A11: =MAX(A8:A10)+NoOne -> 1 | B11: Plant Original Cost | C11: Individual COS Schedules | F11: =SUM(G11:K11) -> 3359674823 | G11: =+IslIntCos!$F$58 -> 2954138278 | H11: =+IslIsoCos!$F$47 -> 20546859.66 | I11: =+LabIsoCos!$F$47 -> 140836840.7 | J11: =+LALCos!$F$47 -> 27744329.85 | K11: =+LabIntCos!$F$49 -> 216408514.7
C12: Plant Inputs | F12: =+AllocPlt!$E$35 -> 3359674823 | G12: =+AllocPlt!$F$35 -> 2954138278 | H12: =+AllocPlt!$G$35 -> 20546859.66 | I12: =+AllocPlt!$H$35 -> 140836840.7 | J12: =+AllocPlt!$I$35 -> 27744329.85 | K12: =+AllocPlt!$L$35 -> 216408514.7
C13: Difference | D13: 5 | E13: =IF(ABS(SUM(F13:K13))<=D13,"OK",ABS(SUM(F13:K13))) -> OK | F13: =+F11-F12 -> 0 | G13: 0 | H13: 0 | I13: 0 | J13: 0 | K13: 0
A15: =MAX(A11:A14)+NoOne -> 2 | B15: Plant Net Book Value | C15: Individual COS Schedules | F15: =SUM(G15:K15) -> 2179000426 | G15: =+IslIntCos!$F$116 -> 1927122840 | H15: =+IslIsoCos!$F$96 -> 17495172.63 | I15: =+LabIsoCos!$F$96 -> 88383254.45 | J15: =+LALCos!$F$96 -> 15213195.99 | K15: =+LabIntCos!$F$99 -> 130785962.7
C16: Plant Inputs | F16: =+AllocNBV!$D$26 -> 2179000426 | G16: =+AllocNBV!$E$26 -> 1927122840 | H16: =+AllocNBV!$F$26 -> 17495172.63 | I16: =+AllocNBV!$G$26 -> 88383254.45 | J16: =+AllocNBV!$H$26 -> 15213195.99 | K16: =+AllocNBV!$K$26 -> 130785962.7
C17: Difference | D17: 5 | E17: =IF(ABS(SUM(F17:K17))<=D17,"OK",ABS(SUM(F17:K17))) -> OK | F17: =+F15-F16 -> 0 | G17: 0 | H17: 0 | I17: 0 | J17: 0 | K17: 0
A19: =MAX(A15:A18)+NoOne -> 3 | B19: Plant Depreciation | C19: Individual COS Schedules | F19: =SUM(G19:K19) -> 92529450.96 | G19: =+IslIntCos!$F$176 -> 79898089.12 | H19: =+IslIsoCos!$F$146 -> 1023808.231 | I19: =+LabIsoCos!$F$146 -> 4904110.26 | J19: =+LALCos!$F$146 -> 925128.3308 | K19: =+LabIntCos!$F$149 -> 5778315.019
C20: Plant Inputs | F20: =+AllocDep!$D$29 -> 92529450.96 | G20: =+AllocDep!$E$29 -> 79898089.12 | H20: =+AllocDep!$F$29 -> 1023808.231 | I20: =+AllocDep!$G$29 -> 4904110.26 | J20: =+AllocDep!$H$29 -> 925128.3308 | K20: =+AllocDep!$K$29 -> 5778315.019
C21: Difference | D21: 5 | E21: =IF(ABS(SUM(F21:K21))<=D21,"OK",ABS(SUM(F21:K21))) -> OK | F21: =+F19-F20 -> 0 | G21: 0 | H21: 0 | I21: 0 | J21: 0 | K21: 0
A23: =MAX(A19:A22)+NoOne -> 4 | B23: Production Demand | C23: Individual COS Schedules | G23: =+IslIntCos!$G$360 -> 1477971.621 | H23: =+IslIsoCos!$G$320 -> 1968.070379 | I23: =+LabIsoCos!$G$319 -> 8870.014242 | J23: =+LALCos!$G$315 -> 6090.181207 | K23: =+LabIntCos!$G$324 -> 411123.9058
C24: Load Inputs | G24: 1477971.621 | H24: 1968.070379 | I24: 8870.014242 | J24: 6090.181207 | K24: 411123.9058
C25: Difference | D25: 1 | E25: =IF(ABS(SUM(F25:K25))<=D25,"OK",ABS(SUM(F25:K25))) -> OK | G25: =+G23-G24 -> 0 | H25: =+H23-H24 -> 0 | I25: =+I23-I24 -> 0 | J25: =+J23-J24 -> 0 | K25: =+K23-K24 -> 0
G26: INTTOT | H26: ISLISOTOT | I26: LABISOTOT | J26: LALTOT | K26: LINTTOT
A27: =MAX(A23:A26)+NoOne -> 5 | B27: Prod/Trans Energy | C27: Individual COS Schedules | G27: =+IslIntCos!$H$360 -> 7234571.702 | H27: =+IslIsoCos!$H$320 -> 7518.317963 | I27: =+LabIsoCos!$H$319 -> 46128.87941 | J27: =+LALCos!$H$315 -> 27026.50841 | K27: =+LabIntCos!$H$324 -> 2571887.734
C28: Load Inputs | G28: 7234571.702 | H28: 7518.317963 | I28: 46128.87941 | J28: 27026.50841 | K28: 2571887.734
C29: Difference | D29: 1 | E29: =IF(ABS(SUM(F29:K29))<=D29,"OK",ABS(SUM(F29:K29))) -> OK | G29: =+G27-G28 -> 0 | H29: =+H27-H28 -> 0 | I29: =+I27-I28 -> 0 | J29: =+J27-J28 -> 0 | K29: =+K27-K28 -> 0
A31: =MAX(A27:A30)+NoOne -> 6 | B31: Customers | C31: Individual COS Schedules | G31: =+IslIntCos!$M$360 -> 23853 | H31: =+IslIsoCos!$L$320 -> 826.5 | I31: =+LabIsoCos!$L$319 -> 2789 | J31: =+LALCos!$L$315 -> 933.5 | K31: =+LabIntCos!$L$324 -> 11659.25
C32: Load Inputs | G32: 23853 | H32: 826.5 | I32: 2789 | J32: 933.5 | K32: 11659.25
C33: Difference | D33: 1 | E33: =IF(ABS(SUM(F33:K33))<=D33,"OK",ABS(SUM(F33:K33))) -> OK | G33: =+G31-G32 -> 0 | H33: =+H31-H32 -> 0 | I33: =+I31-I32 -> 0 | J33: =+J31-J32 -> 0 | K33: =+K31-K32 -> 0
A35: =MAX(A31:A34)+NoOne -> 7 | B35: Transmission Demand | C35: Individual COS Schedules | G35: =IslIntCos!$I$360 -> 1462501.873 | H35: =+IslIsoCos!$I$320 -> 1968.070379 | I35: =+LabIsoCos!$I$319 -> 8870.014242 | J35: =+LALCos!$I$315 -> 6090.181207 | K35: =+LabIntCos!$I$324 -> 379513.8367
C36: Load Inputs | G36: 1462501.873 | H36: 1968.070379 | I36: 8870.014242 | J36: 6090.181207 | K36: 379513.8367
C37: Difference | D37: 1 | E37: =IF(ABS(SUM(F37:K37))<=D37,"OK",ABS(SUM(F37:K37))) -> OK | G37: =+G35-G36 -> 0 | H37: =+H35-H36 -> 0 | I37: =+I35-I36 -> 0 | J37: =+J35-J36 -> 0 | K37: =+K35-K36 -> 0
A39: =MAX(A35:A38)+NoOne -> 8 | B39: Rural Trans Demand | C39: Individual COS Schedules | G39: =+IslIntCos!$J$360 -> 89476.69937
C40: Load Inputs | G40: 89476.69937
C41: Difference | D41: 1 | E41: =IF(ABS(SUM(F41:K41))<=D41,"OK",ABS(SUM(F41:K41))) -> OK | G41: =+G39-G40 -> 0
G42: INTRRL
A43: =MAX(A39:A42)+NoOne -> 9 | B43: Substn Demand | C43: Individual COS Schedules | G43: =+IslIntCos!$K$360 -> 84879.06188 | H43: =+IslIsoCos!$J$320 -> 1900.064548 | I43: =+LabIsoCos!$J$319 -> 8581.83144 | J43: =+LALCos!$J$315 -> 5791.623314 | K43: =+LabIntCos!$J$324 -> 153875.4497
C44: Load Inputs | G44: 84879.06188 | H44: 1900.064548 | I44: 8581.83144 | J44: 5791.623314 | K44: 153875.4497
C45: Difference | D45: 1 | E45: =IF(ABS(SUM(F45:K45))<=D45,"OK",ABS(SUM(F45:K45))) -> OK | G45: =+G43-G44 -> 0 | H45: =+H43-H44 -> 0 | I45: =+I43-I44 -> 0 | J45: =+J43-J44 -> 0 | K45: =+K43-K44 -> 0
A47: =MAX(A43:A46)+NoOne -> 10 | B47: Primary Demand | C47: Individual COS Schedules | G47: =+IslIntCos!$L$360 -> 84879.06188 | H47: =+IslIsoCos!$K$320 -> 1900.064548 | I47: =+LabIsoCos!$K$319 -> 8581.83144 | J47: =+LALCos!$K$315 -> 5791.623314 | K47: =+LabIntCos!$K$324 -> 153875.4497
C48: Load Inputs | G48: 84879.06188 | H48: 1900.064548 | I48: 8581.83144 | J48: 5791.623314 | K48: 153875.4497
C49: Difference | D49: 1 | E49: =IF(ABS(SUM(F49:K49))<=D49,"OK",ABS(SUM(F49:K49))) -> OK | G49: =+G47-G48 -> 0 | H49: =+H47-H48 -> 0 | I49: =+I47-I48 -> 0 | J49: =+J47-J48 -> 0 | K49: =+K47-K48 -> 0
A51: =MAX(A47:A50)+NoOne -> 11 | B51: Transformer Demand | C51: Individual COS Schedules | G51: =+IslIntCos!$N$360 -> 76919.60222 | H51: =+IslIsoCos!$M$320 -> 1797.477176 | I51: =+LabIsoCos!$M$319 -> 8146.175392 | J51: =+LALCos!$M$315 -> 5347.995592 | K51: =+LabIntCos!$M$324 -> 137797.1151
C52: Load Inputs | G52: 76919.60222 | H52: 1797.477176 | I52: 8146.175392 | J52: 5347.995592 | K52: 137797.1151
C53: Difference | D53: 1 | E53: =IF(ABS(SUM(F53:K53))<=D53,"OK",ABS(SUM(F53:K53))) -> OK | G53: =+G51-G52 -> 0 | H53: =+H51-H52 -> 0 | I53: =+I51-I52 -> 0 | J53: =+J51-J52 -> 0 | K53: =+K51-K52 -> 0
A55: =MAX(A51:A54)+NoOne -> 12 | B55: Secondary Demand | C55: Individual COS Schedules | G55: =+IslIntCos!$P$360 -> 76919.60222 | H55: =+IslIsoCos!$O$320 -> 1797.477176 | I55: =+LabIsoCos!$O$319 -> 8146.175392 | J55: =+LALCos!$O$315 -> 5347.995592 | K55: =+LabIntCos!$O$324 -> 137797.1151
C56: Load Inputs | G56: 76919.60222 | H56: 1797.477176 | I56: 8146.175392 | J56: 5347.995592 | K56: 137797.1151
C57: Difference | D57: 1 | E57: =IF(ABS(SUM(F57:K57))<=D57,"OK",ABS(SUM(F57:K57))) -> OK | G57: =+G55-G56 -> 0 | H57: =+H55-H56 -> 0 | I57: =+I55-I56 -> 0 | J57: =+J55-J56 -> 0 | K57: =+K55-K56 -> 0
A59: =MAX(A55:A58)+NoOne -> 13 | B59: Rural Revenues | C59: Rev to Cost schedule | G59: =+'Rev to Cost'!C87 -> 53526605.96 | H59: =+'Rev to Cost'!C128 -> 1740167.863 | I59: =+'Rev to Cost'!C166 -> 9656445.569 | J59: =+'Rev to Cost'!C198 -> 3238389.278 | K59: =+'Rev to Cost'!C236 -> 22507619.99
C60: Rural Revenue Adjustments | H60: 0 | I60: 0
C61: Load Inputs | G61: 53526605.96 | H61: 1740167.863 | I61: 9656445.569 | J61: 3238389.278 | K61: 22507619.99 | M61: INTRRL | N61: ISLISOTOT | O61: LABISOTOT | P61: LALTOT | Q61: LEINTTOT
C62: Difference | D62: 1 | E62: =IF(ABS(SUM(F62:K62))<=D62,"OK",ABS(SUM(F62:K62))) -> OK | G62: =+G59-G61-G60 -> 0 | H62: =+H59-H61-H60 -> 0 | I62: =+I59-I61-I60 -> 0 | J62: =+J59-J61-J60 -> 0 | K62: =+K59-K61-K60 -> 0
A64: =MAX(A59:A63)+NoOne -> 14 | B64: Rural Revenues | C64: Average Cost schedule | G64: =+'Average Costs'!G53 -> 53526605.96 | H64: =+'Average Costs'!G90 -> 1740167.863 | I64: =+'Average Costs'!G103 -> 9656445.569 | J64: =+'Average Costs'!G122 -> 3238389.278 | K64: =+'Average Costs'!G138 -> 22507619.99
C65: Rural Revenue Adjustments | H65: 0 | I65: 0
C66: Load Inputs | G66: 53526605.96 | H66: 1740167.863 | I66: 9656445.569 | J66: 3238389.278 | K66: 22507619.99 | M66: INTRRL | N66: ISLISOTOT | O66: LABISOTOT | P66: LALTOT | Q66: LEINTTOT
C67: Difference | D67: 1 | E67: =IF(ABS(SUM(F67:K67))<=D67,"OK",ABS(SUM(F67:K67))) -> OK | G67: =+G64-G66-G65 -> 0 | H67: =+H64-H66-H65 -> 0 | I67: =+I64-I66-I65 -> -1.862645149e-09 | J67: =+J64-J66-J65 -> 0 | K67: =+K64-K66-K65 -> 0
A69: =MAX(A64:A68)+NoOne -> 15 | B69: Sales (MWh) | C69: Unit Cost schedule | G69: =+'Unit Costs'!$AB$31 -> 6990304.6 | H69: =+'Unit Costs'!$AB$72 -> 7108.97 | I69: =+'Unit Costs'!$AB$81 -> 43461 | J69: =+'Unit Costs'!$AB$107 -> 25142.08 | K69: =+'Unit Costs'!$AB$128 -> 2388848.31
C70: Load Inputs | G70: 6990304.6 | H70: 7108.97 | I70: 43461 | J70: 25142.08 | K70: 2388848.31
C71: Difference | D71: 1 | E71: =IF(ABS(SUM(F71:K71))<=D71,"OK",ABS(SUM(F71:K71))) -> OK | G71: =+G69-G70 -> 0 | H71: =+H69-H70 -> 0 | I71: =+I69-I70 -> 0 | J71: =+J69-J70 -> 0 | K71: =+K69-K70 -> 0
A73: =MAX(A68:A72)+NoOne -> 16 | B73: Sales (MWh) | C73: Average Cost schedule | G73: =+'Average Costs'!$F$55 -> 6990304.6 | H73: =+'Average Costs'!$F$90 -> 7108.97 | I73: =+'Average Costs'!$F$103 -> 43461 | J73: =+'Average Costs'!$F$122 -> 25142.08 | K73: =+'Average Costs'!$F$140 -> 2388848.31
C74: Load Inputs | G74: 6990304.6 | H74: 7108.97 | I74: 43461 | J74: 25142.08 | K74: 2388848.31
C75: Difference | D75: 1 | E75: =IF(ABS(SUM(F75:K75))<=D75,"OK",ABS(SUM(F75:K75))) -> OK | G75: =+G73-G74 -> 0 | H75: =+H73-H74 -> 0 | I75: =+I73-I74 -> 0 | J75: =+J73-J74 -> 0 | K75: =+K73-K74 -> 0
A77: =MAX(A72:A76)+NoOne -> 17 | B77: Cross-Footing | C77: Individual COS Schedules | D77: 1 | E77: =IF(ABS(SUM(F77:K77))<=D77,"OK",ABS(SUM(F77:K77))) -> OK | G77: =+IslIntCos!$A$13 -> 0 | H77: =+IslIsoCos!$A$14 -> 0 | I77: =+LabIsoCos!$A$14 -> 0 | J77: =+LALCos!$A$14 -> 0 | K77: =+LabIntCos!$A$15 -> 0
A78: =MAX(A73:A77)+NoOne -> 18 | B78: Cross-Footing | C78: Rate Base Schedule | D78: 1 | E78: =IF(ABS(SUM(F78:K78))<=D78,"OK",ABS(SUM(F78:K78))) -> OK | F78: =+'Rate Base'!$A$12 -> 0
A79: =MAX(A74:A78)+NoOne -> 19 | B79: Cross-Footing | C79: O&M Summary | D79: 1 | E79: =IF(ABS(SUM(F79:K79))<=D79,"OK",ABS(SUM(F79:K79))) -> OK | F79: =+'O&M Summary'!A7 -> 0
A81: =MAX(A76:A80)+NoOne -> 20 | B81: COS, Before Def/RevCr | C81: Revenue Requirement schedule | F81: =+'Revenue Requirement'!$C$41 -> 692739389 | G81: =+'Revenue Requirement'!$D$41 -> 602635176 | H81: =+'Revenue Requirement'!$E$41 -> 12095221.84 | I81: =+'Revenue Requirement'!$F$41 -> 43754613.78 | J81: =+'Revenue Requirement'!$G$41 -> 7742630.588 | K81: =+'Revenue Requirement'!$H$41 -> 26511746.77
C82: Individual COS Schedules | F82: =SUM(G82:K82) -> 692739389 | G82: =+IslIntCos!$F$319 -> 602635176 | H82: =+IslIsoCos!$F$282 -> 12095221.84 | I82: =+LabIsoCos!$F$281 -> 43754613.78 | J82: =+LALCos!$F$281 -> 7742630.588 | K82: =+LabIntCos!$F$287 -> 26511746.77
C83: Difference | D83: 1 | E83: =IF(ABS(SUM(F83:K83))<=D83,"OK",ABS(SUM(F83:K83))) -> OK | F83: =+F81-F82 -> 0 | G83: 0 | H83: 0 | I83: 0 | J83: 0 | K83: 0
A85: =MAX(A80:A84)+NoOne -> 21 | B85: COS, Before Def/RevCr | C85: Rev to Cost schedule, by Customer | F85: =+'Rev to Cost'!$D$40 -> 692739034.9 | G85: =+'Rev to Cost'!$D$88 -> 602635176 | H85: =+'Rev to Cost'!$D$128 -> 12094867.76 | I85: =+'Rev to Cost'!$D$166 -> 43754613.78 | J85: =+'Rev to Cost'!$D$198 -> 7742630.588 | K85: =+'Rev to Cost'!$D$237 -> 26511746.77
C86: Individual COS Schedules, by System | F86: =SUM(G86:K86) -> 692739389 | G86: =+IslIntCos!$F$319 -> 602635176 | H86: =+IslIsoCos!$F$282 -> 12095221.84 | I86: =+LabIsoCos!$F$281 -> 43754613.78 | J86: =+LALCos!$F$281 -> 7742630.588 | K86: =+LabIntCos!$F$287 -> 26511746.77
C87: Difference | D87: 15 | E87: =IF(ABS(SUM(F87:K87))<=D87,"OK",ABS(SUM(F87:K87))) -> 708.1658422 | F87: =+F85-F86 -> -354.082921 | G87: 0 | H87: -354.0829211 | I87: 0 | J87: 0 | K87: 0
A89: =MAX(A84:A88)+NoOne -> 22 | B89: COS, Before Def/RevCr | C89: Rev Reqmt, Individual COS Schedules | F89: =SUM(G89:K89) -> 692739389 | G89: =+IslIntCos!$F$319 -> 602635176 | H89: =+IslIsoCos!$F$282 -> 12095221.84 | I89: =+LabIsoCos!$F$281 -> 43754613.78 | J89: =+LALCos!$F$281 -> 7742630.588 | K89: =+LabIntCos!$F$287 -> 26511746.77
C90: Allocated COS, Individual COS Sch 3.2 | F90: =SUM(G90:K90) -> 692739034.9 | G90: =+IslIntCos!$F$466 -> 602635176 | H90: =+IslIsoCos!$F$403 -> 12094867.76 | I90: =+LabIsoCos!$F$404 -> 43754613.78 | J90: =+LALCos!F383 -> 7742630.588 | K90: =+LabIntCos!F436 -> 26511746.77
C91: Difference | D91: 5 | E91: =IF(ABS(SUM(F91:K91))<=D91,"OK",ABS(SUM(F91:K91))) -> 708.1658423 | F91: =+F89-F90 -> 354.0829211 | G91: 0 | H91: 354.0829212 | I91: 0 | J91: 0 | K91: 0
A93: =MAX(A88:A92)+NoOne -> 23 | B93: Rev to Cost schedule | C93: COS, Before Def/RevCr | F93: =+'Rev to Cost'!$D$40 -> 692739034.9
C94: COS, After Def/RevCr | F94: =+'Rev to Cost'!$H$40 -> 692739034.9
D95: 1 | E95: =IF(ABS(SUM(F95:K95))<=D95,"OK",ABS(SUM(F95:K95))) -> OK | F95: =+F93-F94 -> 0
A97: =MAX(A92:A96)+NoOne -> 24 | B97: COS, After Def/RevCr | C97: Rev to Cost schedule | F97: =+'Rev to Cost'!$H$40 -> 692739034.9
C98: Average Cost | F98: =+'Average Costs'!$M$26 -> 692739034.9
C99: Difference | D99: 1 | E99: =IF(ABS(SUM(F99:K99))<=D99,"OK",ABS(SUM(F99:K99))) -> OK | F99: =+F97-F98 -> 0
A101: =MAX(A96:A100)+NoOne -> 25 | B101: COS, Before Def/RevCr | C101: Rev to Cost schedule | F101: =+'Rev to Cost'!$D$40 -> 692739034.9 | G101: =+'Rev to Cost'!$D$88 -> 602635176 | H101: =+'Rev to Cost'!$D$128 -> 12094867.76 | I101: =+'Rev to Cost'!$D$166 -> 43754613.78 | J101: =+'Rev to Cost'!$D$198 -> 7742630.588 | K101: =+'Rev to Cost'!$D$237 -> 26511746.77
C102: Unit Cost schedule | F102: =SUM(G102:K102) -> 692739034.9 | G102: =+'Unit Costs'!$P$31 -> 602635176 | H102: =+'Unit Costs'!$P$72 -> 12094867.76 | I102: =+'Unit Costs'!$P$81 -> 43754613.78 | J102: =+'Unit Costs'!$P$107 -> 7742630.588 | K102: =+'Unit Costs'!$P$128 -> 26511746.77
C103: Difference | D103: 1 | E103: =IF(ABS(SUM(F103:K103))<=D103,"OK",ABS(SUM(F103:K103))) -> OK | F103: =+F101-F102 -> 0 | G103: 0 | H103: 0 | I103: 0 | J103: 0 | K103: 0
A105: =MAX(A100:A104)+NoOne -> 26 | B105: Spec Assigned Costs | C105: Spec Assigned Schedule | G105: =+IslIntCos!$F$545 -> 4907053.441
C106: Island Interc Rev Reqmt | G106: =+IslIntCos!V496 -> 4907053.441
C107: Difference | D107: 1 | E107: =IF(ABS(SUM(F107:K107))<=D107,"OK",ABS(SUM(F107:K107))) -> OK | G107: =+G105-G106 -> 0
A109: =MAX(A104:A108)+NoOne -> 27 | B109: Spec Assigned Deprec | C109: Spec Assigned Schedule | G109: =SUM(IslIntCos!K545:N545) -> 1419229.103
C110: Depreciation Schedule | G110: =+IslIntCos!V176 -> 1419229.103
D111: 1 | E111: =IF(ABS(SUM(F111:K111))<=D111,"OK",ABS(SUM(F111:K111))) -> OK | G111: =+G109-G110 -> 0
A113: =MAX(A108:A112)+NoOne -> 28 | B113: Spec Assigned Plant | C113: Lines/Stations Spec Assigned Schedule | G113: =+IslIntCos!I522 -> 180228220.7
C114: Plant Schedule | G114: =+IslIntCos!V38 -> 74589451.43
D115: 1 | E115: =IF(ABS(SUM(F115:K115))<=D115,"OK",ABS(SUM(F115:K115))) -> 105638769.3 | G115: =+G113-G114 -> 105638769.3
A117: =MAX(A112:A116)+NoOne -> 29 | B117: Spec Assigned NBV | C117: Spec Assigned Schedule | G117: =+IslIntCos!Q522 -> 36983050.3
C118: NBV Schedule | G118: =SUM(IslIntCos!V96,IslIntCos!V112) -> 36983050.3
D119: 1 | E119: =IF(ABS(SUM(F119:K119))<=D119,"OK",ABS(SUM(F119:K119))) -> OK | G119: =+G117-G118 -> 0
A121: =MAX(A116:A120)+NoOne -> 30 | B121: Reconciliation Difference | C121: Reconciliation Worksheet | D121: 25 | E121: =IF(ABS(SUM(F121:K121))<=D121,"OK",ABS(SUM(F121:K121))) -> 606.0311616 | F121: =SUM(Reconciliation!$J$23,Reconciliation!$J$59) -> -606.0311616
A123: =MAX(A118:A122)+NoOne -> 31 | B123: Total Return | C123: Reconciliation Worksheet | F123: =+Reconciliation!I63 -> 134385958.1
C124: Revenue Requirement | F124: =SUM('Revenue Requirement'!C38:C39) -> 134419722
C125: F/O Yr s/b balanced; TestYr N/A | D125: 5 | E125: =IF(TestYrSwitch=0,IF(ABS(SUM(F125:K125))<=D125,"OK",ABS(SUM(F125:K125))),"N/A") -> N/A | F125: =+F123-F124 -> -33763.9342
A127: =MAX(A122:A126)+NoOne -> 32 | B127: Rev to Cost schedule | C127: Revenues | F127: =+'Rev to Cost'!$C$40 -> 692705625.1
C128: COS, Before Def/RevCr | F128: =+'Rev to Cost'!$D$40 -> 692739034.9
C129: F/O Yr s/b balanced; TestYr N/A | D129: 5 | E129: =IF(TestYrSwitch=0,IF(ABS(SUM(F129:K129))<=D129,"OK",ABS(SUM(F129:K129))),"N/A") -> N/A | F129: =+F127-F128 -> -33409.85128
A131: =MAX(A126:A130)+NoOne -> 33 | B131: Fallout ROE | C131: Lab Int Rev Req ROE Sch 2.1E | F131: =+LabIntCos!F285 -> 2264237.536
C132: Lab Int Allocated ROE Sch 3.2E | F132: =+LabIntCos!F410 -> 2264237.536
C133: F/O Yr s/b balanced; TestYr N/A | D133: 1 | E133: =IF(TestYrSwitch=0,IF(ABS(SUM(F133:K133))<=D133,"OK",ABS(SUM(F133:K133))),"N/A") -> N/A | F133: =+F131-F132 -> 0
A135: =MAX(A130:A134)+NoOne -> 34 | B135: Revenues | C135: Rev to Cost schedule | F135: =+'Rev to Cost'!$C$40 -> 692705625.1
C136: Coverage schedule | F136: =+Coverage!$D$45 -> 692705625.1
C137: Difference | D137: 1 | E137: =IF(ABS(SUM(F137:K137))<=D137,"OK",ABS(SUM(F137:K137))) -> OK | F137: =+F135-F136 -> 0
A139: =MAX(A134:A138)+NoOne -> 35 | B139: Revenues | C139: Revenue Requirement schedule | F139: =+'Revenue Requirement'!$C$41 -> 692739389
C140: Coverage schedule | F140: =+Coverage!$D$45 -> 692705625.1
C141: F/O Yr s/b balanced; TestYr N/A | D141: 5 | E141: =IF(TestYrSwitch=0,IF(ABS(SUM(F141:K141))<=D141,"OK",ABS(SUM(F141:K141))),"N/A") -> N/A | F141: =+F139-F140 -> 33763.9342
A143: =MAX(A138:A142)+NoOne -> 36 | B143: =+NPRateCalcs!B46 -> Average No. 6 Fuel Cost per Barrel | C143: =NPRateCalcs!A6&" schedule" -> Cost Calculations for Newfoundland Power schedule
C144: Should be a number | E144: =IF(ISNUMBER(NPRateCalcs!C46),0,1) -> 0
A146: =MAX(A141:A145)+NoOne -> 37 | B146: Rate Base | C146: Rate Base schedule | F146: =+'Rate Base'!D27 -> 2364466686
C147: G/L Rate Base, Other input file | F147: 2368051000
D148: 1000 | E148: =IF(TestYrSwitch=1,IF(ABS(SUM(F148:K148))<=D148,"OK",ABS(SUM(F148:K148))),"N/A") -> 3584314.447 | F148: =+F146-F147 -> -3584314.447
C150: Grand Total, Balancing Checks | E150: =ABS(SUM(E11:E149)) -> 109225106.1

Sheet Rate Base
J1: Schedule 1.1
J2: Page 2 of 2
B3: NEWFOUNDLAND AND LABRADOR HYDRO
B4: =RunName -> 2019 Test Year Cost of Service Study
B5: Total System
B6: Return on Rate Base
C8: =MAX(B8)+NoOne -> 1 | D8: 2 | E8: 3 | F8: 4 | G8: 5 | H8: 6 | I8: 7 | J8: 8
A10: Check | B10: Line | E10: Island | F10: Island | G10: Labrador | H10: L'Anse au | I10: Labrador
A11: Column | B11: No | D11: Total | E11: Interconnected | F11: Isolated | G11: Isolated | H11: Loup | I11: Interconnected | J11: Basis of Proration
A12: =SUM(A14:A46) -> 0 | D12: $ | E12: $ | F12: $ | G12: $ | H12: $ | I12: $
C13: Rate Base:
A14: =SUM(E14:I14)-D14 -> 0 | B14: =MAX(B11:B13)+NoOne -> 1 | C14: Average Net Book Value | D14: =SUM(E14:I14) -> 2179000426 | E14: =IslIntCos!F116 -> 1927122840 | F14: =IslIsoCos!F96 -> 17495172.63 | G14: =LabIsoCos!F96 -> 88383254.45 | H14: =LALCos!F96 -> 15213195.99 | I14: =LabIntCos!F99 -> 130785962.7 | J14: Schedule 2.3
A15: 0 | B15: 2 | C15: Cash Working Capital | D15: 2255000 | E15: =$D15*E14/$D14 -> 1994337.382 | F15: =$D15*F14/$D14 -> 18105.37245 | G15: =$D15*G14/$D14 -> 91465.90172 | H15: =$D15*H14/$D14 -> 15743.80461 | I15: =$D15*I14/$D14 -> 135347.5393 | J15: Prorated on Average Net Book Value - L. 1
A16: 0 | B16: 3 | C16: Fuel Inventory - No. 6 Fuel | D16: =SUM(E16:I16) -> 66169663.36 | E16: 66169663.36 | F16: 0 | G16: 0 | H16: 0 | I16: 0 | J16: Specifically Assigned - Holyrood
A17: 0 | B17: 4 | C17: Fuel Inventory - Diesel | D17: =SUM(E17:I17) -> 3025325.245 | E17: 371764.49 | F17: 131836.6119 | G17: 2456424.571 | H17: 35265.22415 | I17: 30034.34812 | J17: Detailed Fuel Analysis
A18: 0 | B18: 5 | C18: Fuel Inventory - Gas Turbine | D18: =SUM(E18:I18) -> 5174271.118 | E18: 4911126.935 | F18: 0 | G18: 0 | H18: 0 | I18: 263144.1831 | J18: Detailed Fuel Analysis
A19: 0 | B19: 6 | C19: Inventory/Supplies | D19: 32884000 | E19: =$D19*AllocPlt!F40 -> 28914668.31 | F19: =$D19*AllocPlt!G40 -> 201109.6217 | G19: =$D19*AllocPlt!H40 -> 1378490.155 | H19: =$D19*AllocPlt!I40 -> 271557.395 | I19: =$D19*AllocPlt!L40 -> 2118174.517 | J19: Prorated on Total Plant in Service, Schedule 2.2
A20: =SUM(E20:I20)-D20 -> 0 | B20: 7 | C20: Deferred Charges: Holyrood | D20: =SUM(E20:I20) -> 0 | E20: 0 | J20: Detailed Analysis
A21: 0 | B21: 8 | C21: Deferred Charges: Foreign Exchange Loss and Regulatory Costs | D21: 75958000 | E21: =$D21*E14/$D14 -> 67177773.33 | F21: =$D21*F14/$D14 -> 609866.0224 | G21: =$D21*G14/$D14 -> 3080960.959 | H21: =$D21*H14/$D14 -> 530318.3641 | I21: =$D21*I14/$D14 -> 4559081.327 | J21: Prorated on Average Net Book Value - L. 1
A23: =SUM(D14:D21)-D23 -> 0 | B23: =MAX(B20:B22)+NoOne -> 9 | C23: Total Rate Base | D23: =SUM(E23:I23) -> 2364466686 | E23: =SUM(E14:E21) -> 2096662174 | F23: =SUM(F14:F21) -> 18456090.26 | G23: =SUM(G14:G21) -> 95390596.04 | H23: =SUM(H14:H21) -> 16066080.78 | I23: =SUM(I14:I21) -> 137891744.6
A25: =SUM(E25:I25)-D25 -> 0 | B25: =MAX(B22:B24)+NoOne -> 10 | C25: Less: Rural Portion | D25: =SUM(E25:I25) -> 0 | E25: =IslIntCos!F211 -> 0 | F25: =+IslIsoCos!F178 -> 0 | G25: =+LabIsoCos!F178 -> 0 | H25: =+LALCos!F178 -> 0 | I25: =+LabIntCos!F182 -> 0 | J25: Schedule 2.6, L. 9
A27: =SUM(D23:D25)-D27 -> 0 | B27: =MAX(B21:B21)+NoOne -> 9 | C27: Rate Base Available for Equity Return | D27: =SUM(E27:I27) -> 2364466686 | E27: =IslIntCos!F213 -> 2096662174 | F27: =SUM(F23:F25) -> 18456090.26 | G27: =SUM(G23:G25) -> 95390596.04 | H27: =SUM(H23:H25) -> 16066080.78 | I27: =SUM(I23:I25) -> 137891744.6
C29: Corporate Targets:
B30: =MAX(B27:B29)+NoOne -> 10 | C30: Capital Structure: Percent of Debt | D30: 0.7700859443 | E30: (1)
B31: =MAX(B28:B30)+NoOne -> 11 | C31: Return | D31: 0.0525
B32: =MAX(B29:B31)+NoOne -> 12 | C32: Weighted Average Return: Debt | D32: =D30*D31 -> 0.04042951208
B34: =MAX(B31:B33)+NoOne -> 13 | C34: Capital Structure: Percent of Equity | D34: 0.1931811708 | E34: (1)
B35: =MAX(B32:B34)+NoOne -> 14 | C35: Return | D35: 0.085
B36: =MAX(B33:B35)+NoOne -> 15 | C36: Weighted Average Return: Equity | D36: =D34*ROE -> 0.01642039952
B38: =MAX(B35:B37)+NoOne -> 16 | C38: Weighted Average Cost of Capital | D38: =D36+D32 -> 0.05684991159
C40: Return on Rate Base by System (%):
B41: =MAX(B38:B40)+NoOne -> 17 | C41: Return on Rate Base - Debt Component | D41: 0 | E41: =+$D$32 -> 0.04042951208 | F41: =+$D$32 -> 0.04042951208 | G41: =+$D$32 -> 0.04042951208 | H41: =+$D$32 -> 0.04042951208 | I41: =+$D$32 -> 0.04042951208
B42: =MAX(B39:B41)+NoOne -> 18 | C42: Return on Rate Base - Equity Component | D42: 0 | E42: =+$D$36 -> 0.01642039952 | F42: =+$D$36 -> 0.01642039952 | G42: =+$D$36 -> 0.01642039952 | H42: =+$D$36 -> 0.01642039952 | I42: =+$D$36 -> 0.01642039952
C44: Return on Rate Base ($):
B45: =MAX(B42:B44)+NoOne -> 19 | C45: Return on Debt | D45: =SUM(E45:I45) -> 95594234.42 | E45: =IslIntCos!F215 -> 84767028.68 | F45: =IslIsoCos!F182 -> 746170.7239 | G45: =LabIsoCos!F182 -> 3856595.255 | H45: =LALCos!F182 -> 649543.8069 | I45: =LabIntCos!F186 -> 5574895.953 | J45: =+"Schedule 2.6, L."&IslIntCos!D215 -> Schedule 2.6, L.12
A46: =SUM(E46:I46)-D46 -> 0 | B46: =MAX(B43:B45)+NoOne -> 20 | C46: Return on Equity | D46: =IF(TestYrSwitch=1,SUM(E46:I46),Reconciliation!I63-'Rate Base'!D45) -> 38825487.62 | E46: =IslIntCos!F217 -> 34428030.54 | F46: =IslIsoCos!F184 -> 303056.3755 | G46: =LabIsoCos!F184 -> 1566351.697 | H46: =LALCos!F184 -> 263811.465 | I46: =LabIntCos!F188 -> 2264237.536 | J46: =+"Schedule 2.6, L."&IslIntCos!D217 -> Schedule 2.6, L.13
B48: =MAX(B45:B47)+NoOne -> 21 | C48: Return on Rate Base ($) | D48: =SUM(E48:I48) -> 134419722 | E48: =IslIntCos!F219 -> 119195059.2 | F48: =IslIsoCos!F186 -> 1049227.099 | G48: =LabIsoCos!F186 -> 5422946.952 | H48: =LALCos!F186 -> 913355.2719 | I48: =LabIntCos!F190 -> 7839133.489 | J48: =+"Schedule 2.6, L."&IslIntCos!D219 -> Schedule 2.6, L.14
C50: Return on Total Rate Base (%):
B51: =MAX(B48:B50)+NoOne -> 22 | C51: Return on Rate Base - Debt Component | D51: =+D45/D23 -> 0.04042951208 | E51: 0.04042951208 | F51: 0.04042951208 | G51: 0.04042951208 | H51: 0.04042951208 | I51: 0.04042951208 | J51: =+"L. "&B45&" divided by L."&B$23 -> L. 19 divided by L.9
B52: =MAX(B49:B51)+NoOne -> 23 | C52: Return on Rate Base - Equity Component | D52: =+D46/D23 -> 0.01642039952 | E52: 0.01642039952 | F52: 0.01642039952 | G52: 0.01642039952 | H52: 0.01642039952 | I52: 0.01642039952 | J52: =+"L. "&B46&" divided by L."&B$23 -> L. 20 divided by L.9
B54: =MAX(B51:B53)+NoOne -> 24 | C54: Return on Rate Base (%) | D54: =D48/D23 -> 0.05684991159 | E54: 0.05684991159 | F54: 0.05684991159 | G54: 0.05684991159 | H54: 0.05684991159 | I54: 0.05684991159 | J54: =+"L. "&B48&" divided by L."&B$23 -> L. 21 divided by L.9
B57: (1) | C57: Debt and equity weightings reflect a 0.58% funded ARO and 3.09% component for Employee Future Benefits at 0% cost.

Sheet Rev to Cost
I2: Schedule 1.2
I3: Page 1 of 6
A6: NEWFOUNDLAND AND LABRADOR HYDRO
A7: =RunName -> 2019 Test Year Cost of Service Study
A8: Total System
A9: Comparison of Revenue & Allocated Revenue Requirement
B11: =MAX(A11)+NoOne -> 1 | C11: 2 | D11: 3 | E11: 4 | F11: 5 | G11: 6 | H11: =MAX(F11)+NoOne -> 6 | I11: 7
D13: Cost of Service Before | H13: Revenue Requirement | I13: Revenue
A14: Line | D14: Deficit and Revenue | E14: Revenue | G14: RSP | H14: After Deficit and Revenue | I14: to Cost
A15: No. | B15: Rate Class | C15: Revenues | D15: Credit Allocation | E15: Credits | F15: Deficit | G15: Activity | H15: Credit Allocation | I15: Coverage
H16: (Col.3+4+5) | I16: (Col.2/3)
C17: ($) | D17: ($) | E17: ($) | F17: ($) | G17: ($) | H17: ($)
B20: Total System
A21: =MAX(A18:A20)+NoOne -> 1 | B21: Newfoundland Power | C21: =C66 -> 545410154 | D21: =D66 -> 475103607.9 | E21: 0 | F21: 70281307.34 | G21: 0 | H21: =SUM(D21:G21) -> 545384915.3 | K21: 545427787
A22: =MAX(A19:A21)+NoOne -> 2 | B22: RSP Activity | C22: =C67 -> 0 | D22: 0 | E22: 0 | F22: 0 | G22: 0 | H22: =SUM(D22:G22) -> 0
A23: =MAX(A20:A21)+NoOne -> 2 | B23: Subtotal Newfoundland Power | C23: =SUM(C21:C22) -> 545410154 | D23: 475103607.9 | E23: 0 | F23: 70281307.34 | G23: 0 | H23: 545384915.3 | I23: =IF(D23<>0,C23/D23,0) -> 1.147981503 | K23: =K21-H21 -> 42871.7425
A25: =MAX(A22:A24)+NoOne -> 3 | B25: Island Industrial | C25: =C73 -> 49754122.9 | D25: =D73 -> 49773741.24 | E25: =E73 -> 0 | F25: 0 | H25: =H73 -> 49773741.24 | I25: =IF(D25<>0,C25/D25,0) -> 0.9996058495
A26: =MAX(A23:A25)+NoOne -> 4 | B26: Unallocated RSP Hydraulic Variation | C26: =+C75 -> 0 | D26: =+D75 -> 0 | E26: =+E75 -> 0 | F26: =+F75 -> 0 | H26: =+H75 -> 0 | I26: =IF(D26<>0,C26/D26,0) -> 0
A27: =MAX(A24:A25)+NoOne -> 4 | B27: Labrador Industrial | C27: =+C223 -> 6872119.505 | D27: =+D223 -> 6860189.983 | E27: =+E223 -> 0 | F27: 0 | H27: =SUM(D27:F27) -> 6860189.983 | I27: 1.001738949
A28: =MAX(A25:A27)+NoOne -> 5 | B28: CFB - Goose Bay Secondary | C28: =+C225 -> 0 | D28: =+D225 -> 0 | E28: =+E225 -> 0 | F28: 0 | H28: =+C28 -> 0 | I28: 0
A29: =MAX(A26:A28)+NoOne -> 6 | B29: Rural Labrador Interconnected | C29: =C236 -> 22507619.99 | D29: =D236 -> 19651556.79 | E29: =E236 -> 0 | F29: =C324 -> 2907022.972 | H29: =SUM(D29:F29) -> 22558579.76 | I29: 1.145335213
B31: Rural Deficit Areas
A32: =MAX(A29:A31)+NoOne -> 7 | B32: Island Interconnected | C32: =C87 -> 53526605.96 | D32: =D87 -> 77757826.86 | E32: =E87 -> 0 | F32: =C32-D32-E32 -> -24231220.89 | H32: =SUM(D32:F32) -> 53526605.96 | I32: 0.6883757961
A33: =MAX(A30:A32)+NoOne -> 8 | B33: Island Isolated | C33: =C128 -> 1740167.863 | D33: =D128 -> 12094867.76 | E33: =E128 -> 0 | F33: =C33-D33-E33 -> -10354699.89 | H33: =SUM(D33:F33) -> 1740167.863 | I33: 0.1438765515
A34: =MAX(A31:A33)+NoOne -> 9 | B34: Labrador Isolated | C34: =C166 -> 9656445.569 | D34: =D166 -> 43754613.78 | E34: =E166 -> 0 | F34: =C34-D34-E34 -> -34098168.21 | H34: =SUM(D34:F34) -> 9656445.569 | I34: 0.2206954818
A35: =MAX(A32:A34)+NoOne -> 10 | B35: L'Anse au Loup | C35: =C198 -> 3238389.278 | D35: =D198 -> 7742630.588 | E35: =E198 -> 0 | F35: =C35-D35-E35 -> -4504241.31 | H35: =SUM(D35:F35) -> 3238389.278 | I35: 0.4182543957
A36: =MAX(A33:A35)+NoOne -> 11 | B36: CFB Revenue Credit Applied to Deficit | C36: 0 | D36: 0 | E36: =-E225 -> 0 | F36: =C36-D36-E36 -> 0 | H36: =SUM(D36:F36) -> 0 | I36: 0
A38: =MAX(A35:A37)+NoOne -> 12 | B38: Subtotal | C38: =SUM(C32:C36) -> 68161608.67 | D38: 141349939 | E38: 0 | F38: -73188330.31 | G38: 0 | H38: 68161608.67 | I38: =IF(D38<>0,C38/D38,0) -> 0.4822188758
A40: =MAX(A37:A39)+NoOne -> 13 | B40: Total | C40: =SUM(C23:C29,C38) -> 692705625.1 | D40: 692739034.9 | E40: 0 | F40: 0 | G40: 0 | H40: 692739034.9 | I40: =IF(D40<>0,C40/D40,0) -> 0.9999517714
I48: Schedule 1.2
I49: Page 2 of 6
A52: =+A6 -> NEWFOUNDLAND AND LABRADOR HYDRO
A53: =RunName -> 2019 Test Year Cost of Service Study
A54: Island Interconnected
A55: Comparison of Revenue & Allocated Revenue Requirement
B57: =MAX(A57)+NoOne -> 1 | C57: 2 | D57: 3 | E57: 4 | F57: 5 | G57: 6 | H57: =MAX(F57)+NoOne -> 6 | I57: 7
D59: Cost of Service Before | H59: Revenue Requirement | I59: Revenue
A60: Line | D60: Deficit and Revenue | E60: Revenue | F60: Deficit | G60: RSP | H60: After Deficit and Revenue | I60: to Cost
A61: No. | B61: Rate Class | C61: Revenues | D61: Credit Allocation | E61: Credit | F61: Allocation | G61: Activity | H61: Credit Allocation | I61: Coverage
H62: (Col.3+4+5) | I62: (Col.2/3)
C63: ($) | D63: ($) | E63: ($) | F63: ($) | G63: ($) | H63: ($)
B65: Island Interconnected
A66: =MAX(A63:A65)+NoOne -> 1 | B66: Newfoundland Power | C66: 545410154 | D66: =IslIntCos!F483 -> 475103607.9 | E66: =(D66/($D$66+$D$70+$D$87))*-$E$95 -> 0 | F66: =+C320 -> 70281307.34 | G66: =-G67 -> 0 | H66: =SUM(D66:G66) -> 545384915.3
A67: =MAX(A64:A66)+NoOne -> 2 | B67: NLP RSP Activity | C67: 0 | H67: =SUM(D67:G67) -> 0
A68: =MAX(A65:A66)+NoOne -> 2 | B68: Subtotal Newfoundland Power | C68: =SUM(C66:C67) -> 545410154 | D68: 475103607.9 | E68: 0 | F68: 70281307.34 | G68: 0 | H68: 545384915.3 | I68: =IF(D68<>0,C68/D68,0) -> 1.147981503
A70: =MAX(A67:A69)+NoOne -> 3 | B70: Industrial - Firm | C70: 49754122.9 | D70: =IslIntCos!F484 -> 49773741.24 | E70: =(D70/($D$66+$D$70+$D$87))*-$E$95 -> 0 | H70: =SUM(D70:F70) -> 49773741.24
A71: =MAX(A68:A70)+NoOne -> 4 | B71: Industrial - Non-Firm | C71: 0 | D71: =IslIntCos!F485 -> 0 | E71: =+E95 -> 0 | H71: =+C71 -> 0
A72: =MAX(A69:A71)+NoOne -> 5 | B72: Industrial RSP Activity | C72: 0 | H72: =SUM(D72:F72) -> 0
A73: =MAX(A70:A71)+NoOne -> 5 | B73: Subtotal Industrial | C73: =SUM(C70:C72) -> 49754122.9 | D73: =SUM(D70:D72) -> 49773741.24 | E73: =SUM(E70:E72) -> 0 | F73: =SUM(F70:F72) -> 0 | H73: =SUM(H70:H72) -> 49773741.24 | I73: =IF(D73<>0,C73/D73,0) -> 0.9996058495
A75: =MAX(A72:A74)+NoOne -> 6 | B75: Unallocated RSP Hydraulic Variation | C75: 0
B77: Rural
A78: =MAX(A73:A73)+NoOne -> 6 | B78: 1.1 Domestic | C78: 14708835.44 | D78: =IslIntCos!F487 -> 24451582.19 | E78: =(D78/($D$66+$D$70+$D$87))*-$E$95 -> 0 | F78: =C78-D78-E78 -> -9742746.751 | H78: =SUM(D78:F78) -> 14708835.44 | I78: =IF(D78<>0,C78/D78,0) -> 0.6015494345 | K78: ISLINT1.1
A79: =MAX(A76:A78)+NoOne -> 7 | B79: 1.12 Domestic All Electric | C79: 18533125.4 | D79: =IslIntCos!F488 -> 27851623.12 | E79: 0 | F79: =C79-D79-E79 -> -9318497.719 | H79: 18533125.4 | I79: =IF(D79<>0,C79/D79,0) -> 0.665423531 | K79: ISLINT1.12
A80: 8 | B80: 1.3 Special | C80: 21487.53205 | D80: =IslIntCos!F489 -> 76406.72855 | E80: 0 | F80: -54919.1965 | H80: 21487.53205 | I80: 0.281225652 | K80: ISLINT1.3
A81: 9 | B81: 2.1 General Service 0-100 kW | C81: 9613910.04 | D81: =IslIntCos!F490 -> 12752792.76 | E81: 0 | F81: -3138882.722 | H81: 9613910.04 | I81: 0.7538670329 | K81: ISLINT2.1
A82: 10 | B82: 2.2 General Service 10-100 kW | C82: 0 | D82: =IslIntCos!F491 -> 0 | E82: 0 | F82: 0 | H82: 0 | I82: 0 | K82: ISLINT2.2
A83: =MAX(A80:A81)+NoOne -> 10 | B83: 2.3 General Service 110-1,000 kVa | C83: 6160288.53 | D83: =IslIntCos!F492 -> 7392213.704 | E83: 0 | F83: -1231925.174 | H83: 6160288.53 | I83: 0.8333482738 | K83: ISLINT2.3
A84: 11 | B84: 2.4 General Service Over 1,000 kVa | C84: 3378237.709 | D84: =IslIntCos!F493 -> 3930235.795 | E84: 0 | F84: -551998.086 | H84: 3378237.709 | I84: 0.8595508985 | K84: ISLINT2.4
A85: 12 | B85: 4.1 Street and Area Lighting | C85: 1110721.309 | D85: =IslIntCos!F494 -> 1302972.555 | E85: 0 | F85: -192251.2461 | H85: 1110721.309 | I85: 0.8524518069 | K85: ISLINT4.1
A87: =MAX(A84:A86)+NoOne -> 13 | B87: Subtotal Rural | C87: =SUM(C78:C85) -> 53526605.96 | D87: =SUM(D78:D85) -> 77757826.86 | E87: =SUM(E78:E85) -> 0 | F87: =SUM(F78:F85) -> -24231220.89 | H87: =SUM(H78:H85) -> 53526605.96 | I87: =IF(D87<>0,C87/D87,0) -> 0.6883757961
A88: =MAX(A85:A87)+NoOne -> 14 | B88: Total Island Interconnected | C88: =SUM(C87,C73,C68,C75) -> 648690882.9 | D88: =SUM(D87,D73,D68,D75) -> 602635176 | E88: =SUM(E87,E73,E68,E75) -> 0 | F88: =SUM(F87,F73,F68,F75) -> 46050086.44 | H88: =SUM(H87,H73,H68,H75) -> 648685262.5 | I88: =IF(D88<>0,C88/D88,0) -> 1.076423861
B91: Note1:
B92: Calculation of Island Industrial Non-Firm Revenue Credit
B93: Island Industrial Non-Firm Revenues, Ln 5, Col 2 | E93: =C71 -> 0
B94: Island Industrial Non-Firm Allocated Cost of Service, Ln 5, Col 3 | E94: =-D71 -> 0
B95: Credit to be allocated to Island Interconnected Firm Customers | E95: =SUM(E93:E94) -> 0
I97: Schedule 1.2
I98: Page 3 of 6
A101: =+A6 -> NEWFOUNDLAND AND LABRADOR HYDRO
A102: =RunName -> 2019 Test Year Cost of Service Study
A103: Island Isolated
A104: Comparison of Revenue & Allocated Revenue Requirement
B106: =MAX(A106)+NoOne -> 1 | C106: 2 | D106: 3 | E106: 4 | F106: 5 | G106: 6 | H106: =MAX(F106)+NoOne -> 6 | I106: 7
D108: Cost of Service Before | H108: Revenue Requirement | I108: Revenue
A109: Line | D109: Deficit and Revenue | E109: Revenue | G109: RSP | H109: After Deficit and Revenue | I109: to Cost
A110: No. | B110: Rate Class | C110: Revenues | D110: Credit Allocation | E110: Credit | F110: Deficit | G110: Activity | H110: Credit Allocation | I110: Coverage
H111: (Col.3+4+5) | I111: (Col.2/3)
C112: ($) | D112: ($) | E112: ($) | F112: ($) | G112: ($) | H112: ($)
B115: Island Isolated
A116: =MAX(A113:A115)+NoOne -> 1 | B116: 1.2 Domestic Diesel | C116: 848643.7984 | D116: =IslIsoCos!F420 -> 9274095.404 | F116: =C116-D116 -> -8425451.606 | H116: =SUM(D116,F116) -> 848643.7984 | I116: =IF(D116<>0,C116/D116,0) -> 0.09150690838 | K116: ISLISO1.2
A117: 2 | B117: 1.2G Government Domestic Diesel | C117: 0 | D117: =IslIsoCos!F421 -> 0 | F117: =C117-D117 -> 0 | H117: 0 | I117: =IF(D117<>0,C117/D117,0) -> 0 | K117: ISLISO1.2G
A118: =MAX(A115:A116)+NoOne -> 2 | B118: 1.23 Churches, Schools & Com Halls | C118: 68579.61429 | D118: =IslIsoCos!F422 -> 361612.2373 | F118: -293032.623 | H118: 68579.61429 | I118: 0.1896495948 | K118: ISLISO1.23
A119: 3 | B119: 2.1 General Service 0-10 kW | C119: 232368.0953 | D119: =IslIsoCos!F423 -> 980765.6262 | F119: -748397.5309 | H119: 232368.0953 | I119: 0.2369252032 | K119: ISLISO2.1D
A120: 4 | B120: 2.2 GS 10-100 kW | C120: 541732.5617 | D120: =IslIsoCos!F424 -> 1247182.096 | F120: -705449.5343 | H120: 541732.5617 | I120: 0.434365249 | K120: ISLISO2.2D
A121: 5 | B121: 2.3 GS 110-1,000 kVa | C121: 0 | D121: =IslIsoCos!F425 -> 0 | F121: 0 | H121: 0 | I121: 0 | K121: ISLISO2.3
A122: 6 | B122: 2.4 General Service Over 1,000 kVa | C122: 0 | D122: =IslIsoCos!F426 -> 0 | F122: 0 | H122: 0 | I122: 0 | K122: ISLISO2.4
A123: 7 | B123: 2.5 GS Diesel | C123: 0 | D123: =IslIsoCos!F427 -> 0 | F123: 0 | H123: 0 | I123: 0 | K123: ISLISO2.5
A124: 8 | B124: 2.5G Gov't General Service Diesel | C124: 0 | D124: =IslIsoCos!F428 -> 0 | F124: 0 | H124: 0 | I124: 0 | K124: ISLISO2.5G
A125: =MAX(A120:A120)+NoOne -> 5 | B125: 4.1 Street and Area Lighting | C125: 42520.7536 | D125: =IslIsoCos!F429 -> 220898.1175 | F125: -178377.3639 | H125: 42520.7536 | I125: 0.1924903393 | K125: ISLISO4.1
A126: =MAX(A125:A125)+NoOne -> 6 | B126: 4.1G Gov't Street and Area Lighting | C126: 6323.04 | D126: =IslIsoCos!F430 -> 10314.27551 | F126: -3991.235513 | H126: 6323.04 | I126: 0.6130377255 | K126: ISLISO4.1G
A128: =MAX(A125:A127)+NoOne -> 7 | B128: Total | C128: =SUM(C116:C126) -> 1740167.863 | D128: =SUM(D116:D126) -> 12094867.76 | F128: =SUM(F116:F126) -> -10354699.89 | H128: =SUM(H116:H126) -> 1740167.863 | I128: =IF(D128<>0,C128/D128,0) -> 0.1438765515
I135: Schedule 1.2
I136: Page 4 of 6
A139: =+A6 -> NEWFOUNDLAND AND LABRADOR HYDRO
A140: =RunName -> 2019 Test Year Cost of Service Study
A141: Labrador Isolated
A142: Comparison of Revenue & Allocated Revenue Requirement
B144: =MAX(A144)+NoOne -> 1 | C144: 2 | D144: 3 | E144: 4 | F144: 5 | G144: 6 | H144: =MAX(F144)+NoOne -> 6 | I144: 7
D146: Cost of Service Before | H146: Revenue Requirement | I146: Revenue
A147: Line | D147: Deficit and Revenue | E147: Revenue | G147: RSP | H147: After Deficit and Revenue | I147: to Cost
A148: No. | B148: Rate Class | C148: Revenues | D148: Credit Allocation | E148: Credit | F148: Deficit | G148: Activity | H148: Credit Allocation | I148: Coverage
H149: (Col.3+4+5) | I149: (Col.2/3)
C150: ($) | D150: ($) | E150: ($) | F150: ($) | G150: ($) | H150: ($)
B153: Labrador Isolated
A154: =MAX(A151:A153)+NoOne -> 1 | B154: 1.2 Domestic Diesel | C154: 3325540.739 | D154: =LabIsoCos!F421 -> 23516331.13 | F154: =C154-D154 -> -20190790.39 | H154: =SUM(D154,F154) -> 3325540.739 | I154: =IF(D154<>0,C154/D154,0) -> 0.1414140974 | K154: LABISO1.2
A155: 2 | B155: 1.2G Government Domestic Diesel | C155: 668148.8475 | D155: =LabIsoCos!F422 -> 628099.3319 | F155: =C155-D155 -> 40049.51552 | H155: 668148.8475 | I155: =IF(D155<>0,C155/D155,0) -> 1.063763028 | K155: LABISO1.2G
A156: 3 | B156: 1.23 Churches, Schools & Com Halls | C156: 301419.0177 | D156: =LabIsoCos!F423 -> 1283899.612 | F156: -982480.5942 | H156: 301419.0177 | I156: 0.2347683689 | K156: LABISO1.23
A157: 4 | B157: 2.1 General Service 0-10 kW | C157: 1397564.399 | D157: =LabIsoCos!F424 -> 4345644.363 | F157: -2948079.964 | H157: 1397564.399 | I157: 0.3216011902 | K157: LABISO2.1D
A158: 5 | B158: 2.2 GS 10-100 kW | C158: 3336130.881 | D158: =LabIsoCos!F425 -> 10103273.8 | F158: -6767142.917 | H158: 3336130.881 | I158: 0.3302029567 | K158: LABISO2.2
A159: 6 | B159: 2.3 GS 110-1,000 kVa | C159: 259744.1952 | D159: =LabIsoCos!F426 -> 1605874.357 | F159: -1346130.161 | H159: 259744.1952 | I159: 0.1617462749 | K159: LABISO2.3
A160: 7 | B160: 2.4 General Service Over 1,000 kVa | C160: 235104.0065 | D160: =LabIsoCos!F427 -> 1850536.263 | F160: -1615432.256 | H160: 235104.0065 | I160: 0.1270464196 | K160: LABISO2.4
A161: 8 | B161: 2.5 GS Diesel | C161: 0 | D161: =LabIsoCos!F428 -> 0 | F161: 0 | H161: 0 | I161: 0 | K161: LABISO2.5
A162: 9 | B162: 2.5G Gov't General Service Diesel | C162: 0 | D162: =LabIsoCos!F429 -> 0 | F162: 0 | H162: 0 | I162: 0 | K162: LABISO2.5G
A163: =MAX(A160:A160)+NoOne -> 8 | B163: 4.1 Street and Area Lighting | C163: 123929.9229 | D163: =LabIsoCos!F430 -> 411064.9595 | F163: -287135.0366 | H163: 123929.9229 | I163: 0.3014850087 | K163: LABISO4.1
A164: =MAX(A163:A163)+NoOne -> 9 | B164: 4.1G Gov't Street and Area Lighting | C164: 8863.56 | D164: =LabIsoCos!F431 -> 9889.971287 | F164: =C164-D164 -> -1026.411287 | H164: 8863.56 | I164: 0.8962169599 | K164: LABISO4.1G
A166: =MAX(A163:A165)+NoOne -> 10 | B166: Total | C166: =SUM(C154:C164) -> 9656445.569 | D166: =SUM(D154:D164) -> 43754613.78 | F166: -34098168.21 | H166: =SUM(H154:H164) -> 9656445.569 | I166: =IF(D166<>0,C166/D166,0) -> 0.2206954818
I173: Schedule 1.2
I174: Page 5 of 6
A177: =+A6 -> NEWFOUNDLAND AND LABRADOR HYDRO
A178: =RunName -> 2019 Test Year Cost of Service Study
A179: L'Anse au Loup
A180: Comparison of Revenue & Allocated Revenue Requirement
B182: =MAX(A182)+NoOne -> 1 | C182: 2 | D182: 3 | E182: 4 | F182: 5 | G182: 6 | H182: =MAX(F182)+NoOne -> 6 | I182: 7
D184: Cost of Service Before | H184: Revenue Requirement | I184: Revenue
A185: Line | D185: Deficit and Revenue | E185: Revenue | G185: RSP | H185: After Deficit and Revenue | I185: to Cost
A186: No. | B186: Rate Class | C186: Revenues | D186: Credit Allocation | E186: Credit | F186: Deficit | G186: Activity | H186: Credit Allocation | I186: Coverage
H187: (Col.3+4+5) | I187: (Col.2/3)
C188: ($) | D188: ($) | E188: ($) | F188: ($) | G188: ($) | H188: ($)
B190: L'Anse au Loup
A191: =MAX(A188:A190)+NoOne -> 1 | B191: 1.1 Domestic | C191: 596496.265 | D191: =LALCos!F395 -> 1603999.32 | F191: =C191-D191 -> -1007503.055 | H191: =SUM(D191,F191) -> 596496.265 | I191: =IF(D191<>0,C191/D191,0) -> 0.3718806222 | K191: LAL1.2
A192: 2 | B192: 1.12 Domestic All Electric | C192: 1431038.465 | D192: =LALCos!F396 -> 3616545.656 | F192: =C192-D192 -> -2185507.19 | H192: 1431038.465 | I192: 0.3956920779 | K192: LAL1.12
A193: 3 | B193: 2.1 General Service 0-100 kW | C193: 859548.4959 | D193: =LALCos!F397 -> 1826265.147 | F193: -966716.6512 | H193: 859548.4959 | I193: 0.4706592015 | K193: LAL2.1
A194: 4 | B194: 2.2 General Service 10-100 kW | C194: 0 | D194: =LALCos!F398 -> 0 | F194: 0 | H194: 0 | I194: 0 | K194: LAL2.2
A195: =MAX(A192:A192)+NoOne -> 3 | B195: 2.3 General Service 110-1,000 kVa | C195: 330152.3785 | D195: =LALCos!F399 -> 648270.0372 | F195: -318117.6587 | H195: 330152.3785 | I195: 0.5092821811 | K195: LAL2.3
A196: =MAX(A195:A195)+NoOne -> 4 | B196: 4.1 Street and Area Lighting | C196: 21153.67352 | D196: =LALCos!F400 -> 47550.4289 | F196: -26396.75538 | H196: 21153.67352 | I196: 0.444868196 | K196: LAL4.1
A198: =MAX(A195:A197)+NoOne -> 5 | B198: Total L'Anse Au Loup | C198: =SUM(C191:C196) -> 3238389.278 | D198: =SUM(D191:D196) -> 7742630.588 | F198: -4504241.31 | H198: =SUM(H191:H196) -> 3238389.278 | I198: =IF(D198<>0,C198/D198,0) -> 0.4182543957
I205: Schedule 1.2
I206: Page 6 of 6
A208: =+A6 -> NEWFOUNDLAND AND LABRADOR HYDRO
A209: =RunName -> 2019 Test Year Cost of Service Study
A210: Labrador Interconnected
A211: Comparison of Revenue & Allocated Revenue Requirement
B212: =MAX(A212)+NoOne -> 1 | C212: 2 | D212: 3 | E212: 4 | F212: 5 | G212: 6 | H212: =MAX(F212)+NoOne -> 6 | I212: 7
D214: Cost of Service Before | H214: Revenue Requirement | I214: Revenue
A215: Line | D215: Deficit and Revenue | E215: Revenue | F215: Deficit | G215: RSP | H215: After Deficit and Revenue | I215: to Cost
A216: No. | B216: Rate Class | C216: Revenues | D216: Credit Allocation | E216: Credit | F216: Allocation | G216: Activity | H216: Credit Allocation | I216: Coverage
H217: (Col.3+4+5) | I217: (Col.2/7)
C218: ($) | D218: ($) | E218: ($) | F218: ($) | G218: ($) | H218: ($)
B219: Labrador Interconnected
A220: =MAX(A218:A219)+NoOne -> 1 | B220: Labrador Industrial Firm | C220: 6872119.505 | D220: =LabIntCos!F454 -> 6860189.983 | F220: =$F$27*(D220/SUM($D$220:$D$221)) -> 0 | H220: =SUM(D220:F220) -> 6860189.983 | I220: =IF(H220<>0,C220/H220,0) -> 1.001738949
A221: =MAX(A219:A220)+NoOne -> 2 | B221: Labrador Industrial Non-Firm | C221: =+D221 -> 0 | D221: =+LabIntCos!F455 -> 0 | F221: =$F$27*(D221/SUM($D$220:$D$221)) -> 0 | H221: =SUM(D221:F221) -> 0 | I221: 0
A223: =MAX(A220:A222)+NoOne -> 3 | B223: Subtotal Industrial | C223: =+C220+C221+C222 -> 6872119.505 | D223: =+D220+D221+D222 -> 6860189.983 | E223: =+E220+E221+E222 -> 0 | F223: =+F220+F221 -> 0 | H223: =+H220+H221+H222 -> 6860189.983
A225: =MAX(A222:A224)+NoOne -> 4 | B225: CFB - Goose Bay Secondary | C225: 0 | D225: =LabIntCos!F453 -> 0 | E225: =+E246 -> 0 | F225: 0 | H225: =SUM(D225:F225) -> 0 | I225: =IF(H225<>0,C225/H225,0) -> 0
B227: Rural
A228: =MAX(A225:A227)+NoOne -> 5 | B228: 1.1 Domestic | C228: 109454.8568 | D228: =LabIntCos!F458 -> 215092.659 | E228: =-$E$249*(D228/$D$236) -> 0 | F228: =(D228/$D$236)*$F$29 -> 31818.30873 | H228: =SUM(D228:F228) -> 246910.9677 | I228: =IF(H228<>0,C228/H228,0) -> 0.4432968605 | K228: LEINT1.1
A229: 6 | B229: 1.1A Domestic All Electric | C229: 12338690.18 | D229: =LabIntCos!F459 -> 12011207.33 | E229: 0 | F229: 1776798.449 | H229: 13788005.78 | I229: =IF(H229<>0,C229/H229,0) -> 0.8948857713 | K229: LEINT1.12
A230: 7 | B230: 2.1 General Service 0-10 kW | C230: 455136.1166 | D230: =LabIntCos!F460 -> 394806.4935 | E230: 0 | F230: 58403.08524 | H230: 453209.5788 | I230: 1.004250876 | K230: LEINT2.1
A231: 8 | B231: 2.2 General Service 10-100 kW | C231: 2508183.038 | D231: =LabIntCos!F461 -> 1867500.462 | E231: 0 | F231: 276256.3191 | H231: 2143756.781 | I231: 1.169994218 | K231: LEINT2.2
A232: 9 | B232: 2.3 General Service 110-1,000 kVa | C232: 3890717.172 | D232: =LabIntCos!F462 -> 2586689.638 | E232: 0 | F232: 382644.8093 | H232: 2969334.448 | I232: 1.310299409 | K232: LEINT2.3
A233: 10 | B233: 2.4 General Service Over 1,000 kVa | C233: 2844173.463 | D233: =LabIntCos!F463 -> 2272282.323 | E233: 0 | F233: 336135.0442 | H233: 2608417.367 | I233: 1.090382812 | K233: LEINT2.4
A234: 11 | B234: 4.1 Street and Area Lighting | C234: 361265.16 | D234: =LabIntCos!F464 -> 303977.888 | E234: 0 | F234: 44966.95671 | H234: 348944.8447 | I234: 1.035307343 | K234: LEINT4.1
A236: =MAX(A233:A235)+NoOne -> 12 | B236: Subtotal Rural | C236: =SUM(C228:C234) -> 22507619.99 | D236: =SUM(D228:D234) -> 19651556.79 | E236: =SUM(E228:E234) -> 0 | F236: =SUM(F228:F234) -> 2907022.972 | H236: =SUM(D236:F236) -> 22558579.76
A237: =MAX(A234:A236)+NoOne -> 13 | B237: Total Labrador Interconnected | C237: =+C236+C225+C223 -> 29379739.5 | D237: =+D236+D225+D223 -> 26511746.77 | E237: =+E236+E225+E223 -> 0 | F237: =+F236+F225+F223 -> 2907022.972 | H237: =SUM(D237:F237) -> 29418769.75
B239: NOTES:
B240: Revenue to Cost ratios include the deficit allocation when calculated for individual rate classes.
B242: Calculation of CFB - Goose Bay Secondary Revenue Credit
B243: CFB - Goose Bay Secondary Revenues, Ln 4, Col 2 | E243: =+C225 -> 0
B244: CFB - Goose Bay Secondary Allocated Cost of Service, Ln 4, Col 3 | E244: =-D225 -> 0
B245: CFB - Goose Bay Secondary Allocated Deficit, Ln 4, Col 5 | E245: 0
B246: Revenue Credit | E246: =SUM(E243:E245) -> 0
B248: Revenue Credit Applied to Deficit | D248: =+RunOptions!B21 -> 1 | E248: =+E246*D248 -> 0
B249: Revenue Credit Applied to Firm Regulated Labrador Interconnected Customers | E249: =+E246-E248 -> 0
E250: =SUM(E248:E249) -> 0
H251: Schedule 1.2.1
H252: Page 1 of 2
A255: =+A6 -> NEWFOUNDLAND AND LABRADOR HYDRO
A256: =RunName -> 2019 Test Year Cost of Service Study
A257: Total System
A258: Rural Deficit Allocation
B260: =MAX(A260)+NoOne -> 1 | C260: 2 | D260: 3 | E260: 4 | F260: 5 | H260: =MAX(F260)+NoOne -> 6
C262: Before Deficit and Revenue Credit Allocation
A263: Line | C263: Allocated
A264: No. | B264: Rate Class | C264: Revenue Reqt | D264: Demand | E264: Energy | F264: Customer | H264: Source
C265: ($) | D265: ($) | E265: ($) | F265: ($)
B267: CLASSIFICATION TO DEMAND, ENERGY, CUSTOMERS:
A268: =MAX(A265:A267)+NoOne -> 1 | B268: Newfoundland Power | C268: =SUM(D268:F268) -> 475103607.9 | D268: ='Unit Costs'!Q17 -> 191763061.8 | E268: ='Unit Costs'!R17 -> 279710698.7 | F268: ='Unit Costs'!S17 -> 3629847.477 | H268: Schedule 1.3.1, p. 1
A269: =MAX(A266:A268)+NoOne -> 2 | B269: Rural Labrador Interconnected | C269: =SUM(D269:F269) -> 19651556.79 | D269: ='Unit Costs'!Q126 -> 12727263.16 | E269: ='Unit Costs'!R126 -> 1050258.654 | F269: ='Unit Costs'!S126 -> 5874034.975 | H269: Schedule 1.3.1, p. 3
A271: =MAX(A268:A270)+NoOne -> 3 | B271: Total | C271: =SUM(C268:C269) -> 494755164.7 | D271: =SUM(D268:D269) -> 204490324.9 | E271: =SUM(E268:E269) -> 280760957.3 | F271: =SUM(F268:F269) -> 9503882.452
A273: =MAX(A270:A272)+NoOne -> 4 | B273: Deficit Classified | C273: =-1*F38 -> 73188330.31 | D273: =C273-SUM(E273:F273) -> 30249922.61 | E273: =E$271/$C$271*$C$273 -> 41532513.76 | F273: =F$271/$C$271*$C$273 -> 1405893.941 | H273: Prorated on Line 3
B276: NOTE: This page omitted from the print range in favour of Page 2 below.
B288: * Specifically assigned costs are converted to equivalent unweighted customers
B289: by dividing the assigned cost by the allocated customer cost per unweighted customer.
B291: Rural Customer Costs per Rural Customer:
B292: Island Interconnected: | D292: ='Unit Costs'!$S$30/('Unit Costs'!$AD$30/12) -> 547.8536886
B293: Labrador Interconnected: | D293: ='Unit Costs'!$S$126/('Unit Costs'!$AD$126/12) -> 503.8089907
H294: Schedule 1.2.1
H295: Page 1 of 1
A298: =+A6 -> NEWFOUNDLAND AND LABRADOR HYDRO
A299: =RunName -> 2019 Test Year Cost of Service Study
A300: Total System
... 20 more rows

Sheet Unit Costs
M2: Schedule 1.3 | X2: Schedule 1.3.1 | AD2: Schedule 1.3.2
M3: Page 1 of 3 | X3: Page 1 of 3 | AD3: Page 1 of 3
A5: NEWFOUNDLAND AND LABRADOR HYDRO | N5: NEWFOUNDLAND & LABRADOR HYDRO | Y5: NEWFOUNDLAND & LABRADOR HYDRO
A6: =RunName -> 2019 Test Year Cost of Service Study | N6: =RunName -> 2019 Test Year Cost of Service Study | Y6: =RunName -> 2019 Test Year Cost of Service Study
A7: Unit Demand, Energy & Customer Amounts | N7: Total Demand, Energy & Customer Amounts | Y7: Demands, Sales, & Number of Bills
B10: =MAX(A10)+NoOne -> 1 | C10: 2 | D10: 3 | E10: 4 | F10: 5 | G10: 6 | I10: =MAX(G10)+NoOne -> 7 | J10: =MAX(I10)+NoOne -> 8 | K10: =MAX(J10)+NoOne -> 9 | L10: =MAX(K10)+NoOne -> 10 | M10: =MAX(L10)+NoOne -> 11 | O10: =MAX(N10)+NoOne -> 1 | P10: =MAX(O10)+NoOne -> 2 | Q10: =MAX(P10)+NoOne -> 3 | R10: =MAX(Q10)+NoOne -> 4 | S10: =MAX(R10)+NoOne -> 5 | U10: =MAX(S10)+NoOne -> 6 | V10: =MAX(U10)+NoOne -> 7 | W10: =MAX(V10)+NoOne -> 8 | X10: =MAX(W10)+NoOne -> 9 | Z10: =MAX(Y10)+NoOne -> 1 | AA10: =MAX(Z10)+NoOne -> 2 | AB10: =MAX(AA10)+NoOne -> 3 | AC10: =MAX(AB10)+NoOne -> 4 | AD10: =MAX(AC10)+NoOne -> 5
B12: Rate Class | C12: Before Deficit and Revenue Credit Allocation | I12: After Deficit and Revenue Credit Allocation | AA12: Units
A13: Line | C13: Demand | F13: Non-Demand | I13: Demand | L13: Non-Demand | N13: Line | O13: Rate Class | P13: Before Deficit and Revenue Credit Allocation | U13: After Deficit and Revenue Credit Allocation | Y13: Line | AA13: Billing
A14: No. | C14: Demand | D14: Non-Demand | E14: Energy | F14: Demand & Energy | G14: Customer | I14: Demand | J14: Non-Demand | K14: Energy | L14: Demand & Energy | M14: Customer | N14: No. | P14: Total | Q14: Demand | R14: Energy | S14: Customer | U14: Total | V14: Demand | W14: Energy | X14: Customer | Y14: No. | Z14: Rate Class | AA14: Demands | AB14: Sales | AC14: Customers | AD14: Bills
C15: ($/kW) | D15: ($/kWh) | E15: ($/kWh) | F15: ($/kWh) | G15: ($/Bill) | I15: ($/kW) | J15: ($/kWh) | K15: ($/kWh) | L15: ($/kWh) | M15: ($/Bill) | P15: ($) | Q15: ($) | R15: ($) | S15: ($) | U15: ($) | V15: ($) | W15: ($) | X15: ($) | AA15: (kW) | AB15: (MWh) | AD15: (Total No)
B16: Island Interconnected | O16: Island Interconnected | Z16: Island Interconnected
A17: =MAX(A14:A16)+NoOne -> 1 | B17: Newfoundland Power | C17: =IF(AA17<>0,Q17/AA17,0) -> 12.65055355 | D17: =IF(AND(AA17<>0,AB17<>0),0,IF(AA17<>0,0,IF(AB17<>0,Q17/(AB17*1000),0))) -> 0 | E17: =IF(AB17<>0,R17/(AB17*1000),0) -> 0.04794821357 | F17: =IF(AND(AA17<>0,AB17<>0),0,IF(AA17<>0,0,IF(AB17<>0,SUM(D17:E17),0))) -> 0 | G17: =IF(AD17<>0,S17/AD17,0) -> 302487.2898 | I17: =IF(AA17<>0,V17/AA17,0) -> 14.52192945 | J17: =IF(AND(AA17<>0,AB17<>0),0,IF(AA17<>0,0,IF(AB17<>0,V17/(AB17*1000),0))) -> 0 | K17: =IF(AB17<>0,W17/(AB17*1000),0) -> 0.05504111516 | L17: =IF(AND(AA17<>0,AB17<>0),0,IF(AA17<>0,0,IF(AB17<>0,SUM(J17:K17),0))) -> 0 | M17: =IF(AD17<>0,X17/AD17,0) -> 347233.7447 | N17: =MAX(N14:N16)+NoOne -> 1 | O17: Newfoundland Power | P17: =SUM(Q17:S17) -> 475103607.9 | Q17: =SUM(IslIntCos!G483,IslIntCos!I483:L483,IslIntCos!N483,IslIntCos!P483) -> 191763061.8 | R17: =SUM(IslIntCos!H483) -> 279710698.7 | S17: =SUM(IslIntCos!M483,IslIntCos!O483,IslIntCos!Q483:V483) -> 3629847.477 | U17: ='Rev to Cost'!H68 -> 545384915.3 | V17: =IF($P17<>0,$U17/$P17*Q17,0) -> 220130260.9 | W17: 321087849.4 | X17: 4166804.936 | Y17: 1 | Z17: Newfoundland Power | AA17: 15158472 | AB17: 5833600 | AC17: 1 | AD17: =12*Customers!$D$29 -> 12 | AE17: ISLINTNP
A18: =MAX(A15:A17)+NoOne -> 2 | B18: Industrial - Firm | C18: =IF(AA18<>0,Q18/AA18,0) -> 11.11825243 | D18: =IF(AND(AA18<>0,AB18<>0),0,IF(AA18<>0,0,IF(AB18<>0,Q18/(AB18*1000),0))) -> 0 | E18: =IF(AB18<>0,R18/(AB18*1000),0) -> 0.04792358262 | F18: =IF(AND(AA18<>0,AB18<>0),0,IF(AA18<>0,0,IF(AB18<>0,SUM(D18:E18),0))) -> 0 | G18: =IF(AD18<>0,S18/AD18,0) -> 21286.76607 | I18: =IF(AA18<>0,V18/AA18,0) -> 11.11825243 | J18: 0 | K18: 0.04792358262 | L18: =IF(AND(AA18<>0,AB18<>0),0,IF(AA18<>0,0,IF(AB18<>0,SUM(J18:K18),0))) -> 0 | M18: =IF(AD18<>0,X18/AD18,0) -> 21286.76607 | N18: =MAX(N15:N17)+NoOne -> 2 | O18: Industrial - Firm | P18: =SUM(Q18:S18) -> 49773741.24 | Q18: =SUM(IslIntCos!G484,IslIntCos!I484:L484,IslIntCos!N484,IslIntCos!P484) -> 12874936.31 | R18: =SUM(IslIntCos!H484) -> 35621598.96 | S18: =SUM(IslIntCos!M484,IslIntCos!O484,IslIntCos!Q484:V484) -> 1277205.964 | U18: ='Rev to Cost'!H70 -> 49773741.24 | V18: 12874936.31 | W18: 35621598.96 | X18: 1277205.964 | Y18: =+Y17+1 -> 2 | Z18: Industrial - Firm | AA18: 1158000 | AB18: 743300 | AC18: 5 | AD18: =12*Customers!$D$30 -> 60 | AE18: ISLINTINDF
A19: =MAX(A16:A18)+NoOne -> 3 | B19: Industrial - Non-Firm | C19: =IF(AA19<>0,Q19/AA19,0) -> 0 | D19: =IF(AND(AA19<>0,AB19<>0),0,IF(AA19<>0,0,IF(AB19<>0,Q19/(AB19*1000),0))) -> 0 | E19: =IF(AB19<>0,R19/(AB19*1000),0) -> 0 | F19: =IF(AND(AA19<>0,AB19<>0),0,IF(AA19<>0,0,IF(AB19<>0,SUM(D19:E19),0))) -> 0 | G19: =IF(AD19<>0,S19/AD19,0) -> 0 | I19: =IF(AA19<>0,V19/AA19,0) -> 0 | J19: 0 | K19: 0 | L19: =IF(AND(AA19<>0,AB19<>0),0,IF(AA19<>0,0,IF(AB19<>0,SUM(J19:K19),0))) -> 0 | M19: =IF(AD19<>0,X19/AD19,0) -> 0 | N19: =MAX(N16:N18)+NoOne -> 3 | O19: Industrial - Non-Firm | P19: =SUM(Q19:S19) -> 0 | Q19: =SUM(IslIntCos!G485,IslIntCos!I485:L485,IslIntCos!N485,IslIntCos!P485) -> 0 | R19: =SUM(IslIntCos!H485) -> 0 | S19: =SUM(IslIntCos!M485,IslIntCos!O485,IslIntCos!Q485:V485) -> 0 | U19: ='Rev to Cost'!H71 -> 0 | V19: 0 | W19: 0 | X19: 0 | Y19: =+Y18+1 -> 3 | Z19: Industrial - Non-Firm | AA19: 0 | AB19: 0 | AC19: 0 | AD19: 0 | AE19: ISLINTINDNF
B20: Rural | J20: 0 | K20: 0 | O20: Rural | Z20: Rural
A21: =MAX(A18:A20)+NoOne -> 4 | B21: 1.1 Domestic | C21: =IF(AA21<>0,Q21/AA21,0) -> 0 | D21: =IF(AND(AA21<>0,AB21<>0),0,IF(AA21<>0,0,IF(AB21<>0,Q21/(AB21*1000),0))) -> 0.1254530273 | E21: =IF(AB21<>0,R21/(AB21*1000),0) -> 0.05308361582 | F21: =IF(AND(AA21<>0,AB21<>0),0,IF(AA21<>0,0,IF(AB21<>0,SUM(D21:E21),0))) -> 0.1785366431 | G21: =IF(AD21<>0,S21/AD21,0) -> 42.39085819 | I21: =IF(AA21<>0,V21/AA21,0) -> 0 | J21: 0 | K21: 0 | L21: =IF(AND(AA21<>0,AB21<>0),0,IF(AA21<>0,0,IF(AB21<>0,SUM(J21:K21),0))) -> 0 | M21: =IF(AD21<>0,X21/AD21,0) -> 0 | N21: =MAX(N18:N20)+NoOne -> 4 | O21: 1.1 Domestic | P21: =SUM(Q21:S21) -> 24451582.19 | Q21: =SUM(IslIntCos!G487,IslIntCos!I487:L487,IslIntCos!N487,IslIntCos!P487) -> 13103058.22 | R21: =SUM(IslIntCos!H487) -> 5544367.669 | S21: =SUM(IslIntCos!M487,IslIntCos!O487,IslIntCos!Q487:V487) -> 5804156.303 | U21: 0 | V21: =IF(P21<>0,$U21/$P21*Q21,0) -> 0 | W21: 0 | X21: 0 | Y21: =+Y19+1 -> 4 | Z21: 1.1 Domestic | AA21: 0 | AB21: 104445.9309 | AC21: 11410 | AD21: =12*Customers!$D32 -> 136920 | AE21: ISLINT1.1
A22: 5 | B22: 1.12 Domestic All Electric | C22: 0 | D22: 0.1121346015 | E22: 0.05317400641 | F22: 0.1653086079 | G22: 42.46304119 | I22: 0 | J22: 0 | K22: 0 | L22: 0 | M22: 0 | N22: 5 | O22: 1.12 Domestic All Electric | P22: 27851623.12 | Q22: =SUM(IslIntCos!G488,IslIntCos!I488:L488,IslIntCos!N488,IslIntCos!P488) -> 15944852.85 | R22: =SUM(IslIntCos!H488) -> 7561017.706 | S22: =SUM(IslIntCos!M488,IslIntCos!O488,IslIntCos!Q488:V488) -> 4345752.561 | U22: 0 | V22: 0 | W22: 0 | X22: 0 | Y22: =+Y21+1 -> 5 | Z22: 1.12 Domestic All Electric | AA22: 0 | AB22: 142193.8691 | AC22: 8528.5 | AD22: =12*Customers!$D33 -> 102342 | AE22: ISLINT1.12
A23: 6 | B23: 1.3 Special | C23: 0 | D23: 0.1673634019 | E23: 0.05264314649 | F23: 0.2200065484 | G23: 42.03911363 | I23: 0 | J23: 0 | K23: 0 | L23: 0 | M23: 0 | N23: 6 | O23: 1.3 Special | P23: 76406.72855 | Q23: =SUM(IslIntCos!G489,IslIntCos!I489:L489,IslIntCos!N489,IslIntCos!P489) -> 57740.37365 | R23: =SUM(IslIntCos!H489) -> 18161.88554 | S23: =SUM(IslIntCos!M489,IslIntCos!O489,IslIntCos!Q489:V489) -> 504.4693636 | U23: 0 | V23: 0 | W23: 0 | X23: 0 | Y23: 6 | Z23: 1.3 Special | AA23: 0 | AB23: 345 | AC23: 1 | AD23: =12*Customers!$D34 -> 12 | AE23: ISLINT1.3
A24: 7 | B24: 2.1 General Service 0-10 kW | C24: 54.28387765 | D24: 0 | E24: 0.0533303353 | F24: 0 | G24: 59.40113931 | I24: 0 | J24: 0 | K24: 0 | L24: 0 | M24: 0 | N24: 7 | O24: 2.1 General Service 0-10 kW | P24: 12752792.76 | Q24: =SUM(IslIntCos!G490,IslIntCos!I490:L490,IslIntCos!N490,IslIntCos!P490) -> 6783087.28 | R24: =SUM(IslIntCos!H490) -> 3932484.008 | S24: =SUM(IslIntCos!M490,IslIntCos!O490,IslIntCos!Q490:V490) -> 2037221.474 | U24: 0 | V24: =IF(P24<>0,$U24/$P24*Q24,0) -> 0 | W24: =IF(Q24<>0,$U24/$P24*R24,0) -> 0 | X24: =IF(R24<>0,$U24/$P24*S24,0) -> 0 | Y24: 7 | Z24: 2.1 General Service 0-10 kW | AA24: 124955.8354 | AB24: 73738.2202 | AC24: 2858 | AD24: =12*Customers!$D35 -> 34296 | AE24: ISLINT2.1
A25: 8 | B25: 2.2 General Service 10-100 kW | C25: 0 | D25: 0 | E25: 0 | F25: 0 | G25: 0 | I25: 0 | J25: 0 | K25: 0 | L25: 0 | M25: 0 | N25: 8 | O25: 2.2 General Service 10-100 kW | P25: 0 | Q25: =SUM(IslIntCos!G491,IslIntCos!I491:L491,IslIntCos!N491,IslIntCos!P491) -> 0 | R25: =SUM(IslIntCos!H491) -> 0 | S25: =SUM(IslIntCos!M491,IslIntCos!O491,IslIntCos!Q491:V491) -> 0 | U25: 0 | V25: =IF(P25<>0,$U25/$P25*Q25,0) -> 0 | W25: 0 | X25: 0 | Y25: 8 | Z25: 2.2 General Service 10-100 kW | AA25: 0 | AB25: 0 | AC25: 0 | AD25: =12*Customers!$D36 -> 0 | AE25: ISLINT2.2
A26: 9 | B26: 2.3 General Service 110-1,000 kVa | C26: 23.96589099 | D26: 0 | E26: 0.05346606643 | F26: 0 | G26: 75.88645505 | I26: 0 | J26: 0 | K26: 0 | L26: 0 | M26: 0 | N26: 9 | O26: 2.3 General Service 110-1,000 kVa | P26: 7392213.704 | Q26: =SUM(IslIntCos!G492,IslIntCos!I492:L492,IslIntCos!N492,IslIntCos!P492) -> 4350095.184 | R26: =SUM(IslIntCos!H492) -> 2956973.918 | S26: =SUM(IslIntCos!M492,IslIntCos!O492,IslIntCos!Q492:V492) -> 85144.60257 | U26: 0 | V26: 0 | W26: 0 | X26: 0 | Y26: 9 | Z26: 2.3 General Service 110-1,000 kVa | AA26: 181511.9324 | AB26: 55305.61935 | AC26: 93.5 | AD26: =12*Customers!$D37 -> 1122 | AE26: ISLINT2.3
A27: 10 | B27: 2.4 General Service Over 1,000 kVa | C27: 21.16176079 | D27: 0 | E27: 0.05263890037 | F27: 0 | G27: 75.89915064 | I27: 0 | J27: 0 | K27: 0 | L27: 0 | M27: 0 | N27: 10 | O27: 2.4 General Service Over 1,000 kVa | P27: 3930235.795 | Q27: =SUM(IslIntCos!G493,IslIntCos!I493:L493,IslIntCos!N493,IslIntCos!P493) -> 2101998.149 | R27: =SUM(IslIntCos!H493) -> 1820040.537 | S27: =SUM(IslIntCos!M493,IslIntCos!O493,IslIntCos!Q493:V493) -> 8197.10827 | U27: 0 | V27: 0 | W27: 0 | X27: 0 | Y27: 10 | Z27: 2.4 General Service Over 1,000 kVa | AA27: 99330.02126 | AB27: 34575.96045 | AC27: 9 | AD27: =12*Customers!$D38 -> 108 | AE27: ISLINT2.4
A28: 11 | B28: 4.1 Street and Area Lighting | C28: 0 | D28: 0.1308866443 | E28: 0.05339729836 | F28: 0.1842839427 | G28: 68.81580232 | I28: 0 | J28: 0 | K28: 0 | L28: 0 | M28: 0 | N28: 11 | O28: 4.1 Street and Area Lighting | P28: 1302972.555 | Q28: =SUM(IslIntCos!G494,IslIntCos!I494:L494,IslIntCos!N494,IslIntCos!P494) -> 366482.6041 | R28: =SUM(IslIntCos!H494) -> 149512.4354 | S28: =SUM(IslIntCos!M494,IslIntCos!O494,IslIntCos!Q494:V494) -> 786977.5153 | U28: 0 | V28: 0 | W28: 0 | X28: 0 | Y28: 11 | Z28: 4.1 Street and Area Lighting | AA28: 0 | AB28: 2800 | AC28: 953 | AD28: =12*Customers!$D39 -> 11436 | AE28: ISLINT4.1
N30: =MAX(N27:N29)+NoOne -> 12 | O30: Subtotal Rural | P30: =SUM(P21:P28) -> 77757826.86 | Q30: =SUM(Q21:Q28) -> 42707314.66 | R30: =SUM(R21:R28) -> 21982558.16 | S30: =SUM(S21:S28) -> 13067954.03 | Y30: =+Y28+1 -> 12 | Z30: Subtotal Rural | AA30: =SUM(AA21:AA28) -> 405797.789 | AB30: =SUM(AB21:AB28) -> 413404.6 | AC30: =SUM(AC21:AC28) -> 23853 | AD30: =SUM(AD21:AD28) -> 286236
N31: =MAX(N28:N30)+NoOne -> 13 | O31: Total Island Interconnected | P31: =SUM(P30,P17:P19) -> 602635176 | Q31: =SUM(Q30,Q17:Q19) -> 247345312.7 | R31: =SUM(R30,R17:R19) -> 337314855.8 | S31: =SUM(S30,S17:S19) -> 17975007.47 | Y31: =+Y30+1 -> 13 | Z31: Total Island Interconnected | AA31: =SUM(AA30,AA17:AA19) -> 16722269.79 | AB31: =SUM(AB30,AB17:AB19) -> 6990304.6 | AC31: =SUM(AC30,AC17:AC19) -> 23859 | AD31: =SUM(AD30,AD17:AD19) -> 286308
M37: Schedule 1.3 | X37: Schedule 1.3.1 | AD37: Schedule 1.3.2
M38: Page 2 of 3 | X38: Page 2 of 3 | AD38: Page 2 of 3
A40: =+A5 -> NEWFOUNDLAND AND LABRADOR HYDRO | N40: NEWFOUNDLAND & LABRADOR HYDRO | Y40: NEWFOUNDLAND & LABRADOR HYDRO
A41: =RunName -> 2019 Test Year Cost of Service Study | N41: =RunName -> 2019 Test Year Cost of Service Study | Y41: =RunName -> 2019 Test Year Cost of Service Study
A42: Unit Demand, Energy & Customer Amounts | N42: Total Demand, Energy & Customer Amounts | Y42: Demands, Sales, & Number of Bills
B45: =MAX(A45)+NoOne -> 1 | C45: 2 | D45: 3 | E45: 4 | F45: 5 | G45: 6 | I45: =MAX(G45)+NoOne -> 7 | J45: =MAX(I45)+NoOne -> 8 | K45: =MAX(J45)+NoOne -> 9 | L45: =MAX(K45)+NoOne -> 10 | M45: =MAX(L45)+NoOne -> 11 | O45: =MAX(N45)+NoOne -> 1 | P45: =MAX(O45)+NoOne -> 2 | Q45: =MAX(P45)+NoOne -> 3 | R45: =MAX(Q45)+NoOne -> 4 | S45: =MAX(R45)+NoOne -> 5 | U45: =MAX(S45)+NoOne -> 6 | V45: =MAX(U45)+NoOne -> 7 | W45: =MAX(V45)+NoOne -> 8 | X45: =MAX(W45)+NoOne -> 9 | Z45: =MAX(Y45)+NoOne -> 1 | AA45: =MAX(Z45)+NoOne -> 2 | AB45: =MAX(AA45)+NoOne -> 3 | AC45: =MAX(AB45)+NoOne -> 4 | AD45: =MAX(AC45)+NoOne -> 5
B47: Rate Class | C47: Before Deficit and Revenue Credit Allocation | I47: After Deficit and Revenue Credit Allocation | AA47: Units
A48: Line | C48: Demand | F48: Non-Demand | I48: Demand | L48: Non-Demand | N48: Line | O48: Rate Class | P48: Before Deficit and Revenue Credit Allocation | U48: After Deficit and Revenue Credit Allocation | Y48: Line | AA48: Billing
A49: No. | C49: Demand | D49: Non-Demand | E49: Energy | F49: Demand & Energy | G49: Customer | I49: Demand | J49: Non-Demand | K49: Energy | L49: Demand & Energy | M49: Customer | N49: No. | P49: Total | Q49: Demand | R49: Energy | S49: Customer | U49: Total | V49: Demand | W49: Energy | X49: Customer | Y49: No. | Z49: Rate Class | AA49: Demands | AB49: Sales | AC49: Customers | AD49: Bills
C50: ($/kW) | D50: ($/kWh) | E50: ($/kWh) | F50: ($/kWh) | G50: ($/Bill) | I50: ($/kW) | J50: ($/kWh) | K50: ($/kWh) | L50: ($/kWh) | M50: ($/Bill) | P50: ($) | Q50: ($) | R50: ($) | S50: ($) | U50: ($) | V50: ($) | W50: ($) | X50: ($) | AA50: (kW) | AB50: (MWh) | AD50: (Total No)
B53: Isolated Systems: | O53: =+B53 -> Isolated Systems: | Z53: =+B53 -> Isolated Systems:
A54: =MAX(A51:A53)+NoOne -> 1 | B54: 1.2 Domestic Diesel | C54: =IF(AA54<>0,Q54/AA54,0) -> 0 | D54: =IF(AND(AA54<>0,AB54<>0),0,IF(AA54<>0,0,IF(AB54<>0,Q54/(AB54*1000),0))) -> 0.4028897686 | E54: =IF(AB54<>0,R54/(AB54*1000),0) -> 0.7274982348 | F54: =IF(AND(AA54<>0,AB54<>0),0,IF(AA54<>0,0,IF(AB54<>0,SUM(D54:E54),0))) -> 1.130388003 | G54: =IF(AD54<>0,S54/AD54,0) -> 64.04273447 | N54: =MAX(N51:N53)+NoOne -> 1 | O54: 1.2 Domestic Diesel | P54: =SUM(Q54:S54) -> 35064037.71 | Q54: =SUM(Q66,Q75) -> 11740610.75 | R54: 21200026.06 | S54: 2123400.904 | Y54: =MAX(Y51:Y53)+NoOne -> 1 | Z54: =+O54 -> 1.2 Domestic Diesel | AA54: =SUM(AA66,AA75) -> 0 | AB54: 29141 | AC54: 2789 | AD54: 33156
A55: 2 | B55: 2.1 General Service 0-10 kW | C55: 0 | D55: 0.2426129006 | E55: 0.7242902243 | F55: 0.966903125 | G55: 68.32719891 | N55: 2 | O55: 2.1 General Service 0-10 kW | P55: 5326409.989 | Q55: 1224467.309 | R55: 3655492.762 | S55: 446449.9177 | Y55: 2 | Z55: 2.1 General Service 0-10 kW | AA55: 0 | AB55: 5047 | AC55: 544.5 | AD55: 6534
A56: 3 | B56: 2.2 GS 10-100 kW | C56: 74.03890374 | D56: 0 | E56: 0.715654311 | F56: 0 | G56: 86.85269479 | N56: 3 | O56: 2.2 GS 10-100 kW | P56: 11350455.89 | Q56: 2960657.278 | R56: 8240759.391 | S56: 149039.2243 | Y56: 3 | Z56: 2.2 GS 10-100 kW | AA56: 39987.85947 | AB56: 11515 | AC56: 143 | AD56: 1716
A57: 4 | B57: 2.3 GS 110-1,000 kVa | C57: 14.2312895 | D57: 0 | E57: 0.7030622431 | F57: 0 | G57: 106.012122 | N57: 4 | O57: 2.3 GS 110-1,000 kVa | P57: 1605874.357 | Q57: 135738.0393 | R57: 1463775.59 | S57: 6360.727321 | Y57: 4 | Z57: 2.3 GS 110-1,000 kVa | AA57: 9538 | AB57: 2082 | AC57: 5 | AD57: 60
A58: 5 | B58: 2.4 General Service Over 1,000 kVa | C58: 29.28518152 | D58: 0 | E58: 0.7023613553 | F58: 0 | G58: 105.9064378 | N58: 5 | O58: 2.4 General Service Over 1,000 kVa | P58: 1850536.263 | Q58: 179752.4442 | R58: 1669512.941 | S58: 1270.877253 | Y58: 5 | Z58: 2.4 General Service Over 1,000 kVa | AA58: 6138 | AB58: 2377 | AC58: 1 | AD58: 12
A59: 6 | B59: Subtotal Metered Demand Classes | C59: 58.85592183 | D59: 0 | E59: 0.7120350521 | F59: 0 | G59: 87.62350606 | N59: 6 | O59: Subtotal Metered Demand Classes | P59: 14806866.51 | Q59: =SUM(Q56:Q58) -> 3276147.761 | R59: =SUM(R56:R58) -> 11374047.92 | S59: =SUM(S56:S58) -> 156670.8288 | Y59: 6 | Z59: Subtotal Metered Demand Classes | AA59: =SUM(AA56:AA58) -> 55663.85947 | AB59: =SUM(AB56:AB58) -> 15974 | AC59: =SUM(AC56:AC58) -> 149 | AD59: =SUM(AD56:AD58) -> 1788
A61: =MAX(A58:A60)+NoOne -> 7 | B61: 4.1 Street and Area Lighting | C61: =IF(AA61<>0,Q61/AA61,0) -> 0 | D61: =IF(AND(AA61<>0,AB61<>0),0,IF(AA61<>0,0,IF(AB61<>0,Q61/(AB61*1000),0))) -> 0.4831535274 | E61: =IF(AB61<>0,R61/(AB61*1000),0) -> 0.7393952626 | F61: =IF(AND(AA61<>0,AB61<>0),0,IF(AA61<>0,0,IF(AB61<>0,SUM(D61:E61),0))) -> 1.22254879 | G61: =IF(AD61<>0,S61/AD61,0) -> 99.87245706 | N61: =MAX(N58:N60)+NoOne -> 7 | O61: =+B61 -> 4.1 Street and Area Lighting | P61: =SUM(Q61:S61) -> 652167.3239 | Q61: =SUM(Q71,Q80) -> 197112.1446 | R61: =SUM(R71,R80) -> 301651.0853 | S61: =SUM(S71,S80) -> 153404.094 | Y61: =MAX(Y58:Y60)+NoOne -> 7 | Z61: =+O61 -> 4.1 Street and Area Lighting | AA61: =SUM(AA71,AA80) -> 0 | AB61: =SUM(AB71,AB80) -> 407.97 | AC61: =SUM(AC71,AC80) -> 133 | AD61: =SUM(AD71,AD80) -> 1536
N62: =MAX(N59:N61)+NoOne -> 8 | O62: Total Isolated Systems | P62: =SUM(P54:P55,P59,P61) -> 55849481.54 | Q62: =SUM(Q54:Q55,Q59,Q61) -> 16438337.96 | R62: =SUM(R54:R55,R59,R61) -> 36531217.83 | S62: =SUM(S54:S55,S59,S61) -> 2879925.745 | Y62: =MAX(Y59:Y61)+NoOne -> 8 | Z62: =+O62 -> Total Isolated Systems | AA62: =SUM(AA54:AA55,AA59,AA61) -> 55663.85947 | AB62: =SUM(AB54:AB55,AB59,AB61) -> 50569.97 | AC62: =SUM(AC54:AC55,AC59,AC61) -> 3615.5 | AD62: =SUM(AD54:AD55,AD59,AD61) -> 43014
B65: Island Isolated | O65: Island Isolated | Z65: Island Isolated
A66: =MAX(A61:A65)+NoOne -> 8 | B66: 1.2 Domestic Diesel | C66: =IF(AA66<>0,Q66/AA66,0) -> 0 | D66: =IF(AND(AA66<>0,AB66<>0),0,IF(AA66<>0,0,IF(AB66<>0,Q66/(AB66*1000),0))) -> 0.8048551404 | E66: =IF(AB66<>0,R66/(AB66*1000),0) -> 0.833916788 | F66: =IF(AND(AA66<>0,AB66<>0),0,IF(AA66<>0,0,IF(AB66<>0,SUM(D66:E66),0))) -> 1.638771928 | G66: =IF(AD66<>0,S66/AD66,0) -> 86.26018023 | I66: =IF(AA66<>0,V66/AA66,0) -> 0 | J66: =IF(AND(AA66<>0,AB66<>0),0,IF(AA66<>0,0,IF(AB66<>0,W66/(AB66*1000),0))) -> 0 | K66: =IF(AB66<>0,X66/(AB66*1000),0) -> 0 | L66: =IF(AND(AA66<>0,AB66<>0),0,IF(AA66<>0,0,IF(AB66<>0,SUM(J66:K66),0))) -> 0 | M66: =IF(AD66<>0,X66/AD66,0) -> 0 | N66: =MAX(N62:N65)+NoOne -> 9 | O66: =+B66 -> 1.2 Domestic Diesel | P66: =SUM(Q66:S66) -> 9635707.642 | Q66: =SUM(IslIsoCos!G420,IslIsoCos!I420:K420,IslIsoCos!M420,IslIsoCos!O420)+SUM(IslIsoCos!G422,IslIsoCos!I422:K422,IslIsoCos!M422,IslIsoCos!O422) -> 4386460.515 | R66: =SUM(IslIsoCos!H420)+SUM(IslIsoCos!H422) -> 4544846.495 | S66: =SUM(IslIsoCos!L420,IslIsoCos!N420,IslIsoCos!P420:U420)+SUM(IslIsoCos!L422,IslIsoCos!N422,IslIsoCos!P422:U422) -> 704400.6317 | U66: 0 | V66: 0 | W66: 0 | X66: 0 | Y66: =MAX(Y62:Y65)+NoOne -> 9 | Z66: =+O66 -> 1.2 Domestic Diesel | AA66: 0 | AB66: 5450 | AC66: 680.5 | AD66: =12*Customers!$D57 -> 8166 | AE66: ISLISO1.2 | AF66: ISLISO1.23
A67: =MAX(A64:A66)+NoOne -> 9 | B67: 2.1 General Service 0-10 kW | C67: 0 | D67: 0.3798545862 | E67: 0.8367154494 | F67: 1.216570036 | G67: 98.2653176 | I67: 0 | J67: 0 | K67: 0 | L67: 0 | M67: 0 | N67: =MAX(N64:N66)+NoOne -> 10 | O67: 2.1 General Service 0-10 kW | P67: 980765.6262 | Q67: =SUM(IslIsoCos!G423,IslIsoCos!I423:K423,IslIsoCos!M423,IslIsoCos!O423) -> 272355.7383 | R67: =SUM(IslIsoCos!H423) -> 599924.9772 | S67: =SUM(IslIsoCos!L423,IslIsoCos!N423,IslIsoCos!P423:U423)+SUM(IslIsoCos!L422,IslIsoCos!N422,IslIsoCos!P422:U422) -> 108484.9106 | U67: 0 | V67: 0 | W67: 0 | X67: 0 | Y67: =MAX(Y64:Y66)+NoOne -> 10 | Z67: 2.1 General Service 0-10 kW | AA67: 0 | AB67: 717 | AC67: 92 | AD67: =12*Customers!$D60 -> 1104 | AE67: ISLISO2.1
A68: =MAX(A65:A67)+NoOne -> 10 | B68: 2.2 GS 10-100 kW | C68: 176.7532714 | D68: 0 | E68: 0.8401944991 | F68: 0 | G68: 137.4224234 | I68: 0 | J68: 0 | K68: 0 | L68: 0 | M68: 0 | N68: 11 | O68: 2.2 GS 10-100 kW | P68: 1247182.096 | Q68: =SUM(IslIsoCos!G424,IslIsoCos!I424:K424,IslIsoCos!M424,IslIsoCos!O424) -> 523341.5967 | R68: =SUM(IslIsoCos!H424) -> 702402.6013 | S68: =SUM(IslIsoCos!L424,IslIsoCos!N424,IslIsoCos!P424:U424) -> 21437.89805 | U68: 0 | V68: 0 | W68: 0 | X68: 0 | Y68: 11 | Z68: 2.2 GS 10-100 kW | AA68: 2960.859466 | AB68: 836 | AC68: 13 | AD68: =12*Customers!$D61 -> 156 | AE68: ISLISO2.2
A69: =MAX(A66:A68)+NoOne -> 11 | B69: 2.3 GS 110-1,000 kVa | C69: 0 | D69: 0 | E69: 0 | F69: 0 | G69: 0 | I69: 0 | J69: 0 | K69: 0 | L69: 0 | M69: 0 | N69: 12 | O69: 2.3 GS 110-1,000 kVa | P69: 0 | Q69: =SUM(IslIsoCos!G425,IslIsoCos!I425:K425,IslIsoCos!M425,IslIsoCos!O425) -> 0 | R69: =SUM(IslIsoCos!H425) -> 0 | S69: =SUM(IslIsoCos!L425,IslIsoCos!N425,IslIsoCos!P425:U425) -> 0 | U69: 0 | V69: 0 | W69: 0 | X69: 0 | Y69: 12 | Z69: 2.3 GS 110-1,000 kVa | AA69: 0 | AB69: 0 | AC69: 0 | AD69: =12*Customers!$D62 -> 0 | AE69: ISLISO2.3
A70: =MAX(A67:A69)+NoOne -> 12 | B70: 2.4 General Service Over 1,000 kVa | C70: 0 | D70: 0 | E70: 0 | F70: 0 | G70: 0 | I70: 0 | J70: 0 | K70: 0 | L70: 0 | M70: 0 | N70: 13 | O70: 2.4 General Service Over 1,000 kVa | P70: 0 | Q70: =SUM(IslIsoCos!G426,IslIsoCos!I426:K426,IslIsoCos!M426,IslIsoCos!O426) -> 0 | R70: =SUM(IslIsoCos!H426) -> 0 | S70: =SUM(IslIsoCos!L426,IslIsoCos!N426,IslIsoCos!P426:U426) -> 0 | U70: 0 | V70: 0 | W70: 0 | X70: 0 | Y70: 13 | Z70: 2.4 General Service Over 1,000 kVa | AA70: 0 | AB70: 0 | AC70: 0 | AD70: =12*Customers!$D63 -> 0 | AE70: ISLISO2.4
A71: =MAX(A68:A70)+NoOne -> 13 | B71: 4.1 Street and Area Lighting | C71: 0 | D71: 0.7877664939 | E71: 0.8357501471 | F71: 1.623516641 | G71: 129.7551198 | I71: 0 | J71: 0 | K71: 0 | L71: 0 | M71: 0 | N71: 14 | O71: 4.1 Street and Area Lighting | P71: 231212.3931 | Q71: =SUM(IslIsoCos!G429,IslIsoCos!I429:K429,IslIsoCos!M429,IslIsoCos!O429)+SUM(IslIsoCos!G430,IslIsoCos!I430:K430,IslIsoCos!M430,IslIsoCos!O430) -> 83479.61536 | R71: =SUM(IslIsoCos!H429)+SUM(IslIsoCos!H430) -> 88564.44308 | S71: =SUM(IslIsoCos!L429,IslIsoCos!N429,IslIsoCos!P429:U429)+SUM(IslIsoCos!L430,IslIsoCos!N430,IslIsoCos!P430:U430) -> 59168.33462 | U71: 0 | V71: 0 | W71: 0 | X71: 0 | Y71: 14 | Z71: 4.1 Street and Area Lighting | AA71: 0 | AB71: 105.97 | AC71: 41 | AD71: =12*Customers!$D66 -> 456 | AE71: ISLISO4.1 | AF71: ISLISO4.1G
N72: 15 | O72: Total Island Isolated | P72: =SUM(P66:P71) -> 12094867.76 | Q72: =SUM(Q66:Q71) -> 5265637.466 | R72: =SUM(R66:R71) -> 5935738.516 | S72: =SUM(S66:S71) -> 893491.775 | Y72: 15 | Z72: Total Island Isolated | AA72: =SUM(AA66:AA71) -> 2960.859466 | AB72: =SUM(AB66:AB71) -> 7108.97 | AC72: =SUM(AC66:AC71) -> 826.5 | AD72: =SUM(AD66:AD71) -> 9882
B74: Labrador Isolated | O74: Labrador Isolated | Z74: Labrador Isolated
A75: =MAX(A71:A74)+NoOne -> 14 | B75: 1.2 Domestic Diesel | C75: =IF(AA75<>0,Q75/AA75,0) -> 0 | D75: =IF(AND(AA75<>0,AB75<>0),0,IF(AA75<>0,0,IF(AB75<>0,Q75/(AB75*1000),0))) -> 0.3104195784 | E75: =IF(AB75<>0,R75/(AB75*1000),0) -> 0.7030171612 | F75: =IF(AND(AA75<>0,AB75<>0),0,IF(AA75<>0,0,IF(AB75<>0,SUM(D75:E75),0))) -> 1.01343674 | G75: =IF(AD75<>0,S75/AD75,0) -> 56.78272399 | I75: =IF(AA75<>0,V75/AA75,0) -> 0 | J75: =IF(AND(AA75<>0,AB75<>0),0,IF(AA75<>0,0,IF(AB75<>0,W75/(AB75*1000),0))) -> 0 | K75: =IF(AB75<>0,X75/(AB75*1000),0) -> 0 | L75: =IF(AND(AA75<>0,AB75<>0),0,IF(AA75<>0,0,IF(AB75<>0,SUM(J75:K75),0))) -> 0 | M75: =IF(AD75<>0,X75/AD75,0) -> 0 | N75: =MAX(N72:N74)+NoOne -> 16 | O75: =+B75 -> 1.2 Domestic Diesel | P75: =SUM(Q75:S75) -> 25428330.07 | Q75: =SUM(LabIsoCos!G421,LabIsoCos!I421:K421,LabIsoCos!M421,LabIsoCos!O421)+SUM(LabIsoCos!G422,LabIsoCos!I422:K422,LabIsoCos!M422,LabIsoCos!O422)+SUM(LabIsoCos!G423,LabIsoCos!I423:K423,LabIsoCos!M423,LabIsoCos!O423) -> 7354150.231 | R75: =SUM(LabIsoCos!H421)+SUM(LabIsoCos!H422)+SUM(LabIsoCos!H423) -> 16655179.57 | S75: =SUM(LabIsoCos!L421,LabIsoCos!N421,LabIsoCos!P421:U421)+SUM(LabIsoCos!L422,LabIsoCos!N422,LabIsoCos!P422:U422)+SUM(LabIsoCos!L423,LabIsoCos!N423,LabIsoCos!P423:U423) -> 1419000.272 | U75: 0 | V75: 0 | W75: 0 | X75: 0 | Y75: =MAX(Y72:Y74)+NoOne -> 16 | Z75: =+O75 -> 1.2 Domestic Diesel | AA75: 0 | AB75: 23691 | AC75: 2108.5 | AD75: =12*Customers!$D83 -> 24990 | AE75: LABISO1.2 | AF75: LABISO1.23 | AG75: LABISO1.2G
A76: =MAX(A73:A75)+NoOne -> 15 | B76: 2.1 General Service 0-10 kW | C76: 0 | D76: 0.2198871989 | E76: 0.7056738534 | F76: 0.9255610522 | G76: 62.24033279 | I76: 0 | J76: 0 | K76: 0 | L76: 0 | M76: 0 | N76: 17 | O76: 2.1 General Service 0-10 kW | P76: 4345644.363 | Q76: =SUM(LabIsoCos!G424,LabIsoCos!I424:K424,LabIsoCos!M424,LabIsoCos!O424) -> 952111.5711 | R76: =SUM(LabIsoCos!H424) -> 3055567.785 | S76: =SUM(LabIsoCos!L424,LabIsoCos!N424,LabIsoCos!P424:U424) -> 337965.0071 | U76: 0 | V76: 0 | W76: 0 | X76: 0 | Y76: 17 | Z76: 2.1 General Service 0-10 kW | AA76: 0 | AB76: 4330 | AC76: 452.5 | AD76: =12*Customers!$D86 -> 5430 | AE76: LABISO2.1
A77: =MAX(A74:A76)+NoOne -> 16 | B77: 2.2 GS 10-100 kW | C77: 65.82536206 | D77: 0 | E77: 0.7059047467 | F77: 0 | G77: 81.79572193 | I77: 0 | J77: 0 | K77: 0 | L77: 0 | M77: 0 | N77: 18 | O77: 2.2 GS 10-100 kW | P77: 10103273.8 | Q77: =SUM(LabIsoCos!G425,LabIsoCos!I425:K425,LabIsoCos!M425,LabIsoCos!O425) -> 2437315.681 | R77: =SUM(LabIsoCos!H425) -> 7538356.79 | S77: =SUM(LabIsoCos!L425,LabIsoCos!N425,LabIsoCos!P425:U425) -> 127601.3262 | U77: 0 | V77: 0 | W77: 0 | X77: 0 | Y77: 18 | Z77: 2.2 GS 10-100 kW | AA77: 37027 | AB77: 10679 | AC77: 130 | AD77: =12*Customers!$D87 -> 1560 | AE77: LABISO2.2
A78: =MAX(A75:A77)+NoOne -> 17 | B78: 2.3 GS 110-1,000 kVa | C78: 14.2312895 | D78: 0 | E78: 0.7030622431 | F78: 0 | G78: 106.012122 | I78: 0 | J78: 0 | K78: 0 | L78: 0 | M78: 0 | N78: 19 | O78: 2.3 GS 110-1,000 kVa | P78: 1605874.357 | Q78: =SUM(LabIsoCos!G426,LabIsoCos!I426:K426,LabIsoCos!M426,LabIsoCos!O426) -> 135738.0393 | R78: =SUM(LabIsoCos!H426) -> 1463775.59 | S78: =SUM(LabIsoCos!L426,LabIsoCos!N426,LabIsoCos!P426:U426) -> 6360.727321 | U78: 0 | V78: 0 | W78: 0 | X78: 0 | Y78: 19 | Z78: 2.3 GS 110-1,000 kVa | AA78: 9538 | AB78: 2082 | AC78: 5 | AD78: =12*Customers!$D88 -> 60 | AE78: LABISO2.3
A79: =MAX(A76:A78)+NoOne -> 18 | B79: 2.4 General Service Over 1,000 kVa | C79: 29.28518152 | D79: 0 | E79: 0.7023613553 | F79: 0 | G79: 105.9064378 | I79: 0 | J79: 0 | K79: 0 | L79: 0 | M79: 0 | N79: 20 | O79: 2.4 General Service Over 1,000 kVa | P79: 1850536.263 | Q79: =SUM(LabIsoCos!G427,LabIsoCos!I427:K427,LabIsoCos!M427,LabIsoCos!O427) -> 179752.4442 | R79: =SUM(LabIsoCos!H427) -> 1669512.941 | S79: =SUM(LabIsoCos!L427,LabIsoCos!N427,LabIsoCos!P427:U427) -> 1270.877253 | U79: 0 | V79: 0 | W79: 0 | X79: 0 | Y79: 20 | Z79: 2.4 General Service Over 1,000 kVa | AA79: 6138 | AB79: 2377 | AC79: 1 | AD79: =12*Customers!$D89 -> 12 | AE79: LABISO2.4
A80: =MAX(A77:A79)+NoOne -> 19 | B80: 4.1 Street and Area Lighting | C80: 0 | D80: 0.376266653 | E80: 0.7055849079 | F80: 1.081851561 | G80: 87.2553328 | I80: 0 | J80: 0 | K80: 0 | L80: 0 | M80: 0 | N80: 21 | O80: 4.1 Street and Area Lighting | P80: 420954.9308 | Q80: =SUM(LabIsoCos!G430,LabIsoCos!I430:K430,LabIsoCos!M430,LabIsoCos!O430)+SUM(LabIsoCos!G431,LabIsoCos!I431:K431,LabIsoCos!M431,LabIsoCos!O431) -> 113632.5292 | R80: =SUM(LabIsoCos!H430)+SUM(LabIsoCos!H431) -> 213086.6422 | S80: =SUM(LabIsoCos!L430,LabIsoCos!N430,LabIsoCos!P430:U430)+SUM(LabIsoCos!L431,LabIsoCos!N431,LabIsoCos!P431:U431) -> 94235.75943 | U80: 0 | V80: 0 | W80: 0 | X80: 0 | Y80: 21 | Z80: 4.1 Street and Area Lighting | AA80: 0 | AB80: 302 | AC80: 92 | AD80: =12*Customers!$D92 -> 1080 | AE80: LABISO4.1 | AF80: LABISO4.1G
N81: 22 | O81: Total Labrador Isolated | P81: =SUM(P75:P80) -> 43754613.78 | Q81: =SUM(Q75:Q80) -> 11172700.5 | R81: =SUM(R75:R80) -> 30595479.31 | S81: =SUM(S75:S80) -> 1986433.97 | Y81: 22 | Z81: Total Labrador Isolated | AA81: =SUM(AA75:AA80) -> 52703 | AB81: =SUM(AB75:AB80) -> 43461 | AC81: =SUM(AC75:AC80) -> 2789 | AD81: =SUM(AD75:AD80) -> 33132
M84: Schedule 1.3 | X84: Schedule 1.3.1 | AD84: Schedule 1.3.2
M85: Page 3 of 3 | X85: Page 3 of 3 | AD85: Page 3 of 3
A87: =+A5 -> NEWFOUNDLAND AND LABRADOR HYDRO | N87: NEWFOUNDLAND & LABRADOR HYDRO | Y87: NEWFOUNDLAND & LABRADOR HYDRO
A88: =RunName -> 2019 Test Year Cost of Service Study | N88: =RunName -> 2019 Test Year Cost of Service Study | Y88: =RunName -> 2019 Test Year Cost of Service Study
A89: Unit Demand, Energy & Customer Amounts | N89: Total Demand, Energy & Customer Amounts | Y89: Demands, Sales, & Number of Bills
B92: =MAX(A92)+NoOne -> 1 | C92: 2 | D92: 3 | E92: 4 | F92: 5 | G92: 6 | I92: =MAX(G92)+NoOne -> 7 | J92: =MAX(I92)+NoOne -> 8 | K92: =MAX(J92)+NoOne -> 9 | L92: =MAX(K92)+NoOne -> 10 | M92: =MAX(L92)+NoOne -> 11 | O92: =MAX(N92)+NoOne -> 1 | P92: =MAX(O92)+NoOne -> 2 | Q92: =MAX(P92)+NoOne -> 3 | R92: =MAX(Q92)+NoOne -> 4 | S92: =MAX(R92)+NoOne -> 5 | U92: =MAX(S92)+NoOne -> 6 | V92: =MAX(U92)+NoOne -> 7 | W92: =MAX(V92)+NoOne -> 8 | X92: =MAX(W92)+NoOne -> 9 | Z92: =MAX(Y92)+NoOne -> 1 | AA92: =MAX(Z92)+NoOne -> 2 | AB92: =MAX(AA92)+NoOne -> 3 | AC92: =MAX(AB92)+NoOne -> 4 | AD92: =MAX(AC92)+NoOne -> 5
B94: Rate Class | C94: Before Deficit and Revenue Credit Allocation | I94: After Deficit and Revenue Credit Allocation | AA94: Units
A95: Line | C95: Demand | F95: Non-Demand | I95: Demand | L95: Non-Demand | N95: Line | O95: Rate Class | P95: Before Deficit and Revenue Credit Allocation | U95: After Deficit and Revenue Credit Allocation | Y95: Line | AA95: Billing
A96: No. | C96: Demand | D96: Non-Demand | E96: Energy | F96: Demand & Energy | G96: Customer | I96: Demand | J96: Non-Demand | K96: Energy | L96: Demand & Energy | M96: Customer | N96: No. | P96: Total | Q96: Demand | R96: Energy | S96: Customer | U96: Total | V96: Demand | W96: Energy | X96: Customer | Y96: No. | Z96: Rate Class | AA96: Demands | AB96: Sales | AC96: Customers | AD96: Bills
C97: ($/kW) | D97: ($/kWh) | E97: ($/kWh) | F97: ($/kWh) | G97: ($/Bill) | I97: ($/kW) | J97: ($/kWh) | K97: ($/kWh) | L97: ($/kWh) | M97: ($/Bill) | P97: ($) | Q97: ($) | R97: ($) | S97: ($) | U97: ($) | V97: ($) | W97: ($) | X97: ($) | AA97: (kW) | AB97: (MWh) | AD97: (Total No)
B100: L'Anse au Loup | O100: L'Anse au Loup | Z100: =+O100 -> L'Anse au Loup
A101: =MAX(A98:A100)+NoOne -> 1 | B101: 1.1 Domestic | C101: =IF(AA101<>0,Q101/AA101,0) -> 0 | D101: =IF(AND(AA101<>0,AB101<>0),0,IF(AA101<>0,0,IF(AB101<>0,Q101/(AB101*1000),0))) -> 0.1374201589 | E101: =IF(AB101<>0,R101/(AB101*1000),0) -> 0.1778318448 | F101: =IF(AND(AA101<>0,AB101<>0),0,IF(AA101<>0,0,IF(AB101<>0,SUM(D101:E101),0))) -> 0.3152520037 | G101: =IF(AD101<>0,S101/AD101,0) -> 48.0840941 | I101: =IF(AA101<>0,V101/AA101,0) -> 0 | J101: =IF(AND(AA101<>0,AB101<>0),0,IF(AA101<>0,0,IF(AB101<>0,W101/(AB101*1000),0))) -> 0 | K101: =IF(AB101<>0,X101/(AB101*1000),0) -> 0 | L101: =IF(AND(AA101<>0,AB101<>0),0,IF(AA101<>0,0,IF(AB101<>0,SUM(J101:K101),0))) -> 0 | M101: =IF(AD101<>0,X101/AD101,0) -> 0 | N101: =MAX(N98:N100)+NoOne -> 1 | O101: =+B101 -> 1.1 Domestic | P101: =SUM(Q101:S101) -> 1603999.32 | Q101: =SUM(LALCos!G395,LALCos!I395:K395,LALCos!M395,LALCos!O395) -> 601350.6153 | R101: =SUM(LALCos!H395) -> 778192.153 | S101: =SUM(LALCos!L395,LALCos!N395,LALCos!P395:U395) -> 224456.5513 | U101: 0 | V101: 0 | W101: 0 | X101: 0 | Y101: =MAX(Y98:Y100)+NoOne -> 1 | Z101: 1.1 Domestic | AA101: 0 | AB101: 4376 | AC101: 389 | AD101: =12*Customers!$D110 -> 4668 | AE101: LAL1.2
A102: 2 | B102: 1.12 Domestic All Electric | C102: 0 | D102: 0.1176877478 | E102: 0.1779056636 | F102: 0.2955934114 | G102: 48.10405401 | I102: 0 | J102: 0 | K102: 0 | L102: 0 | M102: 0 | N102: 2 | O102: 1.12 Domestic All Electric | P102: 3616545.656 | Q102: =SUM(LALCos!G396,LALCos!I396:K396,LALCos!M396,LALCos!O396) -> 1341758.012 | R102: =SUM(LALCos!H396) -> 2028302.471 | S102: =SUM(LALCos!L396,LALCos!N396,LALCos!P396:U396) -> 246485.1728 | U102: 0 | V102: 0 | W102: 0 | X102: 0 | Y102: 2 | Z102: 1.12 Domestic All Electric | AA102: 0 | AB102: 11401 | AC102: 427 | AD102: =12*Customers!$D111 -> 5124 | AE102: LAL1.12
A103: 3 | B103: 2.1 General Service 0-10 kW | C103: 34.26655768 | D103: 0 | E103: 0.1782820708 | F103: 0 | G103: 67.98016237 | I103: 0 | J103: 0 | K103: 0 | L103: 0 | M103: 0 | N103: 3 | O103: 2.1 General Service 0-10 kW | P103: 1826265.147 | Q103: =SUM(LALCos!G397,LALCos!I397:K397,LALCos!M397,LALCos!O397) -> 608806.8756 | R103: =SUM(LALCos!H397) -> 1155460.363 | S103: =SUM(LALCos!L397,LALCos!N397,LALCos!P397:U397) -> 61997.90808 | U103: 0 | V103: 0 | W103: 0 | X103: 0 | Y103: 3 | Z103: 2.1 General Service 0-10 kW | AA103: 17766.79412 | AB103: 6481.08 | AC103: 76 | AD103: =12*Customers!$D112 -> 912 | AE103: LAL2.1
A104: 4 | B104: 2.2 General Service 10-100 kW | C104: 0 | D104: 0 | E104: 0 | F104: 0 | G104: 0 | I104: 0 | J104: 0 | K104: 0 | L104: 0 | M104: 0 | N104: 4 | O104: 2.2 General Service 10-100 kW | P104: 0 | Q104: =SUM(LALCos!G398,LALCos!I398:K398,LALCos!M398,LALCos!O398) -> 0 | R104: =SUM(LALCos!H398) -> 0 | S104: =SUM(LALCos!L398,LALCos!N398,LALCos!P398:U398) -> 0 | U104: 0 | V104: 0 | W104: 0 | X104: 0 | Y104: 4 | Z104: 2.2 General Service 10-100 kW | AA104: 0 | AB104: 0 | AC104: 0 | AD104: =12*Customers!$D113 -> 0 | AE104: LAL2.2
A105: 5 | B105: 2.3 General Service 110-1,000 kVa | C105: 12.28211699 | D105: 0 | E105: 0.1785423175 | F105: 0 | G105: 87.24797254 | I105: 0 | J105: 0 | K105: 0 | L105: 0 | M105: 0 | N105: 5 | O105: 2.3 General Service 110-1,000 kVa | P105: 648270.0372 | Q105: =SUM(LALCos!G399,LALCos!I399:K399,LALCos!M399,LALCos!O399) -> 135487.9066 | R105: =SUM(LALCos!H399) -> 505453.3009 | S105: =SUM(LALCos!L399,LALCos!N399,LALCos!P399:U399) -> 7328.829693 | U105: 0 | V105: 0 | W105: 0 | X105: 0 | Y105: 5 | Z105: 2.3 General Service 110-1,000 kVa | AA105: 11031.31542 | AB105: 2831 | AC105: 7 | AD105: =12*Customers!$D114 -> 84 | AE105: LAL2.3
A106: 6 | B106: 4.1 Street and Area Lighting | C106: 0 | D106: 0.1234473951 | E106: 0.1778488039 | F106: 0.3012961989 | G106: 76.28437284 | I106: 0 | J106: 0 | K106: 0 | L106: 0 | M106: 0 | N106: 6 | O106: 4.1 Street and Area Lighting | P106: 47550.4289 | Q106: =SUM(LALCos!G400,LALCos!I400:K400,LALCos!M400,LALCos!O400) -> 6542.711939 | R106: =SUM(LALCos!H400) -> 9425.986605 | S106: =SUM(LALCos!L400,LALCos!N400,LALCos!P400:U400) -> 31581.73035 | U106: 0 | V106: 0 | W106: 0 | X106: 0 | Y106: 6 | Z106: 4.1 Street and Area Lighting | AA106: 0 | AB106: 53 | AC106: 34.5 | AD106: =12*Customers!$D115 -> 414 | AE106: LAL4.1
N107: 7 | O107: Total L'Anse au Loup | P107: =SUM(P101:P106) -> 7742630.588 | Q107: =SUM(Q101:Q106) -> 2693946.122 | R107: =SUM(R101:R106) -> 4476834.275 | S107: =SUM(S101:S106) -> 571850.1921 | Y107: 7 | Z107: Total L'Anse au Loup | AA107: =SUM(AA101:AA106) -> 28798.10954 | AB107: =SUM(AB101:AB106) -> 25142.08 | AC107: =SUM(AC101:AC106) -> 933.5 | AD107: =SUM(AD101:AD106) -> 11202
B110: Labrador Interconnected | O110: =+B110 -> Labrador Interconnected | Z110: =+O110 -> Labrador Interconnected
A111: =MAX(A106:A110)+NoOne -> 7 | B111: Labrador Industrial - Firm | C111: =IF(AA111<>0,Q111/AA111,0) -> 2.333397953 | D111: =IF(AND(AA111<>0,AB111<>0),0,IF(AA111<>0,0,IF(AB111<>0,Q111/(AB111*1000),0))) -> 0 | E111: =IF(AB111<>0,R111/(AB111*1000),0) -> 0 | F111: =IF(AND(AA111<>0,AB111<>0),0,IF(AA111<>0,0,IF(AB111<>0,SUM(D111:E111),0))) -> 0 | G111: =IF(AD111<>0,S111/AD111,0) -> 0 | I111: =IF(AA111<>0,V111/AA111,0) -> 2.333397953 | J111: =IF(AND(AA111<>0,AB111<>0),0,IF(AA111<>0,0,IF(AB111<>0,V111/(AB111*1000),0))) -> 0 | K111: =IF(AB111<>0,W111/(AB111*1000),0) -> 0 | L111: =IF(AND(AA111<>0,AB111<>0),0,IF(AA111<>0,0,IF(AB111<>0,SUM(J111:K111),0))) -> 0 | M111: =IF(AD111<>0,X111/AD111,0) -> 0 | N111: =MAX(N106:N110)+NoOne -> 8 | O111: =+B111 -> Labrador Industrial - Firm | P111: =SUM(Q111:S111) -> 6860189.983 | Q111: =SUM(LabIntCos!G454,LabIntCos!I454:K454,LabIntCos!M454,LabIntCos!O454) -> 6860189.983 | R111: =SUM(LabIntCos!H454) -> 0 | S111: =SUM(LabIntCos!L454,LabIntCos!N454,LabIntCos!P454:U454) -> 0 | U111: =+'Rev to Cost'!H220 -> 6860189.983 | V111: =IF($P111<>0,$U111/$P111*Q111,0) -> 6860189.983 | W111: 0 | X111: 0 | Y111: =MAX(Y107:Y110)+NoOne -> 8 | Z111: =+O111 -> Labrador Industrial - Firm | AA111: 2940000 | AB111: 1733100 | AC111: 0 | AD111: =12*Customers!$D133 -> 0 | AE111: LINTIOCF
A112: =MAX(A109:A111)+NoOne -> 8 | B112: Labrador Industrial - Non-Firm | C112: =IF(AA112<>0,Q112/AA112,0) -> 0 | D112: =IF(AND(AA112<>0,AB112<>0),0,IF(AA112<>0,0,IF(AB112<>0,Q112/(AB112*1000),0))) -> 0 | E112: =IF(AB112<>0,R112/(AB112*1000),0) -> 0 | F112: =IF(AND(AA112<>0,AB112<>0),0,IF(AA112<>0,0,IF(AB112<>0,SUM(D112:E112),0))) -> 0 | G112: =IF(AD112<>0,S112/AD112,0) -> 0 | I112: =IF(AA112<>0,V112/AA112,"-") -> - | J112: =IF(AND(AA112<>0,AB112<>0),0,IF(AA112<>0,0,IF(AB112<>0,V112/(AB112*1000),0))) -> 0 | K112: =IF(AB112<>0,W112/(AB112*1000),0) -> 0 | L112: =IF(AND(AA112<>0,AB112<>0),0,IF(AA112<>0,0,IF(AB112<>0,SUM(J112:K112),0))) -> 0 | M112: =IF(AD112<>0,X112/AD112,0) -> 0 | N112: =MAX(N109:N111)+NoOne -> 9 | O112: =+B112 -> Labrador Industrial - Non-Firm | P112: =SUM(Q112:S112) -> 0 | Q112: =SUM(LabIntCos!G455,LabIntCos!I455:K455,LabIntCos!M455,LabIntCos!O455) -> 0 | R112: =SUM(LabIntCos!H455) -> 0 | S112: =SUM(LabIntCos!L455,LabIntCos!N455,LabIntCos!P455:U455) -> 0 | U112: =+'Rev to Cost'!H221 -> 0 | V112: 0 | W112: 0 | X112: 0 | Y112: =MAX(Y109:Y111)+NoOne -> 9 | Z112: =+O112 -> Labrador Industrial - Non-Firm | AA112: 0 | AB112: 0 | AC112: 0 | AE112: LINTIOCNF
A113: =MAX(A110:A112)+NoOne -> 9 | B113: CFB - Goose Bay Secondary | C113: =IF(AA113<>0,Q113/AA113,0) -> 0 | D113: =IF(AND(AA113<>0,AB113<>0),0,IF(AA113<>0,0,IF(AB113<>0,Q113/(AB113*1000),0))) -> 0 | E113: =IF(AB113<>0,R113/(AB113*1000),0) -> 0 | F113: =IF(AND(AA113<>0,AB113<>0),0,IF(AA113<>0,0,IF(AB113<>0,SUM(D113:E113),0))) -> 0 | G113: =IF(AD113<>0,S113/AD113,0) -> 0 | I113: =IF(AA113<>0,V113/AA113,"-") -> - | J113: =IF(AND(AA113<>0,AB113<>0),0,IF(AA113<>0,0,IF(AB113<>0,V113/(AB113*1000),0))) -> 0 | K113: =IF(AB113<>0,W113/(AB113*1000),0) -> 0 | L113: =IF(AND(AA113<>0,AB113<>0),0,IF(AA113<>0,0,IF(AB113<>0,SUM(J113:K113),0))) -> 0 | M113: =IF(AD113<>0,X113/AD113,0) -> 0 | N113: =MAX(N110:N112)+NoOne -> 10 | O113: =+B113 -> CFB - Goose Bay Secondary | P113: =SUM(Q113:S113) -> 0 | Q113: =SUM(LabIntCos!G453,LabIntCos!I453:K453,LabIntCos!M453,LabIntCos!O453) -> 0 | R113: =SUM(LabIntCos!H453) -> 0 | S113: =SUM(LabIntCos!L453,LabIntCos!N453,LabIntCos!P453:U453) -> 0 | U113: =+'Rev to Cost'!D225+'Rev to Cost'!F225 -> 0 | V113: 0 | W113: 0 | X113: 0 | Y113: =MAX(Y110:Y112)+NoOne -> 10 | Z113: =+O113 -> CFB - Goose Bay Secondary | AA113: 0 | AB113: 0 | AC113: 0 | AD113: =12*Customers!$D132 -> 0 | AE113: LINTCFB
B115: Rural | J115: =IF(AND(AA115<>0,AB115<>0),0,IF(AA115<>0,0,IF(AB115<>0,V115/(AB115*1000),0))) -> 0 | K115: =IF(AB115<>0,W115/(AB115*1000),0) -> 0 | O115: =+B115 -> Rural | Z115: =+O115 -> Rural
A116: =MAX(A113:A115)+NoOne -> 10 | B116: 1.1 Domestic | C116: =IF(AA116<>0,Q116/AA116,0) -> 0 | D116: =IF(AND(AA116<>0,AB116<>0),0,IF(AA116<>0,0,IF(AB116<>0,Q116/(AB116*1000),0))) -> 0.02497713158 | E116: =IF(AB116<>0,R116/(AB116*1000),0) -> 0.001578267998 | F116: =IF(AND(AA116<>0,AB116<>0),0,IF(AA116<>0,0,IF(AB116<>0,SUM(D116:E116),0))) -> 0.02655539958 | G116: =IF(AD116<>0,S116/AD116,0) -> 38.96102849 | I116: =IF(AA116<>0,V116/AA116,"-") -> - | J116: 0.0286719582 | K116: 0.001811738627 | L116: =IF(AND(AA116<>0,AB116<>0),0,IF(AA116<>0,0,IF(AB116<>0,SUM(J116:K116),0))) -> 0.03048369683 | M116: =IF(AD116<>0,X116/AD116,0) -> 44.72447034 | N116: =MAX(N113:N115)+NoOne -> 11 | O116: =+B116 -> 1.1 Domestic | P116: =SUM(Q116:S116) -> 215092.659 | Q116: =SUM(LabIntCos!G458,LabIntCos!I458:K458,LabIntCos!M458,LabIntCos!O458) -> 53015.4604 | R116: =SUM(LabIntCos!H458) -> 3349.968521 | S116: =SUM(LabIntCos!L458,LabIntCos!N458,LabIntCos!P458:U458) -> 158727.2301 | U116: =+'Rev to Cost'!H228 -> 246910.9677 | V116: =IF($P116<>0,$U116/$P116*Q116,0) -> 60857.95161 | W116: 3845.52394 | X116: 182207.4922 | Y116: =MAX(Y113:Y115)+NoOne -> 11 | Z116: =+O116 -> 1.1 Domestic | AA116: 0 | AB116: 2122.56 | AC116: 339.5 | AD116: =12*Customers!$D135 -> 4074 | AE116: LINT1.1
A117: =MAX(A114:A116)+NoOne -> 11 | B117: 1.1A Domestic All Electric | C117: =IF(AA117<>0,Q117/AA117,0) -> 0 | D117: =IF(AND(AA117<>0,AB117<>0),0,IF(AA117<>0,0,IF(AB117<>0,Q117/(AB117*1000),0))) -> 0.02226813837 | E117: =IF(AB117<>0,R117/(AB117*1000),0) -> 0.00159793583 | F117: =IF(AND(AA117<>0,AB117<>0),0,IF(AA117<>0,0,IF(AB117<>0,SUM(D117:E117),0))) -> 0.0238660742 | G117: =IF(AD117<>0,S117/AD117,0) -> 39.44654742 | I117: =IF(AA117<>0,V117/AA117,"-") -> - | J117: 0.02556222801 | K117: 0.00183431589 | L117: =IF(AND(AA117<>0,AB117<>0),0,IF(AA117<>0,0,IF(AB117<>0,SUM(J117:K117),0))) -> 0.0273965439 | M117: =IF(AD117<>0,X117/AD117,0) -> 45.2818113 | N117: =MAX(N114:N116)+NoOne -> 12 | O117: =+B117 -> 1.1A Domestic All Electric | P117: =SUM(Q117:S117) -> 12011207.33 | Q117: =SUM(LabIntCos!G459,LabIntCos!I459:K459,LabIntCos!M459,LabIntCos!O459) -> 6989765.548 | R117: =SUM(LabIntCos!H459) -> 501577.4839 | S117: =SUM(LabIntCos!L459,LabIntCos!N459,LabIntCos!P459:U459) -> 4519864.296 | U117: =+'Rev to Cost'!H229 -> 13788005.78 | V117: 8023750.246 | W117: 575775.0289 | X117: 5188480.502 | Y117: =MAX(Y114:Y116)+NoOne -> 12 | Z117: =+O117 -> 1.1A Domestic All Electric | AA117: 0 | AB117: 313890.88 | AC117: 9548.5 | AD117: =12*Customers!$D136 -> 114582 | AE117: LINT1.1A
A118: =MAX(A115:A117)+NoOne -> 12 | B118: Subtotal Domestic | C118: =IF(AA118<>0,Q118/AA118,0) -> 0 | D118: =IF(AND(AA118<>0,AB118<>0),0,IF(AA118<>0,0,IF(AB118<>0,Q118/(AB118*1000),0))) -> 0.0222863338 | E118: =IF(AB118<>0,R118/(AB118*1000),0) -> 0.001597803728 | F118: =IF(AND(AA118<>0,AB118<>0),0,IF(AA118<>0,0,IF(AB118<>0,SUM(D118:E118),0))) -> 0.02388413752 | G118: =IF(AD118<>0,S118/AD118,0) -> 39.42987734 | I118: =IF(AA118<>0,V118/AA118,"-") -> - | J118: 0.02558311507 | K118: 0.001834164246 | L118: =IF(AND(AA118<>0,AB118<>0),0,IF(AA118<>0,0,IF(AB118<>0,SUM(J118:K118),0))) -> 0.02741727931 | M118: =IF(AD118<>0,X118/AD118,0) -> 45.26267525 | N118: =MAX(N115:N117)+NoOne -> 13 | O118: =+B118 -> Subtotal Domestic | P118: =SUM(P116:P117) -> 12226299.99 | Q118: =SUM(Q116:Q117) -> 7042781.008 | R118: =SUM(R116:R117) -> 504927.4525 | S118: =SUM(S116:S117) -> 4678591.526 | U118: =SUM(U116:U117) -> 14034916.74 | V118: =SUM(V116:V117) -> 8084608.198 | W118: =SUM(W116:W117) -> 579620.5528 | X118: =SUM(X116:X117) -> 5370687.994 | Y118: =MAX(Y115:Y117)+NoOne -> 13 | Z118: =+O118 -> Subtotal Domestic | AA118: 0 | AB118: =SUM(AB116:AB117) -> 316013.44 | AC118: =SUM(AC116:AC117) -> 9888 | AD118: =SUM(AD116:AD117) -> 118656
J119: 0 | K119: 0
A120: =MAX(A117:A119)+NoOne -> 13 | B120: 2.1 General Service 0-10 kW | C120: =IF(AA120<>0,Q120/AA120,0) -> 0 | D120: =IF(AND(AA120<>0,AB120<>0),0,IF(AA120<>0,0,IF(AB120<>0,Q120/(AB120*1000),0))) -> 0.01683141939 | E120: =IF(AB120<>0,R120/(AB120*1000),0) -> 0.00160271356 | F120: =IF(AND(AA120<>0,AB120<>0),0,IF(AA120<>0,0,IF(AB120<>0,SUM(D120:E120),0))) -> 0.01843413295 | G120: =IF(AD120<>0,S120/AD120,0) -> 44.03043042 | I120: =IF(AA120<>0,V120/AA120,"-") -> - | J120: 0.019321264 | K120: 0.001839800382 | L120: =IF(AND(AA120<>0,AB120<>0),0,IF(AA120<>0,0,IF(AB120<>0,SUM(J120:K120),0))) -> 0.02116106438 | M120: =IF(AD120<>0,X120/AD120,0) -> 50.54378069 | N120: =MAX(N117:N119)+NoOne -> 14 | O120: =+B120 -> 2.1 General Service 0-10 kW | P120: =SUM(Q120:S120) -> 394806.4935 | Q120: =SUM(LabIntCos!G460,LabIntCos!I460:K460,LabIntCos!M460,LabIntCos!O460) -> 110824.6295 | R120: =SUM(LabIntCos!H460) -> 10552.89114 | S120: =SUM(LabIntCos!L460,LabIntCos!N460,LabIntCos!P460:U460) -> 273428.9729 | U120: =+'Rev to Cost'!H230 -> 453209.5788 | V120: =IF($P120<>0,$U120/$P120*Q120,0) -> 127218.7375 | W120: 12113.96323 | X120: 313876.8781 | Y120: =MAX(Y117:Y119)+NoOne -> 14 | Z120: =+O120 -> 2.1 General Service 0-10 kW | AA120: 0 | AB120: 6584.39 | AC120: 517.5 | AD120: =12*Customers!$D137 -> 6210 | AE120: LINT2.1
A121: =MAX(A118:A120)+NoOne -> 14 | B121: 2.2 General Service 10-100 kW | C121: =IF(AA121<>0,Q121/AA121,0) -> 5.429088392 | D121: =IF(AND(AA121<>0,AB121<>0),0,IF(AA121<>0,0,IF(AB121<>0,Q121/(AB121*1000),0))) -> 0 | E121: =IF(AB121<>0,R121/(AB121*1000),0) -> 0.001609970364 | F121: =IF(AND(AA121<>0,AB121<>0),0,IF(AA121<>0,0,IF(AB121<>0,SUM(D121:E121),0))) -> 0 | G121: =IF(AD121<>0,S121/AD121,0) -> 59.03003973 | I121: =IF(AA121<>0,V121/AA121,0) -> 6.232204646 | J121: 0 | K121: 0.001848130673 | L121: =IF(AND(AA121<>0,AB121<>0),0,IF(AA121<>0,0,IF(AB121<>0,SUM(J121:K121),0))) -> 0 | M121: =IF(AD121<>0,X121/AD121,0) -> 67.76225792 | N121: =MAX(N118:N120)+NoOne -> 15 | O121: =+B121 -> 2.2 General Service 10-100 kW | P121: =SUM(Q121:S121) -> 1867500.462 | Q121: =SUM(LabIntCos!G461,LabIntCos!I461:K461,LabIntCos!M461,LabIntCos!O461) -> 1272181.996 | R121: =SUM(LabIntCos!H461) -> 114695.8826 | S121: =SUM(LabIntCos!L461,LabIntCos!N461,LabIntCos!P461:U461) -> 480622.5835 | U121: =+'Rev to Cost'!H231 -> 2143756.781 | V121: 1460373.818 | W121: 131662.6588 | X121: 551720.304 | Y121: =MAX(Y118:Y120)+NoOne -> 15 | Z121: =+O121 -> 2.2 General Service 10-100 kW | AA121: 234327 | AB121: 71240.99 | AC121: 678.5 | AD121: =12*Customers!$D138 -> 8142 | AE121: LINT2.2
A122: =MAX(A119:A121)+NoOne -> 15 | B122: 2.3 General Service 110-1,000 kVa | C122: =IF(AA122<>0,Q122/AA122,0) -> 5.727554297 | D122: =IF(AND(AA122<>0,AB122<>0),0,IF(AA122<>0,0,IF(AB122<>0,Q122/(AB122*1000),0))) -> 0 | E122: =IF(AB122<>0,R122/(AB122*1000),0) -> 0.001615641317 | F122: =IF(AND(AA122<>0,AB122<>0),0,IF(AA122<>0,0,IF(AB122<>0,SUM(D122:E122),0))) -> 0 | G122: =IF(AD122<>0,S122/AD122,0) -> 77.98904422 | I122: =IF(AA122<>0,V122/AA122,0) -> 6.574822129 | J122: 0 | K122: 0.001854640521 | L122: =IF(AND(AA122<>0,AB122<>0),0,IF(AA122<>0,0,IF(AB122<>0,SUM(J122:K122),0))) -> 0 | M122: =IF(AD122<>0,X122/AD122,0) -> 89.52583724 | N122: =MAX(N119:N121)+NoOne -> 16 | O122: =+B122 -> 2.3 General Service 110-1,000 kVa | P122: =SUM(Q122:S122) -> 2586689.638 | Q122: =SUM(LabIntCos!G462,LabIntCos!I462:K462,LabIntCos!M462,LabIntCos!O462) -> 2203498.962 | R122: =SUM(LabIntCos!H462) -> 210288.9657 | S122: =SUM(LabIntCos!L462,LabIntCos!N462,LabIntCos!P462:U462) -> 172901.711 | U122: =+'Rev to Cost'!H232 -> 2969334.448 | V122: 2529458.995 | W122: 241396.6718 | X122: 198478.7812 | Y122: =MAX(Y119:Y121)+NoOne -> 16 | Z122: =+O122 -> 2.3 General Service 110-1,000 kVa | AA122: 384719 | AB122: 130158.2 | AC122: 184.75 | AD122: =12*Customers!$D139 -> 2217 | AE122: LINT2.3
A123: =MAX(A120:A122)+NoOne -> 16 | B123: 2.4 General Service Over 1,000 kVa | C123: =IF(AA123<>0,Q123/AA123,0) -> 8.629391005 | D123: =IF(AND(AA123<>0,AB123<>0),0,IF(AA123<>0,0,IF(AB123<>0,Q123/(AB123*1000),0))) -> 0 | E123: =IF(AB123<>0,R123/(AB123*1000),0) -> 0.001591956646 | F123: =IF(AND(AA123<>0,AB123<>0),0,IF(AA123<>0,0,IF(AB123<>0,SUM(D123:E123),0))) -> 0 | G123: =IF(AD123<>0,S123/AD123,0) -> 77.58704064 | I123: =IF(AA123<>0,V123/AA123,0) -> 9.905922842 | J123: 0 | K123: 0.001827452215 | L123: =IF(AND(AA123<>0,AB123<>0),0,IF(AA123<>0,0,IF(AB123<>0,SUM(J123:K123),0))) -> 0 | M123: =IF(AD123<>0,X123/AD123,0) -> 89.06436592 | N123: =MAX(N120:N122)+NoOne -> 17 | O123: =+B123 -> 2.4 General Service Over 1,000 kVa | P123: =SUM(Q123:S123) -> 2272282.323 | Q123: =SUM(LabIntCos!G463,LabIntCos!I463:K463,LabIntCos!M463,LabIntCos!O463) -> 2059835.633 | R123: =SUM(LabIntCos!H463) -> 206860.4227 | S123: =SUM(LabIntCos!L463,LabIntCos!N463,LabIntCos!P463:U463) -> 5586.266926 | U123: =+'Rev to Cost'!H233 -> 2608417.367 | V123: 2364543.782 | W123: 237460.95 | X123: 6412.634346 | Y123: =MAX(Y120:Y122)+NoOne -> 17 | Z123: =+O123 -> 2.4 General Service Over 1,000 kVa | AA123: 238700 | AB123: 129940.99 | AC123: 6 | AD123: =12*Customers!$D140 -> 72 | AE123: LINT2.4
A124: =MAX(A121:A123)+NoOne -> 17 | B124: 4.1 Street and Area Lighting | C124: =IF(AA124<>0,Q124/AA124,0) -> 0 | D124: =IF(AND(AA124<>0,AB124<>0),0,IF(AA124<>0,0,IF(AB124<>0,Q124/(AB124*1000),0))) -> 0.0210688471 | E124: =IF(AB124<>0,R124/(AB124*1000),0) -> 0.001620195351 | F124: =IF(AND(AA124<>0,AB124<>0),0,IF(AA124<>0,0,IF(AB124<>0,SUM(D124:E124),0))) -> 0.02268904245 | G124: =IF(AD124<>0,S124/AD124,0) -> 56.97960868 | I124: =IF(AA124<>0,V124/AA124,0) -> 0 | J124: 0.02418552754 | K124: 0.001859868226 | L124: =IF(AND(AA124<>0,AB124<>0),0,IF(AA124<>0,0,IF(AB124<>0,SUM(J124:K124),0))) -> 0.02604539576 | M124: =IF(AD124<>0,X124/AD124,0) -> 65.40850992 | N124: =MAX(N121:N123)+NoOne -> 18 | O124: =+B124 -> 4.1 Street and Area Lighting | P124: =SUM(Q124:S124) -> 303977.888 | Q124: =SUM(LabIntCos!G464,LabIntCos!I464:K464,LabIntCos!M464,LabIntCos!O464) -> 38140.93391 | R124: =SUM(LabIntCos!H464) -> 2933.039644 | S124: =SUM(LabIntCos!L464,LabIntCos!N464,LabIntCos!P464:U464) -> 262903.9145 | U124: =+'Rev to Cost'!H234 -> 348944.8447 | V124: 43783.0605 | W124: 3366.919449 | X124: 301794.8648 | Y124: =MAX(Y121:Y123)+NoOne -> 18 | Z124: =+O124 -> 4.1 Street and Area Lighting | AA124: 0 | AB124: 1810.3 | AC124: 384.5 | AD124: =12*Customers!$D141 -> 4614 | AE124: LINT4.1
N126: =MAX(N123:N125)+NoOne -> 19 | O126: Subtotal Rural | P126: =SUM(P118,P120:P124) -> 19651556.79 | Q126: =SUM(Q118,Q120:Q124) -> 12727263.16 | R126: =SUM(R118,R120:R124) -> 1050258.654 | S126: =SUM(S118,S120:S124) -> 5874034.975 | U126: =SUM(U118,U120:U124) -> 22558579.76 | V126: =SUM(V118,V120:V124) -> 14609986.59 | W126: =SUM(W118,W120:W124) -> 1205621.716 | X126: =SUM(X118,X120:X124) -> 6742971.456 | Y126: =MAX(Y123:Y125)+NoOne -> 19 | Z126: =+O126 -> Subtotal Rural | AA126: =SUM(AA118,AA120:AA124) -> 857746 | AB126: =SUM(AB118,AB120:AB124) -> 655748.31 | AC126: =SUM(AC118,AC120:AC124) -> 11659.25 | AD126: =SUM(AD118,AD120:AD124) -> 139911
N128: =MAX(N125:N127)+NoOne -> 20 | O128: Total Labrador Interconnected | P128: =SUM(P126,P111:P113) -> 26511746.77 | Q128: =SUM(Q126,Q111:Q113) -> 19587453.14 | R128: =SUM(R126,R111:R113) -> 1050258.654 | S128: =SUM(S126,S111:S113) -> 5874034.975 | U128: =SUM(U126,U111:U113) -> 29418769.75 | V128: =SUM(V126,V111:V113) -> 21470176.57 | W128: =SUM(W126,W111:W113) -> 1205621.716 | X128: =SUM(X126,X111:X113) -> 6742971.456 | Y128: =MAX(Y125:Y127)+NoOne -> 20 | Z128: =+O128 -> Total Labrador Interconnected | AA128: =SUM(AA126,AA111:AA113,) -> 3797746 | AB128: =SUM(AB126,AB111:AB113,) -> 2388848.31 | AC128: =SUM(AC126,AC111:AC113,) -> 11659.25 | AD128: =SUM(AD126,AD111:AD113,) -> 139911

Sheet NPRateCalcs
D1: Schedule 1.4 | J1: Schedule 1.4
D2: Page 1 of 1 | J2: Page 1 of 1
A4: NEWFOUNDLAND AND LABRADOR HYDRO | G4: NEWFOUNDLAND & LABRADOR HYDRO
A5: =RunName -> 2019 Test Year Cost of Service Study | G5: =RunName -> 2019 Test Year Cost of Service Study
A6: Cost Calculations for Newfoundland Power | G6: Rate Calculations for Newfoundland Power
B9: =MAX(A9)+NoOne -> 1 | C9: =MAX(B9)+NoOne -> 2 | D9: =MAX(C9)+NoOne -> 3 | H9: 1 | I9: =+H9+1 -> 2 | J9: =+I9+1 -> 3
A12: Line | G12: Line
A13: No. | B13: Description | C13: Amount | D13: Source | G13: No. | H13: Description | I13: Amount | J13: Source
B15: Newfoundland Power: | H15: Newfoundland Power:
B16: Demand: | H16: Demand:
A17: =MAX(A14:A16)+NoOne -> 1 | B17: Cost ($/kW/mo.) | C17: 5.25 | G17: 1 | H17: Rate ($/kW/mo.) | I17: =C17 -> 5.25
A18: =MAX(A15:A17)+NoOne -> 2 | B18: Billing Units (kW) | C18: =+'Unit Costs'!AA17 -> 15158472 | D18: Sch 1.3.2, pg 1, Ln 1, Col 2 | G18: =+G17+1 -> 2 | H18: Billing Units (kW) | I18: =C18 -> 15158472 | J18: Sch 1.3.2, pg 1, Ln 1, Col 2
A19: =MAX(A16:A18)+NoOne -> 3 | B19: Demand Revenue | C19: =ROUND(C18*C17,2) -> 79581978 | D19: Ln 1 * Ln 2 | G19: =+G18+1 -> 3 | H19: Demand Revenue | I19: =ROUND(I18*I17,2) -> 79581978 | J19: Ln 1 * Ln 2
B21: Energy (First Block):
A22: =MAX(A19:A21)+NoOne -> 4 | B22: Total Revenue Requirement | C22: =+'Rev to Cost'!H21 -> 545384915.3 | D22: Sch 1.2, pg 1, Ln 1, Col 7 | H22: Energy (First Block):
A23: =MAX(A20:A22)+NoOne -> 5 | B23: Less: Demand Revenue | C23: =+C18*C17 -> 79581978 | D23: =+"Ln "&A18&" * Ln "&A19 -> Ln 2 * Ln 3 | G23: =+G19+1 -> 4 | H23: Total Revenue Requirement | I23: =C22 -> 545384915.3 | J23: Sch 1.2, pg 1, Ln 1, Col 7
A24: =MAX(A21:A23)+NoOne -> 6 | B24: Revenue Requirement to be Recovered Through Energy Rates | C24: =+C22-C23 -> 465802937.3 | D24: =+"Ln "&A22&" - Ln "&A23 -> Ln 4 - Ln 5 | G24: =+G23+1 -> 5 | H24: Less: Demand Revenue | I24: =I19 -> 79581978 | J24: Ln 3
B25: Non-Fuel Energy Costs: | G25: 6 | H25: Less: Second Block Energy Revenue | I25: =C41 -> 332822576 | J25: ((Sch 1.3.2, pg 1, Ln 1, Col 3) - Ln 8) * Ln 12
A26: =MAX(A23:A25)+NoOne -> 7 | B26: Energy Revenue Requirement | C26: =+'Unit Costs'!R17 -> 279710698.7 | D26: Sch 1.3.1, pg 1, Ln 1, Col 4 | G26: 7 | H26: First Block Energy Revenue | I26: =+I23-I24-I25 -> 132980361.3 | J26: Ln 4 - Ln 5 - Ln 6
B27: Less Allocated Holyrood Fuel Costs | G27: 8 | H27: First Block Energy Consumed (MWh) | I27: =C33 -> 3480000
A28: =MAX(A25:A27)+NoOne -> 8 | B28: Total Holyrood Fuel Costs | C28: =+'Revenue Requirement'!D13 -> 221114563 | D28: Sch 1.1, pg 1, Ln 2, Col 3 | G28: 9 | H28: Rate (¢/kWh) | I28: =+I26/I27/10 -> 3.821274749 | J28: Ln 7 / Ln 8
A29: 9 | B29: Newfoundland Power Trans. Energy Allocation Ratio | C29: =+IslIntCos!H363 -> 0.8300875396 | D29: Sch 3.1A, pg 1, Ln 14, Col 4
A30: 10 | B30: Allocated Holyrood Fuel Costs | C30: =+C28*C29 -> 183544443.6 | D30: =+"Ln "&A28&" * Ln "&A29 -> Ln 8 * Ln 9
A31: 11 | B31: Non-Fuel Energy Costs: | C31: =C40 -> 129350513.8 | D31: =+"Ln "&A26&" - Ln "&A30 -> Ln 7 - Ln 10 | H31: Energy (Second Block):
A32: =MAX(A29:A31)+NoOne -> 12 | B32: Customer Costs | C32: ='Unit Costs'!$S$17 -> 3629847.477 | D32: Sch 1.3.1, pg 1, Ln 1, Col 5 | E32: NOTE: hidden rows | G32: =+G28+1 -> 10 | H32: Average No. 6 Fuel Cost per Barrel | I32: =C46 -> 87.11
A33: 13 | B33: First Block Energy Consumed (MWh) | C33: 3480000 | G33: =+G32+1 -> 11 | H33: Efficiency Factor (kWh per Barrel) | I33: =C47 -> 616
A34: 14 | B34: Cost (Mills/kWh) | C34: =(C31+C32)/C33 -> 38.21274749 | D34: =+"Ln "&A31&" + Ln "&A32&" / Ln "&A33 -> Ln 11 + Ln 12 / Ln 13 | G34: =+G33+1 -> 12 | H34: Rate (¢/kWh) | I34: =I32/I33*100 -> 14.14123377
A35: =MAX(A32:A33)+NoOne -> 14 | B35: Cost (¢/kWh) | C35: =ROUND(C34/10,3) -> 3.821 | D35: =+"Ln "&A31&" + Ln "&A32&" / Ln "&A33&" / 10" -> Ln 11 + Ln 12 / Ln 13 / 10 | E35: NOTE: hidden rows
B37: Energy (Second Block):
A38: =MAX(A34:A37)+NoOne -> 15 | B38: Total Revenue Requirement | C38: =+'Rev to Cost'!H21 -> 545384915.3 | D38: Sch 1.2, pg 1, Ln 1, Col 7
A39: =MAX(A36:A38)+NoOne -> 16 | B39: Less: Demand Revenue | C39: =+C18*C17 -> 79581978 | D39: =+"Ln "&A18&" * Ln "&A19 -> Ln 2 * Ln 3
A40: 17 | B40: Less: First Block Revenue | C40: =C38-C39-C41-C32 -> 129350513.8 | D40: =+"Ln "&A33&" * Ln "&A34 -> Ln 13 * Ln 14
A41: 18 | B41: Second Block Energy Revenue | C41: =C42*C43 -> 332822576
A42: 19 | B42: Second Block Energy Consumed (MWh) | C42: =+'Unit Costs'!AB17-NPRateCalcs!C33 -> 2353600
A43: 20 | B43: Cost (Mills/kWh) | C43: =ROUND(C46/C47*1000,2) -> 141.41 | D43: =+"Ln "&A41&" / Ln "&A42 -> Ln 18 / Ln 19
A44: =MAX(A41:A42)+NoOne -> 20 | B44: Cost (¢/kWh) | C44: =ROUND(C43/10,3) -> 14.141 | D44: =+"Ln "&A41&" / Ln "&A42&" / 10" -> Ln 18 / Ln 19 / 10 | E44: NOTE: hidden rows
A46: =MAX(A42:A45)+NoOne -> 21 | B46: Average No. 6 Fuel Cost per Barrel | C46: 87.11
A47: =MAX(A43:A46)+NoOne -> 22 | B47: Efficiency Factor (kWh per Barrel) | C47: 616
A48: =MAX(A45:A47)+NoOne -> 23 | B48: Cost (Mills/kWh) | C48: =C46/C47*1000 -> 141.4123377
A49: =MAX(A46:A48)+NoOne -> 24 | B49: Adjusted Second block cost (Mills/kWh) | C49: =+C41/('Unit Costs'!AB17-NPRateCalcs!C33) -> 141.41
A50: =MAX(A47:A47)+NoOne -> 23 | B50: Cost (¢/kWh) | C50: =C48/10 -> 14.14123377 | E50: NOTE: hidden rows
A51: =MAX(A48:A48)+NoOne -> 24 | B51: Adjusted Second block cost (¢/kWh) | C51: =C49/10 -> 14.141
B53: Hydro Thermal Split
A54: =MAX(A49:A53)+NoOne -> 25 | B54: Thermal load (Holyrood) | C54: 1127.373
A55: =MAX(A52:A54)+NoOne -> 26 | B55: Total Load | C55: 6680.8
A56: =MAX(A53:A55)+NoOne -> 27 | B56: Thermal load/Total load | C56: =+C54/C55 -> 0.1687482038
D59: Schedule 1.5
D60: Page 1 of 1
A62: =+A4 -> NEWFOUNDLAND AND LABRADOR HYDRO
A63: =RunName -> 2019 Test Year Cost of Service Study
A64: Value of Newfoundland Power Thermal Generation Credit
B67: =MAX(A67)+NoOne -> 1 | C67: =MAX(B67)+NoOne -> 2 | D67: =MAX(C67)+NoOne -> 3
A70: Line
A71: No. | B71: Description | C71: Amount | D71: Source
A73: =MAX(A70:A72)+NoOne -> 1 | B73: Island Interconnected System:
A74: =MAX(A71:A73)+NoOne -> 2 | B74: Generation demand costs ($) | C74: =+IslIntCos!G319 -> 154926465.1 | D74: =+"Sch 2.1A, C. 3, Ln "&IslIntCos!D319 -> Sch 2.1A, C. 3, Ln 27
A75: =MAX(A72:A74)+NoOne -> 3 | B75: Coincident peak (kW) | C75: =+IslIntCos!G360 -> 1477971.621 | D75: =+"Sch 3.1A, C. 3, Ln "&IslIntCos!D360 -> Sch 3.1A, C. 3, Ln 13
A76: =MAX(A73:A75)+NoOne -> 4 | B76: Generation demand costs ($/kW) | C76: =ROUND(+C74/C75,2) -> 104.82 | D76: =+"Ln "&A74&" / Ln "&A75 -> Ln 2 / Ln 3
A78: =MAX(A75:A77)+NoOne -> 5 | B78: NP thermal generation capacity credit (kW) | C78: =+C92 -> 30638 | D78: (1)
A79: =MAX(A76:A78)+NoOne -> 6 | B79: Gross value of credit to NP ($) | C79: =+C76*C78 -> 3211475.16 | D79: =+"Ln "&A76&" x Ln "&A78 -> Ln 4 x Ln 5
A81: =MAX(A78:A80)+NoOne -> 7 | B81: Less NP's cost share:
A82: =MAX(A79:A81)+NoOne -> 8 | B82: Percentage | C82: =+IslIntCos!I363 -> 0.8807545463 | D82: =+"Sch 3.1A, C. 5, Ln "&IslIntCos!D363 -> Sch 3.1A, C. 5, Ln 14
A83: =MAX(A80:A82)+NoOne -> 9 | B83: Amount ($) | C83: =-C79*C82 -> -2828521.347 | D83: =+"Ln "&A79&" x Ln "&A82 -> Ln 6 x Ln 8
A84: =MAX(A81:A83)+NoOne -> 10 | B84: Net value of credit to NP ($) | C84: =+C79+C83 -> 382953.8126 | D84: =+"Ln "&A79&" - Ln "&A83 -> Ln 6 - Ln 9
A90: (1) | B90: NP gas turbine and diesel generation capacity (kW) | C90: 34567
B91: ÷ System reserve | C91: 1.128225
B92: NP thermal generation capacity credit (kW) | C92: =ROUND(+C90/C91,0) -> 30638

Sheet Other Unit Costs
E2: Schedule 1.6 | K2: Schedule 1.7 | S2: BkpThermalDmd
E3: Page 1 of 1 | K3: Page 1 of 1 | S3: Page 1 of 1
A5: NEWFOUNDLAND & LABRADOR HYDRO | G5: NEWFOUNDLAND & LABRADOR HYDRO | M5: NEWFOUNDLAND & LABRADOR HYDRO
A6: =RunName -> 2019 Test Year Cost of Service Study | G6: =RunName -> 2019 Test Year Cost of Service Study | M6: =RunName -> 2019 Test Year Cost of Service Study
A7: Island Interconnected | G7: Island Interconnected | M7: Island Interconnected
A8: Calculation of Firming Up Charge | G8: Calculation of Transmission Wheeling Charge | M8: Calculation of Thermal Demand Costs
B10: =MAX(A10)+NoOne -> 1 | C10: =MAX(B10)+NoOne -> 2 | D10: =MAX(C10)+NoOne -> 3 | E10: =MAX(D10)+NoOne -> 4 | H10: =MAX(G10)+NoOne -> 1 | J10: =MAX(H10)+NoOne -> 2 | N10: =MAX(M10)+NoOne -> 1 | O10: 2 | P10: 3 | Q10: 4 | R10: 5 | S10: 6
O12: Total
A13: Line | E13: Transmission | G13: Line | M13: Line | O13: Thermal | P13: Holyrood | Q13: Holyrood | R13: Gas Tur | S13: Gas Tur
A14: No. | B14: Description | C14: Total | D14: Gas Turbine | E14: & Terminals | G14: No. | H14: Description | M14: No. | N14: Description | O14: Demand | P14: Plant | Q14: Term Stn | R14: Plant | S14: Term Stn
A16: =MAX(A13:A15)+NoOne -> 1 | B16: Operating & Maintenance | C16: =SUM(D16:E16) -> 14861838.67 | D16: =+D43 -> 7964114.948 | E16: =SUM(IslIntCos!I$244:I$244) -> 6897723.719 | G16: =MAX(G13:G15)+NoOne -> 1 | H16: Island Interconnected Transmission Revenue Requirement | J16: =SUM(IslIntCos!I319:I319)/'Schedule 4.1'!G32 -> 62888247.93 | M16: =MAX(M13:M15)+NoOne -> 1 | N16: Operating & Maintenance | O16: =SUM(P16:S16) -> 21673112.26 | P16: =+IslIntCos!G233 -> 13570167.79 | Q16: =+IslIntCos!G34/IslIntCos!F37*IslIntCos!F242 -> 129421.4004 | R16: =+D16 -> 7964114.948 | S16: =+IslIntCos!G35/IslIntCos!F37*IslIntCos!F242 -> 9408.113982
A17: =MAX(A14:A16)+NoOne -> 2 | B17: O&M Overhead | C17: =SUM(D17:E17) -> 12722643.05 | D17: =+D54 -> 6078491.996 | E17: =SUM(IslIntCos!I$270:I$270) -> 6644151.058 | M17: =MAX(M14:M16)+NoOne -> 2 | N17: O&M Overhead | O17: =SUM(P17:S17) -> 15581733.23 | P17: =P16/IslIntCos!G$251*IslIntCos!G$270 -> 9407002.951 | Q17: =Q16/IslIntCos!$G$251*IslIntCos!$G$270 -> 89716.46583 | R17: =+D17 -> 6078491.996 | S17: =S16/IslIntCos!$G$251*IslIntCos!$G$270 -> 6521.817368
A18: =MAX(A15:A17)+NoOne -> 3 | B18: Depreciation | C18: =SUM(D18:E18) -> 22576907.79 | D18: =+D66 -> 6470955.724 | E18: =SUM(IslIntCos!I$176:I$176) -> 16105952.07 | F18: INTTOT | G18: =MAX(G15:G17)+NoOne -> 2 | H18: Transmission Energy Output (MWh) | J18: 7027692.529 | M18: =MAX(M15:M17)+NoOne -> 3 | N18: Depreciation | O18: =SUM(P18:S18) -> 21320908.61 | P18: =IslIntCos!G$143*(1+SUM(IslIntCos!G$170:G$175)/IslIntCos!G$169) -> 14639653.39 | Q18: =IslIntCos!G$152*(1+SUM(IslIntCos!G$170:G$175)/IslIntCos!G$169) -> 201210.1206 | R18: =+D18 -> 6470955.724 | S18: =IslIntCos!G$153*(1+SUM(IslIntCos!G$170:G$175)/IslIntCos!G$169) -> 9089.377219
M19: =MAX(M16:M18)+NoOne -> 4 | N19: Return (Note 1) | O19: =SUM(P19:S19) -> 9527553.554 | P19: =P34*SUM(IslIntCos!$G$316,IslIntCos!$G$317) -> 0 | Q19: =Q34*SUM(IslIntCos!$G$316,IslIntCos!$G$317) -> 0 | R19: =+D20 -> 9527553.554 | S19: =S34*SUM(IslIntCos!$G$316,IslIntCos!$G$317) -> 0
A20: =MAX(A17:A19)+NoOne -> 4 | B20: Return | C20: =SUM(D20:E20) -> 42818141.79 | D20: =+D71 -> 9527553.554 | E20: =SUM(IslIntCos!I$316:I$316,IslIntCos!I$317:I$317) -> 33290588.24 | G20: =MAX(G17:G19)+NoOne -> 3 | H20: Rate ($/kWh) | J20: =+J16/(J18*1000) -> 0.008948633946
M21: =MAX(M18:M20)+NoOne -> 5 | N21: Total | O21: =SUM(O16:O19) -> 68103307.65 | P21: =SUM(P16:P19) -> 37616824.13 | Q21: =SUM(Q16:Q19) -> 420347.9868 | R21: =SUM(R16:R19) -> 30041116.22 | S21: =SUM(S16:S19) -> 25019.30857
A22: =MAX(A19:A21)+NoOne -> 5 | B22: Total | C22: =SUM(D22:E22) -> 92979531.3 | D22: =SUM(D16:D20) -> 30041116.22 | E22: =SUM(E16:E20) -> 62938415.08
M23: =MAX(M20:M22)+NoOne -> 6 | N23: Coincident Peak at Generation (kW) | O23: =+'Schedules 4.2,4.3,4.4'!C20 -> 1512539.194
A24: =MAX(A21:A23)+NoOne -> 6 | B24: Capacity (kW) | D24: 223500 | E24: 1742100
M25: =MAX(M22:M24)+NoOne -> 7 | N25: Cost ($/kW) | O25: =+O21/O23 -> 45.0258135
A26: =MAX(A23:A25)+NoOne -> 7 | B26: Cost ($/kW) | C26: =SUM(D26:E26) -> 170.5400534 | D26: =D22/D24 -> 134.4121531 | E26: =E22/E24 -> 36.12790028 | M26: =MAX(M23:M25)+NoOne -> 8 | N26: Cost ($/kW/mo.) | O26: =+O25/12 -> 3.752151125
A28: =MAX(A25:A27)+NoOne -> 8 | B28: Transmission coincident peak (1) | C28: 1288105.173
A29: =MAX(A26:A28)+NoOne -> 9 | B29: Newfoundland Power Sales (MWh) | C29: 5833600
A30: =MAX(A27:A29)+NoOne -> 10 | B30: Rate ($/kWh) | C30: 0.03765659713 | F30: ISLINTNP
B32: (1) Newfoundland Power Transmission Coincident Peak adjusted for thermal credit in compliance with PU.8(2007).
B39: O&M:
B40: Direct O&M | D40: =IslIntCos!G$235+(IslIntCos!F26/IslIntCos!F29*IslIntCos!F237) -> 7964114.948
B41: Terminal Stations | D41: =SPLTDetails!$D$63/IslIntCos!$F$37*IslIntCos!$F$242 -> 0
B42: Transmission and Term Stns Other | D42: =SPLTDetails!$D$63/IslIntCos!$F$38*IslIntCos!$F$243 -> 0
B43: Subtotal Direct | D43: =SUM(D40:D42) -> 7964114.948
B45: Indirect O&M:
B46: Production | D46: =(IslIntCos!F26/IslIntCos!F29*IslIntCos!$F$257) -> 847223.5863
B47: Gas Turbine & Diesel | D47: =(IslIntCos!F26/SUM(IslIntCos!$F$26,IslIntCos!$F$28)*IslIntCos!$F$258) -> 1088701.057
B48: Transmission | D48: =SPLTDetails!$D$63/IslIntCos!$F$38*IslIntCos!$F$259 -> 0
B49: Plant-related A&G | D49: =+D89/D94*IslIntCos!$F$262 -> 11462.44384
B50: Plant-related A& G excluding Hydraulic and Holyrood | D50: =+D85/D95*IslIntCos!$F$263 -> 152005.5575
B51: Property Insurance | D51: =SUM(D85,D87)/D96*IslIntCos!$F$264 -> 206671.3671
B52: Expense-related GTDC | D52: =+D43/D91*IslIntCos!$F$268 -> 3577628.972
B53: Expense-related GTD | D53: =+D43/D92*IslIntCos!$F$269 -> 194799.0129
B54: Subtotal Indirect | D54: =SUM(D46:D53) -> 6078491.996
B55: Total O&M | D55: =+D54+D43 -> 14042606.94
B57: Depreciation:
B58: Direct Depreciation | D58: =+IslIntCos!$F$144 -> 5682461.723
B59: Terminal Stations | D59: =+SDEPDetails!$D$62 -> 8214.083481
B60: Subtotal Direct | D60: =SUM(D58:D59) -> 5690675.807
B62: Indirect Depreciation:
B63: General Plant Depreciation | D63: =+D43/D91*IslIntCos!$F$170 -> 718914.2172
B64: General Feasibility Studies and Software | D64: =+D60/D98*SUM(IslIntCos!$F$174,IslIntCos!$F$175) -> 61365.69975
B65: Subtotal Indirect | D65: =SUM(D63:D64) -> 780279.9169
B66: Total Depreciation | D66: =+D60+D65 -> 6470955.724
B68: Return:
B69: Return on Rate Base - Debt Component | D69: =+D117/D119*IslIntCos!$F$215 -> 6775636.596
B70: Return on Rate Base - Equity Component | D70: =+D117/D120*IslIntCos!$F$217 -> 2751916.958
D71: =SUM(D69:D70) -> 9527553.554
B81: Allocation Bases:
B82: Direct Plant:
B83: Gas Turbines | D83: =IslIntCos!$F$26 -> 190828508.2
B84: Terminal Station | D84: =SPLTDetails!$D$63 -> 0
B85: Total Direct Plant | D85: =+D84+D83 -> 190828508.2
B87: General Plant Allocated on O&M | D87: =+D43/D91*IslIntCos!$F$52 -> 24592225.56
B88: General Feas Studies & Software Allocated on GTD Plant | D88: =+D85/D93*SUM(IslIntCos!$F$56,IslIntCos!$F$57) -> 103683.9832
B89: Direct Plus G Plant used to allocate PTD + Gen Plt OH | D89: =SUM(D85:D88) -> 215524417.7
B91: Total Direct Island Interconnected O&M | D91: =SUM(IslIntCos!$F$251,IslIntCos!$F$253) -> 61392945.93
B92: Total GTD Direct Island Interconnected O&M | D92: =IslIntCos!$F$251 -> 59172247.77
B93: Total GTD Plant | D93: =+IslIntCos!$F$51 -> 2745383118
B94: Total Plant | D94: =+IslIntCos!$F$58 -> 2954138278
B95: Plant Excluding Hydraulic and Holyrood | D95: =+D93-SUM(IslIntCos!$F$24,IslIntCos!$F$25) -> 1455437920
B96: Insurable Plant | D96: =SUM(IslIntCos!$F$29,IslIntCos!$F$37,IslIntCos!$F$40,IslIntCos!$F$52:$F$54) -> 2075931958
B98: GTD Depreciation | D98: =+IslIntCos!$F$169 -> 73328936.12
B100: Direct NBV:
B101: Gas Turbines | D101: =+IslIntCos!$F$84 -> 148144206.9
B102: Terminal Station | D102: =+SNBVDetails!$D$59 -> 736251.9948
B103: Total Direct NBV | D103: =SUM(D101:D102) -> 148880458.9
B105: General Plant Allocated on O&M | D105: =+D43/D91*IslIntCos!$F$110 -> 10746174.44
B106: General Feas Studies & Software Allocated on GTD Plant | D106: =+D103/D109*SUM(IslIntCos!$F$114,IslIntCos!$F$115) -> 121211.6479
B107: Direct plus Gen Plant NBV | D107: =SUM(D103,D105:D106) -> 159747844.9
B109: GTD NBV | D109: =+IslIntCos!$F$109 -> 1841352433
B110: Total NBV | D110: =+IslIntCos!$F$116 -> 1927122840
B112: Rate Base, excl. Fuel Inventory:
B113: NBV | D113: =+D107 -> 159747844.9
B114: Working Capital | D114: =+D113/D110*IslIntCos!$F$197 -> 165319.5594
B115: Inventory Supplies | D115: =+D89/D94*IslIntCos!$F$203 -> 2109521.107
B116: Deferred charges | D116: =+D113/D110*IslIntCos!$F$206 -> 5568666.56
D117: =SUM(D113:D116) -> 167591352.2
B119: Total Rate base Debt | D119: =+IslIntCos!$F$209 -> 2096662174
B120: Total Rate base Equity | D120: =+IslIntCos!$F$213 -> 2096662174

Sheet IslIntCos
A1: 1 | B1: Island Interconnected
A2: 8 | B2: Plant Column Lookups
A3: 6 | V3: Schedule 2.2A | AI3: Schedule 2.2A
V4: Page 1 of 2 | AI4: Page 2 of 2
D5: NEWFOUNDLAND AND LABRADOR HYDRO | AA5: NEWFOUNDLAND & LABRADOR HYDRO
D6: =RunName -> 2019 Test Year Cost of Service Study | AA6: =RunName -> 2019 Test Year Cost of Service Study
D7: =$B$1 -> Island Interconnected | AA7: =$B$1 -> Island Interconnected
D8: Functional Classification of Plant in Service for the Allocation of O&M Expense | AA8: =+D8&" (CONT'D.)" -> Functional Classification of Plant in Service for the Allocation of O&M Expense (CONT'D.)
E9: =MAX(D9)+NoOne -> 1 | F9: 2 | G9: 3 | H9: 4 | I9: 5 | J9: 6 | K9: 7 | L9: 8 | M9: 9 | N9: 10 | O9: 11 | P9: 12 | Q9: 13 | R9: 14 | S9: 15 | T9: 16 | U9: 17 | V9: 18
J10: Rural Prod & | K10: Distribution | V10: Specifically | AC10: =MAX(AB10)+NoOne -> 1 | AE10: =MAX(V9)+NoOne -> 19
A11: Check | B11: Alloc | C11: Code | D11: Line | F11: Total | G11: Production | H11: Production | I11: Transmission | J11: Transmission | K11: Substations | L11: Primary Lines | N11: Line Transformers | P11: Secondary Lines | R11: Services | S11: Meters | T11: Street Lighting | U11: Accounting | V11: Assigned
A12: Column | B12: Factor | C12: Reference | D12: No. | E12: Description | F12: Amount | G12: Demand | H12: Energy | I12: Demand | J12: Demand | K12: Demand | L12: Demand | M12: Customer | N12: Demand | O12: Customer | P12: Demand | Q12: Customer | R12: Customer | S12: Customer | T12: Customer | U12: Customer | V12: Customer | AC12: Description | AE12: Basis of Functional Classification
A13: =ROUND(SUM(A14:A626),2) -> 0 | E13: Production | F13: ($) | G13: ($) | H13: ($) | I13: ($) | J13: ($) | K13: ($) | L13: ($) | M13: ($) | N13: ($) | O13: ($) | P13: ($) | Q13: ($) | R13: ($) | S13: ($) | T13: ($) | U13: ($) | V13: ($) | AC13: =IF(ISBLANK(E13),"",E13) -> Production
E14: Hydraulic | AC14: =IF(ISBLANK(E14),"",E14) -> Hydraulic
C15: P01 | D15: =MAX(D12:D14)+NoOne -> 1 | E15: Bay D'Espoir | F15: 283399658 | G15: =$F15*'Schedule 4.1'!$D$13 -> 128660081.5 | H15: =$F15*'Schedule 4.1'!$E$13 -> 154739576.5 | I15: 0 | J15: 0 | K15: 0 | L15: 0 | M15: 0 | N15: 0 | O15: 0 | P15: 0 | Q15: 0 | R15: 0 | S15: 0 | T15: 0 | U15: 0 | V15: 0 | AC15: Bay D'Espoir | AE15: =+"Production - Demand, Energy ratios Sch.4.1 L."&'Schedule 4.1'!$A$13 -> Production - Demand, Energy ratios Sch.4.1 L.1
C16: P10 | D16: 2 | E16: Upper Salmon | F16: 177079567.2 | G16: =$F16*'Schedule 4.1'!$D$13 -> 80392022.03 | H16: =$F16*'Schedule 4.1'!$E$13 -> 96687545.14 | I16: 0 | J16: 0 | K16: 0 | L16: 0 | M16: 0 | N16: 0 | O16: 0 | P16: 0 | Q16: 0 | R16: 0 | S16: 0 | T16: 0 | U16: 0 | V16: 0 | AC16: Upper Salmon | AE16: =+"Production - Demand, Energy ratios Sch.4.1 L."&'Schedule 4.1'!$A$13 -> Production - Demand, Energy ratios Sch.4.1 L.1
C17: P05 | D17: 3 | E17: Hinds Lake | F17: 86138997.55 | G17: =$F17*'Schedule 4.1'!$D$13 -> 39106082.65 | H17: =$F17*'Schedule 4.1'!$E$13 -> 47032914.91 | I17: 0 | J17: 0 | K17: 0 | L17: 0 | M17: 0 | N17: 0 | O17: 0 | P17: 0 | Q17: 0 | R17: 0 | S17: 0 | T17: 0 | U17: 0 | V17: 0 | AC17: Hinds Lake | AE17: =+"Production - Demand, Energy ratios Sch.4.1 L."&'Schedule 4.1'!$A$13 -> Production - Demand, Energy ratios Sch.4.1 L.1
C18: P02 | D18: 4 | E18: Cat Arm | F18: 279565999.9 | G18: =$F18*'Schedule 4.1'!$D$13 -> 126919646.3 | H18: =$F18*'Schedule 4.1'!$E$13 -> 152646353.7 | I18: 0 | J18: 0 | K18: 0 | L18: 0 | M18: 0 | N18: 0 | O18: 0 | P18: 0 | Q18: 0 | R18: 0 | S18: 0 | T18: 0 | U18: 0 | V18: 0 | AC18: Cat Arm | AE18: =+"Production - Demand, Energy ratios Sch.4.1 L."&'Schedule 4.1'!$A$13 -> Production - Demand, Energy ratios Sch.4.1 L.1
C19: P08 | D19: 5 | E19: Paradise River | F19: 22797149.35 | G19: =$F19*'Schedule 4.1'!$D$13 -> 10349635.26 | H19: =$F19*'Schedule 4.1'!$E$13 -> 12447514.09 | I19: 0 | J19: 0 | K19: 0 | L19: 0 | M19: 0 | N19: 0 | O19: 0 | P19: 0 | Q19: 0 | R19: 0 | S19: 0 | T19: 0 | U19: 0 | V19: 0 | AC19: Paradise River | AE19: =+"Production - Demand, Energy ratios Sch.4.1 L."&'Schedule 4.1'!$A$13 -> Production - Demand, Energy ratios Sch.4.1 L.1
C20: P09 | D20: 6 | E20: Granite Canal | F20: 113415629 | G20: =$F20*'Schedule 4.1'!$D$13 -> 51489349.63 | H20: =$F20*'Schedule 4.1'!$E$13 -> 61926279.38 | I20: 0 | J20: 0 | K20: 0 | L20: 0 | M20: 0 | N20: 0 | O20: 0 | P20: 0 | Q20: 0 | R20: 0 | S20: 0 | T20: 0 | U20: 0 | V20: 0 | AC20: Granite Canal | AE20: =+"Production - Demand, Energy ratios Sch.4.1 L."&'Schedule 4.1'!$A$13 -> Production - Demand, Energy ratios Sch.4.1 L.1
C21: P12 | D21: 7 | E21: Exploits | F21: 0 | G21: =$F21*'Schedule 4.1'!$D$13 -> 0 | H21: =$F21*'Schedule 4.1'!$E$13 -> 0 | I21: 0 | J21: 0 | K21: 0 | L21: 0 | M21: 0 | N21: 0 | O21: 0 | P21: 0 | Q21: 0 | R21: 0 | S21: 0 | T21: 0 | U21: 0 | V21: 0 | AC21: Exploits | AE21: =+"Production - Demand, Energy ratios Sch.4.1 L."&'Schedule 4.1'!$A$13 -> Production - Demand, Energy ratios Sch.4.1 L.1
C22: P13 | D22: 8 | E22: Star Lake | F22: 0 | G22: =$F22*'Schedule 4.1'!$D$13 -> 0 | H22: =$F22*'Schedule 4.1'!$E$13 -> 0 | I22: 0 | J22: 0 | K22: 0 | L22: 0 | M22: 0 | N22: 0 | O22: 0 | P22: 0 | Q22: 0 | R22: 0 | S22: 0 | T22: 0 | U22: 0 | V22: 0 | AC22: Star Lake
C23: P07 | D23: 9 | E23: Other Hydraulic | F23: 5376974.51 | G23: =$F23*'Schedule 4.1'!$D$13 -> 2441082.617 | H23: =$F23*'Schedule 4.1'!$E$13 -> 2935891.893 | I23: 0 | J23: =+SPLTDetails!$J13 -> 0 | K23: 0 | L23: 0 | M23: 0 | N23: 0 | O23: 0 | P23: 0 | Q23: 0 | R23: 0 | S23: 0 | T23: 0 | U23: 0 | V23: 0 | AC23: Other Hydraulic | AE23: =+"Production - Demand, Energy ratios Sch.4.1 L."&'Schedule 4.1'!$A$13&", "&'Schedule 4.1'!$A$14 -> Production - Demand, Energy ratios Sch.4.1 L.1, 2
A24: =SUM(G24:V24)-F24 -> 0 | D24: =MAX(D19:D23)+NoOne -> 10 | E24: Subtotal Hydraulic | F24: =SUM(F15:F23) -> 967773975.5 | G24: =SUM(G15:G23) -> 439357900 | H24: =SUM(H15:H23) -> 528416075.5 | I24: =SUM(I15:I23) -> 0 | J24: =SUM(J15:J23) -> 0 | K24: 0 | L24: 0 | M24: 0 | N24: 0 | O24: 0 | P24: 0 | Q24: 0 | R24: 0 | S24: 0 | T24: 0 | U24: 0 | V24: 0 | AC24: Subtotal Hydraulic
C25: P06 | D25: =MAX(D20:D24)+NoOne -> 11 | E25: Holyrood | F25: 322171222.7 | G25: =$F25*'Schedule 4.1'!D15 -> 224102302.5 | H25: =$F25*'Schedule 4.1'!E15 -> 98068920.18 | I25: 0 | J25: 0 | K25: 0 | L25: 0 | M25: 0 | N25: 0 | O25: 0 | P25: 0 | Q25: 0 | R25: 0 | S25: 0 | T25: 0 | U25: 0 | V25: 0 | AC25: Holyrood | AE25: =+"Production - Demand, Energy ratios Sch.4.1 L."&'Schedule 4.1'!$A$15 -> Production - Demand, Energy ratios Sch.4.1 L.3
C26: P04 | D26: 12 | E26: Gas Turbines | F26: 190828508.2 | G26: =$F26*'Schedule 4.1'!D16 -> 190828508.2 | H26: =$F26*'Schedule 4.1'!E16 -> 0 | I26: =$F26*'Schedule 4.1'!H16 -> 0 | J26: =$F26*'Schedule 4.1'!I16 -> 0 | K26: =$F26*'Schedule 4.1'!J16 -> 0 | L26: =$F26*'Schedule 4.1'!K16 -> 0 | M26: =$F26*'Schedule 4.1'!L16 -> 0 | N26: =$F26*'Schedule 4.1'!M16 -> 0 | O26: =$F26*'Schedule 4.1'!N16 -> 0 | P26: =$F26*'Schedule 4.1'!O16 -> 0 | Q26: =$F26*'Schedule 4.1'!P16 -> 0 | R26: =$F26*'Schedule 4.1'!Q16 -> 0 | S26: =$F26*'Schedule 4.1'!R16 -> 0 | T26: =$F26*'Schedule 4.1'!S16 -> 0 | U26: =$F26*'Schedule 4.1'!T16 -> 0 | V26: =$F26*'Schedule 4.1'!U16 -> 0 | AC26: Gas Turbines | AE26: =+"Production - Demand, Energy ratios Sch.4.1 L."&'Schedule 4.1'!$A$16 -> Production - Demand, Energy ratios Sch.4.1 L.4
C27: P11 | D27: 13 | E27: Roddickton | F27: 0 | G27: =$F27*'Schedule 4.1'!D15 -> 0 | H27: =$F27*'Schedule 4.1'!E15 -> 0 | I27: 0 | J27: =$F27*'Schedule 4.1'!I15 -> 0 | K27: =$F27*'Schedule 4.1'!J15 -> 0 | L27: =$F27*'Schedule 4.1'!K15 -> 0 | M27: =$F27*'Schedule 4.1'!L15 -> 0 | N27: =$F27*'Schedule 4.1'!M15 -> 0 | O27: =$F27*'Schedule 4.1'!N15 -> 0 | P27: =$F27*'Schedule 4.1'!O15 -> 0 | Q27: =$F27*'Schedule 4.1'!P15 -> 0 | R27: =$F27*'Schedule 4.1'!Q15 -> 0 | S27: =$F27*'Schedule 4.1'!R15 -> 0 | T27: =$F27*'Schedule 4.1'!S15 -> 0 | U27: =$F27*'Schedule 4.1'!T15 -> 0 | V27: =$F27*'Schedule 4.1'!U15 -> 0 | AC27: Roddickton | AE27: =+"Production - Demand, Energy ratios Sch.4.1 L."&'Schedule 4.1'!$A$15 -> Production - Demand, Energy ratios Sch.4.1 L.3
C28: =+SPLTDetails!C18 -> SPLT2 | D28: 14 | E28: Diesel | F28: =SUM(G28:V28) -> 9249661.11 | G28: =+SPLTDetails!$E18*'Schedule 4.1'!D$16 -> 9249661.11 | H28: =+SPLTDetails!$E18*'Schedule 4.1'!E$16 -> 0 | I28: 0 | J28: =+SPLTDetails!$J18 -> 0 | K28: 0 | L28: 0 | M28: 0 | N28: 0 | O28: 0 | P28: 0 | Q28: 0 | R28: 0 | S28: 0 | T28: 0 | U28: 0 | V28: 0 | AC28: Diesel | AE28: =+"Production - Demand, Energy ratios Sch.4.1 L."&'Schedule 4.1'!$A$17 -> Production - Demand, Energy ratios Sch.4.1 L.5
A29: =SUM(G29:V29)-F29 -> 0 | D29: 15 | E29: Subtotal Production | F29: =SUM(F24:F28) -> 1490023367 | G29: =SUM(G24:G28) -> 863538371.7 | H29: =SUM(H24:H28) -> 626484995.7 | I29: =SUM(I24:I28) -> 0 | J29: =SUM(J24:J28) -> 0 | K29: 0 | L29: 0 | M29: 0 | N29: 0 | O29: 0 | P29: 0 | Q29: 0 | R29: 0 | S29: 0 | T29: 0 | U29: 0 | V29: 0 | AC29: Subtotal Production
E30: Transmission | AC30: Transmission
C31: =+SPLTDetails!C35 -> SPLT3 | D31: =MAX(D28:D30)+NoOne -> 16 | E31: Lines | F31: =SUM(G31:V31) -> 670434679.2 | G31: =SPLTDetails!E35*'Schedule 4.1'!D34 -> 25369555.99 | H31: =SPLTDetails!E35*'Schedule 4.1'!E34 -> 30511984.01 | I31: =SPLTDetails!I35 -> 473852211.8 | J31: =SPLTDetails!J35 -> 103774304.5 | K31: 0 | L31: =+SPLTDetails!K35 -> 0 | M31: 0 | N31: 0 | O31: 0 | P31: 0 | Q31: 0 | R31: 0 | S31: 0 | T31: 0 | U31: 0 | V31: =SPLTDetails!M35 -> 36926622.94 | AC31: Lines | AE31: ="Production - Demand, Energy ratios Sch.4.1 L."&'Schedule 4.1'!$A$34 & " Transmission - Demand; Distribution - Primary Demand; Spec Assigned - Custmr" -> Production - Demand, Energy ratios Sch.4.1 L.17 Transmission - Demand; Distribution - Primary Demand; Spec Assigned - Custmr
C32: =+SPLTDetails!C52 -> SPLT4 | D32: 17 | E32: Terminal Stations | F32: =SUM(G32:V32) -> 289486824.9 | G32: =+SPLTDetails!E52*G29/F29 -> 0 | H32: =+SPLTDetails!E52*H29/F29 -> 0 | I32: =SPLTDetails!I52 -> 228031349.7 | J32: =SPLTDetails!J52 -> 23792646.76 | K32: 0 | L32: 0 | M32: 0 | N32: 0 | O32: 0 | P32: 0 | Q32: 0 | R32: 0 | S32: 0 | T32: 0 | U32: 0 | V32: =SPLTDetails!M52 -> 37662828.49 | AC32: Terminal Stations | AE32: =+"Production - Demand, Energy subtotals, L. "&D29&"; Transmission - Demand; Spec Assigned - Custmr" -> Production - Demand, Energy subtotals, L. 15; Transmission - Demand; Spec Assigned - Custmr
C33: =+SPLTDetails!C59 -> SPLT5 | D33: =MAX(D31:D32)+NoOne -> 18 | E33: Term Stns - Hydraulic | F33: =SUM(G33:V33) -> 47364963.84 | G33: =SPLTDetails!D59*'Schedule 4.1'!D34 -> 21503131.49 | H33: =SPLTDetails!E59*'Schedule 4.1'!E34 -> 25861832.35 | I33: 0 | J33: 0 | K33: 0 | L33: 0 | M33: 0 | N33: 0 | O33: 0 | P33: 0 | Q33: 0 | R33: 0 | S33: 0 | T33: 0 | U33: 0 | V33: 0 | AC33: Term Stns - Hydraulic | AE33: =+"Production - Demand, Energy ratios Sch.4.1 L."&'Schedule 4.1'!$A$38 -> Production - Demand, Energy ratios Sch.4.1 L.20
C34: T24 | D34: =MAX(D32:D33)+NoOne -> 19 | E34: Term Stns - Holyrood | F34: 15100663.6 | G34: =$F34*'Schedule 4.1'!D$39 -> 10504021.6 | H34: =$F34*'Schedule 4.1'!E$39 -> 4596642 | I34: 0 | J34: 0 | K34: 0 | L34: 0 | M34: 0 | N34: 0 | O34: 0 | P34: 0 | Q34: 0 | R34: 0 | S34: 0 | T34: 0 | U34: 0 | V34: 0 | AC34: Term Stns - Holyrood | AE34: =+"Production - Demand, Energy ratios Sch.4.1 L."&'Schedule 4.1'!$A$39 -> Production - Demand, Energy ratios Sch.4.1 L.21
C35: =+SPLTDetails!C65 -> SPLT6 | D35: =MAX(D33:D34)+NoOne -> 20 | E35: Term Stns - Gas Tur/Dsl | F35: =SUM(G35:V35) -> 763575.67 | G35: =+SPLTDetails!$E65*'Schedule 4.1'!D$40 -> 763575.67 | H35: =+SPLTDetails!$E65*'Schedule 4.1'!E$40 -> 0 | I35: 0 | J35: =+SPLTDetails!$J65 -> 0 | K35: 0 | L35: 0 | M35: 0 | N35: 0 | O35: 0 | P35: 0 | Q35: 0 | R35: 0 | S35: 0 | T35: 0 | U35: 0 | V35: 0 | AC35: Term Stns - Gas Tur/Dsl | AE35: =+"Production - Demand, Energy ratios Sch.4.1 L."&'Schedule 4.1'!$A$40&", "&'Schedule 4.1'!$A$41 -> Production - Demand, Energy ratios Sch.4.1 L.22, 23
C36: T18 | D36: 21 | E36: Term Stns - Distribution | F36: 14079693.22 | G36: 0 | H36: 0 | I36: 0 | J36: 0 | K36: =F36 -> 14079693.22 | L36: 0 | M36: 0 | N36: 0 | O36: 0 | P36: 0 | Q36: 0 | R36: 0 | S36: 0 | T36: 0 | U36: 0 | V36: 0 | AC36: Term Stns - Distribution | AE36: Distribution - Substations Demand
A37: =SUM(G37:V37)-F37 -> 0 | D37: 22 | E37: Subtotal Term Stns | F37: =SUM(F32:F36) -> 366795721.2 | G37: 32770728.76 | H37: 30458474.35 | I37: 228031349.7 | J37: 23792646.76 | K37: 14079693.22 | L37: 0 | M37: 0 | N37: 0 | O37: 0 | P37: 0 | Q37: 0 | R37: 0 | S37: 0 | T37: 0 | U37: 0 | V37: 37662828.49 | AC37: Subtotal Term Stns
A38: =SUM(G38:V38)-F38 -> 0 | D38: 23 | E38: Subtotal Transmission | F38: =SUM(F31,F37) -> 1037230400 | G38: 58140284.75 | H38: 60970458.36 | I38: 701883561.4 | J38: 127566951.3 | K38: 14079693.22 | L38: 0 | M38: 0 | N38: 0 | O38: 0 | P38: 0 | Q38: 0 | R38: 0 | S38: 0 | T38: 0 | U38: 0 | V38: 74589451.43 | AC38: Subtotal Transmission
E39: Distribution | AC39: Distribution
C40: =+SPLTDetails!C71 -> SPLT7 | D40: =MAX(D37:D39)+NoOne -> 24 | E40: Substations | F40: =SUM(G40:V40) -> 11859169.18 | G40: =+SPLTDetails!E71 -> 0 | H40: 0 | I40: 0 | J40: =+SPLTDetails!J71 -> 0 | K40: =+SPLTDetails!K71 -> 11859169.18 | L40: 0 | M40: 0 | N40: 0 | O40: 0 | P40: 0 | Q40: 0 | R40: 0 | S40: 0 | T40: 0 | U40: 0 | V40: 0 | AC40: Substations | AE40: Production - Demand; Dist Substns - Demand
C41: D11 | D41: 25 | E41: Land & Land Improvements | F41: =DistnDetails!C13+DistnDetails!C22 -> 4396627.293 | G41: =$F41*'Schedule 4.1'!D$62 -> 0 | H41: =$F41*'Schedule 4.1'!E$62 -> 0 | I41: 0 | J41: =$F41*'Schedule 4.1'!I$62 -> 0 | K41: =$F41*'Schedule 4.1'!J$62 -> 0 | L41: =$F41*'Schedule 4.1'!K$62 -> 3314837.148 | M41: =$F41*'Schedule 4.1'!L$62 -> 422296.0515 | N41: =$F41*'Schedule 4.1'!M$62 -> 0 | O41: =$F41*'Schedule 4.1'!N$62 -> 0 | P41: =$F41*'Schedule 4.1'!O$62 -> 384485.0568 | Q41: =$F41*'Schedule 4.1'!P$62 -> 275009.0372 | R41: =$F41*'Schedule 4.1'!Q$62 -> 0 | S41: =$F41*'Schedule 4.1'!R$62 -> 0 | T41: =$F41*'Schedule 4.1'!S$62 -> 0 | U41: =$F41*'Schedule 4.1'!T$62 -> 0 | V41: =$F41*'Schedule 4.1'!U$62 -> 0 | AC41: Land & Land Improvements | AE41: =+"Primary, Secondary - Demand, Customer - zero intercept ratios Sch.4.1 L."&'Schedule 4.1'!$A$62 -> Primary, Secondary - Demand, Customer - zero intercept ratios Sch.4.1 L.32
C42: D11 | D42: 26 | E42: Poles | F42: =DistnDetails!C16+DistnDetails!C14 -> 127498446.8 | G42: =$F42*'Schedule 4.1'!D$67 -> 0 | H42: =$F42*'Schedule 4.1'!E$67 -> 0 | I42: 0 | J42: =$F42*'Schedule 4.1'!I$67 -> 0 | K42: =$F42*'Schedule 4.1'!J$67 -> 0 | L42: =$F42*'Schedule 4.1'!K$67 -> 73738471.68 | M42: =$F42*'Schedule 4.1'!L$67 -> 25200323 | N42: =$F42*'Schedule 4.1'!M$67 -> 0 | O42: =$F42*'Schedule 4.1'!N$67 -> 0 | P42: =$F42*'Schedule 4.1'!O$67 -> 13051761 | Q42: =$F42*'Schedule 4.1'!P$67 -> 15507891.08 | R42: =$F42*'Schedule 4.1'!Q$67 -> 0 | S42: =$F42*'Schedule 4.1'!R$67 -> 0 | T42: =$F42*'Schedule 4.1'!S$67 -> 0 | U42: =$F42*'Schedule 4.1'!T$67 -> 0 | V42: =$F42*'Schedule 4.1'!U$67 -> 0 | AC42: Poles | AE42: =+"Primary, Secondary - Demand, Customer - zero intercept ratios Sch.4.1 L."&'Schedule 4.1'!$A$67 -> Primary, Secondary - Demand, Customer - zero intercept ratios Sch.4.1 L.37
C43: D11 | D43: 27 | E43: Primary Conductor & Eqpt | F43: =DistnDetails!C17 -> 25104732.79 | G43: =$F43*'Schedule 4.1'!D$68 -> 0 | H43: =$F43*'Schedule 4.1'!E$68 -> 0 | I43: 0 | J43: =$F43*'Schedule 4.1'!I$68 -> 0 | K43: =$F43*'Schedule 4.1'!J$68 -> 0 | L43: =$F43*'Schedule 4.1'!K$68 -> 22267897.98 | M43: =$F43*'Schedule 4.1'!L$68 -> 2836834.805 | N43: =$F43*'Schedule 4.1'!M$68 -> 0 | O43: =$F43*'Schedule 4.1'!N$68 -> 0 | P43: =$F43*'Schedule 4.1'!O$68 -> 0 | Q43: =$F43*'Schedule 4.1'!P$68 -> 0 | R43: =$F43*'Schedule 4.1'!Q$68 -> 0 | S43: =$F43*'Schedule 4.1'!R$68 -> 0 | T43: =$F43*'Schedule 4.1'!S$68 -> 0 | U43: =$F43*'Schedule 4.1'!T$68 -> 0 | V43: =$F43*'Schedule 4.1'!U$68 -> 0 | AC43: Primary Conductor & Eqpt | AE43: =+"Primary - Demand, Customer - zero intercept ratios Sch.4.1 L."&'Schedule 4.1'!$A$68 -> Primary - Demand, Customer - zero intercept ratios Sch.4.1 L.38
C44: D05 | D44: 28 | E44: Submarine Conductor | F44: 9854684.43 | G44: =$F44*'Schedule 4.1'!D$69 -> 0 | H44: =$F44*'Schedule 4.1'!E$69 -> 0 | I44: 0 | J44: =$F44*'Schedule 4.1'!I$69 -> 0 | K44: =$F44*'Schedule 4.1'!J$69 -> 0 | L44: =$F44*'Schedule 4.1'!K$69 -> 9854684.43 | M44: =$F44*'Schedule 4.1'!L$69 -> 0 | N44: =$F44*'Schedule 4.1'!M$69 -> 0 | O44: =$F44*'Schedule 4.1'!N$69 -> 0 | P44: =$F44*'Schedule 4.1'!O$69 -> 0 | Q44: =$F44*'Schedule 4.1'!P$69 -> 0 | R44: =$F44*'Schedule 4.1'!Q$69 -> 0 | S44: =$F44*'Schedule 4.1'!R$69 -> 0 | T44: =$F44*'Schedule 4.1'!S$69 -> 0 | U44: =$F44*'Schedule 4.1'!T$69 -> 0 | V44: =$F44*'Schedule 4.1'!U$69 -> 0 | AC44: Submarine Conductor | AE44: =+"Primary - Demand, Customer - zero intercept ratios Sch.4.1 L."&'Schedule 4.1'!$A$69 -> Primary - Demand, Customer - zero intercept ratios Sch.4.1 L.39
C45: D11 | D45: 29 | E45: Transformers | F45: =DistnDetails!C18 -> 19578592 | G45: =$F45*'Schedule 4.1'!D$70 -> 0 | H45: =$F45*'Schedule 4.1'!E$70 -> 0 | I45: 0 | J45: =$F45*'Schedule 4.1'!I$70 -> 0 | K45: =$F45*'Schedule 4.1'!J$70 -> 0 | L45: =$F45*'Schedule 4.1'!K$70 -> 0 | M45: =$F45*'Schedule 4.1'!L$70 -> 0 | N45: =$F45*'Schedule 4.1'!M$70 -> 7067871.712 | O45: =$F45*'Schedule 4.1'!N$70 -> 12510720.29 | P45: =$F45*'Schedule 4.1'!O$70 -> 0 | Q45: =$F45*'Schedule 4.1'!P$70 -> 0 | R45: =$F45*'Schedule 4.1'!Q$70 -> 0 | S45: =$F45*'Schedule 4.1'!R$70 -> 0 | T45: =$F45*'Schedule 4.1'!S$70 -> 0 | U45: =$F45*'Schedule 4.1'!T$70 -> 0 | V45: =$F45*'Schedule 4.1'!U$70 -> 0 | AC45: Transformers | AE45: =+"Transformers - Demand, Customer - zero intercept ratios Sch.4.1 L."&'Schedule 4.1'!$A$70 -> Transformers - Demand, Customer - zero intercept ratios Sch.4.1 L.40
C46: D11 | D46: 30 | E46: Secondary Conductor&Eqpt | F46: =DistnDetails!C19 -> 3187147.67 | G46: =$F46*'Schedule 4.1'!D$71 -> 0 | H46: =$F46*'Schedule 4.1'!E$71 -> 0 | I46: 0 | J46: =$F46*'Schedule 4.1'!I$71 -> 0 | K46: =$F46*'Schedule 4.1'!J$71 -> 0 | L46: =$F46*'Schedule 4.1'!K$71 -> 0 | M46: =$F46*'Schedule 4.1'!L$71 -> 0 | N46: =$F46*'Schedule 4.1'!M$71 -> 0 | O46: =$F46*'Schedule 4.1'!N$71 -> 0 | P46: =$F46*'Schedule 4.1'!O$71 -> 1858107.092 | Q46: =$F46*'Schedule 4.1'!P$71 -> 1329040.578 | R46: =$F46*'Schedule 4.1'!Q$71 -> 0 | S46: =$F46*'Schedule 4.1'!R$71 -> 0 | T46: =$F46*'Schedule 4.1'!S$71 -> 0 | U46: =$F46*'Schedule 4.1'!T$71 -> 0 | V46: =$F46*'Schedule 4.1'!U$71 -> 0 | AC46: Secondary Conductor&Eqpt | AE46: =+"Secondary - Demand, Customer - zero intercept ratios Sch. 4.1 L."&'Schedule 4.1'!$A$71 -> Secondary - Demand, Customer - zero intercept ratios Sch. 4.1 L.41
C47: D11 | D47: 31 | E47: Services | F47: =DistnDetails!C20 -> 6522244.43 | G47: =$F47*'Schedule 4.1'!D$72 -> 0 | H47: =$F47*'Schedule 4.1'!E$72 -> 0 | I47: 0 | J47: =$F47*'Schedule 4.1'!I$72 -> 0 | K47: =$F47*'Schedule 4.1'!J$72 -> 0 | L47: =$F47*'Schedule 4.1'!K$72 -> 0 | M47: =$F47*'Schedule 4.1'!L$72 -> 0 | N47: =$F47*'Schedule 4.1'!M$72 -> 0 | O47: =$F47*'Schedule 4.1'!N$72 -> 0 | P47: =$F47*'Schedule 4.1'!O$72 -> 0 | Q47: =$F47*'Schedule 4.1'!P$72 -> 0 | R47: =$F47*'Schedule 4.1'!Q$72 -> 6522244.43 | S47: =$F47*'Schedule 4.1'!R$72 -> 0 | T47: =$F47*'Schedule 4.1'!S$72 -> 0 | U47: =$F47*'Schedule 4.1'!T$72 -> 0 | V47: =$F47*'Schedule 4.1'!U$72 -> 0 | AC47: Services | AE47: Services Customer
C48: =+SystemizedPlant!C21 -> SMET01 | D48: 32 | E48: Meters | F48: =SUM((IF(VLOOKUP($C48,AllocatedMeters,3,FALSE)="",0,VLOOKUP($C48,AllocatedMeters,3,FALSE)))) -> 7684656.678 | G48: =$F48*'Schedule 4.1'!D$73 -> 0 | H48: =$F48*'Schedule 4.1'!E$73 -> 0 | I48: 0 | J48: =$F48*'Schedule 4.1'!I$73 -> 0 | K48: =$F48*'Schedule 4.1'!J$73 -> 0 | L48: =$F48*'Schedule 4.1'!K$73 -> 0 | M48: =$F48*'Schedule 4.1'!L$73 -> 0 | N48: =$F48*'Schedule 4.1'!M$73 -> 0 | O48: =$F48*'Schedule 4.1'!N$73 -> 0 | P48: =$F48*'Schedule 4.1'!O$73 -> 0 | Q48: =$F48*'Schedule 4.1'!P$73 -> 0 | R48: =$F48*'Schedule 4.1'!Q$73 -> 0 | S48: =$F48*'Schedule 4.1'!R$73 -> 7684656.678 | T48: =$F48*'Schedule 4.1'!S$73 -> 0 | U48: =$F48*'Schedule 4.1'!T$73 -> 0 | V48: =$F48*'Schedule 4.1'!U$73 -> 0 | AC48: Meters | AE48: Meters - Customer
C49: D11 | D49: 33 | E49: Street Lighting | F49: =DistnDetails!C21 -> 2443049.33 | G49: =$F49*'Schedule 4.1'!D$74 -> 0 | H49: =$F49*'Schedule 4.1'!E$74 -> 0 | I49: 0 | J49: =$F49*'Schedule 4.1'!I$74 -> 0 | K49: =$F49*'Schedule 4.1'!J$74 -> 0 | L49: =$F49*'Schedule 4.1'!K$74 -> 0 | M49: =$F49*'Schedule 4.1'!L$74 -> 0 | N49: =$F49*'Schedule 4.1'!M$74 -> 0 | O49: =$F49*'Schedule 4.1'!N$74 -> 0 | P49: =$F49*'Schedule 4.1'!O$74 -> 0 | Q49: =$F49*'Schedule 4.1'!P$74 -> 0 | R49: =$F49*'Schedule 4.1'!Q$74 -> 0 | S49: =$F49*'Schedule 4.1'!R$74 -> 0 | T49: =$F49*'Schedule 4.1'!S$74 -> 2443049.33 | U49: =$F49*'Schedule 4.1'!T$74 -> 0 | V49: =$F49*'Schedule 4.1'!U$74 -> 0 | AC49: Street Lighting | AE49: Street Lighting - Customer
A50: =SUM(G50:V50)-F50 -> 0 | D50: 34 | E50: Subtotal Distribution | F50: =SUM(F40:F49) -> 218129350.6 | G50: =SUM(G40:G49) -> 0 | H50: =SUM(H40:H49) -> 0 | I50: =SUM(I40:I49) -> 0 | J50: =SUM(J40:J49) -> 0 | K50: 11859169.18 | L50: 109175891.2 | M50: 28459453.86 | N50: 7067871.712 | O50: 12510720.29 | P50: 15294353.15 | Q50: 17111940.69 | R50: 6522244.43 | S50: 7684656.678 | T50: 2443049.33 | U50: 0 | V50: 0 | AC50: Subtotal Distribution
A51: =SUM(G51:V51)-F51 -> 0 | D51: 35 | E51: Subttl Prod, Trans, & Dist | F51: =SUM(F50,F38,F29) -> 2745383118 | G51: 921678656.5 | H51: 687455454.1 | I51: 701883561.4 | J51: 127566951.3 | K51: 25938862.4 | L51: 109175891.2 | M51: 28459453.86 | N51: 7067871.712 | O51: 12510720.29 | P51: 15294353.15 | Q51: 17111940.69 | R51: 6522244.43 | S51: 7684656.678 | T51: 2443049.33 | U51: 0 | V51: 74589451.43 | AC51: Subttl Prod, Trans, & Dist
B52: =IF(OverheadAlloc="Expenses","E-GTDC","L-GTDC") -> E-GTDC | C52: =+SystemizedPlant!C99 -> SGPLT01 | D52: 36 | E52: General | F52: =SystemizedPlant!E99 -> 189574005.9 | G52: =$F52*VLOOKUP($B52,RatiosIslInt,G$552,FALSE) -> 89870291.81 | H52: 43820824.5 | I52: 21299338.18 | J52: 3368949.735 | K52: 1814420.856 | L52: 10870815.03 | M52: 2833752.536 | N52: 703759.0915 | O52: 1245712.076 | P52: 1522882.773 | Q52: 1703862.821 | R52: 649430.1258 | S52: 800400.6074 | T52: 243258.2603 | U52: 6857247.859 | V52: 1969059.653 | AC52: General | AE52: =+"Prorated on Subtotal Production, Transmission, Distribution, Accounting Expenses - Sch.2.4 L."&$D$251&", "&$D$253 -> Prorated on Subtotal Production, Transmission, Distribution, Accounting Expenses - Sch.2.4 L.15, 16
C53: G06 | D53: 37 | E53: NLSO | F53: 17679694.38 | G53: =$F53*(G$51/SUM($G$51:$V$51)) -> 5935418.213 | H53: 4427069.667 | I53: 4519983.667 | J53: 821504.5457 | K53: 167040.861 | L53: 703069.957 | M53: 183272.9439 | N53: 45515.61891 | O53: 80566.42793 | P53: 98492.44266 | Q53: 110197.3272 | R53: 42001.89308 | S53: 49487.58538 | T53: 15732.72787 | U53: 0 | V53: 480340.502
C54: =+SPLTDetails!C76 -> SPLT8 | D54: 38 | E54: Telecontrol - Custmr & Spec | F54: =SUM(G54:V54) -> 0 | G54: 0 | H54: 0 | I54: 0 | J54: 0 | K54: 0 | L54: 0 | M54: 0 | N54: 0 | O54: 0 | P54: 0 | Q54: 0 | R54: 0 | S54: 0 | T54: 0 | U54: =+SPLTDetails!L76 -> 0 | V54: =+SPLTDetails!M76 -> 0 | AC54: Telecontrol - Custmr & Spec | AE54: Specifically Assigned - Customer
C55: =+SPLTDetails!C83 -> SPLT9 | D55: 39 | E55: Feasibility Studies | F55: =SUM(G55:V55) -> 9794.474854 | G55: =+SPLTDetails!E83 -> 9794.465405 | H55: 0 | I55: 0 | J55: 0 | K55: =+SPLTDetails!K83 -> 0.0094495 | L55: 0 | M55: 0 | N55: 0 | O55: 0 | P55: 0 | Q55: 0 | R55: 0 | S55: 0 | T55: 0 | U55: 0 | V55: 0 | AC55: Feasibility Studies | AE55: Production, Transmission - Demand
C56: G10 | D56: 40 | E56: Feasibility Studies - General | F56: 0 | G56: =$F56*(G$51/SUM($G$51:$V$51)) -> 0 | H56: 0 | I56: 0 | J56: 0 | K56: 0 | L56: 0 | M56: 0 | N56: 0 | O56: 0 | P56: 0 | Q56: 0 | R56: 0 | S56: 0 | T56: 0 | U56: 0 | V56: 0 | AC56: Feasibility Studies - General | AE56: =+"Prorated on subtotal Production, Transmission, & Distribution plant - L."&$D$51 -> Prorated on subtotal Production, Transmission, & Distribution plant - L.35
C57: =+SystemizedPlant!C62 -> SCS2_01 | D57: =MAX(D55:D56)+NoOne -> 41 | E57: Software - General | F57: =SystemizedPlant!E62 -> 1491665.265 | G57: 500781.1216 | H57: 373519.2422 | I57: 381358.5512 | J57: 69311.70694 | K57: 14093.51569 | L57: 59319.18341 | M57: 15463.04357 | N57: 3840.228585 | O57: 6797.523728 | P57: 8309.971451 | Q57: 9297.532053 | R57: 3543.769683 | S57: 4175.350013 | T57: 1327.396457 | U57: 0 | V57: 40527.12828 | AC57: Software - General | AE57: =+"Prorated on subtotal Production, Transmission, & Distribution plant - L."&$D$51 -> Prorated on subtotal Production, Transmission, & Distribution plant - L.35
A58: =SUM(G58:V58)-F58 -> 0 | D58: =MAX(D55:D57)+NoOne -> 42 | E58: Total Plant | F58: =SUM(F51:F57) -> 2954138278 | G58: 1017994942 | H58: 736076867.5 | I58: 728084241.8 | J58: 131826717.3 | K58: 27934417.64 | L58: 120809095.4 | M58: 31491942.38 | N58: 7820986.651 | O58: 13843796.32 | P58: 16924038.33 | Q58: 18935298.37 | R58: 7217220.219 | S58: 8538720.221 | T58: 2703367.715 | U58: 6857247.859 | V58: 77079378.71 | AC58: Total Plant
V61: Schedule 2.3A
V62: Page 1 of 1
D63: =D5 -> NEWFOUNDLAND AND LABRADOR HYDRO
D64: =D6 -> 2019 Test Year Cost of Service Study
D65: =$B$1 -> Island Interconnected
D66: Functional Classification of Net Book Value
E67: =MAX(D67)+NoOne -> 1 | F67: 2 | G67: 3 | H67: 4 | I67: 5 | J67: 6 | K67: 7 | L67: 8 | M67: 9 | N67: 10 | O67: 11 | P67: 12 | Q67: 13 | R67: 14 | S67: 15 | T67: 16 | U67: 17 | V67: 18
J68: Rural Prod & | K68: Distribution | V68: Specifically
D69: Line | F69: Total | G69: Production | H69: Production | I69: Transmission | J69: Transmission | K69: Substations | L69: Primary Lines | N69: Line Transformers | P69: Secondary Lines | R69: Services | S69: Meters | T69: Street Lighting | U69: Accounting | V69: Assigned
D70: No. | E70: Description | F70: Amount | G70: Demand | H70: Energy | I70: Demand | J70: Demand | K70: Demand | L70: Demand | M70: Customer | N70: Demand | O70: Customer | P70: Demand | Q70: Customer | R70: Customer | S70: Customer | T70: Customer | U70: Customer | V70: Customer
E71: Production | F71: ($) | G71: ($) | H71: ($) | I71: ($) | J71: ($) | K71: ($) | L71: ($) | M71: ($) | N71: ($) | O71: ($) | P71: ($) | Q71: ($) | R71: ($) | S71: ($) | T71: ($) | U71: ($) | V71: ($)
E72: Hydraulic
C73: P01 | D73: =MAX(D70:D72)+NoOne -> 1 | E73: Bay D'Espoir | F73: 203146479.4 | G73: =$F73*'Schedule 4.1'!$D$13 -> 92226090.84 | H73: =$F73*'Schedule 4.1'!$E$13 -> 110920388.6 | I73: 0 | J73: 0 | K73: 0 | L73: 0 | M73: 0 | N73: 0 | O73: 0 | P73: 0 | Q73: 0 | R73: 0 | S73: 0 | T73: 0 | U73: 0 | V73: 0
C74: P10 | D74: 2 | E74: Upper Salmon | F74: 140844704.5 | G74: =$F74*'Schedule 4.1'!$D$13 -> 63941824.41 | H74: =$F74*'Schedule 4.1'!$E$13 -> 76902880.14 | I74: 0 | J74: 0 | K74: 0 | L74: 0 | M74: 0 | N74: 0 | O74: 0 | P74: 0 | Q74: 0 | R74: 0 | S74: 0 | T74: 0 | U74: 0 | V74: 0
C75: P05 | D75: 3 | E75: Hinds Lake | F75: 66118692.99 | G75: =$F75*'Schedule 4.1'!$D$13 -> 30017101.97 | H75: =$F75*'Schedule 4.1'!$E$13 -> 36101591.03 | I75: 0 | J75: 0 | K75: 0 | L75: 0 | M75: 0 | N75: 0 | O75: 0 | P75: 0 | Q75: 0 | R75: 0 | S75: 0 | T75: 0 | U75: 0 | V75: 0
C76: P02 | D76: 4 | E76: Cat Arm | F76: 220285932.7 | G76: =$F76*'Schedule 4.1'!$D$13 -> 100007199.2 | H76: =$F76*'Schedule 4.1'!$E$13 -> 120278733.5 | I76: 0 | J76: 0 | K76: 0 | L76: 0 | M76: 0 | N76: 0 | O76: 0 | P76: 0 | Q76: 0 | R76: 0 | S76: 0 | T76: 0 | U76: 0 | V76: 0
C77: P08 | D77: 5 | E77: Paradise River | F77: 17399980.12 | G77: =$F77*'Schedule 4.1'!$D$13 -> 7899384.481 | H77: =$F77*'Schedule 4.1'!$E$13 -> 9500595.635 | I77: 0 | J77: 0 | K77: 0 | L77: 0 | M77: 0 | N77: 0 | O77: 0 | P77: 0 | Q77: 0 | R77: 0 | S77: 0 | T77: 0 | U77: 0 | V77: 0
C78: P09 | D78: 6 | E78: Granite Canal | F78: 90979070.92 | G78: =$F78*'Schedule 4.1'!$D$13 -> 41303418.52 | H78: =$F78*'Schedule 4.1'!$E$13 -> 49675652.4 | I78: 0 | J78: 0 | K78: 0 | L78: 0 | M78: 0 | N78: 0 | O78: 0 | P78: 0 | Q78: 0 | R78: 0 | S78: 0 | T78: 0 | U78: 0 | V78: 0
C79: P12 | D79: 7 | E79: Exploits | F79: 0 | G79: =$F79*'Schedule 4.1'!$D$13 -> 0 | H79: =$F79*'Schedule 4.1'!$E$13 -> 0 | I79: 0 | J79: 0 | K79: 0 | L79: 0 | M79: 0 | N79: 0 | O79: 0 | P79: 0 | Q79: 0 | R79: 0 | S79: 0 | T79: 0 | U79: 0 | V79: 0
C80: P13 | D80: 8 | E80: Star Lake | F80: 0 | G80: =$F80*'Schedule 4.1'!$D$13 -> 0 | H80: =$F80*'Schedule 4.1'!$E$13 -> 0 | I80: 0 | J80: 0 | K80: 0 | L80: 0 | M80: 0 | N80: 0 | O80: 0 | P80: 0 | Q80: 0 | R80: 0 | S80: 0 | T80: 0 | U80: 0 | V80: 0
C81: P07 | D81: 9 | E81: Other Small Hydraulic | F81: 3071304.763 | G81: =$F81*'Schedule 4.1'!$D$13 -> 1394335.914 | H81: =$F81*'Schedule 4.1'!$E$13 -> 1676968.849 | I81: 0 | J81: =+SNBVDetails!J12 -> 0 | K81: 0 | L81: 0 | M81: 0 | N81: 0 | O81: 0 | P81: 0 | Q81: 0 | R81: 0 | S81: 0 | T81: 0 | U81: 0 | V81: 0
A82: =SUM(G82:V82)-F82 -> 0 | D82: 10 | E82: Subtotal Hydraulic | F82: =SUM(F73:F81) -> 741846165.4 | G82: =SUM(G73:G81) -> 336789355.3 | H82: =SUM(H73:H81) -> 405056810.1 | I82: =SUM(I73:I81) -> 0 | J82: =SUM(J73:J81) -> 0 | K82: 0 | L82: 0 | M82: 0 | N82: 0 | O82: 0 | P82: 0 | Q82: 0 | R82: 0 | S82: 0 | T82: 0 | U82: 0 | V82: 0
C83: =SNBVDetails!C12 -> SNBV1 | D83: =MAX(D78:D82)+NoOne -> 11 | E83: Holyrood | F83: =SUM(G83:V83) -> 85174253.28 | G83: =SNBVDetails!D12*'Schedule 4.1'!$D$15 -> 59247210.58 | H83: =SNBVDetails!D12*'Schedule 4.1'!$E$15 -> 25927042.7 | I83: 0 | J83: 0 | K83: 0 | L83: 0 | M83: 0 | N83: 0 | O83: 0 | P83: 0 | Q83: 0 | R83: 0 | S83: 0 | T83: 0 | U83: 0 | V83: 0
C84: P04 | D84: 12 | E84: Gas Turbines | F84: 148144206.9 | G84: =$F84*'Schedule 4.1'!D$16 -> 148144206.9 | H84: =$F84*'Schedule 4.1'!E$16 -> 0 | I84: =$F84*'Schedule 4.1'!F$16 -> 0 | J84: =$F84*'Schedule 4.1'!I$16 -> 0 | K84: =$F84*'Schedule 4.1'!J$16 -> 0 | L84: =$F84*'Schedule 4.1'!K$16 -> 0 | M84: =$F84*'Schedule 4.1'!L$16 -> 0 | N84: =$F84*'Schedule 4.1'!M$16 -> 0 | O84: =$F84*'Schedule 4.1'!N$16 -> 0 | P84: =$F84*'Schedule 4.1'!O$16 -> 0 | Q84: =$F84*'Schedule 4.1'!P$16 -> 0 | R84: =$F84*'Schedule 4.1'!Q$16 -> 0 | S84: =$F84*'Schedule 4.1'!R$16 -> 0 | T84: =$F84*'Schedule 4.1'!S$16 -> 0 | U84: =$F84*'Schedule 4.1'!T$16 -> 0 | V84: =$F84*'Schedule 4.1'!U$16 -> 0
C85: P11 | D85: 13 | E85: Roddickton | F85: 0 | G85: =$F85*'Schedule 4.1'!D$15 -> 0 | H85: =$F85*'Schedule 4.1'!E$15 -> 0 | I85: =$F85*'Schedule 4.1'!F$16 -> 0 | J85: =$F85*'Schedule 4.1'!I$16 -> 0 | K85: =$F85*'Schedule 4.1'!J$16 -> 0 | L85: =$F85*'Schedule 4.1'!K$16 -> 0 | M85: =$F85*'Schedule 4.1'!L$16 -> 0 | N85: =$F85*'Schedule 4.1'!M$16 -> 0 | O85: =$F85*'Schedule 4.1'!N$16 -> 0 | P85: =$F85*'Schedule 4.1'!O$16 -> 0 | Q85: =$F85*'Schedule 4.1'!P$16 -> 0 | R85: =$F85*'Schedule 4.1'!Q$16 -> 0 | S85: =$F85*'Schedule 4.1'!R$16 -> 0 | T85: =$F85*'Schedule 4.1'!S$16 -> 0 | U85: =$F85*'Schedule 4.1'!T$16 -> 0 | V85: =$F85*'Schedule 4.1'!U$16 -> 0
C86: =+SNBVDetails!C17 -> SNBV2 | D86: 14 | E86: Diesel | F86: =SUM(G86:V86) -> 2474283.941 | G86: =+SNBVDetails!$D17*'Schedule 4.1'!D$16 -> 2474283.941 | H86: =+SNBVDetails!$D17*'Schedule 4.1'!E$16 -> 0 | I86: 0 | J86: =+SNBVDetails!J17 -> 0 | K86: 0 | L86: 0 | M86: 0 | N86: 0 | O86: 0 | P86: 0 | Q86: 0 | R86: 0 | S86: 0 | T86: 0 | U86: 0 | V86: 0
A87: =SUM(G87:V87)-F87 -> 0 | D87: 15 | E87: Subtotal Production | F87: =SUM(F82:F86) -> 977638909.5 | G87: =SUM(G82:G86) -> 546655056.7 | H87: =SUM(H82:H86) -> 430983852.8 | I87: =SUM(I82:I86) -> 0 | J87: =SUM(J82:J86) -> 0 | K87: 0 | L87: 0 | M87: 0 | N87: 0 | O87: 0 | P87: 0 | Q87: 0 | R87: 0 | S87: 0 | T87: 0 | U87: 0 | V87: 0
E88: Transmission
C89: =+SNBVDetails!C34 -> SNBV3 | D89: =MAX(D86:D88)+NoOne -> 16 | E89: Lines | F89: =SUM(G89:V89) -> 489034203.8 | G89: =SNBVDetails!E34*'Schedule 4.1'!D38 -> 17812163.33 | H89: =SNBVDetails!E34*'Schedule 4.1'!E38 -> 21422702.19 | I89: =+SNBVDetails!I34 -> 378912672.1 | J89: =+SNBVDetails!J34 -> 55647741.19 | K89: 0 | L89: =+SNBVDetails!K34 -> 0 | M89: 0 | N89: 0 | O89: 0 | P89: 0 | Q89: 0 | R89: 0 | S89: 0 | T89: 0 | U89: 0 | V89: =+SNBVDetails!M34 -> 15238924.94
C90: =+SNBVDetails!C51 -> SNBV4 | D90: 17 | E90: Terminal Stations | F90: =SUM(G90:V90) -> 204914183 | G90: =+SNBVDetails!E51*G87/F87 -> 0 | H90: =+SNBVDetails!E51*H87/F87 -> 0 | I90: =+SNBVDetails!I51 -> 169327326.8 | J90: =+SNBVDetails!J51 -> 13842730.89 | K90: 0 | L90: 0 | M90: 0 | N90: 0 | O90: 0 | P90: 0 | Q90: 0 | R90: 0 | S90: 0 | T90: 0 | U90: 0 | V90: =+SNBVDetails!M51 -> 21744125.37
C91: =+SNBVDetails!C56 -> SNBV5 | D91: =MAX(D89:D90)+NoOne -> 18 | E91: =+$E$33 -> Term Stns - Hydraulic | F91: =SUM(G91:V91) -> 30603676.66 | G91: =SNBVDetails!E56*'Schedule 4.1'!D38 -> 13893706.02 | H91: =SNBVDetails!E56*'Schedule 4.1'!E38 -> 16709970.64 | I91: 0 | J91: 0 | K91: 0 | L91: 0 | M91: 0 | N91: 0 | O91: 0 | P91: 0 | Q91: 0 | R91: 0 | S91: 0 | T91: 0 | U91: 0 | V91: 0
C92: T24 | D92: =MAX(D90:D91)+NoOne -> 19 | E92: =+E34 -> Term Stns - Holyrood | F92: 8479821.423 | G92: =$F92*'Schedule 4.1'!D39 -> 5898563.782 | H92: =$F92*'Schedule 4.1'!E39 -> 2581257.641 | I92: 0 | J92: 0 | K92: 0 | L92: 0 | M92: 0 | N92: 0 | O92: 0 | P92: 0 | Q92: 0 | R92: 0 | S92: 0 | T92: 0 | U92: 0 | V92: 0
C93: =+SNBVDetails!C61 -> SNBV6 | D93: =MAX(D91:D92)+NoOne -> 20 | E93: =+E35 -> Term Stns - Gas Tur/Dsl | F93: =SUM(G93:V93) -> 736251.9948 | G93: =+SNBVDetails!$E61*'Schedule 4.1'!D$40 -> 736251.9948 | H93: =+SNBVDetails!$E61*'Schedule 4.1'!E$40 -> 0 | I93: 0 | J93: =+SNBVDetails!J61 -> 0 | K93: 0 | L93: 0 | M93: 0 | N93: 0 | O93: 0 | P93: 0 | Q93: 0 | R93: 0 | S93: 0 | T93: 0 | U93: 0 | V93: 0
C94: T18 | D94: 21 | E94: Term Stns - Distribution | F94: 8471325.934 | G94: 0 | H94: 0 | I94: 0 | J94: 0 | K94: =F94 -> 8471325.934 | L94: 0 | M94: 0 | N94: 0 | O94: 0 | P94: 0 | Q94: 0 | R94: 0 | S94: 0 | T94: 0 | U94: 0 | V94: 0
A95: =SUM(G95:V95)-F95 -> 0 | D95: 22 | E95: Subtotal Term Stns | F95: =SUM(F90:F94) -> 253205259.1 | G95: 20528521.79 | H95: 19291228.28 | I95: 169327326.8 | J95: 13842730.89 | K95: 8471325.934 | L95: 0 | M95: 0 | N95: 0 | O95: 0 | P95: 0 | Q95: 0 | R95: 0 | S95: 0 | T95: 0 | U95: 0 | V95: 21744125.37
A96: =SUM(G96:V96)-F96 -> 0 | D96: 23 | E96: Subtotal Trans & Term Stns | F96: =SUM(F89,F95) -> 742239462.8 | G96: 38340685.12 | H96: 40713930.47 | I96: 548239998.9 | J96: 69490472.08 | K96: 8471325.934 | L96: 0 | M96: 0 | N96: 0 | O96: 0 | P96: 0 | Q96: 0 | R96: 0 | S96: 0 | T96: 0 | U96: 0 | V96: 36983050.3
E97: Distribution
C98: =+SNBVDetails!C67 -> SNBV7 | D98: =MAX(D95:D97)+NoOne -> 24 | E98: Substations | F98: =SUM(G98:V98) -> 5512206.59 | G98: =+SNBVDetails!E67 -> 0 | H98: 0 | I98: 0 | J98: =+SNBVDetails!J67 -> 0 | K98: =+SNBVDetails!K67 -> 5512206.59 | L98: 0 | M98: 0 | N98: 0 | O98: 0 | P98: 0 | Q98: 0 | R98: 0 | S98: 0 | T98: 0 | U98: 0 | V98: 0
C99: D11 | D99: 25 | E99: Land & Land Improvements | F99: =DistnDetails!C29+DistnDetails!C38 -> 2633930.278 | G99: =$F99*'Schedule 4.1'!D$62 -> 0 | H99: =$F99*'Schedule 4.1'!E$62 -> 0 | I99: 0 | J99: =$F99*'Schedule 4.1'!I$62 -> 0 | K99: =$F99*'Schedule 4.1'!J$62 -> 0 | L99: =$F99*'Schedule 4.1'!K$62 -> 1985851.733 | M99: =$F99*'Schedule 4.1'!L$62 -> 252989.0032 | N99: =$F99*'Schedule 4.1'!M$62 -> 0 | O99: =$F99*'Schedule 4.1'!N$62 -> 0 | P99: =$F99*'Schedule 4.1'!O$62 -> 230337.2028 | Q99: =$F99*'Schedule 4.1'!P$62 -> 164752.3389 | R99: =$F99*'Schedule 4.1'!Q$62 -> 0 | S99: =$F99*'Schedule 4.1'!R$62 -> 0 | T99: =$F99*'Schedule 4.1'!S$62 -> 0 | U99: =$F99*'Schedule 4.1'!T$62 -> 0 | V99: =$F99*'Schedule 4.1'!U$62 -> 0
C100: D11 | D100: 26 | E100: Poles | F100: =SUM(DistnDetails!C30,DistnDetails!C32) -> 73182433.85 | G100: =$F100*'Schedule 4.1'!D$67 -> 0 | H100: =$F100*'Schedule 4.1'!E$67 -> 0 | I100: 0 | J100: =$F100*'Schedule 4.1'!I$67 -> 0 | K100: =$F100*'Schedule 4.1'!J$67 -> 0 | L100: =$F100*'Schedule 4.1'!K$67 -> 42324914.25 | M100: =$F100*'Schedule 4.1'!L$67 -> 14464654.42 | N100: =$F100*'Schedule 4.1'!M$67 -> 0 | O100: =$F100*'Schedule 4.1'!N$67 -> 0 | P100: =$F100*'Schedule 4.1'!O$67 -> 7491539.389 | Q100: =$F100*'Schedule 4.1'!P$67 -> 8901325.794 | R100: =$F100*'Schedule 4.1'!Q$67 -> 0 | S100: =$F100*'Schedule 4.1'!R$67 -> 0 | T100: =$F100*'Schedule 4.1'!S$67 -> 0 | U100: =$F100*'Schedule 4.1'!T$67 -> 0 | V100: =$F100*'Schedule 4.1'!U$67 -> 0
C101: D11 | D101: 27 | E101: Primary Conductor & Eqpt | F101: =DistnDetails!C33 -> 15543312.12 | G101: =$F101*'Schedule 4.1'!D$68 -> 0 | H101: =$F101*'Schedule 4.1'!E$68 -> 0 | I101: 0 | J101: =$F101*'Schedule 4.1'!I$68 -> 0 | K101: =$F101*'Schedule 4.1'!J$68 -> 0 | L101: =$F101*'Schedule 4.1'!K$68 -> 13786917.85 | M101: =$F101*'Schedule 4.1'!L$68 -> 1756394.269 | N101: =$F101*'Schedule 4.1'!M$68 -> 0 | O101: =$F101*'Schedule 4.1'!N$68 -> 0 | P101: =$F101*'Schedule 4.1'!O$68 -> 0 | Q101: =$F101*'Schedule 4.1'!P$68 -> 0 | R101: =$F101*'Schedule 4.1'!Q$68 -> 0 | S101: =$F101*'Schedule 4.1'!R$68 -> 0 | T101: =$F101*'Schedule 4.1'!S$68 -> 0 | U101: =$F101*'Schedule 4.1'!T$68 -> 0 | V101: =$F101*'Schedule 4.1'!U$68 -> 0
C102: D05 | D102: 28 | E102: Submarine Conductor | F102: 3124951.864 | G102: =$F102*'Schedule 4.1'!D$69 -> 0 | H102: =$F102*'Schedule 4.1'!E$69 -> 0 | I102: 0 | J102: =$F102*'Schedule 4.1'!I$69 -> 0 | K102: =$F102*'Schedule 4.1'!J$69 -> 0 | L102: =$F102*'Schedule 4.1'!K$69 -> 3124951.864 | M102: =$F102*'Schedule 4.1'!L$69 -> 0 | N102: =$F102*'Schedule 4.1'!M$69 -> 0 | O102: =$F102*'Schedule 4.1'!N$69 -> 0 | P102: =$F102*'Schedule 4.1'!O$69 -> 0 | Q102: =$F102*'Schedule 4.1'!P$69 -> 0 | R102: =$F102*'Schedule 4.1'!Q$69 -> 0 | S102: =$F102*'Schedule 4.1'!R$69 -> 0 | T102: =$F102*'Schedule 4.1'!S$69 -> 0 | U102: =$F102*'Schedule 4.1'!T$69 -> 0 | V102: =$F102*'Schedule 4.1'!U$69 -> 0
C103: D11 | D103: 29 | E103: Transformers | F103: =DistnDetails!C34 -> 11570802.27 | G103: =$F103*'Schedule 4.1'!D$70 -> 0 | H103: =$F103*'Schedule 4.1'!E$70 -> 0 | I103: 0 | J103: =$F103*'Schedule 4.1'!I$70 -> 0 | K103: =$F103*'Schedule 4.1'!J$70 -> 0 | L103: =$F103*'Schedule 4.1'!K$70 -> 0 | M103: =$F103*'Schedule 4.1'!L$70 -> 0 | N103: =$F103*'Schedule 4.1'!M$70 -> 4177059.619 | O103: =$F103*'Schedule 4.1'!N$70 -> 7393742.649 | P103: =$F103*'Schedule 4.1'!O$70 -> 0 | Q103: =$F103*'Schedule 4.1'!P$70 -> 0 | R103: =$F103*'Schedule 4.1'!Q$70 -> 0 | S103: =$F103*'Schedule 4.1'!R$70 -> 0 | T103: =$F103*'Schedule 4.1'!S$70 -> 0 | U103: =$F103*'Schedule 4.1'!T$70 -> 0 | V103: =$F103*'Schedule 4.1'!U$70 -> 0
C104: D11 | D104: 30 | E104: Secondary Conductor&Eqpt | F104: =DistnDetails!C35 -> 1326559.621 | G104: =$F104*'Schedule 4.1'!D$71 -> 0 | H104: =$F104*'Schedule 4.1'!E$71 -> 0 | I104: 0 | J104: =$F104*'Schedule 4.1'!I$71 -> 0 | K104: =$F104*'Schedule 4.1'!J$71 -> 0 | L104: =$F104*'Schedule 4.1'!K$71 -> 0 | M104: =$F104*'Schedule 4.1'!L$71 -> 0 | N104: =$F104*'Schedule 4.1'!M$71 -> 0 | O104: =$F104*'Schedule 4.1'!N$71 -> 0 | P104: =$F104*'Schedule 4.1'!O$71 -> 773384.2588 | Q104: =$F104*'Schedule 4.1'!P$71 -> 553175.3618 | R104: =$F104*'Schedule 4.1'!Q$71 -> 0 | S104: =$F104*'Schedule 4.1'!R$71 -> 0 | T104: =$F104*'Schedule 4.1'!S$71 -> 0 | U104: =$F104*'Schedule 4.1'!T$71 -> 0 | V104: =$F104*'Schedule 4.1'!U$71 -> 0
C105: D11 | D105: 31 | E105: Services | F105: =DistnDetails!C36 -> 2741583.447 | G105: =$F105*'Schedule 4.1'!D$72 -> 0 | H105: =$F105*'Schedule 4.1'!E$72 -> 0 | I105: 0 | J105: =$F105*'Schedule 4.1'!I$72 -> 0 | K105: =$F105*'Schedule 4.1'!J$72 -> 0 | L105: =$F105*'Schedule 4.1'!K$72 -> 0 | M105: =$F105*'Schedule 4.1'!L$72 -> 0 | N105: =$F105*'Schedule 4.1'!M$72 -> 0 | O105: =$F105*'Schedule 4.1'!N$72 -> 0 | P105: =$F105*'Schedule 4.1'!O$72 -> 0 | Q105: =$F105*'Schedule 4.1'!P$72 -> 0 | R105: =$F105*'Schedule 4.1'!Q$72 -> 2741583.447 | S105: =$F105*'Schedule 4.1'!R$72 -> 0 | T105: =$F105*'Schedule 4.1'!S$72 -> 0 | U105: =$F105*'Schedule 4.1'!T$72 -> 0 | V105: =$F105*'Schedule 4.1'!U$72 -> 0
C106: =+SystemizedPlant!C31 -> SMET02 | D106: 32 | E106: Meters | F106: =SUM((IF(VLOOKUP($C106,AllocatedMeters,3,FALSE)="",0,VLOOKUP($C106,AllocatedMeters,3,FALSE)))) -> 4855652.1 | G106: =$F106*'Schedule 4.1'!D$73 -> 0 | H106: =$F106*'Schedule 4.1'!E$73 -> 0 | I106: 0 | J106: =$F106*'Schedule 4.1'!I$73 -> 0 | K106: =$F106*'Schedule 4.1'!J$73 -> 0 | L106: =$F106*'Schedule 4.1'!K$73 -> 0 | M106: =$F106*'Schedule 4.1'!L$73 -> 0 | N106: =$F106*'Schedule 4.1'!M$73 -> 0 | O106: =$F106*'Schedule 4.1'!N$73 -> 0 | P106: =$F106*'Schedule 4.1'!O$73 -> 0 | Q106: =$F106*'Schedule 4.1'!P$73 -> 0 | R106: =$F106*'Schedule 4.1'!Q$73 -> 0 | S106: =$F106*'Schedule 4.1'!R$73 -> 4855652.1 | T106: =$F106*'Schedule 4.1'!S$73 -> 0 | U106: =$F106*'Schedule 4.1'!T$73 -> 0 | V106: =$F106*'Schedule 4.1'!U$73 -> 0
C107: D11 | D107: 33 | E107: Street Lighting | F107: =DistnDetails!C37 -> 982628.9414 | G107: =$F107*'Schedule 4.1'!D$74 -> 0 | H107: =$F107*'Schedule 4.1'!E$74 -> 0 | I107: 0 | J107: =$F107*'Schedule 4.1'!I$74 -> 0 | K107: =$F107*'Schedule 4.1'!J$74 -> 0 | L107: =$F107*'Schedule 4.1'!K$74 -> 0 | M107: =$F107*'Schedule 4.1'!L$74 -> 0 | N107: =$F107*'Schedule 4.1'!M$74 -> 0 | O107: =$F107*'Schedule 4.1'!N$74 -> 0 | P107: =$F107*'Schedule 4.1'!O$74 -> 0 | Q107: =$F107*'Schedule 4.1'!P$74 -> 0 | R107: =$F107*'Schedule 4.1'!Q$74 -> 0 | S107: =$F107*'Schedule 4.1'!R$74 -> 0 | T107: =$F107*'Schedule 4.1'!S$74 -> 982628.9414 | U107: =$F107*'Schedule 4.1'!T$74 -> 0 | V107: =$F107*'Schedule 4.1'!U$74 -> 0
A108: =SUM(G108:V108)-F108 -> 0 | D108: 34 | E108: Subtotal Distribution | F108: =SUM(F98:F107) -> 121474061.1 | G108: =SUM(G98:G107) -> 0 | H108: =SUM(H98:H107) -> 0 | I108: =SUM(I98:I107) -> 0 | J108: =SUM(J98:J107) -> 0 | K108: 5512206.59 | L108: 61222635.7 | M108: 16474037.69 | N108: 4177059.619 | O108: 7393742.649 | P108: 8495260.85 | Q108: 9619253.495 | R108: 2741583.447 | S108: 4855652.1 | T108: 982628.9414 | U108: 0 | V108: 0
A109: =SUM(G109:V109)-F109 -> 0 | D109: 35 | E109: Subttl Prod, Trans, & Dist | F109: =SUM(F108,F96,F87) -> 1841352433 | G109: 584995741.9 | H109: 471697783.2 | I109: 548239998.9 | J109: 69490472.08 | K109: 13983532.52 | L109: 61222635.7 | M109: 16474037.69 | N109: 4177059.619 | O109: 7393742.649 | P109: 8495260.85 | Q109: 9619253.495 | R109: 2741583.447 | S109: 4855652.1 | T109: 982628.9414 | U109: 0 | V109: 36983050.3
B110: =IF(OverheadAlloc="Expenses","E-GTDC","L-GTDC") -> E-GTDC | C110: =+SystemizedPlant!C109 -> SGPLT02 | D110: 36 | E110: General | F110: =SystemizedPlant!E109 -> 82838998.54 | G110: =$F110*VLOOKUP($B110,RatiosIslInt,G$552,FALSE) -> 39271022.08 | H110: 19148581.05 | I110: 9307266.762 | J110: 1472144.985 | K110: 792855.5708 | L110: 4750268.509 | M110: 1238277.479 | N110: 307524.7478 | O110: 544344.3596 | P110: 665460.875 | Q110: 744544.5333 | R110: 283784.3774 | S110: 349754.6218 | T110: 106297.6465 | U110: 2996442.168 | V110: 860428.7753
C111: G06 | D111: 37 | E111: NLSO | F111: 1422468.896 | G111: =$F111*(G$109/SUM($G$109:$V$109)) -> 451916.8801 | H111: 364392.7217 | I111: 423522.5868 | J111: 53682.30073 | K111: 10802.4622 | L111: 47295.28873 | M111: 12726.4101 | N111: 3226.833318 | O111: 5711.763132 | P111: 6562.700383 | Q111: 7430.999437 | R111: 2117.909156 | S111: 3751.054907 | T111: 759.0937399 | U111: 0 | V111: 28569.89122
C112: =+SNBVDetails!C72 -> SNBV8 | D112: 38 | E112: Telecontrol - Custmr & Spec | F112: =SUM(G112:V112) -> 0 | G112: 0 | H112: 0 | I112: 0 | J112: 0 | K112: 0 | L112: 0 | M112: 0 | N112: 0 | O112: 0 | P112: 0 | Q112: 0 | R112: 0 | S112: 0 | T112: 0 | U112: =+SNBVDetails!L72 -> 0 | V112: =+SNBVDetails!M72 -> 0
C113: =+SNBVDetails!C79 -> SNBV9 | D113: 39 | E113: Feasibility Studies | F113: =SUM(G113:V113) -> 9794.474854 | G113: =+SNBVDetails!E79 -> 9794.465405 | H113: 0 | I113: 0 | J113: 0 | K113: =+SNBVDetails!K79 -> 0.0094495 | L113: 0 | M113: 0 | N113: 0 | O113: 0 | P113: 0 | Q113: 0 | R113: 0 | S113: 0 | T113: 0 | U113: 0 | V113: 0
C114: G10 | D114: 40 | E114: Feasibility Studies - General | F114: 0 | G114: =$F114*(G$109/SUM($G$109:$V$109)) -> 0 | H114: 0 | I114: 0 | J114: 0 | K114: 0 | L114: 0 | M114: 0 | N114: 0 | O114: 0 | P114: 0 | Q114: 0 | R114: 0 | S114: 0 | T114: 0 | U114: 0 | V114: 0
C115: =+SystemizedPlant!C68 -> SCS2_02 | D115: =MAX(D113:D114)+NoOne -> 41 | E115: Software - General | F115: =+SystemizedPlant!E68 -> 1499144.78 | G115: 476276.7284 | H115: 384034.7218 | I115: 446351.8867 | J115: 56575.9583 | K115: 11384.75145 | L115: 49844.66475 | M115: 13412.40664 | N115: 3400.770548 | O115: 6019.646482 | P115: 6916.45213 | Q115: 7831.55544 | R115: 2232.071623 | S115: 3953.249453 | T115: 800.0114598 | U115: 0 | V115: 30109.90499
A116: =SUM(G116:V116)-F116 -> 0 | D116: =MAX(D113:D115)+NoOne -> 42 | E116: Total Net Book Value | F116: =SUM(F109:F115) -> 1927122840 | G116: 625204752 | H116: 491594791.7 | I116: 558417140.2 | J116: 71072875.32 | K116: 14798575.32 | L116: 66070044.16 | M116: 17738453.98 | N116: 4491211.97 | O116: 7949818.419 | P116: 9174200.878 | Q116: 10379060.58 | R116: 3029717.805 | S116: 5213111.026 | T116: 1090485.693 | U116: 2996442.168 | V116: 37902158.87
V121: Schedule 2.5A
V122: Page 1 of 1
D123: =D5 -> NEWFOUNDLAND AND LABRADOR HYDRO
D124: =D6 -> 2019 Test Year Cost of Service Study
D125: =$B$1 -> Island Interconnected
D126: Functional Classification of Depreciation Expense
E127: =MAX(D127)+NoOne -> 1 | F127: 2 | G127: 3 | H127: 4 | I127: 5 | J127: 6 | K127: 7 | L127: 8 | M127: 9 | N127: 10 | O127: 11 | P127: 12 | Q127: 13 | R127: 14 | S127: 15 | T127: 16 | U127: 17 | V127: 18
J128: Rural Prod & | K128: Distribution | V128: Specifically
D129: Line | F129: Total | G129: Production | H129: Production | I129: Transmission | J129: Transmission | K129: Substations | L129: Primary Lines | N129: Line Transformers | P129: Secondary Lines | R129: Services | S129: Meters | T129: Street Lighting | U129: Accounting | V129: Assigned
D130: No. | E130: Description | F130: Amount | G130: Demand | H130: Energy | I130: Demand | J130: Demand | K130: Demand | L130: Demand | M130: Customer | N130: Demand | O130: Customer | P130: Demand | Q130: Customer | R130: Customer | S130: Customer | T130: Customer | U130: Customer | V130: Customer
E131: Production | F131: ($) | G131: ($) | H131: ($) | I131: ($) | J131: ($) | K131: ($) | L131: ($) | M131: ($) | N131: ($) | O131: ($) | P131: ($) | Q131: ($) | R131: ($) | S131: ($) | T131: ($) | U131: ($) | V131: ($)
E132: Hydraulic
C133: P01 | D133: =MAX(D130:D132)+NoOne -> 1 | E133: Bay D'Espoir | F133: 5472416.642 | G133: =$F133*'Schedule 4.1'!$D$13 -> 2484412.212 | H133: =$F133*'Schedule 4.1'!$E$13 -> 2988004.43 | I133: 0 | J133: 0 | K133: 0 | L133: 0 | M133: 0 | N133: 0 | O133: 0 | P133: 0 | Q133: 0 | R133: 0 | S133: 0 | T133: 0 | U133: 0 | V133: 0
C134: P10 | D134: 2 | E134: Upper Salmon | F134: 3298636.227 | G134: =$F134*'Schedule 4.1'!$D$13 -> 1497541.701 | H134: =$F134*'Schedule 4.1'!$E$13 -> 1801094.526 | I134: 0 | J134: 0 | K134: 0 | L134: 0 | M134: 0 | N134: 0 | O134: 0 | P134: 0 | Q134: 0 | R134: 0 | S134: 0 | T134: 0 | U134: 0 | V134: 0
C135: P05 | D135: 3 | E135: Hinds Lake | F135: 1545026.539 | G135: =$F135*'Schedule 4.1'!$D$13 -> 701423.7134 | H135: =$F135*'Schedule 4.1'!$E$13 -> 843602.8257 | I135: 0 | J135: 0 | K135: 0 | L135: 0 | M135: 0 | N135: 0 | O135: 0 | P135: 0 | Q135: 0 | R135: 0 | S135: 0 | T135: 0 | U135: 0 | V135: 0
C136: P02 | D136: 4 | E136: Cat Arm | F136: 5820196.701 | G136: =$F136*'Schedule 4.1'!$D$13 -> 2642300.232 | H136: =$F136*'Schedule 4.1'!$E$13 -> 3177896.469 | I136: 0 | J136: 0 | K136: 0 | L136: 0 | M136: 0 | N136: 0 | O136: 0 | P136: 0 | Q136: 0 | R136: 0 | S136: 0 | T136: 0 | U136: 0 | V136: 0
C137: P08 | D137: 5 | E137: Paradise River | F137: 442192.2396 | G137: =$F137*'Schedule 4.1'!$D$13 -> 200750.0291 | H137: =$F137*'Schedule 4.1'!$E$13 -> 241442.2105 | I137: 0 | J137: 0 | K137: 0 | L137: 0 | M137: 0 | N137: 0 | O137: 0 | P137: 0 | Q137: 0 | R137: 0 | S137: 0 | T137: 0 | U137: 0 | V137: 0
C138: P09 | D138: 6 | E138: Granite Canal | F138: 2575860.841 | G138: =$F138*'Schedule 4.1'!$D$13 -> 1169410.253 | H138: =$F138*'Schedule 4.1'!$E$13 -> 1406450.588 | I138: 0 | J138: 0 | K138: 0 | L138: 0 | M138: 0 | N138: 0 | O138: 0 | P138: 0 | Q138: 0 | R138: 0 | S138: 0 | T138: 0 | U138: 0 | V138: 0
C139: P12 | D139: 7 | E139: Exploits | F139: 0 | G139: =$F139*'Schedule 4.1'!$D$13 -> 0 | H139: =$F139*'Schedule 4.1'!$E$13 -> 0 | I139: 0 | J139: 0 | K139: 0 | L139: 0 | M139: 0 | N139: 0 | O139: 0 | P139: 0 | Q139: 0 | R139: 0 | S139: 0 | T139: 0 | U139: 0 | V139: 0
C140: P13 | D140: 8 | E140: Star Lake | F140: 0 | G140: =$F140*'Schedule 4.1'!$D$13 -> 0 | H140: =$F140*'Schedule 4.1'!$E$13 -> 0 | I140: 0 | J140: 0 | K140: 0 | L140: 0 | M140: 0 | N140: 0 | O140: 0 | P140: 0 | Q140: 0 | R140: 0 | S140: 0 | T140: 0 | U140: 0 | V140: 0
C141: P07 | D141: 9 | E141: Other Small Hydraulic | F141: 102956.6113 | G141: =$F141*'Schedule 4.1'!D$13 -> 46741.07972 | H141: =$F141*'Schedule 4.1'!E$13 -> 56215.53161 | I141: 0 | J141: =+SDEPDetails!J14 -> 0 | K141: 0 | L141: 0 | M141: 0 | N141: 0 | O141: 0 | P141: 0 | Q141: 0 | R141: 0 | S141: 0 | T141: 0 | U141: 0 | V141: 0
A142: =SUM(G142:V142)-F142 -> 0 | D142: =MAX(D137:D141)+NoOne -> 10 | E142: Subtotal Hydraulic | F142: =SUM(F133:F141) -> 19257285.8 | G142: =SUM(G133:G141) -> 8742579.221 | H142: =SUM(H133:H141) -> 10514706.58 | I142: =SUM(I133:I141) -> 0 | J142: =SUM(J133:J141) -> 0 | K142: 0 | L142: 0 | M142: 0 | N142: 0 | O142: 0 | P142: 0 | Q142: 0 | R142: 0 | S142: 0 | T142: 0 | U142: 0 | V142: 0
C143: =SDEPDetails!C14 -> SDEP1 | D143: =MAX(D138:D142)+NoOne -> 11 | E143: Holyrood | F143: =SUM(G143:V143) -> 19019373.45 | G143: =(SDEPDetails!E14+SDEPDetails!I14)*'Schedule 4.1'!$D$15 -> 13229876.17 | H143: =(SDEPDetails!E14+SDEPDetails!I14)*'Schedule 4.1'!$E$15 -> 5789497.278 | I143: 0 | J143: 0 | K143: 0 | L143: 0 | M143: 0 | N143: 0 | O143: 0 | P143: 0 | Q143: 0 | R143: 0 | S143: 0 | T143: 0 | U143: 0 | V143: 0
C144: P04 | D144: 12 | E144: Gas Turbines | F144: 5682461.723 | G144: =$F144*'Schedule 4.1'!D$16 -> 5682461.723 | H144: =$F144*'Schedule 4.1'!E$16 -> 0 | I144: =$F144*'Schedule 4.1'!F$16 -> 0 | J144: =$F144*'Schedule 4.1'!I$16 -> 0 | K144: =$F144*'Schedule 4.1'!J$16 -> 0 | L144: =$F144*'Schedule 4.1'!K$16 -> 0 | M144: =$F144*'Schedule 4.1'!L$16 -> 0 | N144: =$F144*'Schedule 4.1'!M$16 -> 0 | O144: =$F144*'Schedule 4.1'!N$16 -> 0 | P144: =$F144*'Schedule 4.1'!O$16 -> 0 | Q144: =$F144*'Schedule 4.1'!P$16 -> 0 | R144: =$F144*'Schedule 4.1'!Q$16 -> 0 | S144: =$F144*'Schedule 4.1'!R$16 -> 0 | T144: =$F144*'Schedule 4.1'!S$16 -> 0 | U144: =$F144*'Schedule 4.1'!T$16 -> 0 | V144: =$F144*'Schedule 4.1'!U$16 -> 0
C145: P11 | D145: 13 | E145: Roddickton | F145: 0 | G145: =$F145*'Schedule 4.1'!D$15 -> 0 | H145: =$F145*'Schedule 4.1'!E$15 -> 0 | I145: =$F145*'Schedule 4.1'!F$16 -> 0 | J145: =$F145*'Schedule 4.1'!I$16 -> 0 | K145: =$F145*'Schedule 4.1'!J$16 -> 0 | L145: =$F145*'Schedule 4.1'!K$16 -> 0 | M145: =$F145*'Schedule 4.1'!L$16 -> 0 | N145: =$F145*'Schedule 4.1'!M$16 -> 0 | O145: =$F145*'Schedule 4.1'!N$16 -> 0 | P145: =$F145*'Schedule 4.1'!O$16 -> 0 | Q145: =$F145*'Schedule 4.1'!P$16 -> 0 | R145: =$F145*'Schedule 4.1'!Q$16 -> 0 | S145: =$F145*'Schedule 4.1'!R$16 -> 0 | T145: =$F145*'Schedule 4.1'!S$16 -> 0 | U145: =$F145*'Schedule 4.1'!T$16 -> 0 | V145: =$F145*'Schedule 4.1'!U$16 -> 0
C146: =+SDEPDetails!C18 -> SDEP2 | D146: 14 | E146: Diesel | F146: =SUM(G146:V146) -> 100419.7636 | G146: =(SDEPDetails!$E18+SDEPDetails!$I18)*'Schedule 4.1'!D$16 -> 100419.7636 | H146: =+SDEPDetails!$E18*'Schedule 4.1'!E$16 -> 0 | I146: 0 | J146: =+SDEPDetails!J18 -> 0 | K146: 0 | L146: 0 | M146: 0 | N146: 0 | O146: 0 | P146: 0 | Q146: 0 | R146: 0 | S146: 0 | T146: 0 | U146: 0 | V146: 0
A147: =SUM(G147:V147)-F147 -> 0 | D147: 15 | E147: Subtotal Production | F147: =SUM(F142:F146) -> 44059540.74 | G147: =SUM(G142:G146) -> 27755336.88 | H147: =SUM(H142:H146) -> 16304203.86 | I147: =SUM(I142:I146) -> 0 | J147: =SUM(J142:J146) -> 0 | K147: 0 | L147: 0 | M147: 0 | N147: 0 | O147: 0 | P147: 0 | Q147: 0 | R147: 0 | S147: 0 | T147: 0 | U147: 0 | V147: 0
E148: Transmission
C149: =+SDEPDetails!C35 -> SDEP3 | D149: =MAX(D146:D148)+NoOne -> 16 | E149: Lines | F149: =SUM(G149:V149) -> 15046408 | G149: =SDEPDetails!E35*'Schedule 4.1'!D38 -> 731314.7476 | H149: =SDEPDetails!E35*'Schedule 4.1'!E38 -> 879552.795 | I149: =+SDEPDetails!I35 -> 10565682.85 | J149: =+SDEPDetails!J35 -> 2184096.19 | K149: 0 | L149: =+SDEPDetails!K35 -> 0 | M149: 0 | N149: 0 | O149: 0 | P149: 0 | Q149: 0 | R149: 0 | S149: 0 | T149: 0 | U149: 0 | V149: =+SDEPDetails!M35 -> 685761.4143
C150: =+SDEPDetails!C52 -> SDEP4 | D150: 17 | E150: Terminal Stations | F150: =SUM(G150:V150) -> 5936930.841 | G150: =+SDEPDetails!E52*G147/F147 -> 0 | H150: =+SDEPDetails!E52*H147/F147 -> 0 | I150: =+SDEPDetails!I52 -> 4727998.376 | J150: =+SDEPDetails!J52 -> 549702.9589 | K150: 0 | L150: 0 | M150: 0 | N150: 0 | O150: 0 | P150: 0 | Q150: 0 | R150: 0 | S150: 0 | T150: 0 | U150: 0 | V150: =+SDEPDetails!M52 -> 659229.5059
C151: =+SDEPDetails!C58 -> SDEP5 | D151: =MAX(D149:D150)+NoOne -> 18 | E151: =+E33 -> Term Stns - Hydraulic | F151: =SUM(G151:V151) -> 1054104.603 | G151: =SDEPDetails!E58*'Schedule 4.1'!D38 -> 478550.9805 | H151: =SDEPDetails!E58*'Schedule 4.1'!E38 -> 575553.6228 | I151: 0 | J151: 0 | K151: 0 | L151: 0 | M151: 0 | N151: 0 | O151: 0 | P151: 0 | Q151: 0 | R151: 0 | S151: 0 | T151: 0 | U151: 0 | V151: 0
C152: T24 | D152: =MAX(D150:D151)+NoOne -> 19 | E152: =+E34 -> Term Stns - Holyrood | F152: 261405.8081 | G152: =$F152*'Schedule 4.1'!D39 -> 181833.8801 | H152: =$F152*'Schedule 4.1'!E39 -> 79571.92799 | I152: 0 | J152: 0 | K152: 0 | L152: 0 | M152: 0 | N152: 0 | O152: 0 | P152: 0 | Q152: 0 | R152: 0 | S152: 0 | T152: 0 | U152: 0 | V152: 0
C153: =+SDEPDetails!C64 -> SDEP6 | D153: =MAX(D151:D152)+NoOne -> 20 | E153: =+E35 -> Term Stns - Gas Tur/Dsl | F153: =SUM(G153:V153) -> 8214.083481 | G153: =+SDEPDetails!$E64*'Schedule 4.1'!D$40 -> 8214.083481 | H153: =+SDEPDetails!$E64*'Schedule 4.1'!E$40 -> 0 | I153: 0 | J153: =+SDEPDetails!J64 -> 0 | K153: 0 | L153: 0 | M153: 0 | N153: 0 | O153: 0 | P153: 0 | Q153: 0 | R153: 0 | S153: 0 | T153: 0 | U153: 0 | V153: 0
C154: T18 | D154: 21 | E154: Term Stns - Distribution | F154: 308476.6971 | G154: 0 | H154: 0 | I154: 0 | J154: 0 | K154: =F154 -> 308476.6971 | L154: 0 | M154: 0 | N154: 0 | O154: 0 | P154: 0 | Q154: 0 | R154: 0 | S154: 0 | T154: 0 | U154: 0 | V154: 0
A155: =SUM(G155:V155)-F155 -> 0 | D155: 22 | E155: Subtotal Term Stns | F155: =SUM(F150:F154) -> 7569132.033 | G155: 668598.9441 | H155: 655125.5508 | I155: 4727998.376 | J155: 549702.9589 | K155: 308476.6971 | L155: 0 | M155: 0 | N155: 0 | O155: 0 | P155: 0 | Q155: 0 | R155: 0 | S155: 0 | T155: 0 | U155: 0 | V155: 659229.5059
A156: =SUM(G156:V156)-F156 -> 0 | D156: 23 | E156: Subtotal Transmission | F156: =SUM(F155,F149) -> 22615540.03 | G156: 1399913.692 | H156: 1534678.346 | I156: 15293681.23 | J156: 2733799.149 | K156: 308476.6971 | L156: 0 | M156: 0 | N156: 0 | O156: 0 | P156: 0 | Q156: 0 | R156: 0 | S156: 0 | T156: 0 | U156: 0 | V156: 1344990.92
E157: Distribution
C158: =+SDEPDetails!C70 -> SDEP7 | D158: =MAX(D155:D157)+NoOne -> 24 | E158: Substations | F158: =SUM(G158:V158) -> 230092.472 | G158: =+SDEPDetails!E70 -> 0 | H158: 0 | I158: 0 | J158: =+SDEPDetails!J70 -> 0 | K158: =+SDEPDetails!K70 -> 230092.472 | L158: 0 | M158: 0 | N158: 0 | O158: 0 | P158: 0 | Q158: 0 | R158: 0 | S158: 0 | T158: 0 | U158: 0 | V158: 0
C159: D11 | D159: 25 | E159: Land & Land Improvements | F159: =DistnDetails!C45+DistnDetails!C54 -> 88349.70855 | G159: =$F159*'Schedule 4.1'!D$62 -> 0 | H159: =$F159*'Schedule 4.1'!E$62 -> 0 | I159: 0 | J159: =$F159*'Schedule 4.1'!I$62 -> 0 | K159: =$F159*'Schedule 4.1'!J$62 -> 0 | L159: =$F159*'Schedule 4.1'!K$62 -> 66611.26276 | M159: =$F159*'Schedule 4.1'!L$62 -> 8485.989507 | N159: =$F159*'Schedule 4.1'!M$62 -> 0 | O159: =$F159*'Schedule 4.1'!N$62 -> 0 | P159: =$F159*'Schedule 4.1'!O$62 -> 7726.182013 | Q159: =$F159*'Schedule 4.1'!P$62 -> 5526.27427 | R159: =$F159*'Schedule 4.1'!Q$62 -> 0 | S159: =$F159*'Schedule 4.1'!R$62 -> 0 | T159: =$F159*'Schedule 4.1'!S$62 -> 0 | U159: =$F159*'Schedule 4.1'!T$62 -> 0 | V159: =$F159*'Schedule 4.1'!U$62 -> 0
C160: D11 | D160: 26 | E160: Poles | F160: =SUM(DistnDetails!C46,DistnDetails!C48) -> 4135255.758 | G160: =$F160*'Schedule 4.1'!D$67 -> 0 | H160: =$F160*'Schedule 4.1'!E$67 -> 0 | I160: 0 | J160: =$F160*'Schedule 4.1'!I$67 -> 0 | K160: =$F160*'Schedule 4.1'!J$67 -> 0 | L160: =$F160*'Schedule 4.1'!K$67 -> 2391616.897 | M160: =$F160*'Schedule 4.1'!L$67 -> 817341.5711 | N160: =$F160*'Schedule 4.1'!M$67 -> 0 | O160: =$F160*'Schedule 4.1'!N$67 -> 0 | P160: =$F160*'Schedule 4.1'!O$67 -> 423317.8614 | Q160: =$F160*'Schedule 4.1'!P$67 -> 502979.4284 | R160: =$F160*'Schedule 4.1'!Q$67 -> 0 | S160: =$F160*'Schedule 4.1'!R$67 -> 0 | T160: =$F160*'Schedule 4.1'!S$67 -> 0 | U160: =$F160*'Schedule 4.1'!T$67 -> 0 | V160: =$F160*'Schedule 4.1'!U$67 -> 0
C161: D11 | D161: 27 | E161: Primary Conductor & Eqpt | F161: =DistnDetails!C49 -> 688971.1157 | G161: =$F161*'Schedule 4.1'!D$68 -> 0 | H161: =$F161*'Schedule 4.1'!E$68 -> 0 | I161: 0 | J161: =$F161*'Schedule 4.1'!I$68 -> 0 | K161: =$F161*'Schedule 4.1'!J$68 -> 0 | L161: =$F161*'Schedule 4.1'!K$68 -> 611117.3796 | M161: =$F161*'Schedule 4.1'!L$68 -> 77853.73607 | N161: =$F161*'Schedule 4.1'!M$68 -> 0 | O161: =$F161*'Schedule 4.1'!N$68 -> 0 | P161: =$F161*'Schedule 4.1'!O$68 -> 0 | Q161: =$F161*'Schedule 4.1'!P$68 -> 0 | R161: =$F161*'Schedule 4.1'!Q$68 -> 0 | S161: =$F161*'Schedule 4.1'!R$68 -> 0 | T161: =$F161*'Schedule 4.1'!S$68 -> 0 | U161: =$F161*'Schedule 4.1'!T$68 -> 0 | V161: =$F161*'Schedule 4.1'!U$68 -> 0
C162: D05 | D162: 28 | E162: Submarine Conductor | F162: 200017.5173 | G162: =$F162*'Schedule 4.1'!D$69 -> 0 | H162: =$F162*'Schedule 4.1'!E$69 -> 0 | I162: 0 | J162: =$F162*'Schedule 4.1'!I$69 -> 0 | K162: =$F162*'Schedule 4.1'!J$69 -> 0 | L162: =$F162*'Schedule 4.1'!K$69 -> 200017.5173 | M162: =$F162*'Schedule 4.1'!L$69 -> 0 | N162: =$F162*'Schedule 4.1'!M$69 -> 0 | O162: =$F162*'Schedule 4.1'!N$69 -> 0 | P162: =$F162*'Schedule 4.1'!O$69 -> 0 | Q162: =$F162*'Schedule 4.1'!P$69 -> 0 | R162: =$F162*'Schedule 4.1'!Q$69 -> 0 | S162: =$F162*'Schedule 4.1'!R$69 -> 0 | T162: =$F162*'Schedule 4.1'!S$69 -> 0 | U162: =$F162*'Schedule 4.1'!T$69 -> 0 | V162: =$F162*'Schedule 4.1'!U$69 -> 0
C163: D11 | D163: 29 | E163: Transformers | F163: =DistnDetails!C50 -> 685733.0466 | G163: =$F163*'Schedule 4.1'!D$70 -> 0 | H163: =$F163*'Schedule 4.1'!E$70 -> 0 | I163: 0 | J163: =$F163*'Schedule 4.1'!I$70 -> 0 | K163: =$F163*'Schedule 4.1'!J$70 -> 0 | L163: =$F163*'Schedule 4.1'!K$70 -> 0 | M163: =$F163*'Schedule 4.1'!L$70 -> 0 | N163: =$F163*'Schedule 4.1'!M$70 -> 247549.6298 | O163: =$F163*'Schedule 4.1'!N$70 -> 438183.4168 | P163: =$F163*'Schedule 4.1'!O$70 -> 0 | Q163: =$F163*'Schedule 4.1'!P$70 -> 0 | R163: =$F163*'Schedule 4.1'!Q$70 -> 0 | S163: =$F163*'Schedule 4.1'!R$70 -> 0 | T163: =$F163*'Schedule 4.1'!S$70 -> 0 | U163: =$F163*'Schedule 4.1'!T$70 -> 0 | V163: =$F163*'Schedule 4.1'!U$70 -> 0
C164: D11 | D164: 30 | E164: Secondary Conductor&Eqpt | F164: =DistnDetails!C51 -> 44238.47515 | G164: =$F164*'Schedule 4.1'!D$71 -> 0 | H164: =$F164*'Schedule 4.1'!E$71 -> 0 | I164: 0 | J164: =$F164*'Schedule 4.1'!I$71 -> 0 | K164: =$F164*'Schedule 4.1'!J$71 -> 0 | L164: =$F164*'Schedule 4.1'!K$71 -> 0 | M164: =$F164*'Schedule 4.1'!L$71 -> 0 | N164: =$F164*'Schedule 4.1'!M$71 -> 0 | O164: =$F164*'Schedule 4.1'!N$71 -> 0 | P164: =$F164*'Schedule 4.1'!O$71 -> 25791.03101 | Q164: =$F164*'Schedule 4.1'!P$71 -> 18447.44414 | R164: =$F164*'Schedule 4.1'!Q$71 -> 0 | S164: =$F164*'Schedule 4.1'!R$71 -> 0 | T164: =$F164*'Schedule 4.1'!S$71 -> 0 | U164: =$F164*'Schedule 4.1'!T$71 -> 0 | V164: =$F164*'Schedule 4.1'!U$71 -> 0
C165: D11 | D165: 31 | E165: Services | F165: =DistnDetails!C52 -> 110743.3595 | G165: =$F165*'Schedule 4.1'!D$72 -> 0 | H165: =$F165*'Schedule 4.1'!E$72 -> 0 | I165: 0 | J165: =$F165*'Schedule 4.1'!I$72 -> 0 | K165: =$F165*'Schedule 4.1'!J$72 -> 0 | L165: =$F165*'Schedule 4.1'!K$72 -> 0 | M165: =$F165*'Schedule 4.1'!L$72 -> 0 | N165: =$F165*'Schedule 4.1'!M$72 -> 0 | O165: =$F165*'Schedule 4.1'!N$72 -> 0 | P165: =$F165*'Schedule 4.1'!O$72 -> 0 | Q165: =$F165*'Schedule 4.1'!P$72 -> 0 | R165: =$F165*'Schedule 4.1'!Q$72 -> 110743.3595 | S165: =$F165*'Schedule 4.1'!R$72 -> 0 | T165: =$F165*'Schedule 4.1'!S$72 -> 0 | U165: =$F165*'Schedule 4.1'!T$72 -> 0 | V165: =$F165*'Schedule 4.1'!U$72 -> 0
C166: =+SystemizedPlant!C40 -> SMET03 | D166: 32 | E166: Meters | F166: =SUM((IF(VLOOKUP($C166,AllocatedMeters,3,FALSE)="",0,VLOOKUP($C166,AllocatedMeters,3,FALSE)))) -> 339056.7221 | G166: =$F166*'Schedule 4.1'!D$73 -> 0 | H166: =$F166*'Schedule 4.1'!E$73 -> 0 | I166: 0 | J166: =$F166*'Schedule 4.1'!I$73 -> 0 | K166: =$F166*'Schedule 4.1'!J$73 -> 0 | L166: =$F166*'Schedule 4.1'!K$73 -> 0 | M166: =$F166*'Schedule 4.1'!L$73 -> 0 | N166: =$F166*'Schedule 4.1'!M$73 -> 0 | O166: =$F166*'Schedule 4.1'!N$73 -> 0 | P166: =$F166*'Schedule 4.1'!O$73 -> 0 | Q166: =$F166*'Schedule 4.1'!P$73 -> 0 | R166: =$F166*'Schedule 4.1'!Q$73 -> 0 | S166: =$F166*'Schedule 4.1'!R$73 -> 339056.7221 | T166: =$F166*'Schedule 4.1'!S$73 -> 0 | U166: =$F166*'Schedule 4.1'!T$73 -> 0 | V166: =$F166*'Schedule 4.1'!U$73 -> 0
C167: D11 | D167: 33 | E167: Street Lighting | F167: =DistnDetails!C53 -> 131397.1791 | G167: =$F167*'Schedule 4.1'!D$74 -> 0 | H167: =$F167*'Schedule 4.1'!E$74 -> 0 | I167: 0 | J167: =$F167*'Schedule 4.1'!I$74 -> 0 | K167: =$F167*'Schedule 4.1'!J$74 -> 0 | L167: =$F167*'Schedule 4.1'!K$74 -> 0 | M167: =$F167*'Schedule 4.1'!L$74 -> 0 | N167: =$F167*'Schedule 4.1'!M$74 -> 0 | O167: =$F167*'Schedule 4.1'!N$74 -> 0 | P167: =$F167*'Schedule 4.1'!O$74 -> 0 | Q167: =$F167*'Schedule 4.1'!P$74 -> 0 | R167: =$F167*'Schedule 4.1'!Q$74 -> 0 | S167: =$F167*'Schedule 4.1'!R$74 -> 0 | T167: =$F167*'Schedule 4.1'!S$74 -> 131397.1791 | U167: =$F167*'Schedule 4.1'!T$74 -> 0 | V167: =$F167*'Schedule 4.1'!U$74 -> 0
A168: =SUM(G168:V168)-F168 -> 0 | D168: 34 | E168: Subtotal Distribution | F168: =SUM(F158:F167) -> 6653855.354 | G168: =SUM(G158:G167) -> 0 | H168: =SUM(H158:H167) -> 0 | I168: =SUM(I158:I167) -> 0 | J168: =SUM(J158:J167) -> 0 | K168: 230092.472 | L168: 3269363.057 | M168: 903681.2967 | N168: 247549.6298 | O168: 438183.4168 | P168: 456835.0745 | Q168: 526953.1468 | R168: 110743.3595 | S168: 339056.7221 | T168: 131397.1791 | U168: 0 | V168: 0
A169: =SUM(G169:V169)-F169 -> 0 | D169: 35 | E169: Subttl Prod, Trans, & Dist | F169: =SUM(F168,F156,F147) -> 73328936.12 | G169: 29155250.57 | H169: 17838882.2 | I169: 15293681.23 | J169: 2733799.149 | K169: 538569.1692 | L169: 3269363.057 | M169: 903681.2967 | N169: 247549.6298 | O169: 438183.4168 | P169: 456835.0745 | Q169: 526953.1468 | R169: 110743.3595 | S169: 339056.7221 | T169: 131397.1791 | U169: 0 | V169: 1344990.92
B170: =IF(OverheadAlloc="Expenses","E-GTDC","L-GTDC") -> E-GTDC | C170: =+SystemizedPlant!C119 -> SGPLT03 | D170: 36 | E170: General | F170: =+SystemizedPlant!E119 -> 5541891.591 | G170: =$F170*VLOOKUP($B170,RatiosIslInt,G$552,FALSE) -> 2627213.642 | H170: 1281031.424 | I170: 622651.9432 | J170: 98485.83468 | K170: 53041.67963 | L170: 317790.818 | M170: 82840.20416 | N170: 20573.26675 | O170: 36416.39183 | P170: 44519.03201 | Q170: 49809.69303 | R170: 18985.04669 | S170: 23398.42625 | T170: 7111.264548 | U170: 200460.6278 | V170: 57562.29649
C171: G06 | D171: 37 | E171: NLSO | F171: 118423.3184 | G171: =$F171*(G$169/SUM($G$169:$V$169)) -> 47084.57131 | H171: 28809.08601 | I171: 24698.68756 | J171: 4414.97701 | K171: 869.7678106 | L171: 5279.891443 | M171: 1459.40939 | N171: 399.7828169 | O171: 707.6488088 | P171: 737.7704949 | Q171: 851.0083959 | R171: 178.8461258 | S171: 547.5631353 | T171: 212.2012237 | U171: 0 | V171: 2172.106899
C172: =+SDEPDetails!C75 -> SDEP8 | D172: 38 | E172: Telecontrol - Custmr & Spec | F172: =SUM(G172:V172) -> 0 | G172: 0 | H172: 0 | I172: 0 | J172: 0 | K172: 0 | L172: 0 | M172: 0 | N172: 0 | O172: 0 | P172: 0 | Q172: 0 | R172: 0 | S172: 0 | T172: 0 | U172: =+SDEPDetails!L75 -> 0 | V172: =+SDEPDetails!M75 -> 0
C173: =+SDEPDetails!C82 -> SDEP9 | D173: 39 | E173: Feasibility Studies | F173: =SUM(G173:V173) -> 118091.6768 | G173: =+SDEPDetails!E82 -> 118091.6764 | H173: 0 | I173: =+SDEPDetails!F82 -> 0 | J173: 0 | K173: =+SDEPDetails!K82 -> 0.000367 | L173: 0 | M173: 0 | N173: 0 | O173: 0 | P173: 0 | Q173: 0 | R173: 0 | S173: 0 | T173: 0 | U173: 0 | V173: 0
C174: G10 | D174: =MAX(D170:D173)+NoOne -> 40 | E174: Feasibility Studies - General | F174: 0 | G174: =$F174*(G$169/SUM($G$169:$V$169)) -> 0 | H174: 0 | I174: 0 | J174: 0 | K174: 0 | L174: 0 | M174: 0 | N174: 0 | O174: 0 | P174: 0 | Q174: 0 | R174: 0 | S174: 0 | T174: 0 | U174: 0 | V174: 0
C175: =+SystemizedPlant!C74 -> SCS2_03 | D175: =MAX(D173:D174)+NoOne -> 41 | E175: Software - General | F175: =+SystemizedPlant!E74 -> 790746.4122 | G175: 314397.1671 | H175: 192366.5179 | I175: 164920.2102 | J175: 29480.06589 | K175: 5807.688762 | L175: 35255.34726 | M175: 9744.894457 | N175: 2669.464361 | O175: 4725.173759 | P175: 4926.304883 | Q175: 5682.426778 | R175: 1194.206801 | S175: 3656.23587 | T175: 1416.928343 | U175: 0 | V175: 14503.77983
A176: =SUM(G176:V176)-F176 -> 0 | D176: =MAX(D173:D175)+NoOne -> 42 | E176: Total Depreciation Expense | F176: =SUM(F169:F175) -> 79898089.12 | G176: 32262037.63 | H176: 19341089.23 | I176: 16105952.07 | J176: 2866180.026 | K176: 598288.3058 | L176: 3627689.114 | M176: 997725.8047 | N176: 271192.1437 | O176: 480032.6312 | P176: 507018.1819 | Q176: 583296.275 | R176: 131101.4592 | S176: 366658.9474 | T176: 140137.5732 | U176: 200460.6278 | V176: 1419229.103
V181: Schedule 2.6A | AI181: Schedule 2.6A
V182: Page 1 of 2 | AI182: Page 2 of 2
D184: =D5 -> NEWFOUNDLAND AND LABRADOR HYDRO | AA184: NEWFOUNDLAND & LABRADOR HYDRO
D185: =D6 -> 2019 Test Year Cost of Service Study | AA185: =RunName -> 2019 Test Year Cost of Service Study
D186: =$B$1 -> Island Interconnected | AA186: =$B$1 -> Island Interconnected
D187: Functional Classification of Rate Base | AA187: =+D187&" (CONT'D.)" -> Functional Classification of Rate Base (CONT'D.)
E189: =MAX(D189)+NoOne -> 1 | F189: 2 | G189: 3 | H189: 4 | I189: 5 | J189: 6 | K189: 7 | L189: 8 | M189: 9 | N189: 10 | O189: 11 | P189: 12 | Q189: 13 | R189: 14 | S189: 15 | T189: 16 | U189: 17 | V189: 18 | AC189: =MAX(AB189)+NoOne -> 1 | AE189: =MAX(V189)+NoOne -> 19
J190: Rural Prod & | K190: Distribution | V190: Specifically
D191: Line | F191: Total | G191: Production | H191: Production | I191: Transmission | J191: Transmission | K191: Substations | L191: Primary Lines | N191: Line Transformers | P191: Secondary Lines | R191: Services | S191: Meters | T191: Street Lighting | U191: Accounting | V191: Assigned | AC191: Description | AE191: Basis of Functional Classification
D192: No. | E192: Description | F192: Amount | G192: Demand | H192: Energy | I192: Demand | J192: Demand | K192: Demand | L192: Demand | M192: Customer | N192: Demand | O192: Customer | P192: Demand | Q192: Customer | R192: Customer | S192: Customer | T192: Customer | U192: Customer | V192: Customer
F193: ($) | G193: ($) | H193: ($) | I193: ($) | J193: ($) | K193: ($) | L193: ($) | M193: ($) | N193: ($) | O193: ($) | P193: ($) | Q193: ($) | R193: ($) | S193: ($) | T193: ($) | U193: ($) | V193: ($) | AC193: =IF(ISBLANK(E193),"",E193) -> 
D195: =MAX(D192:D194)+NoOne -> 1 | E195: Average Net Book Value | F195: =SUM(G195:V195) -> 1927122840 | G195: =G116 -> 625204752 | H195: 491594791.7 | I195: 558417140.2 | J195: 71072875.32 | K195: 14798575.32 | L195: 66070044.16 | M195: 17738453.98 | N195: 4491211.97 | O195: 7949818.419 | P195: 9174200.878 | Q195: 10379060.58 | R195: 3029717.805 | S195: 5213111.026 | T195: 1090485.693 | U195: 2996442.168 | V195: 37902158.87 | AC195: Average Net Book Value | AE195: =+"Sch. 2.3 , L. "&D116 -> Sch. 2.3 , L. 42
A197: =F197-SUM(G197:V197) -> 0 | D197: =MAX(D194:D196)+NoOne -> 2 | E197: Cash Working Capital | F197: ='Rate Base'!E15 -> 1994337.382 | G197: =IF(SUM($G$195:$V$195)<>0,$F197*(G$195/SUM($G$195:$V$195)),0) -> 647010.7573 | H197: 508740.7245 | I197: 577893.715 | J197: 73551.76803 | K197: 15314.72273 | L197: 68374.44721 | M197: 18357.13902 | N197: 4647.85728 | O197: 8227.093635 | P197: 9494.180329 | Q197: 10741.06335 | R197: 3135.388855 | S197: 5394.934863 | T197: 1128.519852 | U197: 3100.952625 | V197: 39224.11728 | AC197: Cash Working Capital | AE197: Prorated on Average Net Book Value, L. 1
D199: =MAX(D196:D198)+NoOne -> 3 | E199: Fuel Inventory - No. 6 Fuel | F199: ='Rate Base'!E16 -> 66169663.36 | G199: =$F199*(G288/$F288) -> 0 | H199: 66169663.36 | I199: 0 | J199: 0 | K199: 0 | L199: 0 | M199: 0 | N199: 0 | O199: 0 | P199: 0 | Q199: 0 | R199: 0 | S199: 0 | T199: 0 | U199: 0 | V199: 0 | AC199: =IF(ISBLANK(E199),"",E199) -> Fuel Inventory - No. 6 Fuel | AE199: =+"Production - Demand, Energy ratios Sch.4.1 L."&'Schedule 4.1'!$A$24 -> Production - Demand, Energy ratios Sch.4.1 L.10
A200: =F200-SUM(G200:V200) -> 0 | D200: =MAX(D197:D199)+NoOne -> 4 | E200: Fuel Inventory - Diesel | F200: ='Rate Base'!E17 -> 371764.49 | G200: =$F200*(G289/$F289) -> 371764.49 | H200: 0 | I200: 0 | J200: 0 | K200: 0 | L200: 0 | M200: 0 | N200: 0 | O200: 0 | P200: 0 | Q200: 0 | R200: 0 | S200: 0 | T200: 0 | U200: 0 | V200: 0 | AC200: Fuel Inventory - Diesel | AE200: =+"Production - Demand, Energy ratios Sch.4.1 L."&'Schedule 4.1'!$A$26 -> Production - Demand, Energy ratios Sch.4.1 L.12
D201: =MAX(D198:D200)+NoOne -> 5 | E201: Fuel Inventory - Gas Turbine | F201: ='Rate Base'!E18 -> 4911126.935 | G201: =$F201*(G290/$F290) -> 4911126.935 | H201: 0 | I201: 0 | J201: 0 | K201: 0 | L201: 0 | M201: 0 | N201: 0 | O201: 0 | P201: 0 | Q201: 0 | R201: 0 | S201: 0 | T201: 0 | U201: 0 | V201: 0 | AC201: Fuel Inventory - Gas Turbine | AE201: =+"Production - Demand, Energy ratios Sch.4.1 L."&'Schedule 4.1'!$A$25 -> Production - Demand, Energy ratios Sch.4.1 L.11
A203: =F203-SUM(G203:V203) -> 0 | D203: =MAX(D200:D202)+NoOne -> 6 | E203: Inventory/Supplies | F203: ='Rate Base'!E19 -> 28914668.31 | G203: =IF(SUM($G$58:$V$58)<>0,$F203*(G$58/SUM($G$58:$V$58)),0) -> 9963983.848 | H203: 7204611.453 | I203: 7126380.815 | J203: 1290300.401 | K203: 273417.9461 | L203: 1182461.548 | M203: 308238.4718 | N203: 76550.65998 | O203: 135501.0297 | P203: 165649.9828 | Q203: 185335.8984 | R203: 70641.08348 | S203: 83575.72994 | T203: 26460.16314 | U203: 67117.72729 | V203: 754441.5525 | AC203: Inventory/Supplies | AE203: ="Prorated on Total Plant in Service, Sch. 2.2, L. "&$D$58 -> Prorated on Total Plant in Service, Sch. 2.2, L. 42
A205: =F205-SUM(G205:V205) -> 0 | D205: =MAX(D202:D204)+NoOne -> 7 | E205: Deferred Charges: Holyrood | F205: =+'Rate Base'!E20 -> 0 | G205: =IF(SUM('Schedule 4.1'!$D$15:'Schedule 4.1'!$E$15)<>0,$F205*('Schedule 4.1'!D$15/SUM('Schedule 4.1'!$D$15:'Schedule 4.1'!$E$15)),0) -> 0 | H205: =IF(SUM('Schedule 4.1'!$D$15:'Schedule 4.1'!$E$15)<>0,$F205*('Schedule 4.1'!E$15/SUM('Schedule 4.1'!$D$15:'Schedule 4.1'!$E$15)),0) -> 0 | AC205: Deferred Charges: Holyrood | AE205: =+"Production - Demand, Energy ratios Sch.4.1 L."&'Schedule 4.1'!$A$15 -> Production - Demand, Energy ratios Sch.4.1 L.3
A206: =F206-SUM(G206:V206) -> 0 | D206: =MAX(D203:D205)+NoOne -> 8 | E206: Deferred Charges: Foreign Exchange Loss and Regulatory Costs | F206: =+'Rate Base'!E21 -> 67177773.33 | G206: =IF(SUM($G$195:$V$195)<>0,$F206*(G$195/SUM($G$195:$V$195)),0) -> 21794076.77 | H206: 17136553.42 | I206: 19465920.53 | J206: 2477536.672 | K206: 515865.0594 | L206: 2303142.466 | M206: 618346.5922 | N206: 156559.6201 | O206: 277123.5381 | P206: 319804.4122 | Q206: 361804.7406 | R206: 105613.2446 | S206: 181724.3735 | T206: 38013.35296 | U206: 104453.2858 | V206: 1321235.255 | AC206: Deferred Charges: Foreign Exchange Loss and Regulatory Costs | AE206: Prorated on Average Net Book Value, L. 1
A209: =SUM(F195:F206)-F209 -> 0 | D209: =MAX(D206:D208)+NoOne -> 9 | E209: Total Rate Base | F209: =SUM(G209:V209) -> 2096662174 | G209: =SUM(G195:G206) -> 662892714.8 | H209: =SUM(H195:H206) -> 582614360.7 | I209: =SUM(I195:I206) -> 585587335.2 | J209: =SUM(J195:J206) -> 74914264.16 | K209: 15603173.05 | L209: 69624022.62 | M209: 18683396.19 | N209: 4728970.108 | O209: 8370670.08 | P209: 9669149.453 | Q209: 10936942.29 | R209: 3209107.522 | S209: 5483806.065 | T209: 1156087.729 | U209: 3171114.134 | V209: 40017059.8 | AC209: Total Rate Base
D211: =MAX(D208:D210)+NoOne -> 10 | E211: Less: Rural Asset Portion | F211: =SUM(G211:V211) -> 0 | G211: 0 | H211: 0 | I211: 0 | J211: =IF(RuralMarginSwitch=1,-J209,0) -> 0 | K211: =IF(RuralMarginSwitch=1,-K209,0) -> 0 | L211: 0 | M211: 0 | N211: 0 | O211: 0 | P211: 0 | Q211: 0 | R211: 0 | S211: 0 | T211: 0 | U211: 0 | V211: =V209*V375 -> 0 | AC211: Less: Rural Asset Portion | AE211: =IF(RuralMarginSwitch=1,"Rural Transmission and Distribution Rate Base","N/A") -> N/A
A213: =F209+F211-F213 -> 0 | D213: =MAX(D210:D212)+NoOne -> 11 | E213: Rate Base Available for Equity Return | F213: =SUM(G213:V213) -> 2096662174 | G213: =SUM(G209,G211) -> 662892714.8 | H213: =SUM(H209,H211) -> 582614360.7 | I213: =SUM(I209,I211) -> 585587335.2 | J213: =SUM(J209,J211) -> 74914264.16 | K213: 15603173.05 | L213: 69624022.62 | M213: 18683396.19 | N213: 4728970.108 | O213: 8370670.08 | P213: 9669149.453 | Q213: 10936942.29 | R213: 3209107.522 | S213: 5483806.065 | T213: 1156087.729 | U213: 3171114.134 | V213: 40017059.8 | AC213: Rate Base Available for Equity Return
A215: =(F$209*'Rate Base'!E41)-F215 -> 0 | D215: =MAX(D212:D214)+NoOne -> 12 | E215: Return on Debt | F215: =SUM(G215:V215) -> 84767028.68 | G215: ='Rate Base'!$E$41*G209 -> 26800429.02 | H215: ='Rate Base'!$E$41*H209 -> 23554814.33 | I215: ='Rate Base'!$E$41*I209 -> 23675010.24 | J215: ='Rate Base'!$E$41*J209 -> 3028747.148 | K215: ='Rate Base'!$E$41*K209 -> 630828.6731 | L215: ='Rate Base'!$E$41*L209 -> 2814865.263 | M215: ='Rate Base'!$E$41*M209 -> 755360.5918 | N215: ='Rate Base'!$E$41*N209 -> 191189.9541 | O215: ='Rate Base'!$E$41*O209 -> 338422.1071 | P215: ='Rate Base'!$E$41*P209 -> 390918.9946 | Q215: ='Rate Base'!$E$41*Q209 -> 442175.2402 | R215: ='Rate Base'!$E$41*R209 -> 129742.6513 | S215: ='Rate Base'!$E$41*S209 -> 221707.6035 | T215: ='Rate Base'!$E$41*T209 -> 46740.0628 | U215: ='Rate Base'!$E$41*U209 -> 128206.5972 | V215: ='Rate Base'!$E$41*V209 -> 1617870.202 | AC215: Return on Debt | AE215: =+"L."&D209&" x Sch.1.1,p2,L."&'Rate Base'!$B$32 -> L.9 x Sch.1.1,p2,L.12
A217: =(F$213*'Rate Base'!E42)-F217 -> 0 | D217: =MAX(D214:D216)+NoOne -> 13 | E217: Return on Equity | F217: =SUM(G217:V217) -> 34428030.54 | G217: ='Rate Base'!$E$42*G213 -> 10884963.21 | H217: ='Rate Base'!$E$42*H213 -> 9566760.566 | I217: ='Rate Base'!$E$42*I213 -> 9615577.996 | J217: ='Rate Base'!$E$42*J213 -> 1230122.147 | K217: ='Rate Base'!$E$42*K213 -> 256210.3351 | L217: ='Rate Base'!$E$42*L213 -> 1143254.267 | M217: ='Rate Base'!$E$42*M213 -> 306788.8297 | N217: ='Rate Base'!$E$42*N213 -> 77651.57847 | O217: ='Rate Base'!$E$42*O213 -> 137449.7469 | P217: ='Rate Base'!$E$42*P213 -> 158771.297 | Q217: ='Rate Base'!$E$42*Q213 -> 179588.9618 | R217: ='Rate Base'!$E$42*R213 -> 52694.8276 | S217: ='Rate Base'!$E$42*S213 -> 90046.28645 | T217: ='Rate Base'!$E$42*T213 -> 18983.42239 | U217: ='Rate Base'!$E$42*U213 -> 52070.96099 | V217: ='Rate Base'!$E$42*V213 -> 657096.1094 | AC217: Return on Equity | AE217: =+"L."&D213&" x Sch.1.1,p2,L."&'Rate Base'!$B$36 -> L.11 x Sch.1.1,p2,L.15
A219: =SUM(F215:F217)-F219 -> 0 | D219: =MAX(D216:D218)+NoOne -> 14 | E219: Return on Rate Base | F219: =SUM(G219:V219) -> 119195059.2 | G219: =SUM(G215:G217) -> 37685392.23 | H219: =SUM(H215:H217) -> 33121574.9 | I219: =SUM(I215:I217) -> 33290588.24 | J219: =SUM(J215:J217) -> 4258869.295 | K219: 887039.0082 | L219: 3958119.531 | M219: 1062149.422 | N219: 268841.5325 | O219: 475871.854 | P219: 549690.2916 | Q219: 621764.202 | R219: 182437.4789 | S219: 311753.89 | T219: 65723.48519 | U219: 180277.5582 | V219: 2274966.312 | AC219: Return on Rate Base
V221: Schedule 2.4A | AI221: Schedule 2.4A
V222: Page 1 of 2 | AI222: Page 2 of 2
D223: =D5 -> NEWFOUNDLAND AND LABRADOR HYDRO | AB223: NEWFOUNDLAND & LABRADOR HYDRO
D224: =D6 -> 2019 Test Year Cost of Service Study | AB224: =RunName -> 2019 Test Year Cost of Service Study
D225: =$B$1 -> Island Interconnected | AB225: =$B$1 -> Island Interconnected
... 322 more rows

Sheet LabIntCos
A1: 99 | B1: Labrador Interconnected
A2: 19 | B2: Plant Lookups
U3: Schedule 2.2E | AF3: Schedule 2.2E
U4: Page 1 of 2 | AF4: Page 2 of 2
D6: NEWFOUNDLAND AND LABRADOR HYDRO | Y6: NEWFOUNDLAND & LABRADOR HYDRO
D7: =RunName -> 2019 Test Year Cost of Service Study | Y7: =RunName -> 2019 Test Year Cost of Service Study
D8: =$B$1 -> Labrador Interconnected | Y8: =$B$1 -> Labrador Interconnected
D9: Functional Classification of Plant in Service for the Allocation of O&M Expense | Y9: =+D9&" (CONT'D.)" -> Functional Classification of Plant in Service for the Allocation of O&M Expense (CONT'D.)
E11: =MAX(D11)+NoOne -> 1 | F11: 2 | G11: 3 | H11: 4 | I11: 5 | J11: 6 | K11: 7 | L11: 8 | M11: 9 | N11: 10 | O11: 11 | P11: 12 | Q11: 13 | R11: 14 | S11: 15 | T11: 16 | U11: 17
J12: Distribution | U12: Specifically | AA12: =MAX(Z12)+NoOne -> 1 | AC12: =MAX(U11)+NoOne -> 18
A13: Check | B13: Alloc | C13: Code | D13: Line | F13: Total | G13: Production | H13: Production | I13: Transmission | J13: Substations | K13: Primary Lines | M13: Line Transformers | O13: Secondary Lines | Q13: Services | R13: Meters | S13: Street Lighting | T13: Accounting | U13: Assigned
A14: Column | B14: Factor | C14: Reference | D14: No. | E14: Description | F14: Amount | G14: Demand | H14: Energy | I14: Demand | J14: Demand | K14: Demand | L14: Customer | M14: Demand | N14: Customer | O14: Demand | P14: Customer | Q14: Customer | R14: Customer | S14: Customer | T14: Customer | U14: Customer | AA14: Description | AB14: Basis of Functional Classification
A15: =ROUND(SUM(A16:A567),2) -> 0 | F15: ($) | G15: ($) | H15: ($) | I15: ($) | J15: ($) | K15: ($) | L15: ($) | M15: ($) | N15: ($) | O15: ($) | P15: ($) | Q15: ($) | R15: ($) | S15: ($) | T15: ($) | U15: ($)
E17: Production | AA17: =IF(ISBLANK(E17),"",E17) -> Production
AA18: =IF(ISBLANK(E18),"",E18) -> 
C19: P04 | D19: =MAX(D16:D18)+NoOne -> 1 | E19: Gas Turbines | F19: 24130928.69 | G19: =$F19*'Schedule 4.1'!D$21 -> 24130928.69 | H19: =$F19*'Schedule 4.1'!E$21 -> 0 | I19: =$F19*'Schedule 4.1'!G$16 -> 0 | J19: =$F19*'Schedule 4.1'!J$16 -> 0 | K19: =$F19*'Schedule 4.1'!K$16 -> 0 | L19: =$F19*'Schedule 4.1'!L$16 -> 0 | M19: =$F19*'Schedule 4.1'!M$16 -> 0 | N19: =$F19*'Schedule 4.1'!N$16 -> 0 | O19: =$F19*'Schedule 4.1'!O$16 -> 0 | P19: =$F19*'Schedule 4.1'!P$16 -> 0 | Q19: =$F19*'Schedule 4.1'!Q$16 -> 0 | R19: =$F19*'Schedule 4.1'!R$16 -> 0 | S19: =$F19*'Schedule 4.1'!S$16 -> 0 | T19: =$F19*'Schedule 4.1'!T$16 -> 0 | U19: =$F19*'Schedule 4.1'!U$16 -> 0 | AA19: Gas Turbines | AB19: ="Production - Demand, Energy ratios Sch.4.1 L."&'Schedule 4.1'!$A$21 -> Production - Demand, Energy ratios Sch.4.1 L.9
C20: P03 | D20: =MAX(D17:D19)+NoOne -> 2 | E20: Diesel | F20: 3341091.22 | G20: =$F20*'Schedule 4.1'!$D$21 -> 3341091.22 | H20: =$F20*'Schedule 4.1'!$E$21 -> 0 | I20: 0 | J20: 0 | K20: 0 | L20: 0 | M20: 0 | N20: 0 | O20: 0 | P20: 0 | Q20: 0 | R20: 0 | S20: 0 | T20: 0 | U20: 0 | AA20: Diesel | AB20: ="Production - Demand, Energy ratios Sch.4.1 L."&'Schedule 4.1'!$A$21 -> Production - Demand, Energy ratios Sch.4.1 L.9
A21: =SUM(G21:U21)-F21 -> 0 | D21: =MAX(D18:D20)+NoOne -> 3 | E21: Subtotal Production | F21: =SUM(F19:F20) -> 27472019.91 | G21: =SUM(G19:G20) -> 27472019.91 | H21: =SUM(H19:H20) -> 0 | I21: 0 | J21: 0 | K21: 0 | L21: 0 | M21: 0 | N21: 0 | O21: 0 | P21: 0 | Q21: 0 | R21: 0 | S21: 0 | T21: 0 | U21: 0 | AA21: Subtotal Production
E23: Transmission | AA23: Transmission
C24: =+SPLTDetails!C$139 -> SPLT16 | D24: =MAX(D21:D23)+NoOne -> 4 | E24: Lines | F24: =SUM(G24:U24) -> 44748091.33 | G24: 0 | H24: =+SPLTDetails!G139*'Schedule 4.1'!E32 -> 0 | I24: =SPLTDetails!I139*'Schedule 4.1'!G32 -> 42551062.19 | J24: =SPLTDetails!J139*'Schedule 4.1'!H32 -> 2197029.14 | K24: =+SPLTDetails!K139 -> 0 | L24: 0 | M24: 0 | N24: 0 | O24: 0 | P24: 0 | Q24: 0 | R24: 0 | S24: 0 | T24: 0 | U24: =+SPLTDetails!M139 -> 0 | AA24: Lines | AB24: Production, Transmission - Demand; Distribution - Primary Demand; Spec Assigned - Custmr
C25: =+SPLTDetails!C$153 -> SPLT17 | D25: =MAX(D22:D24)+NoOne -> 5 | E25: Terminal Stations | F25: =SUM(G25:U25) -> 41789870.77 | G25: 0 | H25: =+SPLTDetails!G153*'Schedule 4.1'!E36 -> 0 | I25: =SPLTDetails!G153*'Schedule 4.1'!G36 -> 25396248.37 | J25: =SPLTDetails!K153 -> 16393622.41 | K25: 0 | L25: 0 | M25: 0 | N25: 0 | O25: 0 | P25: 0 | Q25: 0 | R25: 0 | S25: 0 | T25: 0 | U25: =SNBVDetails!M146 -> 0 | AA25: Terminal Stations | AB25: Production, Transmission - Demand; Spec Assigned - Custmr
A26: =SUM(G26:U26)-F26 -> 0 | D26: =MAX(D23:D25)+NoOne -> 6 | E26: Subtotal Transmission | F26: =SUM(F24:F25) -> 86537962.1 | G26: =SUM(G24:G25) -> 0 | H26: 0 | I26: 67947310.56 | J26: 18590651.55 | K26: 0 | L26: 0 | M26: 0 | N26: 0 | O26: 0 | P26: 0 | Q26: 0 | R26: 0 | S26: 0 | T26: 0 | U26: 0 | AA26: Subtotal Transmission
E28: Distribution | AA28: Distribution
C29: =+SPLTDetails!C$159 -> SPLT18 | D29: =MAX(D26:D28)+NoOne -> 7 | E29: Substations | F29: =SUM(G29:U29) -> 9816507.957 | G29: =+SPLTDetails!E159 -> 0 | H29: 0 | I29: 0 | J29: =SPLTDetails!K159 -> 9816507.957 | K29: 0 | L29: 0 | M29: 0 | N29: 0 | O29: 0 | P29: 0 | Q29: 0 | R29: 0 | S29: 0 | T29: 0 | U29: 0 | AA29: Substations | AB29: Production - Demand; Dist Substns - Demand
C30: D11 | D30: 8 | E30: Land & Land Improvements | F30: =DistnDetails!G13+DistnDetails!G22 -> 1308897.279 | G30: =$F30*'Schedule 4.1'!D$62 -> 0 | H30: =$F30*'Schedule 4.1'!E$62 -> 0 | I30: =$F30*'Schedule 4.1'!G$62 -> 0 | J30: =$F30*'Schedule 4.1'!J$62 -> 0 | K30: =$F30*'Schedule 4.1'!K$62 -> 986843.1036 | L30: =$F30*'Schedule 4.1'!L$62 -> 125719.5837 | M30: =$F30*'Schedule 4.1'!M$62 -> 0 | N30: =$F30*'Schedule 4.1'!N$62 -> 0 | O30: =$F30*'Schedule 4.1'!O$62 -> 114463.0671 | P30: =$F30*'Schedule 4.1'!P$62 -> 81871.52481 | Q30: =$F30*'Schedule 4.1'!Q$62 -> 0 | R30: =$F30*'Schedule 4.1'!R$62 -> 0 | S30: =$F30*'Schedule 4.1'!S$62 -> 0 | T30: =$F30*'Schedule 4.1'!T$62 -> 0 | U30: =$F30*'Schedule 4.1'!U$62 -> 0 | AA30: Land & Land Improvements | AB30: ="Primary, Secondary - Demand, Customer - zero intercept ratios Sch.4.1 L."&'Schedule 4.1'!$A$62 -> Primary, Secondary - Demand, Customer - zero intercept ratios Sch.4.1 L.32
C31: D11 | D31: 9 | E31: Poles | F31: =DistnDetails!G14+DistnDetails!G16 -> 38639236.6 | G31: =$F31*'Schedule 4.1'!D$67 -> 0 | H31: =$F31*'Schedule 4.1'!E$67 -> 0 | I31: =$F31*'Schedule 4.1'!G$67 -> 0 | J31: =$F31*'Schedule 4.1'!J$67 -> 0 | K31: =$F31*'Schedule 4.1'!K$67 -> 22346925.21 | L31: =$F31*'Schedule 4.1'!L$67 -> 7637122.393 | M31: =$F31*'Schedule 4.1'!M$67 -> 0 | N31: =$F31*'Schedule 4.1'!N$67 -> 0 | O31: =$F31*'Schedule 4.1'!O$67 -> 3955421.372 | P31: =$F31*'Schedule 4.1'!P$67 -> 4699767.626 | Q31: =$F31*'Schedule 4.1'!Q$67 -> 0 | R31: =$F31*'Schedule 4.1'!R$67 -> 0 | S31: =$F31*'Schedule 4.1'!S$67 -> 0 | T31: =$F31*'Schedule 4.1'!T$67 -> 0 | U31: =$F31*'Schedule 4.1'!U$67 -> 0 | AA31: Poles | AB31: ="Primary, Secondary - Demand, Customer - zero intercept ratios Sch.4.1 L."&'Schedule 4.1'!$A$67 -> Primary, Secondary - Demand, Customer - zero intercept ratios Sch.4.1 L.37
C32: D11 | D32: 10 | E32: Primary Conductor & Eqpt | F32: =DistnDetails!G17 -> 6962493.44 | G32: =$F32*'Schedule 4.1'!D$68 -> 0 | H32: =$F32*'Schedule 4.1'!E$68 -> 0 | I32: =$F32*'Schedule 4.1'!G$68 -> 0 | J32: =$F32*'Schedule 4.1'!J$68 -> 0 | K32: =$F32*'Schedule 4.1'!K$68 -> 6175731.681 | L32: =$F32*'Schedule 4.1'!L$68 -> 786761.7587 | M32: =$F32*'Schedule 4.1'!M$68 -> 0 | N32: =$F32*'Schedule 4.1'!N$68 -> 0 | O32: =$F32*'Schedule 4.1'!O$68 -> 0 | P32: =$F32*'Schedule 4.1'!P$68 -> 0 | Q32: =$F32*'Schedule 4.1'!Q$68 -> 0 | R32: =$F32*'Schedule 4.1'!R$68 -> 0 | S32: =$F32*'Schedule 4.1'!S$68 -> 0 | T32: =$F32*'Schedule 4.1'!T$68 -> 0 | U32: =$F32*'Schedule 4.1'!U$68 -> 0 | AA32: Primary Conductor & Eqpt | AB32: ="Primary - Demand, Customer - zero intercept ratios Sch.4.1 L."&'Schedule 4.1'!$A$68 -> Primary - Demand, Customer - zero intercept ratios Sch.4.1 L.38
C33: D05 | D33: 11 | E33: Submarine Conductor | F33: 620107.91 | G33: =$F33*'Schedule 4.1'!D$69 -> 0 | H33: =$F33*'Schedule 4.1'!E$69 -> 0 | I33: =$F33*'Schedule 4.1'!G$69 -> 0 | J33: =$F33*'Schedule 4.1'!J$69 -> 0 | K33: =$F33*'Schedule 4.1'!K$69 -> 620107.91 | L33: =$F33*'Schedule 4.1'!L$69 -> 0 | M33: =$F33*'Schedule 4.1'!M$69 -> 0 | N33: =$F33*'Schedule 4.1'!N$69 -> 0 | O33: =$F33*'Schedule 4.1'!O$69 -> 0 | P33: =$F33*'Schedule 4.1'!P$69 -> 0 | Q33: =$F33*'Schedule 4.1'!Q$69 -> 0 | R33: =$F33*'Schedule 4.1'!R$69 -> 0 | S33: =$F33*'Schedule 4.1'!S$69 -> 0 | T33: =$F33*'Schedule 4.1'!T$69 -> 0 | U33: =$F33*'Schedule 4.1'!U$69 -> 0 | AA33: Submarine Conductor | AB33: ="Primary - Demand, Customer - zero intercept ratios Sch.4.1 L."&'Schedule 4.1'!$A$69 -> Primary - Demand, Customer - zero intercept ratios Sch.4.1 L.39
C34: D11 | D34: 12 | E34: Transformers | F34: =DistnDetails!G18 -> 16394541.53 | G34: =$F34*'Schedule 4.1'!D$70 -> 0 | H34: =$F34*'Schedule 4.1'!E$70 -> 0 | I34: =$F34*'Schedule 4.1'!G$70 -> 0 | J34: =$F34*'Schedule 4.1'!J$70 -> 0 | K34: =$F34*'Schedule 4.1'!K$70 -> 0 | L34: =$F34*'Schedule 4.1'!L$70 -> 0 | M34: =$F34*'Schedule 4.1'!M$70 -> 5918429.492 | N34: =$F34*'Schedule 4.1'!N$70 -> 10476112.04 | O34: =$F34*'Schedule 4.1'!O$70 -> 0 | P34: =$F34*'Schedule 4.1'!P$70 -> 0 | Q34: =$F34*'Schedule 4.1'!Q$70 -> 0 | R34: =$F34*'Schedule 4.1'!R$70 -> 0 | S34: =$F34*'Schedule 4.1'!S$70 -> 0 | T34: =$F34*'Schedule 4.1'!T$70 -> 0 | U34: =$F34*'Schedule 4.1'!U$70 -> 0 | AA34: Transformers | AB34: =+"Transformers - Demand, Customer - zero intercept ratios Sch.4.1 L."&'Schedule 4.1'!$A$70 -> Transformers - Demand, Customer - zero intercept ratios Sch.4.1 L.40
C35: D11 | D35: 13 | E35: Secondary Conductor&Eqpt | F35: =DistnDetails!G19 -> 1215204.8 | G35: =$F35*'Schedule 4.1'!D$71 -> 0 | H35: =$F35*'Schedule 4.1'!E$71 -> 0 | I35: =$F35*'Schedule 4.1'!G$71 -> 0 | J35: =$F35*'Schedule 4.1'!J$71 -> 0 | K35: =$F35*'Schedule 4.1'!K$71 -> 0 | L35: =$F35*'Schedule 4.1'!L$71 -> 0 | M35: =$F35*'Schedule 4.1'!M$71 -> 0 | N35: =$F35*'Schedule 4.1'!N$71 -> 0 | O35: =$F35*'Schedule 4.1'!O$71 -> 708464.3984 | P35: =$F35*'Schedule 4.1'!P$71 -> 506740.4016 | Q35: =$F35*'Schedule 4.1'!Q$71 -> 0 | R35: =$F35*'Schedule 4.1'!R$71 -> 0 | S35: =$F35*'Schedule 4.1'!S$71 -> 0 | T35: =$F35*'Schedule 4.1'!T$71 -> 0 | U35: =$F35*'Schedule 4.1'!U$71 -> 0 | AA35: Secondary Conductor&Eqpt | AB35: ="Secondary - Demand, Customer - zero intercept ratios Sch. 4.1 L."&'Schedule 4.1'!$A$71 -> Secondary - Demand, Customer - zero intercept ratios Sch. 4.1 L.41
C36: D11 | D36: 14 | E36: Services | F36: =DistnDetails!G20 -> 3681936.34 | G36: =$F36*'Schedule 4.1'!D$72 -> 0 | H36: =$F36*'Schedule 4.1'!E$72 -> 0 | I36: =$F36*'Schedule 4.1'!G$72 -> 0 | J36: =$F36*'Schedule 4.1'!J$72 -> 0 | K36: =$F36*'Schedule 4.1'!K$72 -> 0 | L36: =$F36*'Schedule 4.1'!L$72 -> 0 | M36: =$F36*'Schedule 4.1'!M$72 -> 0 | N36: =$F36*'Schedule 4.1'!N$72 -> 0 | O36: =$F36*'Schedule 4.1'!O$72 -> 0 | P36: =$F36*'Schedule 4.1'!P$72 -> 0 | Q36: =$F36*'Schedule 4.1'!Q$72 -> 3681936.34 | R36: =$F36*'Schedule 4.1'!R$72 -> 0 | S36: =$F36*'Schedule 4.1'!S$72 -> 0 | T36: =$F36*'Schedule 4.1'!T$72 -> 0 | U36: =$F36*'Schedule 4.1'!U$72 -> 0 | AA36: Services | AB36: Services Customer
C37: =+SystemizedPlant!C$21 -> SMET01 | D37: 15 | E37: Meters | F37: =SUM((IF(VLOOKUP($C37,AllocatedMeters,9,FALSE)="",0,VLOOKUP($C37,AllocatedMeters,9,FALSE)))) -> 3504100.724 | G37: =$F37*'Schedule 4.1'!D$73 -> 0 | H37: =$F37*'Schedule 4.1'!E$73 -> 0 | I37: =$F37*'Schedule 4.1'!G$73 -> 0 | J37: =$F37*'Schedule 4.1'!J$73 -> 0 | K37: =$F37*'Schedule 4.1'!K$73 -> 0 | L37: =$F37*'Schedule 4.1'!L$73 -> 0 | M37: =$F37*'Schedule 4.1'!M$73 -> 0 | N37: =$F37*'Schedule 4.1'!N$73 -> 0 | O37: =$F37*'Schedule 4.1'!O$73 -> 0 | P37: =$F37*'Schedule 4.1'!P$73 -> 0 | Q37: =$F37*'Schedule 4.1'!Q$73 -> 0 | R37: =$F37*'Schedule 4.1'!R$73 -> 3504100.724 | S37: =$F37*'Schedule 4.1'!S$73 -> 0 | T37: =$F37*'Schedule 4.1'!T$73 -> 0 | U37: =$F37*'Schedule 4.1'!U$73 -> 0 | AA37: Meters | AB37: Meters - Customer
C38: D11 | D38: 16 | E38: Street Lighting | F38: =DistnDetails!G21 -> 899027.98 | G38: =$F38*'Schedule 4.1'!D$74 -> 0 | H38: =$F38*'Schedule 4.1'!E$74 -> 0 | I38: =$F38*'Schedule 4.1'!G$74 -> 0 | J38: =$F38*'Schedule 4.1'!J$74 -> 0 | K38: =$F38*'Schedule 4.1'!K$74 -> 0 | L38: =$F38*'Schedule 4.1'!L$74 -> 0 | M38: =$F38*'Schedule 4.1'!M$74 -> 0 | N38: =$F38*'Schedule 4.1'!N$74 -> 0 | O38: =$F38*'Schedule 4.1'!O$74 -> 0 | P38: =$F38*'Schedule 4.1'!P$74 -> 0 | Q38: =$F38*'Schedule 4.1'!Q$74 -> 0 | R38: =$F38*'Schedule 4.1'!R$74 -> 0 | S38: =$F38*'Schedule 4.1'!S$74 -> 899027.98 | T38: =$F38*'Schedule 4.1'!T$74 -> 0 | U38: =$F38*'Schedule 4.1'!U$74 -> 0 | AA38: Street Lighting | AB38: Street Lighting - Customer
A39: =SUM(G39:U39)-F39 -> 0 | D39: 17 | E39: Subtotal Distribution | F39: =SUM(F29:F38) -> 83042054.56 | G39: =SUM(G29:G38) -> 0 | H39: 0 | I39: 0 | J39: 9816507.957 | K39: 30129607.9 | L39: 8549603.735 | M39: 5918429.492 | N39: 10476112.04 | O39: 4778348.838 | P39: 5288379.553 | Q39: 3681936.34 | R39: 3504100.724 | S39: 899027.98 | T39: 0 | U39: 0 | AA39: Subtotal Distribution
A41: =SUM(G41:U41)-F41 -> 0 | D41: =MAX(D38:D40)+NoOne -> 18 | E41: Subttl Prod, Trans, & Dist | F41: =SUM(F39,F26,F21) -> 197052036.6 | G41: =SUM(G39,G26,G21) -> 27472019.91 | H41: 0 | I41: 67947310.56 | J41: 28407159.51 | K41: 30129607.9 | L41: 8549603.735 | M41: 5918429.492 | N41: 10476112.04 | O41: 4778348.838 | P41: 5288379.553 | Q41: 3681936.34 | R41: 3504100.724 | S41: 899027.98 | T41: 0 | U41: 0 | AA41: Subttl Prod, Trans, & Dist
B43: =IF(OverheadAlloc="Expenses","E-GTDC","L-GTDC") -> E-GTDC | C43: =+SystemizedPlant!C99 -> SGPLT01 | D43: =MAX(D40:D42)+NoOne -> 19 | E43: General | F43: =SystemizedPlant!K99 -> 19251604.14 | G43: =$F43*VLOOKUP($B43,RatiosLabInt,G$530,FALSE) -> 2224386.441 | H43: 0 | I43: 7310341.533 | J43: 1283412.55 | K43: 1896413.68 | L43: 538127.9947 | M43: 372516.9836 | N43: 659386.0181 | O43: 300758.1822 | P43: 332860.4661 | Q43: 231747.936 | R43: 356708.844 | S43: 56586.49676 | T43: 3688357.013 | U43: 0 | AA43: General | AB43: =+"Prorated on Subtotal Production, Transmission, Distribution, Accounting Expenses - Sch2.4 L."&$D$223&", "&$D$225 -> Prorated on Subtotal Production, Transmission, Distribution, Accounting Expenses - Sch2.4 L.11, 12
D44: =MAX(D41:D43)+NoOne -> 20 | E44: Telecontrol - Specific | F44: 0 | G44: =$F44*'Schedule 4.1'!D$35 -> 0 | H44: =$F44*'Schedule 4.1'!E$35 -> 0 | I44: =$F44*'Schedule 4.1'!G$35 -> 0 | J44: =$F44*'Schedule 4.1'!J$35 -> 0 | K44: =$F44*'Schedule 4.1'!K$35 -> 0 | L44: =$F44*'Schedule 4.1'!L$35 -> 0 | M44: =$F44*'Schedule 4.1'!M$35 -> 0 | N44: =$F44*'Schedule 4.1'!N$35 -> 0 | O44: =$F44*'Schedule 4.1'!O$35 -> 0 | P44: =$F44*'Schedule 4.1'!P$35 -> 0 | Q44: =$F44*'Schedule 4.1'!Q$35 -> 0 | R44: =$F44*'Schedule 4.1'!R$35 -> 0 | S44: =$F44*'Schedule 4.1'!S$35 -> 0 | T44: =$F44*'Schedule 4.1'!T$35 -> 0 | U44: =$F44*'Schedule 4.1'!U$35 -> 0 | AA44: Telecontrol - Specific | AB44: Specifically Assigned - Customer
C45: =+SPLTDetails!C$166 -> SPLT19 | D45: =MAX(D42:D44)+NoOne -> 21 | E45: Feasibility Studies | F45: =SUM(G45:U45) -> -2191.466175 | G45: =+SPLTDetails!E166 -> 0 | H45: 0 | I45: =+SPLTDetails!G166 -> 0 | J45: =+SPLTDetails!K166 -> -2191.466175 | K45: 0 | L45: 0 | M45: 0 | N45: 0 | O45: 0 | P45: 0 | Q45: 0 | R45: 0 | S45: 0 | T45: 0 | U45: 0 | AA45: Feasibility Studies | AB45: Production, Transmission - Demand
C46: =+SystemizedPlant!C62 -> SCS2_01 | D46: =MAX(D43:D45)+NoOne -> 22 | E46: Software - General | F46: =SystemizedPlant!K62 -> 107065.4498 | G46: =$F46*G$41/SUM($G$41:$U$41) -> 14926.53524 | H46: 0 | I46: 36918.21455 | J46: 15434.63017 | K46: 16370.49826 | L46: 4645.306818 | M46: 3215.695338 | N46: 5692.047981 | O46: 2596.248566 | P46: 2873.366574 | Q46: 2000.528272 | R46: 1903.903793 | S46: 488.4741954 | T46: 0 | U46: 0 | AA46: Software - General | AB46: =+"Prorated on subtotal Production, Transmission, & Distribution plant - L."&$D$41 -> Prorated on subtotal Production, Transmission, & Distribution plant - L.18
C47: =+SystemizedPlant!C47 -> SCS1_01 | D47: =MAX(D44:D46)+NoOne -> 23 | E47: Software - Cust Acctng | F47: =SUM(G47:U47) -> 0 | G47: 0 | H47: 0 | I47: 0 | J47: 0 | K47: 0 | L47: 0 | M47: 0 | N47: 0 | O47: 0 | P47: 0 | Q47: 0 | R47: 0 | S47: 0 | T47: =+SystemizedPlant!K47 -> 0 | U47: 0 | AA47: Software - Cust Acctng
A49: =SUM(G49:U49)-F49 -> 0 | D49: =MAX(D46:D48)+NoOne -> 24 | E49: Total Plant | F49: =SUM(F41:F47) -> 216408514.7 | G49: =SUM(G41:G47) -> 29711332.89 | H49: 0 | I49: 75294570.3 | J49: 29703815.22 | K49: 32042392.08 | L49: 9092377.037 | M49: 6294162.171 | N49: 11141190.1 | O49: 5081703.269 | P49: 5624113.385 | Q49: 3915684.804 | R49: 3862713.471 | S49: 956102.951 | T49: 3688357.013 | U49: 0 | AA49: Total Plant
U52: Schedule 2.3E
U53: Page 1 of 1
D55: =D6 -> NEWFOUNDLAND AND LABRADOR HYDRO
D56: =D7 -> 2019 Test Year Cost of Service Study
D57: =$B$1 -> Labrador Interconnected
D58: Functional Classification of Net Book Value
E61: =MAX(D61)+NoOne -> 1 | F61: 2 | G61: 3 | H61: 4 | I61: 5 | J61: 6 | K61: 7 | L61: 8 | M61: 9 | N61: 10 | O61: 11 | P61: 12 | Q61: 13 | R61: 14 | S61: 15 | T61: 16 | U61: 17
J62: Distribution | U62: Specifically
D63: Line | F63: Total | G63: Production | H63: Production | I63: Transmission | J63: Substations | K63: Primary Lines | M63: Line Transformers | O63: Secondary Lines | Q63: Services | R63: Meters | S63: Street Lighting | T63: Accounting | U63: Assigned
D64: No. | E64: Description | F64: Amount | G64: Demand | H64: Energy | I64: Demand | J64: Demand | K64: Demand | L64: Customer | M64: Demand | N64: Customer | O64: Demand | P64: Customer | Q64: Customer | R64: Customer | S64: Customer | T64: Customer | U64: Customer
F65: ($) | G65: ($) | H65: ($) | I65: ($) | J65: ($) | K65: ($) | L65: ($) | M65: ($) | N65: ($) | O65: ($) | P65: ($) | Q65: ($) | R65: ($) | S65: ($) | T65: ($) | U65: ($)
E67: Production
C69: P04 | D69: =MAX(D66:D68)+NoOne -> 1 | E69: Gas Turbines | F69: 5678524.67 | G69: =$F69*'Schedule 4.1'!$D$21 -> 5678524.67 | H69: =$F69*'Schedule 4.1'!$E$21 -> 0 | I69: 0 | J69: 0 | K69: 0 | L69: 0 | M69: 0 | N69: 0 | O69: 0 | P69: 0 | Q69: 0 | R69: 0 | S69: 0 | T69: 0 | U69: 0
C70: P03 | D70: =MAX(D67:D69)+NoOne -> 2 | E70: Diesel | F70: 507192.0084 | G70: =$F70*'Schedule 4.1'!$D$21 -> 507192.0084 | H70: =$F70*'Schedule 4.1'!$E$21 -> 0 | I70: 0 | J70: 0 | K70: 0 | L70: 0 | M70: 0 | N70: 0 | O70: 0 | P70: 0 | Q70: 0 | R70: 0 | S70: 0 | T70: 0 | U70: 0
A71: =SUM(G71:U71)-F71 -> 0 | D71: =MAX(D68:D70)+NoOne -> 3 | E71: Subtotal Production | F71: =SUM(F69:F70) -> 6185716.679 | G71: =SUM(G69:G70) -> 6185716.679 | H71: =SUM(H69:H70) -> 0 | I71: 0 | J71: 0 | K71: 0 | L71: 0 | M71: 0 | N71: 0 | O71: 0 | P71: 0 | Q71: 0 | R71: 0 | S71: 0 | T71: 0 | U71: 0
E73: Transmission
C74: =+SNBVDetails!C$134 -> SNBV16 | D74: =MAX(D71:D73)+NoOne -> 4 | E74: Lines | F74: =SUM(G74:U74) -> 32590981.03 | G74: 0 | H74: =+SNBVDetails!G134*'Schedule 4.1'!E32 -> 0 | I74: =+SNBVDetails!I134*'Schedule 4.1'!G32 -> 32590981.03 | J74: =+SNBVDetails!J134*'Schedule 4.1'!H32 -> 0 | K74: =+SNBVDetails!K134 -> 0 | L74: 0 | M74: 0 | N74: 0 | O74: 0 | P74: 0 | Q74: 0 | R74: 0 | S74: 0 | T74: 0 | U74: =+SNBVDetails!M134 -> 0
C75: =+SNBVDetails!C$146 -> SNBV17 | D75: =MAX(D72:D74)+NoOne -> 5 | E75: Terminal Stations | F75: =SUM(G75:U75) -> 34367828.38 | G75: 0 | H75: =+SNBVDetails!G146*'Schedule 4.1'!E36 -> 0 | I75: =+SNBVDetails!G146*'Schedule 4.1'!G36 -> 21512989.69 | J75: =+SNBVDetails!K146 -> 12854838.69 | K75: 0 | L75: 0 | M75: 0 | N75: 0 | O75: 0 | P75: 0 | Q75: 0 | R75: 0 | S75: 0 | T75: 0 | U75: =+SNBVDetails!M146 -> 0
A76: =SUM(G76:U76)-F76 -> 0 | D76: =MAX(D73:D75)+NoOne -> 6 | E76: Subtotal Transmission | F76: =SUM(F74:F75) -> 66958809.41 | G76: =SUM(G74:G75) -> 0 | H76: 0 | I76: 54103970.72 | J76: 12854838.69 | K76: 0 | L76: 0 | M76: 0 | N76: 0 | O76: 0 | P76: 0 | Q76: 0 | R76: 0 | S76: 0 | T76: 0 | U76: 0
E78: Distribution
C79: =+SNBVDetails!C$152 -> SNBV18 | D79: =MAX(D76:D78)+NoOne -> 7 | E79: Substations | F79: =SUM(G79:U79) -> 4332146.173 | G79: =+SNBVDetails!E152 -> 0 | H79: 0 | I79: 0 | J79: =+SNBVDetails!K152 -> 4332146.173 | K79: 0 | L79: 0 | M79: 0 | N79: 0 | O79: 0 | P79: 0 | Q79: 0 | R79: 0 | S79: 0 | T79: 0 | U79: 0
C80: D11 | D80: 8 | E80: Land & Land Improvements | F80: =DistnDetails!G29+DistnDetails!G38 -> 533487.2247 | G80: =$F80*'Schedule 4.1'!D$62 -> 0 | H80: =$F80*'Schedule 4.1'!E$62 -> 0 | I80: =$F80*'Schedule 4.1'!G$62 -> 0 | J80: =$F80*'Schedule 4.1'!J$62 -> 0 | K80: =$F80*'Schedule 4.1'!K$62 -> 402222.6931 | L80: =$F80*'Schedule 4.1'!L$62 -> 51241.44793 | M80: =$F80*'Schedule 4.1'!M$62 -> 0 | N80: =$F80*'Schedule 4.1'!N$62 -> 0 | O80: =$F80*'Schedule 4.1'!O$62 -> 46653.4578 | P80: =$F80*'Schedule 4.1'!P$62 -> 33369.62591 | Q80: =$F80*'Schedule 4.1'!Q$62 -> 0 | R80: =$F80*'Schedule 4.1'!R$62 -> 0 | S80: =$F80*'Schedule 4.1'!S$62 -> 0 | T80: =$F80*'Schedule 4.1'!T$62 -> 0 | U80: =$F80*'Schedule 4.1'!U$62 -> 0
C81: D11 | D81: 9 | E81: Poles | F81: =DistnDetails!G30+DistnDetails!G32 -> 23852242.66 | G81: =$F81*'Schedule 4.1'!D$67 -> 0 | H81: =$F81*'Schedule 4.1'!E$67 -> 0 | I81: =$F81*'Schedule 4.1'!G$67 -> 0 | J81: =$F81*'Schedule 4.1'!J$67 -> 0 | K81: =$F81*'Schedule 4.1'!K$67 -> 13794896.84 | L81: =$F81*'Schedule 4.1'!L$67 -> 4714443.467 | M81: =$F81*'Schedule 4.1'!M$67 -> 0 | N81: =$F81*'Schedule 4.1'!N$67 -> 0 | O81: =$F81*'Schedule 4.1'!O$67 -> 2441706.377 | P81: =$F81*'Schedule 4.1'!P$67 -> 2901195.98 | Q81: =$F81*'Schedule 4.1'!Q$67 -> 0 | R81: =$F81*'Schedule 4.1'!R$67 -> 0 | S81: =$F81*'Schedule 4.1'!S$67 -> 0 | T81: =$F81*'Schedule 4.1'!T$67 -> 0 | U81: =$F81*'Schedule 4.1'!U$67 -> 0
C82: D11 | D82: 10 | E82: Primary Conductor & Eqpt | F82: =DistnDetails!G33 -> 4313897.289 | G82: =$F82*'Schedule 4.1'!D$68 -> 0 | H82: =$F82*'Schedule 4.1'!E$68 -> 0 | I82: =$F82*'Schedule 4.1'!G$68 -> 0 | J82: =$F82*'Schedule 4.1'!J$68 -> 0 | K82: =$F82*'Schedule 4.1'!K$68 -> 3826426.895 | L82: =$F82*'Schedule 4.1'!L$68 -> 487470.3937 | M82: =$F82*'Schedule 4.1'!M$68 -> 0 | N82: =$F82*'Schedule 4.1'!N$68 -> 0 | O82: =$F82*'Schedule 4.1'!O$68 -> 0 | P82: =$F82*'Schedule 4.1'!P$68 -> 0 | Q82: =$F82*'Schedule 4.1'!Q$68 -> 0 | R82: =$F82*'Schedule 4.1'!R$68 -> 0 | S82: =$F82*'Schedule 4.1'!S$68 -> 0 | T82: =$F82*'Schedule 4.1'!T$68 -> 0 | U82: =$F82*'Schedule 4.1'!U$68 -> 0
C83: D05 | D83: 11 | E83: Submarine Conductor | F83: 250045.8217 | G83: =$F83*'Schedule 4.1'!D$69 -> 0 | H83: =$F83*'Schedule 4.1'!E$69 -> 0 | I83: =$F83*'Schedule 4.1'!G$69 -> 0 | J83: =$F83*'Schedule 4.1'!J$69 -> 0 | K83: =$F83*'Schedule 4.1'!K$69 -> 250045.8217 | L83: =$F83*'Schedule 4.1'!L$69 -> 0 | M83: =$F83*'Schedule 4.1'!M$69 -> 0 | N83: =$F83*'Schedule 4.1'!N$69 -> 0 | O83: =$F83*'Schedule 4.1'!O$69 -> 0 | P83: =$F83*'Schedule 4.1'!P$69 -> 0 | Q83: =$F83*'Schedule 4.1'!Q$69 -> 0 | R83: =$F83*'Schedule 4.1'!R$69 -> 0 | S83: =$F83*'Schedule 4.1'!S$69 -> 0 | T83: =$F83*'Schedule 4.1'!T$69 -> 0 | U83: =$F83*'Schedule 4.1'!U$69 -> 0
C84: D11 | D84: 12 | E84: Transformers | F84: =DistnDetails!G34 -> 10156020.06 | G84: =$F84*'Schedule 4.1'!D$70 -> 0 | H84: =$F84*'Schedule 4.1'!E$70 -> 0 | I84: =$F84*'Schedule 4.1'!G$70 -> 0 | J84: =$F84*'Schedule 4.1'!J$70 -> 0 | K84: =$F84*'Schedule 4.1'!K$70 -> 0 | L84: =$F84*'Schedule 4.1'!L$70 -> 0 | M84: =$F84*'Schedule 4.1'!M$70 -> 3666323.243 | N84: =$F84*'Schedule 4.1'!N$70 -> 6489696.82 | O84: =$F84*'Schedule 4.1'!O$70 -> 0 | P84: =$F84*'Schedule 4.1'!P$70 -> 0 | Q84: =$F84*'Schedule 4.1'!Q$70 -> 0 | R84: =$F84*'Schedule 4.1'!R$70 -> 0 | S84: =$F84*'Schedule 4.1'!S$70 -> 0 | T84: =$F84*'Schedule 4.1'!T$70 -> 0 | U84: =$F84*'Schedule 4.1'!U$70 -> 0
C85: D11 | D85: 13 | E85: Secondary Conductor&Eqpt | F85: =DistnDetails!G35 -> 509106.1124 | G85: =$F85*'Schedule 4.1'!D$71 -> 0 | H85: =$F85*'Schedule 4.1'!E$71 -> 0 | I85: =$F85*'Schedule 4.1'!G$71 -> 0 | J85: =$F85*'Schedule 4.1'!J$71 -> 0 | K85: =$F85*'Schedule 4.1'!K$71 -> 0 | L85: =$F85*'Schedule 4.1'!L$71 -> 0 | M85: =$F85*'Schedule 4.1'!M$71 -> 0 | N85: =$F85*'Schedule 4.1'!N$71 -> 0 | O85: =$F85*'Schedule 4.1'!O$71 -> 296808.8635 | P85: =$F85*'Schedule 4.1'!P$71 -> 212297.2489 | Q85: =$F85*'Schedule 4.1'!Q$71 -> 0 | R85: =$F85*'Schedule 4.1'!R$71 -> 0 | S85: =$F85*'Schedule 4.1'!S$71 -> 0 | T85: =$F85*'Schedule 4.1'!T$71 -> 0 | U85: =$F85*'Schedule 4.1'!U$71 -> 0
C86: D11 | D86: 14 | E86: Services | F86: =DistnDetails!G36 -> 2502437.036 | G86: =$F86*'Schedule 4.1'!D$72 -> 0 | H86: =$F86*'Schedule 4.1'!E$72 -> 0 | I86: =$F86*'Schedule 4.1'!G$72 -> 0 | J86: =$F86*'Schedule 4.1'!J$72 -> 0 | K86: =$F86*'Schedule 4.1'!K$72 -> 0 | L86: =$F86*'Schedule 4.1'!L$72 -> 0 | M86: =$F86*'Schedule 4.1'!M$72 -> 0 | N86: =$F86*'Schedule 4.1'!N$72 -> 0 | O86: =$F86*'Schedule 4.1'!O$72 -> 0 | P86: =$F86*'Schedule 4.1'!P$72 -> 0 | Q86: =$F86*'Schedule 4.1'!Q$72 -> 2502437.036 | R86: =$F86*'Schedule 4.1'!R$72 -> 0 | S86: =$F86*'Schedule 4.1'!S$72 -> 0 | T86: =$F86*'Schedule 4.1'!T$72 -> 0 | U86: =$F86*'Schedule 4.1'!U$72 -> 0
C87: =+SystemizedPlant!C31 -> SMET02 | D87: 15 | E87: Meters | F87: =SUM((IF(VLOOKUP($C87,AllocatedMeters,9,FALSE)="",0,VLOOKUP($C87,AllocatedMeters,9,FALSE)))) -> 2214112.452 | G87: =$F87*'Schedule 4.1'!D$73 -> 0 | H87: =$F87*'Schedule 4.1'!E$73 -> 0 | I87: =$F87*'Schedule 4.1'!G$73 -> 0 | J87: =$F87*'Schedule 4.1'!J$73 -> 0 | K87: =$F87*'Schedule 4.1'!K$73 -> 0 | L87: =$F87*'Schedule 4.1'!L$73 -> 0 | M87: =$F87*'Schedule 4.1'!M$73 -> 0 | N87: =$F87*'Schedule 4.1'!N$73 -> 0 | O87: =$F87*'Schedule 4.1'!O$73 -> 0 | P87: =$F87*'Schedule 4.1'!P$73 -> 0 | Q87: =$F87*'Schedule 4.1'!Q$73 -> 0 | R87: =$F87*'Schedule 4.1'!R$73 -> 2214112.452 | S87: =$F87*'Schedule 4.1'!S$73 -> 0 | T87: =$F87*'Schedule 4.1'!T$73 -> 0 | U87: =$F87*'Schedule 4.1'!U$73 -> 0
C88: D11 | D88: 16 | E88: Street Lighting | F88: =DistnDetails!G37 -> 310260.5145 | G88: =$F88*'Schedule 4.1'!D$74 -> 0 | H88: =$F88*'Schedule 4.1'!E$74 -> 0 | I88: =$F88*'Schedule 4.1'!G$74 -> 0 | J88: =$F88*'Schedule 4.1'!J$74 -> 0 | K88: =$F88*'Schedule 4.1'!K$74 -> 0 | L88: =$F88*'Schedule 4.1'!L$74 -> 0 | M88: =$F88*'Schedule 4.1'!M$74 -> 0 | N88: =$F88*'Schedule 4.1'!N$74 -> 0 | O88: =$F88*'Schedule 4.1'!O$74 -> 0 | P88: =$F88*'Schedule 4.1'!P$74 -> 0 | Q88: =$F88*'Schedule 4.1'!Q$74 -> 0 | R88: =$F88*'Schedule 4.1'!R$74 -> 0 | S88: =$F88*'Schedule 4.1'!S$74 -> 310260.5145 | T88: =$F88*'Schedule 4.1'!T$74 -> 0 | U88: =$F88*'Schedule 4.1'!U$74 -> 0
A89: =SUM(G89:U89)-F89 -> 0 | D89: 17 | E89: Subtotal Distribution | F89: =SUM(F79:F88) -> 48973755.35 | G89: =SUM(G79:G88) -> 0 | H89: 0 | I89: 0 | J89: 4332146.173 | K89: 18273592.25 | L89: 5253155.308 | M89: 3666323.243 | N89: 6489696.82 | O89: 2785168.698 | P89: 3146862.854 | Q89: 2502437.036 | R89: 2214112.452 | S89: 310260.5145 | T89: 0 | U89: 0
A91: =SUM(G91:U91)-F91 -> 0 | D91: =MAX(D88:D90)+NoOne -> 18 | E91: Subttl Prod, Trans, & Dist | F91: =SUM(F89,F76,F71) -> 122118281.4 | G91: =SUM(G89,G76,G71) -> 6185716.679 | H91: 0 | I91: 54103970.72 | J91: 17186984.86 | K91: 18273592.25 | L91: 5253155.308 | M91: 3666323.243 | N91: 6489696.82 | O91: 2785168.698 | P91: 3146862.854 | Q91: 2502437.036 | R91: 2214112.452 | S91: 310260.5145 | T91: 0 | U91: 0
B93: =IF(OverheadAlloc="Expenses","E-GTDC","L-GTDC") -> E-GTDC | C93: =+SystemizedPlant!C109 -> SGPLT02 | D93: =MAX(D90:D92)+NoOne -> 19 | E93: General | F93: =+SystemizedPlant!K109 -> 8570449.588 | G93: =$F93*VLOOKUP($B93,RatiosLabInt,G$530,FALSE) -> 990254.7195 | H93: 0 | I93: 3254425.612 | J93: 571350.9626 | K93: 844247.4574 | L93: 239564.3925 | M93: 165837.5066 | N93: 293546.1683 | O93: 133891.8472 | P93: 148183.176 | Q93: 103169.7924 | R93: 158800.0222 | S93: 25191.23676 | T93: 1641986.694 | U93: 0
D94: =MAX(D91:D93)+NoOne -> 20 | E94: Telecontrol - Specific | F94: 0 | G94: =$F94*'Schedule 4.1'!D$35 -> 0 | H94: =$F94*'Schedule 4.1'!E$35 -> 0 | I94: =$F94*'Schedule 4.1'!G$35 -> 0 | J94: =$F94*'Schedule 4.1'!J$35 -> 0 | K94: =$F94*'Schedule 4.1'!K$35 -> 0 | L94: =$F94*'Schedule 4.1'!L$35 -> 0 | M94: =$F94*'Schedule 4.1'!M$35 -> 0 | N94: =$F94*'Schedule 4.1'!N$35 -> 0 | O94: =$F94*'Schedule 4.1'!O$35 -> 0 | P94: =$F94*'Schedule 4.1'!P$35 -> 0 | Q94: =$F94*'Schedule 4.1'!Q$35 -> 0 | R94: =$F94*'Schedule 4.1'!R$35 -> 0 | S94: =$F94*'Schedule 4.1'!S$35 -> 0 | T94: =$F94*'Schedule 4.1'!T$35 -> 0 | U94: =$F94*'Schedule 4.1'!U$35 -> 0
C95: =+SNBVDetails!C$159 -> SNBV19 | D95: =MAX(D92:D94)+NoOne -> 21 | E95: Feasibility Studies | F95: =+SNBVDetails!D159 -> -2191.466175 | G95: =+SNBVDetails!E159 -> 0 | H95: 0 | I95: 0 | J95: =+SNBVDetails!K159 -> -2191.466175 | K95: 0 | L95: 0 | M95: 0 | N95: 0 | O95: 0 | P95: 0 | Q95: 0 | R95: 0 | S95: 0 | T95: 0 | U95: 0
C96: =+SystemizedPlant!C68 -> SCS2_02 | D96: =MAX(D93:D95)+NoOne -> 22 | E96: Software - General | F96: =+SystemizedPlant!K68 -> 99423.10926 | G96: =$F96*G$91/SUM($G$91:$U$91) -> 5036.127089 | H96: 0 | I96: 44048.9739 | J96: 13992.85556 | K96: 14877.52151 | L96: 4276.878351 | M96: 2984.952393 | N96: 5283.613792 | O96: 2267.556737 | P96: 2562.031546 | Q96: 2037.369573 | R96: 1802.628907 | S96: 252.5998947 | T96: 0 | U96: 0
C97: =+SystemizedPlant!C51 -> SCS1_02 | D97: =MAX(D94:D96)+NoOne -> 23 | E97: Software - Cust Acctng | F97: =SUM(G97:U97) -> 0 | G97: 0 | H97: 0 | I97: 0 | J97: 0 | K97: 0 | L97: 0 | M97: 0 | N97: 0 | O97: 0 | P97: 0 | Q97: 0 | R97: 0 | S97: 0 | T97: =+SystemizedPlant!K51 -> 0 | U97: 0
A99: =SUM(G99:U99)-F99 -> 0 | D99: =MAX(D96:D98)+NoOne -> 24 | E99: Total Net Book Value | F99: =SUM(F91:F97) -> 130785962.7 | G99: =SUM(G91:G97) -> 7181007.525 | H99: 0 | I99: 57402445.3 | J99: 17770137.22 | K99: 19132717.23 | L99: 5496996.579 | M99: 3835145.702 | N99: 6788526.602 | O99: 2921328.102 | P99: 3297608.062 | Q99: 2607644.198 | R99: 2374715.103 | S99: 335704.3512 | T99: 1641986.694 | U99: 0
U104: Schedule 2.5E
U105: Page 1 of 1
D107: =D6 -> NEWFOUNDLAND AND LABRADOR HYDRO
D108: =D7 -> 2019 Test Year Cost of Service Study
D109: =$B$1 -> Labrador Interconnected
D110: Functional Classification of Depreciation Expense
E111: =MAX(D111)+NoOne -> 1 | F111: 2 | G111: 3 | H111: 4 | I111: 5 | J111: 6 | K111: 7 | L111: 8 | M111: 9 | N111: 10 | O111: 11 | P111: 12 | Q111: 13 | R111: 14 | S111: 15 | T111: 16 | U111: 17
J112: Distribution | U112: Specifically
C113: Check | D113: Line | F113: Total | G113: Production | H113: Production | I113: Transmission | J113: Substations | K113: Primary Lines | M113: Line Transformers | O113: Secondary Lines | Q113: Services | R113: Meters | S113: Street Lighting | T113: Accounting | U113: Assigned
C114: Column | D114: No. | E114: Description | F114: Amount | G114: Demand | H114: Energy | I114: Demand | J114: Demand | K114: Demand | L114: Customer | M114: Demand | N114: Customer | O114: Demand | P114: Customer | Q114: Customer | R114: Customer | S114: Customer | T114: Customer | U114: Customer
F115: ($) | G115: ($) | H115: ($) | I115: ($) | J115: ($) | K115: ($) | L115: ($) | M115: ($) | N115: ($) | O115: ($) | P115: ($) | Q115: ($) | R115: ($) | S115: ($) | T115: ($) | U115: ($)
E117: Production
C119: P04 | D119: =MAX(D116:D118)+NoOne -> 1 | E119: Gas Turbines | F119: 213024.1797 | G119: =$F119*'Schedule 4.1'!$D$21 -> 213024.1797 | H119: =$F119*'Schedule 4.1'!$E$21 -> 0 | I119: 0 | J119: 0 | K119: 0 | L119: 0 | M119: 0 | N119: 0 | O119: 0 | P119: 0 | Q119: 0 | R119: 0 | S119: 0 | T119: 0 | U119: 0
C120: P03 | D120: =MAX(D117:D119)+NoOne -> 2 | E120: Diesel | F120: 21816.6344 | G120: =$F120*'Schedule 4.1'!$D$21 -> 21816.6344 | H120: =$F120*'Schedule 4.1'!$E$21 -> 0 | I120: 0 | J120: 0 | K120: 0 | L120: 0 | M120: 0 | N120: 0 | O120: 0 | P120: 0 | Q120: 0 | R120: 0 | S120: 0 | T120: 0 | U120: 0
A121: =SUM(G121:U121)-F121 -> 0 | D121: =MAX(D118:D120)+NoOne -> 3 | E121: Subtotal Production | F121: =SUM(F119:F120) -> 234840.8141 | G121: =SUM(G119:G120) -> 234840.8141 | H121: =SUM(H119:H120) -> 0 | I121: 0 | J121: 0 | K121: 0 | L121: 0 | M121: 0 | N121: 0 | O121: 0 | P121: 0 | Q121: 0 | R121: 0 | S121: 0 | T121: 0 | U121: 0
E123: Transmission
C124: =+SDEPDetails!C$135 -> SDEP16 | D124: =MAX(D121:D123)+NoOne -> 4 | E124: Lines | F124: =SUM(G124:U124) -> 1236077.529 | G124: 0 | H124: =+SDEPDetails!G135*'Schedule 4.1'!E32 -> 0 | I124: =+SDEPDetails!I135*'Schedule 4.1'!G32 -> 1170807.082 | J124: =+SDEPDetails!J135*'Schedule 4.1'!H32 -> 65270.44689 | K124: =+SDEPDetails!K135 -> 0 | L124: 0 | M124: 0 | N124: 0 | O124: 0 | P124: 0 | Q124: 0 | R124: 0 | S124: 0 | T124: 0 | U124: =+SDEPDetails!M135 -> 0
C125: =+SDEPDetails!C$147 -> SDEP17 | D125: =MAX(D122:D124)+NoOne -> 5 | E125: Terminal Stations | F125: =SUM(G125:U125) -> 1002593.948 | G125: 0 | H125: =+SDEPDetails!G147*'Schedule 4.1'!E36 -> 0 | I125: =+SDEPDetails!G147*'Schedule 4.1'!G36 -> 536949.7753 | J125: =+SDEPDetails!K147 -> 465644.1729 | K125: 0 | L125: 0 | M125: 0 | N125: 0 | O125: 0 | P125: 0 | Q125: 0 | R125: 0 | S125: 0 | T125: 0 | U125: =+SDEPDetails!M147 -> 0
A126: =SUM(G126:U126)-F126 -> 0 | D126: =MAX(D123:D125)+NoOne -> 6 | E126: Subtotal Transmission | F126: =SUM(F124:F125) -> 2238671.477 | G126: =SUM(G124:G125) -> 0 | H126: 0 | I126: 1707756.857 | J126: 530914.6198 | K126: 0 | L126: 0 | M126: 0 | N126: 0 | O126: 0 | P126: 0 | Q126: 0 | R126: 0 | S126: 0 | T126: 0 | U126: 0
E128: Distribution
C129: =+SDEPDetails!C$153 -> SDEP18 | D129: =MAX(D126:D128)+NoOne -> 7 | E129: Substations | F129: =SUM(G129:U129) -> 141589.6852 | G129: =+SDEPDetails!E153 -> 0 | H129: 0 | I129: 0 | J129: =+SDEPDetails!K153 -> 141589.6852 | K129: 0 | L129: 0 | M129: 0 | N129: 0 | O129: 0 | P129: 0 | Q129: 0 | R129: 0 | S129: 0 | T129: 0 | U129: 0
C130: D11 | D130: 8 | E130: Land & Land Improvements | F130: =DistnDetails!G45+DistnDetails!G54 -> 19482.27914 | G130: =$F130*'Schedule 4.1'!D$62 -> 0 | H130: =$F130*'Schedule 4.1'!E$62 -> 0 | I130: =$F130*'Schedule 4.1'!G$62 -> 0 | J130: =$F130*'Schedule 4.1'!J$62 -> 0 | K130: =$F130*'Schedule 4.1'!K$62 -> 14688.66436 | L130: =$F130*'Schedule 4.1'!L$62 -> 1871.272912 | M130: =$F130*'Schedule 4.1'!M$62 -> 0 | N130: =$F130*'Schedule 4.1'!N$62 -> 0 | O130: =$F130*'Schedule 4.1'!O$62 -> 1703.725311 | P130: =$F130*'Schedule 4.1'!P$62 -> 1218.616561 | Q130: =$F130*'Schedule 4.1'!Q$62 -> 0 | R130: =$F130*'Schedule 4.1'!R$62 -> 0 | S130: =$F130*'Schedule 4.1'!S$62 -> 0 | T130: =$F130*'Schedule 4.1'!T$62 -> 0 | U130: =$F130*'Schedule 4.1'!U$62 -> 0
C131: D11 | D131: 9 | E131: Poles | F131: =DistnDetails!G46+DistnDetails!G48 -> 1378352.403 | G131: =$F131*'Schedule 4.1'!D$67 -> 0 | H131: =$F131*'Schedule 4.1'!E$67 -> 0 | I131: =$F131*'Schedule 4.1'!G$67 -> 0 | J131: =$F131*'Schedule 4.1'!J$67 -> 0 | K131: =$F131*'Schedule 4.1'!K$67 -> 797167.3554 | L131: =$F131*'Schedule 4.1'!L$67 -> 272434.1091 | M131: =$F131*'Schedule 4.1'!M$67 -> 0 | N131: =$F131*'Schedule 4.1'!N$67 -> 0 | O131: =$F131*'Schedule 4.1'!O$67 -> 141099.1788 | P131: =$F131*'Schedule 4.1'!P$67 -> 167651.7595 | Q131: =$F131*'Schedule 4.1'!Q$67 -> 0 | R131: =$F131*'Schedule 4.1'!R$67 -> 0 | S131: =$F131*'Schedule 4.1'!S$67 -> 0 | T131: =$F131*'Schedule 4.1'!T$67 -> 0 | U131: =$F131*'Schedule 4.1'!U$67 -> 0
C132: D11 | D132: 10 | E132: Primary Conductor & Equip | F132: =DistnDetails!G49 -> 170489.9095 | G132: =$F132*'Schedule 4.1'!D$68 -> 0 | H132: =$F132*'Schedule 4.1'!E$68 -> 0 | I132: =$F132*'Schedule 4.1'!G$68 -> 0 | J132: =$F132*'Schedule 4.1'!J$68 -> 0 | K132: =$F132*'Schedule 4.1'!K$68 -> 151224.5497 | L132: =$F132*'Schedule 4.1'!L$68 -> 19265.35977 | M132: =$F132*'Schedule 4.1'!M$68 -> 0 | N132: =$F132*'Schedule 4.1'!N$68 -> 0 | O132: =$F132*'Schedule 4.1'!O$68 -> 0 | P132: =$F132*'Schedule 4.1'!P$68 -> 0 | Q132: =$F132*'Schedule 4.1'!Q$68 -> 0 | R132: =$F132*'Schedule 4.1'!R$68 -> 0 | S132: =$F132*'Schedule 4.1'!S$68 -> 0 | T132: =$F132*'Schedule 4.1'!T$68 -> 0 | U132: =$F132*'Schedule 4.1'!U$68 -> 0
C133: D05 | D133: 11 | E133: Submarine Conductor | F133: 22445.13884 | G133: =$F133*'Schedule 4.1'!D$69 -> 0 | H133: =$F133*'Schedule 4.1'!E$69 -> 0 | I133: =$F133*'Schedule 4.1'!G$69 -> 0 | J133: =$F133*'Schedule 4.1'!J$69 -> 0 | K133: =$F133*'Schedule 4.1'!K$69 -> 22445.13884 | L133: =$F133*'Schedule 4.1'!L$69 -> 0 | M133: =$F133*'Schedule 4.1'!M$69 -> 0 | N133: =$F133*'Schedule 4.1'!N$69 -> 0 | O133: =$F133*'Schedule 4.1'!O$69 -> 0 | P133: =$F133*'Schedule 4.1'!P$69 -> 0 | Q133: =$F133*'Schedule 4.1'!Q$69 -> 0 | R133: =$F133*'Schedule 4.1'!R$69 -> 0 | S133: =$F133*'Schedule 4.1'!S$69 -> 0 | T133: =$F133*'Schedule 4.1'!T$69 -> 0 | U133: =$F133*'Schedule 4.1'!U$69 -> 0
C134: D11 | D134: 12 | E134: Transformers | F134: =DistnDetails!G50 -> 578115.058 | G134: =$F134*'Schedule 4.1'!D$70 -> 0 | H134: =$F134*'Schedule 4.1'!E$70 -> 0 | I134: =$F134*'Schedule 4.1'!G$70 -> 0 | J134: =$F134*'Schedule 4.1'!J$70 -> 0 | K134: =$F134*'Schedule 4.1'!K$70 -> 0 | L134: =$F134*'Schedule 4.1'!L$70 -> 0 | M134: =$F134*'Schedule 4.1'!M$70 -> 208699.5359 | N134: =$F134*'Schedule 4.1'!N$70 -> 369415.522 | O134: =$F134*'Schedule 4.1'!O$70 -> 0 | P134: =$F134*'Schedule 4.1'!P$70 -> 0 | Q134: =$F134*'Schedule 4.1'!Q$70 -> 0 | R134: =$F134*'Schedule 4.1'!R$70 -> 0 | S134: =$F134*'Schedule 4.1'!S$70 -> 0 | T134: =$F134*'Schedule 4.1'!T$70 -> 0 | U134: =$F134*'Schedule 4.1'!U$70 -> 0
C135: D11 | D135: 13 | E135: Secondary Conductor & Equip | F135: =DistnDetails!G51 -> 23944.45839 | G135: =$F135*'Schedule 4.1'!D$71 -> 0 | H135: =$F135*'Schedule 4.1'!E$71 -> 0 | I135: =$F135*'Schedule 4.1'!G$71 -> 0 | J135: =$F135*'Schedule 4.1'!J$71 -> 0 | K135: =$F135*'Schedule 4.1'!K$71 -> 0 | L135: =$F135*'Schedule 4.1'!L$71 -> 0 | M135: =$F135*'Schedule 4.1'!M$71 -> 0 | N135: =$F135*'Schedule 4.1'!N$71 -> 0 | O135: =$F135*'Schedule 4.1'!O$71 -> 13959.61924 | P135: =$F135*'Schedule 4.1'!P$71 -> 9984.839149 | Q135: =$F135*'Schedule 4.1'!Q$71 -> 0 | R135: =$F135*'Schedule 4.1'!R$71 -> 0 | S135: =$F135*'Schedule 4.1'!S$71 -> 0 | T135: =$F135*'Schedule 4.1'!T$71 -> 0 | U135: =$F135*'Schedule 4.1'!U$71 -> 0
C136: D11 | D136: 14 | E136: Services | F136: =DistnDetails!G52 -> 115842.8376 | G136: =$F136*'Schedule 4.1'!D$72 -> 0 | H136: =$F136*'Schedule 4.1'!E$72 -> 0 | I136: =$F136*'Schedule 4.1'!G$72 -> 0 | J136: =$F136*'Schedule 4.1'!J$72 -> 0 | K136: =$F136*'Schedule 4.1'!K$72 -> 0 | L136: =$F136*'Schedule 4.1'!L$72 -> 0 | M136: =$F136*'Schedule 4.1'!M$72 -> 0 | N136: =$F136*'Schedule 4.1'!N$72 -> 0 | O136: =$F136*'Schedule 4.1'!O$72 -> 0 | P136: =$F136*'Schedule 4.1'!P$72 -> 0 | Q136: =$F136*'Schedule 4.1'!Q$72 -> 115842.8376 | R136: =$F136*'Schedule 4.1'!R$72 -> 0 | S136: =$F136*'Schedule 4.1'!S$72 -> 0 | T136: =$F136*'Schedule 4.1'!T$72 -> 0 | U136: =$F136*'Schedule 4.1'!U$72 -> 0
C137: =+SystemizedPlant!C40 -> SMET03 | D137: 15 | E137: Meters | F137: =SUM((IF(VLOOKUP($C137,AllocatedMeters,9,FALSE)="",0,VLOOKUP($C137,AllocatedMeters,9,FALSE)))) -> 154605.3331 | G137: =$F137*'Schedule 4.1'!D$73 -> 0 | H137: =$F137*'Schedule 4.1'!E$73 -> 0 | I137: =$F137*'Schedule 4.1'!G$73 -> 0 | J137: =$F137*'Schedule 4.1'!J$73 -> 0 | K137: =$F137*'Schedule 4.1'!K$73 -> 0 | L137: =$F137*'Schedule 4.1'!L$73 -> 0 | M137: =$F137*'Schedule 4.1'!M$73 -> 0 | N137: =$F137*'Schedule 4.1'!N$73 -> 0 | O137: =$F137*'Schedule 4.1'!O$73 -> 0 | P137: =$F137*'Schedule 4.1'!P$73 -> 0 | Q137: =$F137*'Schedule 4.1'!Q$73 -> 0 | R137: =$F137*'Schedule 4.1'!R$73 -> 154605.3331 | S137: =$F137*'Schedule 4.1'!S$73 -> 0 | T137: =$F137*'Schedule 4.1'!T$73 -> 0 | U137: =$F137*'Schedule 4.1'!U$73 -> 0
C138: D11 | D138: 16 | E138: Street Lighting | F138: =DistnDetails!G53 -> 41248.657 | G138: =$F138*'Schedule 4.1'!D$74 -> 0 | H138: =$F138*'Schedule 4.1'!E$74 -> 0 | I138: =$F138*'Schedule 4.1'!G$74 -> 0 | J138: =$F138*'Schedule 4.1'!J$74 -> 0 | K138: =$F138*'Schedule 4.1'!K$74 -> 0 | L138: =$F138*'Schedule 4.1'!L$74 -> 0 | M138: =$F138*'Schedule 4.1'!M$74 -> 0 | N138: =$F138*'Schedule 4.1'!N$74 -> 0 | O138: =$F138*'Schedule 4.1'!O$74 -> 0 | P138: =$F138*'Schedule 4.1'!P$74 -> 0 | Q138: =$F138*'Schedule 4.1'!Q$74 -> 0 | R138: =$F138*'Schedule 4.1'!R$74 -> 0 | S138: =$F138*'Schedule 4.1'!S$74 -> 41248.657 | T138: =$F138*'Schedule 4.1'!T$74 -> 0 | U138: =$F138*'Schedule 4.1'!U$74 -> 0
A139: =SUM(G139:U139)-F139 -> 0 | D139: 17 | E139: Subtotal Distribution | F139: =SUM(F129:F138) -> 2646115.759 | G139: =SUM(G129:G138) -> 0 | H139: 0 | I139: 0 | J139: 141589.6852 | K139: 985525.7084 | L139: 293570.7418 | M139: 208699.5359 | N139: 369415.522 | O139: 156762.5233 | P139: 178855.2152 | Q139: 115842.8376 | R139: 154605.3331 | S139: 41248.657 | T139: 0 | U139: 0
A141: =SUM(G141:U141)-F141 -> 0 | D141: =MAX(D138:D140)+NoOne -> 18 | E141: Subttl Prod, Trans, & Dist | F141: =SUM(F139,F126,F121) -> 5119628.051 | G141: =SUM(G139,G126,G121) -> 234840.8141 | H141: 0 | I141: 1707756.857 | J141: 672504.305 | K141: 985525.7084 | L141: 293570.7418 | M141: 208699.5359 | N141: 369415.522 | O141: 156762.5233 | P141: 178855.2152 | Q141: 115842.8376 | R141: 154605.3331 | S141: 41248.657 | T141: 0 | U141: 0
B143: =IF(OverheadAlloc="Expenses","E-GTDC","L-GTDC") -> E-GTDC | C143: =+SystemizedPlant!C119 -> SGPLT03 | D143: =MAX(D140:D142)+NoOne -> 19 | E143: General | F143: =+SystemizedPlant!K119 -> 602018.2144 | G143: =$F143*VLOOKUP($B143,RatiosLabInt,G$530,FALSE) -> 69558.93876 | H143: 0 | I143: 228602.1843 | J143: 40133.68059 | K143: 59302.88039 | L143: 16827.8369 | M143: 11649.00378 | N143: 20619.70475 | O143: 9405.029448 | P143: 10408.90214 | Q143: 7247.005373 | R143: 11154.66637 | S143: 1769.520165 | T143: 115338.8615 | U143: 0
D144: =MAX(D141:D143)+NoOne -> 20 | E144: Telecontrol - Specific | F144: 0 | G144: =$F144*'Schedule 4.1'!D$35 -> 0 | H144: =$F144*'Schedule 4.1'!E$35 -> 0 | I144: =$F144*'Schedule 4.1'!G$35 -> 0 | J144: =$F144*'Schedule 4.1'!J$35 -> 0 | K144: =$F144*'Schedule 4.1'!K$35 -> 0 | L144: =$F144*'Schedule 4.1'!L$35 -> 0 | M144: =$F144*'Schedule 4.1'!M$35 -> 0 | N144: =$F144*'Schedule 4.1'!N$35 -> 0 | O144: =$F144*'Schedule 4.1'!O$35 -> 0 | P144: =$F144*'Schedule 4.1'!P$35 -> 0 | Q144: =$F144*'Schedule 4.1'!Q$35 -> 0 | R144: =$F144*'Schedule 4.1'!R$35 -> 0 | S144: =$F144*'Schedule 4.1'!S$35 -> 0 | T144: =$F144*'Schedule 4.1'!T$35 -> 0 | U144: =$F144*'Schedule 4.1'!U$35 -> 0
C145: =+SDEPDetails!C$160 -> SDEP19 | D145: =MAX(D142:D144)+NoOne -> 21 | E145: Feasibility Studies | F145: =SUM(G145:U145) -> 1460.97745 | G145: =+SDEPDetails!E160 -> 0 | H145: 0 | I145: =+SDEPDetails!G160 -> 0 | J145: =+SDEPDetails!K160 -> 1460.97745 | K145: 0 | L145: 0 | M145: 0 | N145: 0 | O145: 0 | P145: 0 | Q145: 0 | R145: 0 | S145: 0 | T145: 0 | U145: 0
C146: =+SystemizedPlant!C74 -> SCS2_03 | D146: =MAX(D143:D145)+NoOne -> 22 | E146: Software - General | F146: =+SystemizedPlant!K74 -> 55207.77646 | G146: =$F146*G$141/SUM($G$141:$U$141) -> 2532.418184 | H146: 0 | I146: 18415.68526 | J146: 7251.985294 | K146: 10627.46794 | L146: 3165.735426 | M146: 2250.522345 | N146: 3983.611574 | O146: 1690.456857 | P146: 1928.694553 | Q146: 1249.197289 | R146: 1667.194683 | S146: 444.8070469 | T146: 0 | U146: 0
C147: =+SystemizedPlant!C55 -> SCS1_03 | D147: =MAX(D144:D146)+NoOne -> 23 | E147: Software - Cust Acctng | F147: =SUM(G147:U147) -> 0 | G147: 0 | H147: 0 | I147: 0 | J147: 0 | K147: 0 | L147: 0 | M147: 0 | N147: 0 | O147: 0 | P147: 0 | Q147: 0 | R147: 0 | S147: 0 | T147: =+SystemizedPlant!K55 -> 0 | U147: 0
A149: =SUM(G149:U149)-F149 -> 0 | D149: =MAX(D146:D148)+NoOne -> 24 | E149: Total Depreciation Expense | F149: =SUM(F141:F147) -> 5778315.019 | G149: =SUM(G141:G147) -> 306932.1711 | H149: 0 | I149: 1954774.727 | J149: 721350.9483 | K149: 1055456.057 | L149: 313564.3141 | M149: 222599.062 | N149: 394018.8384 | O149: 167858.0096 | P149: 191192.8119 | Q149: 124339.0403 | R149: 167427.1941 | S149: 43462.98421 | T149: 115338.8615 | U149: 0
U154: Schedule 2.6E | AF154: Schedule 2.6E
U155: Page 1 of 2 | AF155: Page 2 of 2
D157: =D6 -> NEWFOUNDLAND AND LABRADOR HYDRO | Y157: NEWFOUNDLAND & LABRADOR HYDRO
D158: =D7 -> 2019 Test Year Cost of Service Study | Y158: =RunName -> 2019 Test Year Cost of Service Study
D159: =$B$1 -> Labrador Interconnected | Y159: =$B$1 -> Labrador Interconnected
D160: Functional Classification of Rate Base | Y160: =+D160&" (CONT'D.)" -> Functional Classification of Rate Base (CONT'D.)
E162: =MAX(D162)+NoOne -> 1 | F162: 2 | G162: 3 | H162: 4 | I162: 5 | J162: 6 | K162: 7 | L162: 8 | M162: 9 | N162: 10 | O162: 11 | P162: 12 | Q162: 13 | R162: 14 | S162: 15 | T162: 16 | U162: 17 | AA162: =MAX(Z162)+NoOne -> 1 | AC162: =MAX(U162)+NoOne -> 18
J163: Distribution | U163: Specifically
C164: Check | D164: Line | F164: Total | G164: Production | H164: Production | I164: Transmission | J164: Substations | K164: Primary Lines | M164: Line Transformers | O164: Secondary Lines | Q164: Services | R164: Meters | S164: Street Lighting | T164: Accounting | U164: Assigned | AA164: Description | AC164: Basis of Functional Classification
C165: Column | D165: No. | E165: Description | F165: Amount | G165: Demand | H165: Energy | I165: Demand | J165: Demand | K165: Demand | L165: Customer | M165: Demand | N165: Customer | O165: Demand | P165: Customer | Q165: Customer | R165: Customer | S165: Customer | T165: Customer | U165: Customer
F166: ($) | G166: ($) | H166: ($) | I166: ($) | J166: ($) | K166: ($) | L166: ($) | M166: ($) | N166: ($) | O166: ($) | P166: ($) | Q166: ($) | R166: ($) | S166: ($) | T166: ($) | U166: ($) | AA166: =IF(ISBLANK(E166),"",E166) -> 
D168: =MAX(D165:D167)+NoOne -> 1 | E168: Average Net Book Value | F168: =SUM(G168:U168) -> 130785962.7 | G168: =G99 -> 7181007.525 | H168: =H99 -> 0 | I168: 57402445.3 | J168: 17770137.22 | K168: 19132717.23 | L168: 5496996.579 | M168: 3835145.702 | N168: 6788526.602 | O168: 2921328.102 | P168: 3297608.062 | Q168: 2607644.198 | R168: 2374715.103 | S168: 335704.3512 | T168: 1641986.694 | U168: 0 | AA168: Average Net Book Value | AC168: =+"Sch. 2.3 , L. "&D99 -> Sch. 2.3 , L. 24
A170: =F170-SUM(G170:U170) -> 0 | D170: =MAX(D167:D169)+NoOne -> 2 | E170: Cash Working Capital | F170: ='Rate Base'!I15 -> 135347.5393 | G170: =IF(SUM($G$168:$U$168)<>0,$F170*(G$168/SUM($G$168:$U$168)),0) -> 7431.468015 | H170: 0 | I170: 59404.53826 | J170: 18389.9273 | K170: 19800.03163 | L170: 5688.721828 | M170: 3968.908613 | N170: 7025.298071 | O170: 3023.218716 | P170: 3412.622637 | Q170: 2698.594088 | R170: 2457.540849 | S170: 347.4131087 | T170: 1699.256206 | U170: 0 | AA170: Cash Working Capital | AC170: Prorated on Average Net Book Value, L. 1
D172: =MAX(D169:D171)+NoOne -> 3 | E172: Fuel Inventory - No. 6 Fuel | F172: 0 | G172: 0 | H172: 0 | I172: 0 | J172: 0 | K172: 0 | L172: 0 | M172: 0 | N172: 0 | O172: 0 | P172: 0 | Q172: 0 | R172: 0 | S172: 0 | T172: 0 | U172: 0 | AA172: =IF(ISBLANK(E172),"",E172) -> Fuel Inventory - No. 6 Fuel
A173: =F173-SUM(G173:U173) -> 0 | D173: =MAX(D170:D172)+NoOne -> 4 | E173: Fuel Inventory - Diesel | F173: ='Rate Base'!I17 -> 30034.34812 | G173: =$F173*(G262/$F262) -> 30034.34812 | H173: 0 | I173: 0 | J173: 0 | K173: 0 | L173: 0 | M173: 0 | N173: 0 | O173: 0 | P173: 0 | Q173: 0 | R173: 0 | S173: 0 | T173: 0 | U173: 0 | AA173: Fuel Inventory - Diesel | AC173: Production - Demand
D174: =MAX(D171:D173)+NoOne -> 5 | E174: Fuel Inventory - Gas Turbine | F174: ='Rate Base'!I18 -> 263144.1831 | G174: =$F174*(G262/$F262) -> 263144.1831 | H174: 0 | I174: 0 | J174: 0 | K174: 0 | L174: 0 | M174: 0 | N174: 0 | O174: 0 | P174: 0 | Q174: 0 | R174: 0 | S174: 0 | T174: 0 | U174: 0 | AA174: =IF(ISBLANK(E174),"",E174) -> Fuel Inventory - Gas Turbine | AC174: Production - Demand
A176: =F176-SUM(G176:U176) -> 0 | D176: =MAX(D173:D175)+NoOne -> 6 | E176: Inventory/Supplies | F176: ='Rate Base'!I19 -> 2118174.517 | G176: =IF(SUM($G$49:$U$49)<>0,$F176*(G$49/SUM($G$49:$U$49)),0) -> 290810.1295 | H176: 0 | I176: 736972.1119 | J176: 290736.5478 | K176: 313626.192 | L176: 88994.84093 | M176: 61606.32791 | N176: 109048.32 | O176: 49738.95959 | P176: 55047.98955 | Q176: 38326.14341 | R176: 37807.66785 | S176: 9358.194198 | T176: 36101.09263 | U176: 0 | AA176: Inventory/Supplies | AC176: =+"Prorated on Total Plant in Service, Sch. 2.2, L. "&D49 -> Prorated on Total Plant in Service, Sch. 2.2, L. 24
A178: =F178-SUM(G178:U178) -> 0 | D178: =MAX(D175:D177)+NoOne -> 7 | E178: Deferred Charges: Foreign Exchange Loss and Regulatory Costs | F178: ='Rate Base'!I21 -> 4559081.327 | G178: =IF(SUM($G$168:$U$168)<>0,$F178*(G$168/SUM($G$168:$U$168)),0) -> 250323.48 | H178: 0 | I178: 2000997.746 | J178: 619451.0412 | K178: 666949.3581 | L178: 191620.3692 | M178: 133689.7385 | N178: 236641.9472 | O178: 101834.8768 | P178: 114951.6587 | Q178: 90900.13735 | R178: 82780.43806 | S178: 11702.35251 | T178: 57238.18309 | U178: 0 | AA178: Deferred Charges: Foreign Exchange Loss and Regulatory Costs | AC178: Prorated on Average Net Book Value, L. 1
A180: =SUM(F168:F178)-F180 -> 0 | D180: =MAX(D177:D179)+NoOne -> 8 | E180: Total Rate Base | F180: =SUM(G180:U180) -> 137891744.6 | G180: =SUM(G168:G178) -> 8022751.134 | H180: 0 | I180: 60199819.7 | J180: 18698714.73 | K180: 20133092.81 | L180: 5783300.511 | M180: 4034410.677 | N180: 7141242.168 | O180: 3075925.157 | P180: 3471020.333 | Q180: 2739569.073 | R180: 2497760.75 | S180: 357112.311 | T180: 1737025.226 | U180: 0 | AA180: Total Rate Base
D182: =MAX(D179:D181)+NoOne -> 9 | E182: Less: Rural Portion | F182: 0 | AA182: =IF(ISBLANK(E182),"",E182) -> Less: Rural Portion
D184: =MAX(D181:D183)+NoOne -> 10 | E184: Rate Base Available for Equity Return | F184: =SUM(F180,F182) -> 137891744.6 | G184: =SUM(G180,G182) -> 8022751.134 | H184: 0 | I184: 60199819.7 | J184: 18698714.73 | K184: 20133092.81 | L184: 5783300.511 | M184: 4034410.677 | N184: 7141242.168 | O184: 3075925.157 | P184: 3471020.333 | Q184: 2739569.073 | R184: 2497760.75 | S184: 357112.311 | T184: 1737025.226 | U184: 0 | AA184: =IF(ISBLANK(E184),"",E184) -> Rate Base Available for Equity Return
A186: =('Rate Base'!H41*F180)-F186 -> 0 | D186: =MAX(D183:D185)+NoOne -> 11 | E186: Return on Debt | F186: =SUM(G186:U186) -> 5574895.953 | G186: =G180*'Rate Base'!$I41 -> 324355.9139 | H186: =H180*'Rate Base'!$I41 -> 0 | I186: =I180*'Rate Base'!$I41 -> 2433849.338 | J186: =J180*'Rate Base'!$I41 -> 755979.9131 | K186: =K180*'Rate Base'!$I41 -> 813971.1189 | L186: =L180*'Rate Base'!$I41 -> 233816.0179 | M186: =M180*'Rate Base'!$I41 -> 163109.2552 | N186: =N180*'Rate Base'!$I41 -> 288716.9365 | O186: =O180*'Rate Base'!$I41 -> 124358.1533 | P186: =P180*'Rate Base'!$I41 -> 140331.6585 | Q186: =Q180*'Rate Base'!$I41 -> 110759.4409 | R186: =R180*'Rate Base'!$I41 -> 100983.2484 | S186: =S180*'Rate Base'!$I41 -> 14437.87649 | T186: =T180*'Rate Base'!$I41 -> 70227.08236 | U186: =U180*'Rate Base'!$I41 -> 0 | AA186: Return on Debt | AC186: =+"L."&D180&" x Sch.1.1,p2,L."&'Rate Base'!$B$32 -> L.8 x Sch.1.1,p2,L.12
A188: =('Rate Base'!I42*F180)-F188 -> 0 | D188: =MAX(D185:D187)+NoOne -> 12 | E188: Return on Equity | F188: =SUM(G188:U188) -> 2264237.536 | G188: =G180*'Rate Base'!$I42 -> 131736.7788 | H188: =H180*'Rate Base'!$I42 -> 0 | I188: =I180*'Rate Base'!$I42 -> 988505.0902 | J188: =J180*'Rate Base'!$I42 -> 307040.3663 | K188: =K180*'Rate Base'!$I42 -> 330593.4274 | L188: =L180*'Rate Base'!$I42 -> 94964.10491 | M188: =M180*'Rate Base'!$I42 -> 66246.63512 | N188: =N180*'Rate Base'!$I42 -> 117262.0494 | O188: =O180*'Rate Base'!$I42 -> 50507.91996 | P188: =P180*'Rate Base'!$I42 -> 56995.54059 | Q188: =Q180*'Rate Base'!$I42 -> 44984.81868 | R188: =R180*'Rate Base'!$I42 -> 41014.2294 | S188: =S180*'Rate Base'!$I42 -> 5863.926818 | T188: =T180*'Rate Base'!$I42 -> 28522.64818 | U188: =U180*'Rate Base'!$I42 -> 0 | AA188: Return on Equity | AC188: =+"L."&D184&" x Sch.1.1,p2,L."&'Rate Base'!$B$36 -> L.10 x Sch.1.1,p2,L.15
D190: =MAX(D187:D189)+NoOne -> 13 | E190: Return on Rate Base | F190: =SUM(G190:U190) -> 7839133.489 | G190: =SUM(G186:G188) -> 456092.6927 | H190: =SUM(H186:H188) -> 0 | I190: 3422354.428 | J190: 1063020.279 | K190: 1144564.546 | L190: 328780.1228 | M190: 229355.8903 | N190: 405978.9859 | O190: 174866.0733 | P190: 197327.1991 | Q190: 155744.2596 | R190: 141997.4778 | S190: 20301.80331 | T190: 98749.73055 | U190: 0 | AA190: Return on Rate Base
U194: Schedule 2.4E | AF194: Schedule 2.4E
U195: Page 1 of 2 | AF195: Page 2 of 2
D196: =D6 -> NEWFOUNDLAND AND LABRADOR HYDRO | Y196: NEWFOUNDLAND & LABRADOR HYDRO
D197: =D7 -> 2019 Test Year Cost of Service Study | Y197: =RunName -> 2019 Test Year Cost of Service Study
D198: =$B$1 -> Labrador Interconnected | Y198: =$B$1 -> Labrador Interconnected
D199: Functional Classification of Operating & Maintenance Expense | Y199: =+D199&" (CONT'D.)" -> Functional Classification of Operating & Maintenance Expense (CONT'D.)
E201: =MAX(D201)+NoOne -> 1 | F201: 2 | G201: 3 | H201: 4 | I201: 5 | J201: 6 | K201: 7 | L201: 8 | M201: 9 | N201: 10 | O201: 11 | P201: 12 | Q201: 13 | R201: 14 | S201: 15 | T201: 16 | U201: 17 | AA201: =MAX(Z201)+NoOne -> 1 | AC201: =MAX(U201)+NoOne -> 18 | AD201: =MAX(AC201)+NoOne -> 19 | AE201: =MAX(AD201)+NoOne -> 20
J202: Distribution | U202: Specifically | AC202: Revenue Related
C203: Check | D203: Line | F203: Total | G203: Production | H203: Production | I203: Transmission | J203: Substations | K203: Primary Lines | M203: Line Transformers | O203: Secondary Lines | Q203: Services | R203: Meters | S203: Street Lighting | T203: Accounting | U203: Assigned | AC203: Municipal | AD203: PUB
C204: Column | D204: No. | E204: Description | F204: Amount | G204: Demand | H204: Energy | I204: Demand | J204: Demand | K204: Demand | L204: Customer | M204: Demand | N204: Customer | O204: Demand | P204: Customer | Q204: Customer | R204: Customer | S204: Customer | T204: Customer | U204: Customer | AA204: Description | AC204: Tax | AD204: Assessment | AE204: Basis of Functional Classification
F205: ($) | G205: ($) | H205: ($) | I205: ($) | J205: ($) | K205: ($) | L205: ($) | M205: ($) | N205: ($) | O205: ($) | P205: ($) | Q205: ($) | R205: ($) | S205: ($) | T205: ($) | U205: ($)
AA206: =+E206 -> 
E207: Production | AA207: =IF(ISBLANK(E207),"",E207) -> Production
D208: =MAX(D205:D207)+NoOne -> 1 | E208: Gas Turbine / Diesel | F208: =SUM('O&M Summary'!J19,'O&M Summary'!J20) -> 656127.8755 | G208: =$F208*'Schedule 4.1'!D$21 -> 656127.8755 | H208: =$F208*'Schedule 4.1'!E$21 -> 0 | I208: =$F208*'Schedule 4.1'!G$16 -> 0 | J208: =$F208*'Schedule 4.1'!J$16 -> 0 | K208: =$F208*'Schedule 4.1'!K$16 -> 0 | L208: =$F208*'Schedule 4.1'!L$16 -> 0 | M208: =$F208*'Schedule 4.1'!M$16 -> 0 | N208: =$F208*'Schedule 4.1'!N$16 -> 0 | O208: =$F208*'Schedule 4.1'!O$16 -> 0 | P208: =$F208*'Schedule 4.1'!P$16 -> 0 | Q208: =$F208*'Schedule 4.1'!Q$16 -> 0 | R208: =$F208*'Schedule 4.1'!R$16 -> 0 | S208: =$F208*'Schedule 4.1'!S$16 -> 0 | T208: =$F208*'Schedule 4.1'!T$16 -> 0 | U208: =$F208*'Schedule 4.1'!U$16 -> 0 | AA208: Gas Turbine / Diesel | AC208: 0 | AD208: 0 | AE208: ="Production - Demand, Energy ratios Sch.4.1 L."&'Schedule 4.1'!$A$21 -> Production - Demand, Energy ratios Sch.4.1 L.9
D209: =MAX(D206:D208)+NoOne -> 2 | E209: Other | F209: ='O&M Summary'!J21 -> 80919.7804 | G209: =$F209*'Schedule 4.1'!D$21 -> 80919.7804 | H209: =$F209*'Schedule 4.1'!E$21 -> 0 | I209: =$F209*'Schedule 4.1'!G$16 -> 0 | J209: =$F209*'Schedule 4.1'!J$16 -> 0 | K209: =$F209*'Schedule 4.1'!K$16 -> 0 | L209: =$F209*'Schedule 4.1'!L$16 -> 0 | M209: =$F209*'Schedule 4.1'!M$16 -> 0 | N209: =$F209*'Schedule 4.1'!N$16 -> 0 | O209: =$F209*'Schedule 4.1'!O$16 -> 0 | P209: =$F209*'Schedule 4.1'!P$16 -> 0 | Q209: =$F209*'Schedule 4.1'!Q$16 -> 0 | R209: =$F209*'Schedule 4.1'!R$16 -> 0 | S209: =$F209*'Schedule 4.1'!S$16 -> 0 | T209: =$F209*'Schedule 4.1'!T$16 -> 0 | U209: =$F209*'Schedule 4.1'!U$16 -> 0 | AA209: =IF(ISBLANK(E209),"",E209) -> Other | AC209: 0 | AD209: 0 | AE209: ="Production - Demand, Energy ratios Sch.4.1 L."&'Schedule 4.1'!$A$21 -> Production - Demand, Energy ratios Sch.4.1 L.9
A210: =SUM(G210:AD210)-F210 -> 0 | D210: =MAX(D207:D209)+NoOne -> 3 | E210: Subtotal Production | F210: =SUM(F208:F209) -> 737047.656 | G210: 737047.656 | H210: 0 | I210: 0 | J210: 0 | K210: 0 | L210: 0 | M210: 0 | N210: 0 | O210: 0 | P210: 0 | Q210: 0 | R210: 0 | S210: 0 | T210: 0 | U210: 0 | AA210: Subtotal Production | AC210: =SUM(AC208:AC209) -> 0 | AD210: =SUM(AD208:AD209) -> 0
E212: Transmission | AA212: Transmission
D213: =MAX(D210:D212)+NoOne -> 4 | E213: Transmission Lines | F213: =+'O&M Summary'!J26 -> 2280520.417 | G213: =$F$213*G24/SUM($G$24:$U$24) -> 0 | H213: 0 | I213: 2168552.07 | J213: 111968.3468 | K213: 0 | L213: 0 | M213: 0 | N213: 0 | O213: 0 | P213: 0 | Q213: 0 | R213: 0 | S213: 0 | T213: 0 | U213: 0 | AA213: Transmission Lines | AC213: 0 | AD213: 0 | AE213: =+"Prorated on Transmission Lines Plant in Service - Sch.2.2 L."&D24 -> Prorated on Transmission Lines Plant in Service - Sch.2.2 L.4
D214: =MAX(D211:D213)+NoOne -> 5 | E214: Terminal Stations | F214: =+'O&M Summary'!J30 -> 173173.39 | G214: =$F214*G25/SUM($G$25:$U$25) -> 0 | H214: 0 | I214: 105239.723 | J214: 67933.66705 | K214: 0 | L214: 0 | M214: 0 | N214: 0 | O214: 0 | P214: 0 | Q214: 0 | R214: 0 | S214: 0 | T214: 0 | U214: 0 | AA214: Terminal Stations | AC214: 0 | AD214: 0 | AE214: =+"Prorated on Transmission Terminal Stations Plant in Service - Sch.2.2 L."&D25 -> Prorated on Transmission Terminal Stations Plant in Service - Sch.2.2 L.5
D215: =MAX(D212:D214)+NoOne -> 6 | E215: Other | F215: ='O&M Summary'!J31+'O&M Summary'!J33 -> 189105.6052 | G215: =$F215*(G26/$F$26) -> 0 | H215: 0 | I215: 148480.7011 | J215: 40624.9041 | K215: 0 | L215: 0 | M215: 0 | N215: 0 | O215: 0 | P215: 0 | Q215: 0 | R215: 0 | S215: 0 | T215: 0 | U215: 0 | AA215: =IF(ISBLANK(E215),"",E215) -> Other | AC215: 0 | AD215: 0 | AE215: =+"Prorated on Transmission Plant in Service - Sch.2.2 L."&$D$26 -> Prorated on Transmission Plant in Service - Sch.2.2 L.6
A216: =SUM(G216:AD216)-F216 -> 0 | D216: =MAX(D213:D215)+NoOne -> 7 | E216: Subtotal Transmission | F216: =SUM(F213:F215) -> 2642799.412 | G216: 0 | H216: 0 | I216: 2422272.494 | J216: 220526.918 | K216: 0 | L216: 0 | M216: 0 | N216: 0 | O216: 0 | P216: 0 | Q216: 0 | R216: 0 | S216: 0 | T216: 0 | U216: 0 | AA216: Subtotal Transmission | AC216: =SUM(AC213:AC215) -> 0 | AD216: =SUM(AD213:AD215) -> 0
E218: Distribution | AA218: Distribution
B219: P-DisxMet | D219: =MAX(D216:D218)+NoOne -> 8 | E219: Other | F219: =+'O&M Summary'!J39 -> 1658820.31 | G219: =$F219*VLOOKUP($B219,RatiosLabInt,G$530,FALSE) -> 0 | H219: 0 | I219: 0 | J219: 204730.2198 | K219: 628374.2933 | L219: 178308.0358 | M219: 123433.0351 | N219: 218486.7297 | O219: 99655.84628 | P219: 110292.8978 | Q219: 76789.38779 | R219: 0 | S219: 18749.8647 | T219: 0 | U219: 0 | AA219: Other | AC219: 0 | AD219: 0 | AE219: =+"Prorated on Distribution Plant, excluding Meters - Sch. 2.2 L. "&D39&", less L. "&D37 -> Prorated on Distribution Plant, excluding Meters - Sch. 2.2 L. 17, less L. 15
D220: =MAX(D217:D219)+NoOne -> 9 | E220: Meters | F220: =+'O&M Summary'!J43 -> 118195.0278 | G220: =$F220*'Schedule 4.1'!D$73 -> 0 | H220: =$F220*'Schedule 4.1'!E$73 -> 0 | I220: =$F220*'Schedule 4.1'!G$73 -> 0 | J220: =$F220*'Schedule 4.1'!J$73 -> 0 | K220: =$F220*'Schedule 4.1'!K$73 -> 0 | L220: =$F220*'Schedule 4.1'!L$73 -> 0 | M220: =$F220*'Schedule 4.1'!M$73 -> 0 | N220: =$F220*'Schedule 4.1'!N$73 -> 0 | O220: =$F220*'Schedule 4.1'!O$73 -> 0 | P220: =$F220*'Schedule 4.1'!P$73 -> 0 | Q220: =$F220*'Schedule 4.1'!Q$73 -> 0 | R220: =$F220*'Schedule 4.1'!R$73 -> 118195.0278 | S220: =$F220*'Schedule 4.1'!S$73 -> 0 | T220: =$F220*'Schedule 4.1'!T$73 -> 0 | U220: =$F220*'Schedule 4.1'!U$73 -> 0 | AA220: Meters | AC220: 0 | AD220: 0 | AE220: Meters - Customer
A221: =SUM(G221:AD221)-F221 -> 0 | D221: =MAX(D218:D220)+NoOne -> 10 | E221: Subtotal Distribution | F221: =SUM(F219:F220) -> 1777015.338 | G221: =SUM(G219:G220) -> 0 | H221: 0 | I221: 0 | J221: 204730.2198 | K221: 628374.2933 | L221: 178308.0358 | M221: 123433.0351 | N221: 218486.7297 | O221: 99655.84628 | P221: 110292.8978 | Q221: 76789.38779 | R221: 118195.0278 | S221: 18749.8647 | T221: 0 | U221: 0 | AA221: Subtotal Distribution | AC221: =SUM(AC219:AC220) -> 0 | AD221: =SUM(AD219:AD220) -> 0
A223: =SUM(G223:AD223)-F223 -> 0 | D223: =MAX(D220:D222)+NoOne -> 11 | E223: Subttl Prod, Trans, & Dist | F223: =SUM(F221,F216,F210) -> 5156862.406 | G223: =SUM(G221,G216,G210) -> 737047.656 | H223: 0 | I223: 2422272.494 | J223: 425257.1378 | K223: 628374.2933 | L223: 178308.0358 | M223: 123433.0351 | N223: 218486.7297 | O223: 99655.84628 | P223: 110292.8978 | Q223: 76789.38779 | R223: 118195.0278 | S223: 18749.8647 | T223: 0 | U223: 0 | AA223: Subttl Prod, Trans, & Dist | AC223: =SUM(AC221,AC216,AC210) -> 0 | AD223: =SUM(AD221,AD216,AD210) -> 0
D225: =MAX(D222:D224)+NoOne -> 12 | E225: Customer Accounting | F225: =+'O&M Summary'!J53 -> 1222132.468 | G225: =$F225*'Schedule 4.1'!D$75 -> 0 | H225: =$F225*'Schedule 4.1'!E$75 -> 0 | I225: =$F225*'Schedule 4.1'!G$75 -> 0 | J225: =$F225*'Schedule 4.1'!J$75 -> 0 | K225: =$F225*'Schedule 4.1'!K$75 -> 0 | L225: =$F225*'Schedule 4.1'!L$75 -> 0 | M225: =$F225*'Schedule 4.1'!M$75 -> 0 | N225: =$F225*'Schedule 4.1'!N$75 -> 0 | O225: =$F225*'Schedule 4.1'!O$75 -> 0 | P225: =$F225*'Schedule 4.1'!P$75 -> 0 | Q225: =$F225*'Schedule 4.1'!Q$75 -> 0 | R225: =$F225*'Schedule 4.1'!R$75 -> 0 | S225: =$F225*'Schedule 4.1'!S$75 -> 0 | T225: =$F225*'Schedule 4.1'!T$75 -> 1222132.468 | U225: =$F225*'Schedule 4.1'!U$75 -> 0 | AA225: Customer Accounting | AC225: 0 | AD225: 0 | AE225: Accounting - Customer
E227: Administrative & General: | AA227: Administrative & General:
E228: Plant-Related: | AA228: Plant-Related:
D229: =MAX(D225:D228)+NoOne -> 13 | E229: Production | F229: =+'O&M Summary'!J79 -> 117916.7452 | G229: =IF($F$21<>0,$F229*(G21/$F$21),0) -> 117916.7452 | H229: 0 | I229: 0 | J229: 0 | K229: 0 | L229: 0 | M229: 0 | N229: 0 | O229: 0 | P229: 0 | Q229: 0 | R229: 0 | S229: 0 | T229: 0 | U229: 0 | AA229: Production | AC229: 0 | AD229: 0 | AE229: =+"Prorated on Production Plant in Service - Sch.2.2 L."&D21 -> Prorated on Production Plant in Service - Sch.2.2 L.3
A230: =SUM(G230:AD230)-F230 -> 0 | D230: =MAX(D227:D229)+NoOne -> 14 | E230: Transmission | F230: =+'O&M Summary'!J86 -> 164210.1779 | G230: =IF($F$26<>0,$F230*(G26/$F$26),0) -> 0 | H230: 0 | I230: 128933.4725 | J230: 35276.70544 | K230: 0 | L230: 0 | M230: 0 | N230: 0 | O230: 0 | P230: 0 | Q230: 0 | R230: 0 | S230: 0 | T230: 0 | U230: 0 | AA230: Transmission | AC230: 0 | AD230: 0 | AE230: =+"Prorated on Transmission Plant in Service - Sch.2.2 L. "&D26 -> Prorated on Transmission Plant in Service - Sch.2.2 L. 6
A231: =SUM(G231:AD231)-F231 -> 0 | D231: =MAX(D228:D230)+NoOne -> 15 | E231: Distribution | F231: =+'O&M Summary'!J87 -> 325493.567 | G231: =IF($F$39<>0,$F231*(G39/$F$39),0) -> 0 | H231: 0 | I231: 0 | J231: 38477.01273 | K231: 118096.7114 | L231: 33511.2255 | M231: 23198.01378 | N231: 41062.41221 | O231: 18729.32716 | P231: 20728.4554 | Q231: 14431.80325 | R231: 13734.75463 | S231: 3523.850964 | T231: 0 | U231: 0 | AA231: Distribution | AC231: 0 | AD231: 0 | AE231: =+"Prorated on Distribution Plant in Service - Sch.2.2 L."&D39 -> Prorated on Distribution Plant in Service - Sch.2.2 L.17
A232: =SUM(G232:AD232)-F232 -> 0 | D232: =MAX(D229:D231)+NoOne -> 16 | E232: Prod, Trans, Distn Plant | F232: =+'O&M Summary'!J94 -> 0 | G232: =IF($F$41<>0,$F232*(G41/$F$41),0) -> 0 | H232: 0 | I232: 0 | J232: 0 | K232: 0 | L232: 0 | M232: 0 | N232: 0 | O232: 0 | P232: 0 | Q232: 0 | R232: 0 | S232: 0 | T232: 0 | U232: 0 | AA232: Prod, Trans, Distn Plant | AC232: 0 | AD232: 0 | AE232: =+"Prorated on Production, Transmission, Distribution Plant in Service - Sch.2.2 L. "&$D$41 -> Prorated on Production, Transmission, Distribution Plant in Service - Sch.2.2 L. 18
D233: =MAX(D230:D232)+NoOne -> 17 | E233: Prod, Trans, Distn & General Plt | F233: =+'O&M Summary'!J92 -> 679913.7884 | G233: =IF($F$49<>0,$F233*(G49/$F$49),0) -> 93347.27393 | H233: 0 | I233: 236561.0088 | J233: 93323.65487 | K233: 100671.0121 | L233: 28566.49391 | M233: 19775.04283 | N233: 35003.46916 | O233: 15965.73095 | P233: 17669.87886 | Q233: 12302.32597 | R233: 12135.90026 | S233: 3003.890953 | T233: 11588.10592 | U233: 0 | AA233: Prod, Trans, Distn & General Plt | AC233: 0 | AD233: 0 | AE233: =+"Prorated on Production, Transmission, Distribution & General Plant in Service - Sch.2.2 L."&D49 -> Prorated on Production, Transmission, Distribution & General Plant in Service - Sch.2.2 L.24
D234: =MAX(D231:D233)+NoOne -> 18 | E234: Property Insurance | F234: =+'O&M Summary'!J98 -> 145899.9988 | G234: =IF(SUM($F$21,$F$25,$F$29,$F$43:$F$44)<>0,$F234*((SUM(G$21,G$25,G$29,G$43:G$44)/SUM($F$21,$F$25,$F$29,$F$43:$F$44))),0) -> 44062.9058 | H234: 0 | I234: 48529.35311 | J234: 40794.34317 | K234: 2813.858902 | L234: 798.4630484 | M234: 552.7328986 | N234: 978.383164 | O234: 446.2586919 | P234: 493.8913884 | Q234: 343.8627339 | R234: 529.277112 | S234: 83.96185879 | T234: 5472.706889 | U234: 0 | AA234: =IF(ISBLANK(E234),"",E234) -> Property Insurance | AC234: 0 | AD234: 0 | AE234: =+"Prorated on Prod., Trans. Terminal, Dist. Sub & General Plant in Service - Sch.2.2 L."&D21&", "&D25&", "&D29&", "&D43&" - "&D44 -> Prorated on Prod., Trans. Terminal, Dist. Sub & General Plant in Service - Sch.2.2 L.3, 5, 7, 19 - 20
E235: Revenue-Related: | AA235: Revenue-Related:
D236: =MAX(D233:D235)+NoOne -> 19 | E236: Municipal Tax | F236: =+'O&M Summary'!J102 -> 506563.796 | G236: 0 | H236: 0 | I236: 0 | J236: 0 | K236: 0 | L236: 0 | M236: 0 | N236: 0 | O236: 0 | P236: 0 | Q236: 0 | R236: 0 | S236: 0 | T236: 0 | U236: 0 | AA236: =IF(ISBLANK(E236),"",E236) -> Municipal Tax | AC236: =+F236 -> 506563.796 | AD236: 0 | AE236: Revenue-related
D237: =MAX(D234:D236)+NoOne -> 20 | E237: PUB Assessment | F237: =+'O&M Summary'!J106 -> 35979.04234 | G237: 0 | H237: 0 | I237: 0 | J237: 0 | K237: 0 | L237: 0 | M237: 0 | N237: 0 | O237: 0 | P237: 0 | Q237: 0 | R237: 0 | S237: 0 | T237: 0 | U237: 0 | AA237: =IF(ISBLANK(E237),"",E237) -> PUB Assessment | AC237: 0 | AD237: =+F237 -> 35979.04234 | AE237: Revenue-related
B238: =IF(OverheadAlloc="Expenses","E-GTDC","L-GTDC") -> E-GTDC | D238: =MAX(D235:D237)+NoOne -> 21 | E238: All Expense-Related | F238: =+'O&M Summary'!J66 -> 2982340.283 | G238: =$F238*VLOOKUP($B238,RatiosLabInt,G$530,FALSE) -> 344588.2868 | H238: 0 | I238: 1132473.215 | J238: 198818.3904 | K238: 293780.7609 | L238: 83363.48414 | M238: 57708.04337 | N238: 102148.0324 | O238: 46591.61055 | P238: 51564.69921 | Q238: 35900.96702 | R238: 55259.14345 | S238: 8766.032564 | T238: 571377.6171 | U238: 0 | AA238: All Expense-Related | AC238: 0 | AD238: 0 | AE238: =+"Prorated on Subtotal Production, Transmission, Distribution, Accounting Expenses - L "&$D$223&", "&$D$225 -> Prorated on Subtotal Production, Transmission, Distribution, Accounting Expenses - L 11, 12
B239: =IF(OverheadAlloc="Expenses","E-GTD","L-GTD") -> E-GTD | D239: =MAX(D236:D238)+NoOne -> 22 | E239: Prod,Trans & Distn Expense-Related | F239: ='O&M Summary'!J70 -> 126134.7574 | G239: 18027.88594 | H239: 0 | I239: 59247.80016 | J239: 10401.61666 | K239: 15369.77968 | L239: 4361.342045 | M239: 3019.121843 | N239: 5344.096559 | O239: 2437.541474 | P239: 2697.719427 | Q239: 1878.237198 | R239: 2891.002316 | S239: 458.6140657 | T239: 0 | U239: 0 | AA239: =IF(ISBLANK(E239),"",E239) -> Prod,Trans & Distn Expense-Related | AC239: =IF(SUM($F$218,$F$220)<>0,$F239*(SUM(AC224,AC226)/SUM($F$218,$F$220)),0) -> 0 | AD239: =IF(SUM($F$218,$F$220)<>0,$F239*(SUM(AD224,AD226)/SUM($F$218,$F$220)),0) -> 0 | AE239: =+"Prorated on Subtotal Production, Transmission, Distribution Expenses - L."&D223 -> Prorated on Subtotal Production, Transmission, Distribution Expenses - L.11
A240: =SUM(G240:AD240)-F240 -> 0 | D240: =MAX(D237:D239)+NoOne -> 23 | E240: Subtotal Admin & General | F240: =SUM(F229:F239) -> 5084452.156 | G240: 617943.0977 | H240: 0 | I240: 1605744.85 | J240: 417091.7232 | K240: 530732.1229 | L240: 150601.0086 | M240: 104252.9547 | N240: 184536.3935 | O240: 84170.46882 | P240: 93154.64428 | Q240: 64857.19616 | R240: 84550.07777 | S240: 15836.35041 | T240: 588438.4299 | U240: 0 | AA240: Subtotal Admin & General | AC240: =SUM(AC229:AC239) -> 506563.796 | AD240: =SUM(AD229:AD239) -> 35979.04234
A242: =SUM(G242:AD242)-F242 -> 0 | D242: =MAX(D239:D241)+NoOne -> 24 | E242: Total Operating & Maintenance Expenses | F242: =SUM(F240,F225,F223) -> 11463447.03 | G242: 1354990.754 | H242: 0 | I242: 4028017.344 | J242: 842348.861 | K242: 1159106.416 | L242: 328909.0444 | M242: 227685.9898 | N242: 403023.1232 | O242: 183826.3151 | P242: 203447.542 | Q242: 141646.584 | R242: 202745.1056 | S242: 34586.2151 | T242: 1810570.898 | U242: 0 | AA242: Total Operating & Maintenance Expenses | AC242: =SUM(AC240,AC225,AC223) -> 506563.796 | AD242: =SUM(AD240,AD225,AD223) -> 35979.04234
U244: Schedule 2.1E | AF244: Schedule 2.1E
U245: Page 1 of 2 | AF245: Page 2 of 2
D247: =D6 -> NEWFOUNDLAND AND LABRADOR HYDRO | Y247: NEWFOUNDLAND & LABRADOR HYDRO
D248: =D7 -> 2019 Test Year Cost of Service Study | Y248: =RunName -> 2019 Test Year Cost of Service Study
D249: =$B$1 -> Labrador Interconnected | Y249: =$B$1 -> Labrador Interconnected
D250: Functional Classification of Revenue Requirement | Y250: =+D250&" (CONT'D.)" -> Functional Classification of Revenue Requirement (CONT'D.)
E252: =MAX(D252)+NoOne -> 1 | F252: 2 | G252: 3 | H252: 4 | I252: 5 | J252: 6 | K252: 7 | L252: 8 | M252: 9 | N252: 10 | O252: 11 | P252: 12 | Q252: 13 | R252: 14 | S252: 15 | T252: 16 | U252: 17 | AA252: =MAX(Z252)+NoOne -> 1 | AC252: =MAX(U252)+NoOne -> 18 | AD252: =MAX(AC252)+NoOne -> 19 | AE252: =MAX(AD252)+NoOne -> 20
J253: Distribution | U253: Specifically | AC253: Revenue Related
D254: Line | F254: Total | G254: Production | H254: Production | I254: Transmission | J254: Substations | K254: Primary Lines | M254: Line Transformers | O254: Secondary Lines | Q254: Services | R254: Meters | S254: Street Lighting | T254: Accounting | U254: Assigned | AC254: Municipal | AD254: PUB
D255: No. | E255: Description | F255: Amount | G255: Demand | H255: Energy | I255: Demand | J255: Demand | K255: Demand | L255: Customer | M255: Demand | N255: Customer | O255: Demand | P255: Customer | Q255: Customer | R255: Customer | S255: Customer | T255: Customer | U255: Customer | AA255: Description | AC255: Tax | AD255: Assessment | AE255: Basis of Functional Classification
F256: ($) | G256: ($) | H256: ($) | I256: ($) | J256: ($) | K256: ($) | L256: ($) | M256: ($) | N256: ($) | O256: ($) | P256: ($) | Q256: ($) | R256: ($) | S256: ($) | T256: ($) | U256: ($) | AA256: =IF(ISBLANK(E256),"",E256) -> 
E258: Expenses | AA258: Expenses
D259: =MAX(D256:D258)+NoOne -> 1 | E259: Operating & Maintenance | F259: =SUM(G259:AD259) -> 11463447.03 | G259: =G$242 -> 1354990.754 | H259: =H$242 -> 0 | I259: 4028017.344 | J259: 842348.861 | K259: 1159106.416 | L259: 328909.0444 | M259: 227685.9898 | N259: 403023.1232 | O259: 183826.3151 | P259: 203447.542 | Q259: 141646.584 | R259: 202745.1056 | S259: 34586.2151 | T259: 1810570.898 | U259: 0 | AA259: Operating & Maintenance | AC259: =AC$242 -> 506563.796 | AD259: =AD$242 -> 35979.04234 | AE259: =+"Carryforward from Sch.2.4 L."&D242 -> Carryforward from Sch.2.4 L.24
C260: FUEL1 | D260: 2 | E260: Fuels | F260: 0 | G260: 0 | H260: 0 | I260: 0 | J260: 0 | K260: 0 | L260: 0 | M260: 0 | N260: 0 | O260: 0 | P260: 0 | Q260: 0 | R260: 0 | S260: 0 | T260: 0 | U260: 0 | AA260: Fuels | AC260: 0 | AD260: 0
C261: FUEL2 | D261: 3 | E261: Fuels-Diesel | F261: 42408 | G261: =$F261*'Schedule 4.1'!D$29 -> 42408 | H261: =$F261*'Schedule 4.1'!E$29 -> 0 | I261: 0 | J261: 0 | K261: 0 | L261: 0 | M261: 0 | N261: 0 | O261: 0 | P261: 0 | Q261: 0 | R261: 0 | S261: 0 | T261: 0 | U261: 0 | AA261: Fuels-Diesel | AC261: 0 | AD261: 0 | AE261: Production - Demand
C262: FUEL3 | D262: 4 | E262: Fuels-Gas Turbine | F262: 260210.5 | G262: =$F262*'Schedule 4.1'!D$29 -> 260210.5 | H262: =$F262*'Schedule 4.1'!E$29 -> 0 | I262: 0 | J262: 0 | K262: 0 | L262: 0 | M262: 0 | N262: 0 | O262: 0 | P262: 0 | Q262: 0 | R262: 0 | S262: 0 | T262: 0 | U262: 0 | AA262: =IF(ISBLANK(E262),"",E262) -> Fuels-Gas Turbine | AC262: 0 | AD262: 0 | AE262: Production - Demand
D263: 5 | E263: Power Purchases -CF(L)Co | F263: 1428356 | G263: ='Schedules 4.2,4.3,4.4'!W30 -> 408329.0796 | H263: ='Schedules 4.2,4.3,4.4'!X30 -> 1020026.92 | I263: ='Schedules 4.2,4.3,4.4'!Z30 -> 0 | J263: 0 | K263: 0 | L263: 0 | M263: 0 | N263: 0 | O263: 0 | P263: 0 | Q263: 0 | R263: 0 | S263: 0 | T263: 0 | U263: 0 | AA263: Power Purchases -CF(L)Co | AC263: 0 | AD263: 0 | AE263: =+"Carryforward from Sch.4.4 L."&'Schedules 4.2,4.3,4.4'!T30 -> Carryforward from Sch.4.4 L.9
... 267 more rows

Sheet NLSOCos
A1: 1 | B1: Newfoundland and Labrador Independent System Operator
A2: 8 | B2: Plant Column Lookups
A3: 6 | Y3: Schedule 2.2A | AK3: Schedule 2.2A
Y4: Page 1 of 2 | AK4: Page 2 of 2
D5: NEWFOUNDLAND AND LABRADOR HYDRO | AC5: NEWFOUNDLAND & LABRADOR HYDRO
D6: =RunName -> 2019 Test Year Cost of Service Study | AC6: =RunName -> 2019 Test Year Cost of Service Study
D7: =$B$1 -> Newfoundland and Labrador Independent System Operator | AC7: =$B$1 -> Newfoundland and Labrador Independent System Operator
D8: Functional Classification of Plant in Service for the Allocation of O&M Expense | AC8: =+D8&" (CONT'D.)" -> Functional Classification of Plant in Service for the Allocation of O&M Expense (CONT'D.)
E9: =MAX(D9)+NoOne -> 1 | F9: 2 | G9: 3 | H9: 4 | I9: 5 | J9: 6 | K9: =MAX(J9)+NoOne -> 7 | L9: =MAX(K9)+NoOne -> 8 | M9: =MAX(L9)+NoOne -> 9 | N9: 10 | O9: 11 | P9: 12 | Q9: 13 | R9: 14 | S9: 15 | T9: 16 | U9: 17 | V9: 18 | W9: 19 | X9: 20 | Y9: 21
G10: Production and | I10: Transmission | J10: Transmission | L10: Scheduling, | M10: Rural Prod & | N10: Distribution | Y10: Specifically | AE10: =MAX(AD10)+NoOne -> 1 | AG10: =MAX(Y9)+NoOne -> 22
A11: Check | B11: Alloc | C11: Code | D11: Line | F11: Total | G11: Transmission | H11: Production | I11: Point-to-Point | J11: Network Service | K11: Ancillary | L11: System control | M11: Transmission | N11: Substations | O11: Primary Lines | Q11: Line Transformers | S11: Secondary Lines | U11: Services | V11: Meters | W11: Street Lighting | X11: Accounting | Y11: Assigned
A12: Column | B12: Factor | C12: Reference | D12: No. | E12: Description | F12: Amount | G12: Demand | H12: Energy | I12: Demand | J12: Demand | K12: Services | L12: & Dispatch | M12: Demand | N12: Demand | O12: Demand | P12: Customer | Q12: Demand | R12: Customer | S12: Demand | T12: Customer | U12: Customer | V12: Customer | W12: Customer | X12: Customer | Y12: Customer | AE12: Description | AG12: Basis of Functional Classification
A13: =ROUND(SUM(A14:A649),2) -> 0 | F13: ($) | G13: ($) | H13: ($) | I13: ($) | J13: ($) | K13: ($) | L13: ($) | M13: ($) | N13: ($) | O13: ($) | P13: ($) | Q13: ($) | R13: ($) | S13: ($) | T13: ($) | U13: ($) | V13: ($) | W13: ($) | X13: ($) | Y13: ($)
E14: Production Hydraulic | AE14: =IF(ISBLANK(E14),"",E14) -> Production Hydraulic
C15: P01 | D15: =MAX(D12:D14)+NoOne -> 1 | E15: Bay D'Espoir | F15: 283399658 | G15: =($F15-$K15)*'Schedule 4.1'!$D$13 -> 127444538.5 | H15: =($F15-$K15)*'Schedule 4.1'!$E$13 -> 153277641.9 | I15: 0 | J15: 0 | K15: 2677477.55 | L15: 0 | M15: 0 | N15: 0 | O15: 0 | P15: 0 | Q15: 0 | R15: 0 | S15: 0 | T15: 0 | U15: 0 | V15: 0 | W15: 0 | X15: 0 | Y15: 0 | AE15: =IF(ISBLANK(E15),"",E15) -> Bay D'Espoir | AG15: =+"Production - Demand, Energy ratios Sch.4.1 L."&'Schedule 4.1'!$A$13 -> Production - Demand, Energy ratios Sch.4.1 L.1
C16: P10 | D16: 2 | E16: Upper Salmon | F16: 177079567.2 | G16: =($F16-$K16)*'Schedule 4.1'!$D$13 -> 80086572.1 | H16: =($F16-$K16)*'Schedule 4.1'!$E$13 -> 96320180.28 | I16: 0 | J16: 0 | K16: 672814.78 | L16: 0 | M16: 0 | N16: 0 | O16: 0 | P16: 0 | Q16: 0 | R16: 0 | S16: 0 | T16: 0 | U16: 0 | V16: 0 | W16: 0 | X16: 0 | Y16: 0 | AE16: Upper Salmon | AG16: =+"Production - Demand, Energy ratios Sch.4.1 L."&'Schedule 4.1'!$A$13 -> Production - Demand, Energy ratios Sch.4.1 L.1
C17: P05 | D17: 3 | E17: Hinds Lake | F17: 86138997.55 | G17: =($F17-$K17)*'Schedule 4.1'!$D$13 -> 38788852.98 | H17: =($F17-$K17)*'Schedule 4.1'!$E$13 -> 46651382.55 | I17: 0 | J17: 0 | K17: 698762.03 | L17: 0 | M17: 0 | N17: 0 | O17: 0 | P17: 0 | Q17: 0 | R17: 0 | S17: 0 | T17: 0 | U17: 0 | V17: 0 | W17: 0 | X17: 0 | Y17: 0 | AE17: Hinds Lake | AG17: =+"Production - Demand, Energy ratios Sch.4.1 L."&'Schedule 4.1'!$A$13 -> Production - Demand, Energy ratios Sch.4.1 L.1
C18: P02 | D18: 4 | E18: Cat Arm | F18: 279565999.9 | G18: =($F18-$K18)*'Schedule 4.1'!$D$13 -> 126504444.8 | H18: =($F18-$K18)*'Schedule 4.1'!$E$13 -> 152146990.5 | I18: 0 | J18: 0 | K18: 914564.62 | L18: 0 | M18: 0 | N18: 0 | O18: 0 | P18: 0 | Q18: 0 | R18: 0 | S18: 0 | T18: 0 | U18: 0 | V18: 0 | W18: 0 | X18: 0 | Y18: 0 | AE18: Cat Arm | AG18: =+"Production - Demand, Energy ratios Sch.4.1 L."&'Schedule 4.1'!$A$13 -> Production - Demand, Energy ratios Sch.4.1 L.1
C19: P08 | D19: 5 | E19: Paradise River | F19: 22797149.35 | G19: =($F19-$K19)*'Schedule 4.1'!$D$13 -> 10250091.38 | H19: =($F19-$K19)*'Schedule 4.1'!$E$13 -> 12327792.59 | I19: 0 | J19: 0 | K19: 219265.38 | L19: 0 | M19: 0 | N19: 0 | O19: 0 | P19: 0 | Q19: 0 | R19: 0 | S19: 0 | T19: 0 | U19: 0 | V19: 0 | W19: 0 | X19: 0 | Y19: 0 | AE19: Paradise River | AG19: =+"Production - Demand, Energy ratios Sch.4.1 L."&'Schedule 4.1'!$A$13 -> Production - Demand, Energy ratios Sch.4.1 L.1
